{"text_format":"1","workbook":"xlsx","n_sheets":17,"sheets":["Notes","Summary","ICB Q1","Trusts Q1","Sites Q1","ICB Q2","Trusts Q2","Sites Q2","ICB Q3","Trusts Q3","Sites Q3","ICB Q4","Trusts Q4","BSQ1","BSQ2","BSQ3","BSQ4"],"not_rendered":{"charts":0,"images":0,"macros":1,"external_links":1,"defined_names":15,"comments":0,"pivot_tables":0},"unopened":[],"bounds":{"document_bytes":16777216,"sheet_cells":100000,"rows_first":2000,"rows_last":500,"rows_between":2000,"halvings":0,"cell_chars":16384,"cell_head_chars":4096},"cells_cut":0,"cells_raw":0,"read":"whole","date_system":"1900"}

{"sheet":"Notes","index":0,"n_rows":2,"n_cols":1,"rows_kept":2,"cut":false,"hidden":false,"merged":[[1,8,3,14]]}
[]
["Maternity Friends and Family Test (FFT) Data - October 2022"]

{"sheet":"Summary","index":1,"n_rows":23,"n_cols":10,"rows_kept":23,"cut":false,"hidden":false,"merged":[[6,1,7,1],[6,4,6,5],[6,6,6,7],[6,8,6,9]]}
[]
[]
[]
[]
[]
[]
[null,"FFT","Number of organisations submitting","Total responses to date","Responses",null,"Percentage Positive",null,"Percentage Negative"]
[null,null,{"$f":"[1]Instructions!$D$1","v":"2022-10-01"},{"$f":"[1]Instructions!$D$1","v":"2022-10-01"},{"$f":"[1]Instructions!$D$1","v":"2022-10-01"},{"$f":"[1]Instructions!$D$1-5","v":"2022-09-26"},{"$f":"[1]Instructions!$D$1","v":"2022-10-01"},{"$f":"[1]Instructions!$D$1-5","v":"2022-09-26"},{"$f":"[1]Instructions!$D$1","v":"2022-10-01"},{"$f":"[1]Instructions!$D$1-5","v":"2022-09-26"}]
[null,"Maternity Total","NA",3057378,17904,16513,0.91454423592493295,0.91449161266880641,4.8257372654155493E-2,4.7417186459153396E-2]
[null,"Maternity NHS Total","NA",3053975,17904,16513,0.91454423592493295,0.91449161266880641,4.8257372654155493E-2,4.7417186459153396E-2]
[null,"Maternity IS Total","NA",3403,0,0,"NA","NA","NA","NA"]
[null,"Antenatal Total",112,628915,4892,4576,0.90453802125919869,0.90865384615384615,5.6214227309893706E-2,5.7692307692307696E-2]
[null,"Antenatal NHS ",112,627731,4892,4576,0.90453802125919869,0.90865384615384615,5.6214227309893706E-2,5.7692307692307696E-2]
[null,"Antenatal IS",0,1184,0,0,"NA","NA","NA","NA"]
[null,"Birth Total",117,950977,5494,5010,0.92519111758281758,0.92275449101796403,4.3684018929741539E-2,4.3113772455089822E-2]
[null,"Birth NHS",117,950553,5494,5010,0.92519111758281758,0.92275449101796403,4.3684018929741539E-2,4.3113772455089822E-2]
[null,"Birth IS",0,424,0,0,"NA","NA","NA","NA"]
[null,"Postnatal Ward Total",111,1044581,6214,5545,0.9169616993884776,0.9163210099188458,4.4093981332475059E-2,4.1478809738503153E-2]
[null,"Postnatal Ward Total NHS",111,1044581,6214,5545,0.9169616993884776,0.9163210099188458,4.4093981332475059E-2,4.1478809738503153E-2]
[null,"Postnatal Ward Total IS","NA","NA","NA","NA","NA","NA","NA","NA"]
[null,"Postnatal Community Total",119,432905,1304,1382,0.89570552147239269,0.89652677279305359,5.7515337423312884E-2,5.2821997105643996E-2]
[null,"Postnatal Community NHS",119,431110,1304,1382,0.89570552147239269,0.89652677279305359,5.7515337423312884E-2,5.2821997105643996E-2]
[null,"Postnatal Community IS",0,1795,0,0,"NA","NA","NA","NA"]

{"sheet":"ICB Q1","index":2,"n_rows":55,"n_cols":11,"rows_kept":55,"cut":false,"hidden":false,"merged":[[8,5,8,10],[8,0,9,0],[8,1,9,1],[8,2,9,2],[8,3,9,3],[8,4,9,4]]}
[]
[]
[]
[]
[]
[null,"   Sort data by:           "]
[]
[]
["ICB Code","ICB Name","Total Responses","Percentage Positive","Percentage Negative","Breakdown of Responses"]
[null,null,null,null,null,"Very Good","Good","Neither Good nor Poor","Poor","Very Poor","Don't Know"]
[null,"England (including Independent Sector providers)",4892,0.90453802125919869,5.6214227309893706E-2,3438,987,156,125,150,36]
[null,"England (excluding Independent Sector providers)",4892,0.90453802125919869,5.6214227309893706E-2,3438,987,156,125,150,36]
[null,"Selection (excluding suppressed data)",{"$f":"SUBTOTAL(9,C14:C55)","v":4892},{"$f":"IFERROR((F13+G13)/SUM(F13:K13), \"-\")","v":0.90450819672131144},{"$f":"IFERROR((I13+J13)/SUM(F13:K13), \"-\")","v":5.614754098360656E-2},{"$f":"SUBTOTAL(9,F14:F55)","v":3431},{"$f":"SUBTOTAL(9,G14:G55)","v":983},156,124,150,36]
["QE1","LANCASHIRE AND SOUTH CUMBRIA ICB",123,0.89430894308943087,7.3170731707317069E-2,86,24,3,2,7,1]
["QF7","SOUTH YORKSHIRE ICB",79,0.86075949367088611,7.5949367088607597E-2,57,11,4,4,2,1]
["QGH","HEREFORDSHIRE AND WORCESTERSHIRE ICB",0,"NA","NA",0,0,0,0,0,0]
["QH8","MID AND SOUTH ESSEX ICB",1,"*","*","*","*","*","*","*","*"]
["QHG","BEDFORDSHIRE, LUTON AND MILTON KEYNES ICB",248,0.907258064516129,3.2258064516129031E-2,161,64,13,2,6,2]
["QHL","BIRMINGHAM AND SOLIHULL ICB",297,0.85185185185185186,8.7542087542087546E-2,189,64,9,11,15,9]
["QHM","NORTH EAST AND NORTH CUMBRIA ICB",33,0.84848484848484851,0.12121212121212122,25,3,1,3,1,0]
["QJ2","DERBY AND DERBYSHIRE ICB",95,0.81052631578947365,0.11578947368421053,49,28,7,5,6,0]
["QJG","SUFFOLK AND NORTH EAST ESSEX ICB",25,0.96,0,18,6,1,0,0,0]
["QJK","DEVON ICB",24,0.66666666666666663,0,13,3,8,0,0,0]
["QJM","LINCOLNSHIRE ICB",0,"NA","NA",0,0,0,0,0,0]
["QK1","LEICESTER, LEICESTERSHIRE AND RUTLAND ICB",76,0.96052631578947367,1.3157894736842105E-2,56,17,2,0,1,0]
["QKK","SOUTH EAST LONDON ICB",112,0.8660714285714286,6.25E-2,63,34,8,2,5,0]
["QKS","KENT AND MEDWAY ICB",384,0.94270833333333337,3.90625E-2,279,83,7,7,8,0]
["QM7","HERTFORDSHIRE AND WEST ESSEX ICB",6,1,0,"*","*","*","*","*","*"]
["QMF","NORTH EAST LONDON ICB",130,0.83076923076923082,0.1076923076923077,77,31,7,6,8,1]
["QMJ","NORTH CENTRAL LONDON ICB",52,0.80769230769230771,0.13461538461538461,32,10,3,3,4,0]
["QMM","NORFOLK AND WAVENEY ICB",79,0.94936708860759489,1.2658227848101266E-2,62,13,3,0,1,0]
["QNC","STAFFORDSHIRE AND STOKE-ON-TRENT ICB",1,"*","*","*","*","*","*","*","*"]
["QNQ","FRIMLEY ICB",7,1,0,4,3,0,0,0,0]
["QNX","SUSSEX ICB",1,"*","*","*","*","*","*","*","*"]
["QOC","SHROPSHIRE, TELFORD AND WREKIN ICB",69,0.95652173913043481,1.4492753623188406E-2,59,7,2,1,0,0]
["QOP","GREATER MANCHESTER ICB",228,0.72368421052631582,0.18859649122807018,99,66,17,21,22,3]
["QOQ","HUMBER AND NORTH YORKSHIRE ICB",21,0.80952380952380953,0.19047619047619047,15,2,0,3,1,0]
["QOX","BATH AND NORTH EAST SOMERSET, SWINDON AND WILTSHIRE ICB",42,0.95238095238095233,4.7619047619047616E-2,37,3,0,2,0,0]
["QPM","NORTHAMPTONSHIRE ICB",3,"*","*","*","*","*","*","*","*"]
["QR1","GLOUCESTERSHIRE ICB",0,"NA","NA",0,0,0,0,0,0]
["QRL","HAMPSHIRE AND ISLE OF WIGHT ICB",199,0.96984924623115576,1.0050251256281407E-2,134,59,3,2,0,1]
["QRV","NORTH WEST LONDON ICB",240,0.87916666666666665,7.0833333333333331E-2,169,42,12,4,13,0]
["QSL","SOMERSET ICB",23,0.91304347826086951,8.6956521739130432E-2,17,4,0,1,1,0]
["QT1","NOTTINGHAM AND NOTTINGHAMSHIRE ICB",241,0.93775933609958506,2.0746887966804978E-2,182,44,9,3,2,1]
["QT6","CORNWALL AND THE ISLES OF SCILLY ICB",35,0.97142857142857142,2.8571428571428571E-2,23,11,0,0,1,0]
["QU9","BUCKINGHAMSHIRE, OXFORDSHIRE AND BERKSHIRE WEST ICB",148,0.83783783783783783,0.11486486486486487,101,23,7,13,4,0]
["QUA","BLACK COUNTRY ICB",202,0.90594059405940597,6.9306930693069313E-2,147,36,2,8,6,3]
["QUE","CAMBRIDGESHIRE AND PETERBOROUGH ICB",403,0.96029776674937961,9.9255583126550868E-3,327,60,5,2,2,7]
["QUY","BRISTOL, NORTH SOMERSET AND SOUTH GLOUCESTERSHIRE ICB",17,1,0,16,1,0,0,0,0]
["QVV","DORSET ICB",47,0.95744680851063835,0,32,13,2,0,0,0]
["QWE","SOUTH WEST LONDON ICB",116,0.83620689655172409,0.10344827586206896,77,20,3,5,7,4]
["QWO","WEST YORKSHIRE ICB",705,0.96028368794326247,2.1276595744680851E-2,563,114,12,6,9,1]
["QWU","COVENTRY AND WARWICKSHIRE ICB",234,0.91025641025641024,7.2649572649572655E-2,148,65,3,2,15,1]
["QXU","SURREY HEARTLANDS ICB",26,1,0,23,3,0,0,0,0]
["QYG","CHESHIRE AND MERSEYSIDE ICB",120,0.89166666666666672,7.4999999999999997E-2,91,16,3,6,3,1]

{"sheet":"Trusts Q1","index":3,"n_rows":125,"n_cols":20,"rows_kept":125,"cut":false,"hidden":false,"merged":[[8,6,8,11],[8,12,8,19],[8,0,9,0],[8,1,9,1],[8,2,9,2],[8,3,9,3],[8,4,9,4],[8,5,9,5]]}
[]
[]
[]
[]
[]
[null,"   Sort data by:           "]
[]
[]
["ICB Code","Trust Code","Trust Name","Total Responses","Percentage Positive","Percentage Negative","Breakdown of Responses",null,null,null,null,null,"Mode of Collection"]
[null,null,null,null,null,null,"Very Good","Good","Neither Good nor Poor","Poor","Very Poor","Don't Know","Mode SMS","Mode Electronic Discharge","Mode Electronic Home","Mode Paper Discharge","Mode Paper Home","Mode Telephone","Mode Online","Mode Other"]
[null,null,"England (including Independent Sector providers)",4892,0.90453802125919869,5.6214227309893706E-2,3438,987,156,125,150,36,1696,558,0,1694,250,1,663,30]
[null,null,"England (excluding Independent Sector providers)",4892,0.90453802125919869,5.6214227309893706E-2,3438,987,156,125,150,36,1696,558,0,1694,250,1,663,30]
[null,null,"Selection (excluding suppressed data)",{"$f":"SUBTOTAL(9,D14:D298)","v":4892},{"$f":"IFERROR((G13+H13)/SUM(G13:L13), \"-\")","v":0.90964777947932618},{"$f":"IFERROR((J13+K13)/SUM(G13:L13), \"-\")","v":5.1848610807263183E-2},{"$f":"SUBTOTAL(9,G14:G298)","v":3230},928,141,105,132,35,1495,541,0,1668,249,1,616,1]
["QE1","RTX","UNIVERSITY HOSPITALS OF MORECAMBE BAY NHS FOUNDATION TRUST",6,1,0,5,1,0,0,0,0,0,0,0,0,0,0,6,0]
["QE1","RXL","BLACKPOOL TEACHING HOSPITALS NHS FOUNDATION TRUST",17,0.76470588235294112,0.11764705882352941,9,4,2,0,2,0,17,0,0,0,0,0,0,0]
["QE1","RXN","LANCASHIRE TEACHING HOSPITALS NHS FOUNDATION TRUST",17,0.70588235294117652,0.23529411764705882,6,6,1,1,3,0,17,0,0,0,0,0,0,0]
["QE1","RXR","EAST LANCASHIRE HOSPITALS NHS TRUST",83,0.95180722891566261,3.614457831325301E-2,66,13,0,1,2,1,55,0,0,28,0,0,0,0]
["QF7","RFF","BARNSLEY HOSPITAL NHS FOUNDATION TRUST",1,"*","*","*","*","*","*","*","*","*","*","*","*","*","*","*","*"]
["QF7","RP5","DONCASTER AND BASSETLAW TEACHING HOSPITALS NHS FOUNDATION TRUST",7,0.8571428571428571,0.14285714285714285,"*","*","*","*","*","*","*","*","*","*","*","*","*","*"]
["QF7","RFR","THE ROTHERHAM NHS FOUNDATION TRUST",18,0.94444444444444442,0,15,2,1,0,0,0,0,0,0,18,0,0,0,0]
["QF7","RHQ","SHEFFIELD TEACHING HOSPITALS NHS FOUNDATION TRUST",53,0.84905660377358494,9.4339622641509441E-2,37,8,3,3,2,0,25,0,0,28,0,0,0,0]
["QGH","RLQ","WYE VALLEY NHS TRUST",0,"NA","NA",0,0,0,0,0,0,0,0,0,0,0,0,0,0]
["QGH","RWP","WORCESTERSHIRE ACUTE HOSPITALS NHS TRUST",0,"NA","NA",0,0,0,0,0,0,0,0,0,0,0,0,0,0]
["QH8","RAJ","MID AND SOUTH ESSEX NHS FOUNDATION TRUST",1,"*","*","*","*","*","*","*","*","*","*","*","*","*","*","*","*"]
["QHG","RC9","BEDFORDSHIRE HOSPITALS NHS FOUNDATION TRUST",28,0.7142857142857143,0.10714285714285714,7,13,5,1,2,0,0,27,0,0,0,0,1,0]
["QHG","RD8","MILTON KEYNES UNIVERSITY HOSPITAL NHS FOUNDATION TRUST",220,0.93181818181818177,2.2727272727272728E-2,154,51,8,1,4,2,195,0,0,22,0,0,3,0]
["QHL","RRK","UNIVERSITY HOSPITALS BIRMINGHAM NHS FOUNDATION TRUST",0,"NA","NA",0,0,0,0,0,0,0,0,0,0,0,0,0,0]
["QHL","RQ3","BIRMINGHAM WOMEN'S AND CHILDREN'S NHS FOUNDATION TRUST",137,0.91240875912408759,6.569343065693431E-2,93,32,3,6,3,0,0,137,0,0,0,0,0,0]
["QHL","RXK","SANDWELL AND WEST BIRMINGHAM HOSPITALS NHS TRUST",160,0.8,0.10625,96,32,6,5,12,9,160,0,0,0,0,0,0,0]
["QHM","RTD","THE NEWCASTLE UPON TYNE HOSPITALS NHS FOUNDATION TRUST",0,"NA","NA",0,0,0,0,0,0,0,0,0,0,0,0,0,0]
["QHM","RTF","NORTHUMBRIA HEALTHCARE NHS FOUNDATION TRUST",0,"NA","NA",0,0,0,0,0,0,0,0,0,0,0,0,0,0]
["QHM","RR7","GATESHEAD HEALTH NHS FOUNDATION TRUST",2,"*","*","*","*","*","*","*","*","*","*","*","*","*","*","*","*"]
["QHM","R0B","SOUTH TYNESIDE AND SUNDERLAND NHS FOUNDATION TRUST",6,0.83333333333333337,0.16666666666666666,"*","*","*","*","*","*","*","*","*","*","*","*","*","*"]
["QHM","RVW","NORTH TEES AND HARTLEPOOL NHS FOUNDATION TRUST",7,0.5714285714285714,0.2857142857142857,4,0,1,1,1,0,7,0,0,0,0,0,0,0]
["QHM","RTR","SOUTH TEES HOSPITALS NHS FOUNDATION TRUST",18,1,0,15,3,0,0,0,0,1,16,0,0,0,0,0,1]
["QJ2","RFS","CHESTERFIELD ROYAL HOSPITAL NHS FOUNDATION TRUST",2,"*","*","*","*","*","*","*","*","*","*","*","*","*","*","*","*"]
["QJ2","RTG","UNIVERSITY HOSPITALS OF DERBY AND BURTON NHS FOUNDATION TRUST",93,0.82795698924731187,0.10752688172043011,"*","*","*","*","*","*","*","*","*","*","*","*","*","*"]
["QJG","RDE","EAST SUFFOLK AND NORTH ESSEX NHS FOUNDATION TRUST",11,1,0,8,3,0,0,0,0,0,0,0,0,0,0,11,0]
["QJG","RGR","WEST SUFFOLK NHS FOUNDATION TRUST",14,0.9285714285714286,0,10,3,1,0,0,0,0,6,0,0,0,0,8,0]
["QJK","RK9","UNIVERSITY HOSPITALS PLYMOUTH NHS TRUST",8,1,0,7,1,0,0,0,0,0,0,0,8,0,0,0,0]
["QJK","RH8","ROYAL DEVON UNIVERSITY HEALTHCARE NHS FOUNDATION TRUST",16,0.5,0,6,2,8,0,0,0,0,0,0,16,0,0,0,0]
["QJM","RWD","UNITED LINCOLNSHIRE HOSPITALS NHS TRUST",0,"NA","NA",0,0,0,0,0,0,0,0,0,0,0,0,0,0]
["QK1","RWE","UNIVERSITY HOSPITALS OF LEICESTER NHS TRUST",76,0.96052631578947367,1.3157894736842105E-2,56,17,2,0,1,0,0,72,0,4,0,0,0,0]
["QKK","RJZ","KING'S COLLEGE HOSPITAL NHS FOUNDATION TRUST",32,0.71875,0.15625,10,13,4,1,4,0,7,0,0,0,0,0,25,0]
["QKK","RJ2","LEWISHAM AND GREENWICH NHS TRUST",39,0.97435897435897434,0,30,8,1,0,0,0,0,0,0,30,0,0,9,0]
["QKK","RJ1","GUY'S AND ST THOMAS' NHS FOUNDATION TRUST",41,0.87804878048780488,4.878048780487805E-2,23,13,3,1,1,0,0,0,0,28,0,0,13,0]
["QKS","RN7","DARTFORD AND GRAVESHAM NHS TRUST",2,"*","*","*","*","*","*","*","*","*","*","*","*","*","*","*","*"]
["QKS","RWF","MAIDSTONE AND TUNBRIDGE WELLS NHS TRUST",7,0.42857142857142855,0.5714285714285714,"*","*","*","*","*","*","*","*","*","*","*","*","*","*"]
["QKS","RPA","MEDWAY NHS FOUNDATION TRUST",66,1,0,65,1,0,0,0,0,0,0,0,66,0,0,0,0]
["QKS","RVV","EAST KENT HOSPITALS UNIVERSITY NHS FOUNDATION TRUST",309,0.94174757281553401,3.5598705501618123E-2,210,81,7,6,5,0,309,0,0,0,0,0,0,0]
["QM7","RQW","THE PRINCESS ALEXANDRA HOSPITAL NHS TRUST",0,"NA","NA",0,0,0,0,0,0,0,0,0,0,0,0,0,0]
["QM7","RWH","EAST AND NORTH HERTFORDSHIRE NHS TRUST",0,"NA","NA",0,0,0,0,0,0,0,0,0,0,0,0,0,0]
["QM7","RWG","WEST HERTFORDSHIRE TEACHING HOSPITALS NHS TRUST",6,1,0,"*","*","*","*","*","*","*","*","*","*","*","*","*","*"]
["QMF","RQX","HOMERTON HEALTHCARE NHS FOUNDATION TRUST",11,0.63636363636363635,9.0909090909090912E-2,5,2,3,1,0,0,11,0,0,0,0,0,0,0]
["QMF","RF4","BARKING, HAVERING AND REDBRIDGE UNIVERSITY HOSPITALS NHS TRUST",23,0.86956521739130432,8.6956521739130432E-2,15,5,1,0,2,0,0,0,0,22,0,0,1,0]
["QMF","R1H","BARTS HEALTH NHS TRUST",96,0.84375,0.11458333333333333,57,24,3,5,6,1,31,0,0,38,0,0,27,0]
["QMJ","RRV","UNIVERSITY COLLEGE LONDON HOSPITALS NHS FOUNDATION TRUST",2,"*","*","*","*","*","*","*","*","*","*","*","*","*","*","*","*"]
["QMJ","RAL","ROYAL FREE LONDON NHS FOUNDATION TRUST",3,"*","*","*","*","*","*","*","*","*","*","*","*","*","*","*","*"]
["QMJ","RAP","NORTH MIDDLESEX UNIVERSITY HOSPITAL NHS TRUST",47,0.85106382978723405,0.10638297872340426,31,9,2,2,3,0,47,0,0,0,0,0,0,0]
["QMM","RGP","JAMES PAGET UNIVERSITY HOSPITALS NHS FOUNDATION TRUST",0,"NA","NA",0,0,0,0,0,0,0,0,0,0,0,0,0,0]
["QMM","RM1","NORFOLK AND NORWICH UNIVERSITY HOSPITALS NHS FOUNDATION TRUST",31,0.87096774193548387,3.2258064516129031E-2,17,10,3,0,1,0,0,0,0,0,0,0,31,0]
["QMM","RCX","THE QUEEN ELIZABETH HOSPITAL, KING'S LYNN, NHS FOUNDATION TRUST",48,1,0,45,3,0,0,0,0,0,0,0,48,0,0,0,0]
["QNC","RJE","UNIVERSITY HOSPITALS OF NORTH MIDLANDS NHS TRUST",1,"*","*","*","*","*","*","*","*","*","*","*","*","*","*","*","*"]
["QNQ","RDU","FRIMLEY HEALTH NHS FOUNDATION TRUST",7,1,0,4,3,0,0,0,0,0,0,0,7,0,0,0,0]
["QNX","RXC","EAST SUSSEX HEALTHCARE NHS TRUST",0,"NA","NA",0,0,0,0,0,0,0,0,0,0,0,0,0,0]
["QNX","RYR","UNIVERSITY HOSPITALS SUSSEX NHS FOUNDATION TRUST",1,"*","*","*","*","*","*","*","*","*","*","*","*","*","*","*","*"]
["QOC","RXW","THE SHREWSBURY AND TELFORD HOSPITAL NHS TRUST",69,0.95652173913043481,1.4492753623188406E-2,59,7,2,1,0,0,0,0,0,69,0,0,0,0]
["QOP","RRF","WRIGHTINGTON, WIGAN AND LEIGH NHS FOUNDATION TRUST",0,"NA","NA",0,0,0,0,0,0,0,0,0,0,0,0,0,0]
["QOP","RM3","NORTHERN CARE ALLIANCE NHS FOUNDATION TRUST",1,"*","*","*","*","*","*","*","*","*","*","*","*","*","*","*","*"]
["QOP","RWJ","STOCKPORT NHS FOUNDATION TRUST",4,"*","*","*","*","*","*","*","*","*","*","*","*","*","*","*","*"]
["QOP","RMC","BOLTON NHS FOUNDATION TRUST",42,0.80952380952380953,4.7619047619047616E-2,18,16,4,2,0,2,0,42,0,0,0,0,0,0]
["QOP","R0A","MANCHESTER UNIVERSITY NHS FOUNDATION TRUST",181,0.7016574585635359,0.22099447513812154,79,48,13,18,22,1,0,33,0,146,0,0,2,0]
["QOQ","RCB","YORK AND SCARBOROUGH TEACHING HOSPITALS NHS FOUNDATION TRUST",0,"NA","NA",0,0,0,0,0,0,0,0,0,0,0,0,0,0]
["QOQ","RCD","HARROGATE AND DISTRICT NHS FOUNDATION TRUST",1,"*","*","*","*","*","*","*","*","*","*","*","*","*","*","*","*"]
["QOQ","RWA","HULL UNIVERSITY TEACHING HOSPITALS NHS TRUST",4,"*","*","*","*","*","*","*","*","*","*","*","*","*","*","*","*"]
["QOQ","RJL","NORTHERN LINCOLNSHIRE AND GOOLE NHS FOUNDATION TRUST",16,0.875,0.125,13,1,0,1,1,0,0,0,0,15,0,0,1,0]
["QOX","RNZ","SALISBURY NHS FOUNDATION TRUST",1,"*","*","*","*","*","*","*","*","*","*","*","*","*","*","*","*"]
["QOX","RD1","ROYAL UNITED HOSPITALS BATH NHS FOUNDATION TRUST",2,"*","*","*","*","*","*","*","*","*","*","*","*","*","*","*","*"]
["QOX","RN3","GREAT WESTERN HOSPITALS NHS FOUNDATION TRUST",39,0.94871794871794868,5.128205128205128E-2,34,3,0,2,0,0,39,0,0,0,0,0,0,0]
["QPM","RNQ","KETTERING GENERAL HOSPITAL NHS FOUNDATION TRUST",1,"*","*","*","*","*","*","*","*","*","*","*","*","*","*","*","*"]
["QPM","RNS","NORTHAMPTON GENERAL HOSPITAL NHS TRUST",2,"*","*","*","*","*","*","*","*","*","*","*","*","*","*","*","*"]
["QRL","R1F","ISLE OF WIGHT NHS TRUST",9,1,0,9,0,0,0,0,0,0,0,0,9,0,0,0,0]
["QRL","RN5","HAMPSHIRE HOSPITALS NHS FOUNDATION TRUST",24,1,0,17,7,0,0,0,0,0,0,0,22,0,0,2,0]
["QRL","RHU","PORTSMOUTH HOSPITALS UNIVERSITY NATIONAL HEALTH SERVICE TRUST",55,1,0,44,11,0,0,0,0,0,0,0,55,0,0,0,0]
["QRL","RHM","UNIVERSITY HOSPITAL SOUTHAMPTON NHS FOUNDATION TRUST",111,0.94594594594594594,1.8018018018018018E-2,64,41,3,2,0,1,0,0,0,0,18,0,93,0]
["QRV","R1K","LONDON NORTH WEST UNIVERSITY HEALTHCARE NHS TRUST",1,"*","*","*","*","*","*","*","*","*","*","*","*","*","*","*","*"]
["QRV","RQM","CHELSEA AND WESTMINSTER HOSPITAL NHS FOUNDATION TRUST",41,0.70731707317073167,0.1951219512195122,"*","*","*","*","*","*","*","*","*","*","*","*","*","*"]
["QRV","RYJ","IMPERIAL COLLEGE HEALTHCARE NHS TRUST",77,0.88311688311688308,6.4935064935064929E-2,59,9,4,1,4,0,0,3,0,0,0,0,74,0]
["QRV","RAS","THE HILLINGDON HOSPITALS NHS FOUNDATION TRUST",121,0.93388429752066116,3.3057851239669422E-2,85,28,4,1,3,0,0,0,0,0,0,0,121,0]
["QSL","RH5","SOMERSET NHS FOUNDATION TRUST",0,"NA","NA",0,0,0,0,0,0,0,0,0,0,0,0,0,0]
["QSL","RA4","YEOVIL DISTRICT HOSPITAL NHS FOUNDATION TRUST",23,0.91304347826086951,8.6956521739130432E-2,17,4,0,1,1,0,0,23,0,0,0,0,0,0]
["QT1","RK5","SHERWOOD FOREST HOSPITALS NHS FOUNDATION TRUST",0,"NA","NA",0,0,0,0,0,0,0,0,0,0,0,0,0,0]
["QT1","RX1","NOTTINGHAM UNIVERSITY HOSPITALS NHS TRUST",241,0.93775933609958506,2.0746887966804978E-2,182,44,9,3,2,1,0,0,0,0,231,0,10,0]
["QT6","REF","ROYAL CORNWALL HOSPITALS NHS TRUST",35,0.97142857142857142,2.8571428571428571E-2,23,11,0,0,1,0,0,35,0,0,0,0,0,0]
["QU9","RTH","OXFORD UNIVERSITY HOSPITALS NHS FOUNDATION TRUST",5,0.8,0.2,3,1,0,1,0,0,0,0,0,0,0,0,5,0]
["QU9","RHW","ROYAL BERKSHIRE NHS FOUNDATION TRUST",6,1,0,5,1,0,0,0,0,1,0,0,4,0,0,1,0]
["QU9","RXQ","BUCKINGHAMSHIRE HEALTHCARE NHS TRUST",137,0.83211678832116787,0.11678832116788321,93,21,7,12,4,0,137,0,0,0,0,0,0,0]
["QUA","RNA","THE DUDLEY GROUP NHS FOUNDATION TRUST",50,0.96,0,39,9,0,0,0,2,11,0,0,37,0,0,2,0]
["QUA","RL4","THE ROYAL WOLVERHAMPTON NHS TRUST",57,0.82456140350877194,0.17543859649122806,42,5,0,7,3,0,57,0,0,0,0,0,0,0]
["QUA","RBK","WALSALL HEALTHCARE NHS TRUST",95,0.9263157894736842,4.2105263157894736E-2,66,22,2,1,3,1,93,1,0,0,0,1,0,0]
["QUE","RGT","CAMBRIDGE UNIVERSITY HOSPITALS NHS FOUNDATION TRUST",5,0.8,0,3,1,1,0,0,0,0,4,0,0,0,0,1,0]
["QUE","RGN","NORTH WEST ANGLIA NHS FOUNDATION TRUST",398,0.96231155778894473,1.0050251256281407E-2,324,59,4,2,2,7,0,0,0,396,0,0,2,0]
["QUY","RVJ","NORTH BRISTOL NHS TRUST",0,"NA","NA",0,0,0,0,0,0,0,0,0,0,0,0,0,0]
["QUY","RA7","UNIVERSITY HOSPITALS BRISTOL AND WESTON NHS FOUNDATION TRUST",17,1,0,16,1,0,0,0,0,0,0,0,17,0,0,0,0]
["QVV","RBD","DORSET COUNTY HOSPITAL NHS FOUNDATION TRUST",21,1,0,17,4,0,0,0,0,21,0,0,0,0,0,0,0]
["QVV","R0D","UNIVERSITY HOSPITALS DORSET NHS FOUNDATION TRUST",26,0.92307692307692313,0,15,9,2,0,0,0,26,0,0,0,0,0,0,0]
["QWE","RJ7","ST GEORGE'S UNIVERSITY HOSPITALS NHS FOUNDATION TRUST",2,"*","*","*","*","*","*","*","*","*","*","*","*","*","*","*","*"]
["QWE","RVR","EPSOM AND ST HELIER UNIVERSITY HOSPITALS NHS TRUST",10,1,0,"*","*","*","*","*","*","*","*","*","*","*","*","*","*"]
["QWE","RAX","KINGSTON HOSPITAL NHS FOUNDATION TRUST",39,0.84615384615384615,0.12820512820512819,32,1,1,0,5,0,0,0,0,0,0,0,39,0]
["QWE","RJ6","CROYDON HEALTH SERVICES NHS TRUST",65,0.83076923076923082,7.6923076923076927E-2,35,19,2,3,2,4,65,0,0,0,0,0,0,0]
["QWO","RAE","BRADFORD TEACHING HOSPITALS NHS FOUNDATION TRUST",1,"*","*","*","*","*","*","*","*","*","*","*","*","*","*","*","*"]
["QWO","RR8","LEEDS TEACHING HOSPITALS NHS TRUST",69,0.95652173913043481,1.4492753623188406E-2,"*","*","*","*","*","*","*","*","*","*","*","*","*","*"]
["QWO","RWY","CALDERDALE AND HUDDERSFIELD NHS FOUNDATION TRUST",79,0.94936708860759489,1.2658227848101266E-2,66,9,2,0,1,1,0,0,0,0,0,0,79,0]
["QWO","RXF","MID YORKSHIRE HOSPITALS NHS TRUST",556,0.96223021582733814,2.3381294964028777E-2,440,95,8,6,7,0,50,0,0,486,0,0,20,0]
["QWU","RJC","SOUTH WARWICKSHIRE UNIVERSITY NHS FOUNDATION TRUST",21,0.80952380952380953,0.14285714285714285,17,0,0,0,3,1,0,0,0,21,0,0,0,0]
["QWU","RKB","UNIVERSITY HOSPITALS COVENTRY AND WARWICKSHIRE NHS TRUST",213,0.92018779342723001,6.5727699530516437E-2,131,65,3,2,12,0,51,142,0,0,0,0,20,0]
["QXU","RTK","ASHFORD AND ST PETER'S HOSPITALS NHS FOUNDATION TRUST",0,"NA","NA",0,0,0,0,0,0,0,0,0,0,0,0,0,0]
["QXU","RA2","ROYAL SURREY COUNTY HOSPITAL NHS FOUNDATION TRUST",1,"*","*","*","*","*","*","*","*","*","*","*","*","*","*","*","*"]
["QXU","RTP","SURREY AND SUSSEX HEALTHCARE NHS TRUST",25,1,0,"*","*","*","*","*","*","*","*","*","*","*","*","*","*"]
["QYG","RJN","EAST CHESHIRE NHS TRUST",0,"NA","NA",0,0,0,0,0,0,0,0,0,0,0,0,0,0]
["QYG","RVY","SOUTHPORT AND ORMSKIRK HOSPITAL NHS TRUST",2,"*","*","*","*","*","*","*","*","*","*","*","*","*","*","*","*"]
["QYG","REP","LIVERPOOL WOMEN'S NHS FOUNDATION TRUST",19,0.84210526315789469,0.15789473684210525,"*","*","*","*","*","*","*","*","*","*","*","*","*","*"]
["QYG","RBN","ST HELENS AND KNOWSLEY TEACHING HOSPITALS NHS TRUST",26,0.96153846153846156,3.8461538461538464E-2,20,5,0,1,0,0,0,0,0,17,0,0,9,0]
["QYG","RBT","MID CHESHIRE HOSPITALS NHS FOUNDATION TRUST",31,0.90322580645161288,6.4516129032258063E-2,23,5,0,1,1,1,31,0,0,0,0,0,0,0]
["QYG","RBL","WIRRAL UNIVERSITY TEACHING HOSPITAL NHS FOUNDATION TRUST",42,0.88095238095238093,7.1428571428571425E-2,34,3,2,2,1,0,31,0,0,11,0,0,0,0]

{"sheet":"Sites Q1","index":4,"n_rows":190,"n_cols":14,"rows_kept":190,"cut":false,"hidden":false,"merged":[[8,6,9,6],[8,7,9,7],[8,8,8,13],[8,0,9,0],[8,1,9,1],[8,2,9,2],[8,3,9,3],[8,4,9,4],[8,5,9,5]]}
[]
[]
[]
[]
[]
[null,"   Sort data by:           "]
[]
[]
["ICB Code","Trust Code","Trust Name","Site Code","Site Name","Total Responses","Percentage Positive","Percentage Negative","Breakdown of Responses"]
[null,null,null,null,null,null,null,null,"Very Good","Good","Neither Good nor Poor","Poor","Very Poor","Don't Know"]
[null,null,null,null,"England (including Independent Sector providers)",4892,0.90453802125919869,5.6214227309893706E-2,3438,987,156,125,150,36]
[null,null,null,null,"England (excluding Independent Sector providers)",4892,0.90453802125919869,5.6214227309893706E-2,3438,987,156,125,150,36]
[null,null,null,null,"Selection (excluding suppressed data)",{"$f":"SUBTOTAL(9,F14:F297)","v":4892},{"$f":"IFERROR((I13+J13)/SUM(I13:N13), \"-\")","v":0.90812879981986039},{"$f":"IFERROR((L13+M13)/SUM(I13:N13), \"-\")","v":5.2690835397433008E-2},{"$f":"SUBTOTAL(9,I14:I297)","v":3131},902,139,103,131,35]
["QE1","RXL","BLACKPOOL TEACHING HOSPITALS NHS FOUNDATION TRUST","RXL01","Blackpool Victoria Hospital",17,0.76470588235294112,0.11764705882352941,9,4,2,0,2,0]
["QE1","RXR","EAST LANCASHIRE HOSPITALS NHS TRUST","RXR20","Royal Blackburn Hospital",83,0.95180722891566261,3.614457831325301E-2,66,13,0,1,2,1]
["QE1","RXN","LANCASHIRE TEACHING HOSPITALS NHS FOUNDATION TRUST","RXN01","Chorley and South Ribble Hospital",0,"NA","NA",0,0,0,0,0,0]
["QE1","RXN","LANCASHIRE TEACHING HOSPITALS NHS FOUNDATION TRUST","RXN02","Royal Preston Hospital",17,0.70588235294117652,0.23529411764705882,6,6,1,1,3,0]
["QE1","RTX","UNIVERSITY HOSPITALS OF MORECAMBE BAY NHS FOUNDATION TRUST","RTXBU","Furness General Hospital",4,"*","*","*","*","*","*","*","*"]
["QE1","RTX","UNIVERSITY HOSPITALS OF MORECAMBE BAY NHS FOUNDATION TRUST","RTX02","Royal Lancaster Infirmary",2,"*","*","*","*","*","*","*","*"]
["QF7","RFF","BARNSLEY HOSPITAL NHS FOUNDATION TRUST","RFFAA","Barnsley Hospital NHS Foundation Trust HQ",1,"*","*","*","*","*","*","*","*"]
["QF7","RP5","DONCASTER AND BASSETLAW TEACHING HOSPITALS NHS FOUNDATION TRUST","RP5BA","Bassetlaw Hospital",0,"NA","NA",0,0,0,0,0,0]
["QF7","RP5","DONCASTER AND BASSETLAW TEACHING HOSPITALS NHS FOUNDATION TRUST","RP5DR","Doncaster Royal Infirmary",2,"*","*","*","*","*","*","*","*"]
["QF7","RP5","DONCASTER AND BASSETLAW TEACHING HOSPITALS NHS FOUNDATION TRUST","RP5XXX","Non-hospital site",5,1,0,"*","*","*","*","*","*"]
["QF7","RHQ","SHEFFIELD TEACHING HOSPITALS NHS FOUNDATION TRUST","RHQHH","Royal Hallamshire Hospital",53,0.84905660377358494,9.4339622641509441E-2,37,8,3,3,2,0]
["QF7","RFR","THE ROTHERHAM NHS FOUNDATION TRUST","RFRPA","Rotherham District General Hospital",18,0.94444444444444442,0,15,2,1,0,0,0]
["QGH","RWP","WORCESTERSHIRE ACUTE HOSPITALS NHS TRUST","RWP01","Alexandra Hospital",0,"NA","NA",0,0,0,0,0,0]
["QGH","RWP","WORCESTERSHIRE ACUTE HOSPITALS NHS TRUST","RWP31","Kidderminster Hospital",0,"NA","NA",0,0,0,0,0,0]
["QGH","RWP","WORCESTERSHIRE ACUTE HOSPITALS NHS TRUST","RWP50","Worcestershire Royal Hospital",0,"NA","NA",0,0,0,0,0,0]
["QGH","RLQ","WYE VALLEY NHS TRUST","RLQ01","Hereford County Hospital",0,"NA","NA",0,0,0,0,0,0]
["QH8","RAJ","MID AND SOUTH ESSEX NHS FOUNDATION TRUST","RAJ12","BASILDON HOSPITAL",0,"NA","NA",0,0,0,0,0,0]
["QH8","RAJ","MID AND SOUTH ESSEX NHS FOUNDATION TRUST","RAJ32","MID ESSEX HOSPITAL",1,"*","*","*","*","*","*","*","*"]
["QH8","RAJ","MID AND SOUTH ESSEX NHS FOUNDATION TRUST","RAJ01","Southend Hospital",0,"NA","NA",0,0,0,0,0,0]
["QHG","RC9","BEDFORDSHIRE HOSPITALS NHS FOUNDATION TRUST","RC979","BEDFORD HOSPITAL SOUTH WING",0,"NA","NA",0,0,0,0,0,0]
["QHG","RC9","BEDFORDSHIRE HOSPITALS NHS FOUNDATION TRUST","RC971","Luton and Dunstable Hospital",28,0.7142857142857143,0.10714285714285714,7,13,5,1,2,0]
["QHG","RD8","MILTON KEYNES UNIVERSITY HOSPITAL NHS FOUNDATION TRUST","RD816","Milton Keynes Hospital",220,0.93181818181818177,2.2727272727272728E-2,154,51,8,1,4,2]
["QHL","RQ3","BIRMINGHAM WOMEN'S AND CHILDREN'S NHS FOUNDATION TRUST","RQ370","Birmingham Women's Hospital",137,0.91240875912408759,6.569343065693431E-2,93,32,3,6,3,0]
["QHL","RXK","SANDWELL AND WEST BIRMINGHAM HOSPITALS NHS TRUST","RXK02","City Hospital",117,0.77777777777777779,0.12820512820512819,69,22,5,3,12,6]
["QHL","RXK","SANDWELL AND WEST BIRMINGHAM HOSPITALS NHS TRUST","RXK01","Sandwell General Hospital",43,0.86046511627906974,4.6511627906976744E-2,27,10,1,2,0,3]
["QHL","RRK","UNIVERSITY HOSPITALS BIRMINGHAM NHS FOUNDATION TRUST","RRK98","Good Hope Hospital",0,"NA","NA",0,0,0,0,0,0]
["QHL","RRK","UNIVERSITY HOSPITALS BIRMINGHAM NHS FOUNDATION TRUST","RRK97","Heartlands Hospital",0,"NA","NA",0,0,0,0,0,0]
["QHL","RRK","UNIVERSITY HOSPITALS BIRMINGHAM NHS FOUNDATION TRUST","RRK99","Solihull Hospital",0,"NA","NA",0,0,0,0,0,0]
["QHM","RR7","GATESHEAD HEALTH NHS FOUNDATION TRUST","RR7EN","Queen Elizabeth Hospital",2,"*","*","*","*","*","*","*","*"]
["QHM","RVW","NORTH TEES AND HARTLEPOOL NHS FOUNDATION TRUST","RVWAE","University Hospital Of North Tees",7,0.5714285714285714,0.2857142857142857,4,0,1,1,1,0]
["QHM","RTF","NORTHUMBRIA HEALTHCARE NHS FOUNDATION TRUST","RTFXXX","Non-hospital site",0,"NA","NA",0,0,0,0,0,0]
["QHM","RTR","SOUTH TEES HOSPITALS NHS FOUNDATION TRUST","RTR45","Friarage Hospital Site",1,"*","*","*","*","*","*","*","*"]
["QHM","RTR","SOUTH TEES HOSPITALS NHS FOUNDATION TRUST","RTRAT","The James Cook University Hospital",17,1,0,"*","*","*","*","*","*"]
["QHM","R0B","SOUTH TYNESIDE AND SUNDERLAND NHS FOUNDATION TRUST","R0BXXX","Non-hospital site",2,"*","*","*","*","*","*","*","*"]
["QHM","R0B","SOUTH TYNESIDE AND SUNDERLAND NHS FOUNDATION TRUST","R0B0Q","South Tyneside District Hospital",1,"*","*","*","*","*","*","*","*"]
["QHM","R0B","SOUTH TYNESIDE AND SUNDERLAND NHS FOUNDATION TRUST","R0B01","Sunderland Royal Hospital",3,"*","*","*","*","*","*","*","*"]
["QHM","RTD","THE NEWCASTLE UPON TYNE HOSPITALS NHS FOUNDATION TRUST","RTD02","The Royal Victoria Infirmary",0,"NA","NA",0,0,0,0,0,0]
["QJ2","RFS","CHESTERFIELD ROYAL HOSPITAL NHS FOUNDATION TRUST","RFSDA","Chesterfield Royal Hospital",2,"*","*","*","*","*","*","*","*"]
["QJ2","RTG","UNIVERSITY HOSPITALS OF DERBY AND BURTON NHS FOUNDATION TRUST","RTG02","Queens Hospital, Burton Upon Trent",45,0.77777777777777779,0.13333333333333333,"*","*","*","*","*","*"]
["QJ2","RTG","UNIVERSITY HOSPITALS OF DERBY AND BURTON NHS FOUNDATION TRUST","RTGFG","Royal Derby Hospital",48,0.875,8.3333333333333329E-2,"*","*","*","*","*","*"]
["QJG","RDE","EAST SUFFOLK AND NORTH ESSEX NHS FOUNDATION TRUST","RDEE4","Colchester General Hospital",0,"NA","NA",0,0,0,0,0,0]
["QJG","RDE","EAST SUFFOLK AND NORTH ESSEX NHS FOUNDATION TRUST","RDE03","Ipswich Hospital",11,1,0,8,3,0,0,0,0]
["QJG","RGR","WEST SUFFOLK NHS FOUNDATION TRUST","RGR50","West Suffolk Hospital",14,0.9285714285714286,0,10,3,1,0,0,0]
["QJK","RH8","ROYAL DEVON UNIVERSITY HEALTHCARE NHS FOUNDATION TRUST","RH880","North Devon District Hospital",6,1,0,6,0,0,0,0,0]
["QJK","RH8","ROYAL DEVON UNIVERSITY HEALTHCARE NHS FOUNDATION TRUST","RH801","Royal Devon and Exeter Hospital (Wonford)",10,0.2,0,0,2,8,0,0,0]
["QJK","RK9","UNIVERSITY HOSPITALS PLYMOUTH NHS TRUST","RK950","Derriford Hospital",0,"NA","NA",0,0,0,0,0,0]
["QJK","RK9","UNIVERSITY HOSPITALS PLYMOUTH NHS TRUST","RK9XXX","Non-hospital site",8,1,0,7,1,0,0,0,0]
["QJM","RWD","UNITED LINCOLNSHIRE HOSPITALS NHS TRUST","RWDLP","Grantham and District Hospital",0,"NA","NA",0,0,0,0,0,0]
["QJM","RWD","UNITED LINCOLNSHIRE HOSPITALS NHS TRUST","RWDDA","Lincoln County Hospital",0,"NA","NA",0,0,0,0,0,0]
["QJM","RWD","UNITED LINCOLNSHIRE HOSPITALS NHS TRUST","RWDLA","Pilgrim Hospital",0,"NA","NA",0,0,0,0,0,0]
["QK1","RWE","UNIVERSITY HOSPITALS OF LEICESTER NHS TRUST","RWEAK","Leicester General Hospital",30,0.96666666666666667,3.3333333333333333E-2,25,4,0,0,1,0]
["QK1","RWE","UNIVERSITY HOSPITALS OF LEICESTER NHS TRUST","RWEAA","Leicester Royal Infirmary",35,0.97142857142857142,0,22,12,1,0,0,0]
["QK1","RWE","UNIVERSITY HOSPITALS OF LEICESTER NHS TRUST","RWEXXX","Non-hospital site",11,0.90909090909090906,0,9,1,1,0,0,0]
["QKK","RJ1","GUY'S AND ST THOMAS' NHS FOUNDATION TRUST","RJ122","St Thomas' Hospital",41,0.87804878048780488,4.878048780487805E-2,23,13,3,1,1,0]
["QKK","RJZ","KING'S COLLEGE HOSPITAL NHS FOUNDATION TRUST","RJZ01","King's College Hospital (Denmark Hill)",12,0.91666666666666663,8.3333333333333329E-2,2,9,0,1,0,0]
["QKK","RJZ","KING'S COLLEGE HOSPITAL NHS FOUNDATION TRUST","RJZ30","Princess Royal University Hospital",20,0.6,0.2,8,4,4,0,4,0]
["QKK","RJ2","LEWISHAM AND GREENWICH NHS TRUST","RJ231","Queen Elizabeth Hospital",2,"*","*","*","*","*","*","*","*"]
["QKK","RJ2","LEWISHAM AND GREENWICH NHS TRUST","RJ224","University Hospital Lewisham",37,0.97297297297297303,0,"*","*","*","*","*","*"]
["QKS","RN7","DARTFORD AND GRAVESHAM NHS TRUST","RN707","Darent Valley Hospital",2,"*","*","*","*","*","*","*","*"]
["QKS","RVV","EAST KENT HOSPITALS UNIVERSITY NHS FOUNDATION TRUST","RVV01","William Harvey Hospital (Ashford)",309,0.94174757281553401,3.5598705501618123E-2,210,81,7,6,5,0]
["QKS","RWF","MAIDSTONE AND TUNBRIDGE WELLS NHS TRUST","RWF03","Maidstone District General Hospital",1,"*","*","*","*","*","*","*","*"]
["QKS","RWF","MAIDSTONE AND TUNBRIDGE WELLS NHS TRUST","RWFXXX","Non-hospital site",3,"*","*","*","*","*","*","*","*"]
["QKS","RWF","MAIDSTONE AND TUNBRIDGE WELLS NHS TRUST","RWFTW","The Tunbridge Wells Hospital",3,"*","*","*","*","*","*","*","*"]
["QKS","RPA","MEDWAY NHS FOUNDATION TRUST","RPA02","Medway Maritime Hospital",66,1,0,65,1,0,0,0,0]
["QM7","RWH","EAST AND NORTH HERTFORDSHIRE NHS TRUST","RWH01","Lister Hospital",0,"NA","NA",0,0,0,0,0,0]
["QM7","RWH","EAST AND NORTH HERTFORDSHIRE NHS TRUST","RWHXXX","Non-hospital site",0,"NA","NA",0,0,0,0,0,0]
["QM7","RQW","THE PRINCESS ALEXANDRA HOSPITAL NHS TRUST","RQWG0","Princess Alexandra Hospital",0,"NA","NA",0,0,0,0,0,0]
["QM7","RWG","WEST HERTFORDSHIRE TEACHING HOSPITALS NHS TRUST","RWG02","Watford General Hospital",6,1,0,"*","*","*","*","*","*"]
["QMF","RF4","BARKING, HAVERING AND REDBRIDGE UNIVERSITY HOSPITALS NHS TRUST","RF4XXX","Non-hospital site",23,0.86956521739130432,8.6956521739130432E-2,15,5,1,0,2,0]
["QMF","R1H","BARTS HEALTH NHS TRUST","R1HNH","Newham General Hospital",47,0.80851063829787229,0.14893617021276595,28,10,1,5,2,1]
["QMF","R1H","BARTS HEALTH NHS TRUST","R1H12","The Royal London Hospital",26,0.76923076923076927,0.15384615384615385,11,9,2,0,4,0]
["QMF","R1H","BARTS HEALTH NHS TRUST","R1HKH","Whipps Cross University Hospital",23,1,0,18,5,0,0,0,0]
["QMF","RQX","HOMERTON HEALTHCARE NHS FOUNDATION TRUST","RQXM1","Homerton University Hospital",11,0.63636363636363635,9.0909090909090912E-2,5,2,3,1,0,0]
["QMJ","RAP","NORTH MIDDLESEX UNIVERSITY HOSPITAL NHS TRUST","RAPNM","North Middlesex Hospital",47,0.85106382978723405,0.10638297872340426,31,9,2,2,3,0]
["QMJ","RAL","ROYAL FREE LONDON NHS FOUNDATION TRUST","RAL26","Barnet Hospital",0,"NA","NA",0,0,0,0,0,0]
["QMJ","RAL","ROYAL FREE LONDON NHS FOUNDATION TRUST","RAL01","Royal Free Hospital",3,"*","*","*","*","*","*","*","*"]
["QMJ","RRV","UNIVERSITY COLLEGE LONDON HOSPITALS NHS FOUNDATION TRUST","RRV11","University College Hospital Elizabeth Garrett Anderson Wing",2,"*","*","*","*","*","*","*","*"]
["QMM","RGP","JAMES PAGET UNIVERSITY HOSPITALS NHS FOUNDATION TRUST","RGP75","James Paget University Hospital",0,"NA","NA",0,0,0,0,0,0]
["QMM","RM1","NORFOLK AND NORWICH UNIVERSITY HOSPITALS NHS FOUNDATION TRUST","RM102","Norfolk and Norwich University Hospital",31,0.87096774193548387,3.2258064516129031E-2,17,10,3,0,1,0]
["QMM","RCX","THE QUEEN ELIZABETH HOSPITAL, KING'S LYNN, NHS FOUNDATION TRUST","RCXXXX","Non-hospital site",48,1,0,45,3,0,0,0,0]
["QMM","RCX","THE QUEEN ELIZABETH HOSPITAL, KING'S LYNN, NHS FOUNDATION TRUST","RCX66","North Cambridgeshire Hospital",0,"NA","NA",0,0,0,0,0,0]
["QMM","RCX","THE QUEEN ELIZABETH HOSPITAL, KING'S LYNN, NHS FOUNDATION TRUST","RCX70","The Queen Elizabeth Hospital",0,"NA","NA",0,0,0,0,0,0]
["QNC","RJE","UNIVERSITY HOSPITALS OF NORTH MIDLANDS NHS TRUST","RJE01","Royal Stoke University Hospital",1,"*","*","*","*","*","*","*","*"]
["QNQ","RDU","FRIMLEY HEALTH NHS FOUNDATION TRUST","RDU01","Frimley Park Hospital",6,1,0,"*","*","*","*","*","*"]
["QNQ","RDU","FRIMLEY HEALTH NHS FOUNDATION TRUST","RDU50","Wexham Park Hospital",1,"*","*","*","*","*","*","*","*"]
["QNX","RXC","EAST SUSSEX HEALTHCARE NHS TRUST","RXC01","Conquest Hospital",0,"NA","NA",0,0,0,0,0,0]
["QNX","RXC","EAST SUSSEX HEALTHCARE NHS TRUST","RXC02","Eastbourne District General Hospital",0,"NA","NA",0,0,0,0,0,0]
["QNX","RXC","EAST SUSSEX HEALTHCARE NHS TRUST","RXCXXX","Non-hospital site",0,"NA","NA",0,0,0,0,0,0]
["QNX","RYR","UNIVERSITY HOSPITALS SUSSEX NHS FOUNDATION TRUST","E0A3H","Royal Sussex County Hospital",1,"*","*","*","*","*","*","*","*"]
["QOC","RXW","THE SHREWSBURY AND TELFORD HOSPITAL NHS TRUST","RXWXXX","Non-hospital site",69,0.95652173913043481,1.4492753623188406E-2,59,7,2,1,0,0]
["QOP","RMC","BOLTON NHS FOUNDATION TRUST","RMC01","Royal Bolton Hospital",42,0.80952380952380953,4.7619047619047616E-2,18,16,4,2,0,2]
["QOP","R0A","MANCHESTER UNIVERSITY NHS FOUNDATION TRUST","R0A05","St Mary's Hospital",181,0.7016574585635359,0.22099447513812154,79,48,13,18,22,1]
["QOP","RM3","NORTHERN CARE ALLIANCE NHS FOUNDATION TRUST","RW603","Royal Oldham Hospital",1,"*","*","*","*","*","*","*","*"]
["QOP","RWJ","STOCKPORT NHS FOUNDATION TRUST","RWJ09","Stepping Hill Hospital",4,"*","*","*","*","*","*","*","*"]
["QOP","RRF","WRIGHTINGTON, WIGAN AND LEIGH NHS FOUNDATION TRUST","RRF02","Royal Albert Edward Infirmary",0,"NA","NA",0,0,0,0,0,0]
["QOQ","RCD","HARROGATE AND DISTRICT NHS FOUNDATION TRUST","RCD01","Harrogate District Hospital",1,"*","*","*","*","*","*","*","*"]
["QOQ","RWA","HULL UNIVERSITY TEACHING HOSPITALS NHS TRUST","RWA01","Hull Royal Infirmary",4,"*","*","*","*","*","*","*","*"]
["QOQ","RJL","NORTHERN LINCOLNSHIRE AND GOOLE NHS FOUNDATION TRUST","RJL30","Diana, Princess Of Wales Hospital",1,"*","*","*","*","*","*","*","*"]
["QOQ","RJL","NORTHERN LINCOLNSHIRE AND GOOLE NHS FOUNDATION TRUST","RJL32","Scunthorpe General Hospital",15,0.93333333333333335,6.6666666666666666E-2,"*","*","*","*","*","*"]
["QOQ","RCB","YORK AND SCARBOROUGH TEACHING HOSPITALS NHS FOUNDATION TRUST","RCBCA","Scarborough General Hospital",0,"NA","NA",0,0,0,0,0,0]
["QOQ","RCB","YORK AND SCARBOROUGH TEACHING HOSPITALS NHS FOUNDATION TRUST","RCB55","York Hospital",0,"NA","NA",0,0,0,0,0,0]
["QOX","RN3","GREAT WESTERN HOSPITALS NHS FOUNDATION TRUST","RN325","The Great Western Hospital",39,0.94871794871794868,5.128205128205128E-2,34,3,0,2,0,0]
["QOX","RD1","ROYAL UNITED HOSPITALS BATH NHS FOUNDATION TRUST","RD121","Frome Community Hospital",1,"*","*","*","*","*","*","*","*"]
["QOX","RD1","ROYAL UNITED HOSPITALS BATH NHS FOUNDATION TRUST","RD130","Princess Anne Wing RUH",1,"*","*","*","*","*","*","*","*"]
["QOX","RNZ","SALISBURY NHS FOUNDATION TRUST","RNZ02","Salisbury District Hospital",1,"*","*","*","*","*","*","*","*"]
["QPM","RNQ","KETTERING GENERAL HOSPITAL NHS FOUNDATION TRUST","RNQ51","Kettering General Hospital",1,"*","*","*","*","*","*","*","*"]
["QPM","RNS","NORTHAMPTON GENERAL HOSPITAL NHS TRUST","RNS01","Northampton General Hospital (Acute)",2,"*","*","*","*","*","*","*","*"]
["QRL","RN5","HAMPSHIRE HOSPITALS NHS FOUNDATION TRUST","RN542","Andover War Memorial Hospital",0,"NA","NA",0,0,0,0,0,0]
["QRL","RN5","HAMPSHIRE HOSPITALS NHS FOUNDATION TRUST","RN506","Basingstoke and North Hampshire Hospital",22,1,0,"*","*","*","*","*","*"]
["QRL","RN5","HAMPSHIRE HOSPITALS NHS FOUNDATION TRUST","RN5XXX","Non-hospital site",0,"NA","NA",0,0,0,0,0,0]
["QRL","RN5","HAMPSHIRE HOSPITALS NHS FOUNDATION TRUST","RN541","Royal Hampshire County Hospital",2,"*","*","*","*","*","*","*","*"]
["QRL","R1F","ISLE OF WIGHT NHS TRUST","R1F01","St Mary's Hospital",9,1,0,9,0,0,0,0,0]
["QRL","RHU","PORTSMOUTH HOSPITALS UNIVERSITY NATIONAL HEALTH SERVICE TRUST","RHU10","Gosport War Memorial Hospital",8,1,0,5,3,0,0,0,0]
["QRL","RHU","PORTSMOUTH HOSPITALS UNIVERSITY NATIONAL HEALTH SERVICE TRUST","RHU04","Petersfield Community Hospital",5,1,0,4,1,0,0,0,0]
["QRL","RHU","PORTSMOUTH HOSPITALS UNIVERSITY NATIONAL HEALTH SERVICE TRUST","RHU03","Queen Alexandra Hospital",22,1,0,20,2,0,0,0,0]
["QRL","RHU","PORTSMOUTH HOSPITALS UNIVERSITY NATIONAL HEALTH SERVICE TRUST","RHU02","St Mary's Hospital",20,1,0,15,5,0,0,0,0]
["QRL","RHM","UNIVERSITY HOSPITAL SOUTHAMPTON NHS FOUNDATION TRUST","RHM01","Southampton General Hospital",111,0.94594594594594594,1.8018018018018018E-2,64,41,3,2,0,1]
["QRV","RQM","CHELSEA AND WESTMINSTER HOSPITAL NHS FOUNDATION TRUST","RQM01","Chelsea and Westminster Hospital",28,0.7142857142857143,0.21428571428571427,"*","*","*","*","*","*"]
["QRV","RQM","CHELSEA AND WESTMINSTER HOSPITAL NHS FOUNDATION TRUST","RQM91","West Middlesex University Hospital",13,0.69230769230769229,0.15384615384615385,"*","*","*","*","*","*"]
["QRV","RYJ","IMPERIAL COLLEGE HEALTHCARE NHS TRUST","RYJ04","Queen Charlotte's Hospital",41,0.92682926829268297,0,33,5,3,0,0,0]
["QRV","RYJ","IMPERIAL COLLEGE HEALTHCARE NHS TRUST","RYJ01","St Mary's Hospital (HQ)",36,0.83333333333333337,0.1388888888888889,26,4,1,1,4,0]
["QRV","R1K","LONDON NORTH WEST UNIVERSITY HEALTHCARE NHS TRUST","R1K01","Northwick Park Hospital",1,"*","*","*","*","*","*","*","*"]
["QRV","RAS","THE HILLINGDON HOSPITALS NHS FOUNDATION TRUST","RAS01","Hillingdon Hospital",121,0.93388429752066116,3.3057851239669422E-2,85,28,4,1,3,0]
["QSL","RH5","SOMERSET NHS FOUNDATION TRUST","RH5K6","Bridgwater Hospital",0,"NA","NA",0,0,0,0,0,0]
["QSL","RH5","SOMERSET NHS FOUNDATION TRUST","RH5A8","MUSGROVE PARK HOSPITAL",0,"NA","NA",0,0,0,0,0,0]
["QSL","RH5","SOMERSET NHS FOUNDATION TRUST","RH5XXX","WiC MIU - RH5XXX",0,"NA","NA",0,0,0,0,0,0]
["QSL","RA4","YEOVIL DISTRICT HOSPITAL NHS FOUNDATION TRUST","RA430","Yeovil District Hospital",23,0.91304347826086951,8.6956521739130432E-2,17,4,0,1,1,0]
["QT1","RX1","NOTTINGHAM UNIVERSITY HOSPITALS NHS TRUST","RX1XXX","Non-hospital site",241,0.93775933609958506,2.0746887966804978E-2,182,44,9,3,2,1]
["QT1","RK5","SHERWOOD FOREST HOSPITALS NHS FOUNDATION TRUST","RK5BC","King's Mill Hospital",0,"NA","NA",0,0,0,0,0,0]
["QT6","REF","ROYAL CORNWALL HOSPITALS NHS TRUST","REFXXX","Non-hospital site",5,1,0,4,1,0,0,0,0]
["QT6","REF","ROYAL CORNWALL HOSPITALS NHS TRUST","REF12","Royal Cornwall Hospital (Treliske)",30,0.96666666666666667,3.3333333333333333E-2,19,10,0,0,1,0]
["QU9","RXQ","BUCKINGHAMSHIRE HEALTHCARE NHS TRUST","RXQ02","Stoke Mandeville Hospital",73,0.83561643835616439,0.1095890410958904,48,13,4,4,4,0]
["QU9","RXQ","BUCKINGHAMSHIRE HEALTHCARE NHS TRUST","RXQ50","Wycombe Hospital",64,0.828125,0.125,45,8,3,8,0,0]
["QU9","RTH","OXFORD UNIVERSITY HOSPITALS NHS FOUNDATION TRUST","RTH05","Horton General Hospital",4,"*","*","*","*","*","*","*","*"]
["QU9","RTH","OXFORD UNIVERSITY HOSPITALS NHS FOUNDATION TRUST","RTH08","John Radcliffe Hospital",1,"*","*","*","*","*","*","*","*"]
["QU9","RHW","ROYAL BERKSHIRE NHS FOUNDATION TRUST","RHW01","Royal Berkshire Hospital",6,1,0,5,1,0,0,0,0]
["QUA","RNA","THE DUDLEY GROUP NHS FOUNDATION TRUST","RNA01","Russells Hall Hospital",50,0.96,0,39,9,0,0,0,2]
["QUA","RL4","THE ROYAL WOLVERHAMPTON NHS TRUST","RL403","New Cross Hospital",57,0.82456140350877194,0.17543859649122806,42,5,0,7,3,0]
["QUA","RBK","WALSALL HEALTHCARE NHS TRUST","RBK02","Manor Hospital",95,0.9263157894736842,4.2105263157894736E-2,66,22,2,1,3,1]
["QUE","RGT","CAMBRIDGE UNIVERSITY HOSPITALS NHS FOUNDATION TRUST","RGT32","Rosie Hospital",5,0.8,0,3,1,1,0,0,0]
["QUE","RGN","NORTH WEST ANGLIA NHS FOUNDATION TRUST","RGN90","Hinchingbrooke Hospital",274,0.98175182481751821,3.6496350364963502E-3,257,12,1,0,1,3]
["QUE","RGN","NORTH WEST ANGLIA NHS FOUNDATION TRUST","RGN80","Peterborough City Hospital",124,0.91935483870967738,2.4193548387096774E-2,67,47,3,2,1,4]
["QUY","RVJ","NORTH BRISTOL NHS TRUST","RVJ01","Southmead Hospital",0,"NA","NA",0,0,0,0,0,0]
["QUY","RA7","UNIVERSITY HOSPITALS BRISTOL AND WESTON NHS FOUNDATION TRUST","RA707","St Michael's Hospital",17,1,0,16,1,0,0,0,0]
["QVV","RBD","DORSET COUNTY HOSPITAL NHS FOUNDATION TRUST","RBD01","Dorset County Hospital",21,1,0,17,4,0,0,0,0]
["QVV","R0D","UNIVERSITY HOSPITALS DORSET NHS FOUNDATION TRUST","R0D01","Poole Hospital",26,0.92307692307692313,0,15,9,2,0,0,0]
["QVV","R0D","UNIVERSITY HOSPITALS DORSET NHS FOUNDATION TRUST","R0D02","Royal Bournemouth Hospital",0,"NA","NA",0,0,0,0,0,0]
["QWE","RJ6","CROYDON HEALTH SERVICES NHS TRUST","RJ611","Croydon University Hospital",65,0.83076923076923082,7.6923076923076927E-2,35,19,2,3,2,4]
["QWE","RVR","EPSOM AND ST HELIER UNIVERSITY HOSPITALS NHS TRUST","RVR50","Epsom Hospital",1,"*","*","*","*","*","*","*","*"]
["QWE","RVR","EPSOM AND ST HELIER UNIVERSITY HOSPITALS NHS TRUST","RVRXXX","Non-hospital site",0,"NA","NA",0,0,0,0,0,0]
["QWE","RVR","EPSOM AND ST HELIER UNIVERSITY HOSPITALS NHS TRUST","RVR05","St Helier Hospital",9,1,0,"*","*","*","*","*","*"]
["QWE","RAX","KINGSTON HOSPITAL NHS FOUNDATION TRUST","RAX01","Kingston Hospital",39,0.84615384615384615,0.12820512820512819,32,1,1,0,5,0]
["QWE","RJ7","ST GEORGE'S UNIVERSITY HOSPITALS NHS FOUNDATION TRUST","RJ701","St George's Hospital (Tooting)",2,"*","*","*","*","*","*","*","*"]
["QWO","RAE","BRADFORD TEACHING HOSPITALS NHS FOUNDATION TRUST","RAE01","Bradford Royal Infirmary",1,"*","*","*","*","*","*","*","*"]
["QWO","RWY","CALDERDALE AND HUDDERSFIELD NHS FOUNDATION TRUST","RWY02","Calderdale Royal Hospital",64,0.953125,1.5625E-2,54,7,1,0,1,1]
["QWO","RWY","CALDERDALE AND HUDDERSFIELD NHS FOUNDATION TRUST","RWY01","Huddersfield Royal Infirmary",14,0.9285714285714286,0,"*","*","*","*","*","*"]
["QWO","RWY","CALDERDALE AND HUDDERSFIELD NHS FOUNDATION TRUST","RWYXXX","Non-hospital site",1,"*","*","*","*","*","*","*","*"]
["QWO","RR8","LEEDS TEACHING HOSPITALS NHS TRUST","RR801","Leeds General Infirmary",0,"NA","NA",0,0,0,0,0,0]
["QWO","RR8","LEEDS TEACHING HOSPITALS NHS TRUST","RR8XXX","Non-hospital site",69,0.95652173913043481,1.4492753623188406E-2,"*","*","*","*","*","*"]
["QWO","RR8","LEEDS TEACHING HOSPITALS NHS TRUST","RR813","St James's University Hospital",0,"NA","NA",0,0,0,0,0,0]
["QWO","RXF","MID YORKSHIRE HOSPITALS NHS TRUST","RXF10","Dewsbury and District Hospital",274,0.97810218978102192,3.6496350364963502E-3,208,60,5,1,0,0]
["QWO","RXF","MID YORKSHIRE HOSPITALS NHS TRUST","RXF05","Pinderfields General Hospital",146,0.9452054794520548,4.7945205479452052E-2,121,17,1,2,5,0]
["QWO","RXF","MID YORKSHIRE HOSPITALS NHS TRUST","RXF03","Pontefract General Infirmary",136,0.94852941176470584,3.6764705882352942E-2,111,18,2,3,2,0]
["QWU","RJC","SOUTH WARWICKSHIRE UNIVERSITY NHS FOUNDATION TRUST","RJCXXX","Non-hospital site",0,"NA","NA",0,0,0,0,0,0]
["QWU","RJC","SOUTH WARWICKSHIRE UNIVERSITY NHS FOUNDATION TRUST","RJC02","Warwick Hospital",21,0.80952380952380953,0.14285714285714285,17,0,0,0,3,1]
["QWU","RKB","UNIVERSITY HOSPITALS COVENTRY AND WARWICKSHIRE NHS TRUST","RKB03","Hospital Of St Cross",0,"NA","NA",0,0,0,0,0,0]
["QWU","RKB","UNIVERSITY HOSPITALS COVENTRY AND WARWICKSHIRE NHS TRUST","RKBXXX","Non-hospital site",34,0.94117647058823528,5.8823529411764705E-2,26,6,0,0,2,0]
["QWU","RKB","UNIVERSITY HOSPITALS COVENTRY AND WARWICKSHIRE NHS TRUST","RKB01","University Hospital (Coventry)",179,0.91620111731843579,6.7039106145251395E-2,105,59,3,2,10,0]
["QXU","RTK","ASHFORD AND ST PETER'S HOSPITALS NHS FOUNDATION TRUST","RTK02","Ashford Hospital",0,"NA","NA",0,0,0,0,0,0]
["QXU","RA2","ROYAL SURREY COUNTY HOSPITAL NHS FOUNDATION TRUST","RA201","Royal Surrey County Hospital",1,"*","*","*","*","*","*","*","*"]
["QXU","RTP","SURREY AND SUSSEX HEALTHCARE NHS TRUST","RTP04","East Surrey Hospital",25,1,0,"*","*","*","*","*","*"]
["QYG","RJN","EAST CHESHIRE NHS TRUST","RJN71","Macclesfield District General Hospital",0,"NA","NA",0,0,0,0,0,0]
["QYG","REP","LIVERPOOL WOMEN'S NHS FOUNDATION TRUST","REP01","Liverpool Womens Hospital",19,0.84210526315789469,0.15789473684210525,"*","*","*","*","*","*"]
["QYG","RBT","MID CHESHIRE HOSPITALS NHS FOUNDATION TRUST","RBT20","Leighton Hospital",31,0.90322580645161288,6.4516129032258063E-2,23,5,0,1,1,1]
["QYG","RVY","SOUTHPORT AND ORMSKIRK HOSPITAL NHS TRUST","RVY02","Ormskirk and District General Hospital",2,"*","*","*","*","*","*","*","*"]
["QYG","RBN","ST HELENS AND KNOWSLEY TEACHING HOSPITALS NHS TRUST","RBN01","Whiston Hospital",26,0.96153846153846156,3.8461538461538464E-2,20,5,0,1,0,0]
["QYG","RBL","WIRRAL UNIVERSITY TEACHING HOSPITAL NHS FOUNDATION TRUST","RBL14","Arrowe Park Hospital",42,0.88095238095238093,7.1428571428571425E-2,34,3,2,2,1,0]

{"sheet":"ICB Q2","index":5,"n_rows":55,"n_cols":12,"rows_kept":55,"cut":false,"hidden":false,"merged":[[8,6,8,11],[8,0,9,0],[8,1,9,1],[8,2,9,2],[8,3,9,3],[8,4,9,4],[8,5,9,5]]}
[]
[]
[]
[]
[]
[null,"   Sort data by:           "]
[]
[]
["ICB Code","ICB Name","Total Responses","Total Eligible","Percentage Positive","Percentage Negative","Breakdown of Responses"]
[null,null,null,null,null,null,"Very Good","Good","Neither Good nor Poor","Poor","Very Poor","Don't Know"]
[null,"England (including Independent Sector providers)",5494,43445,0.92519111758281758,4.3684018929741539E-2,4272,811,144,109,131,27]
[null,"England (excluding Independent Sector providers)",5494,43445,0.92519111758281758,4.3684018929741539E-2,4272,811,144,109,131,27]
[null,"Selection (excluding suppressed data)",{"$f":"SUBTOTAL(9,C14:C55)","v":5494},{"$f":"SUBTOTAL(9,D14:D55)","v":43445},{"$f":"IFERROR((G13+H13)/SUM(G13:L13), \"-\")","v":0.92543299908842303},{"$f":"IFERROR((J13+K13)/SUM(G13:L13), \"-\")","v":4.3573381950774842E-2},{"$f":"SUBTOTAL(9,G14:G55)","v":4267},{"$f":"SUBTOTAL(9,H14:H55)","v":809},143,108,131,27]
["QE1","LANCASHIRE AND SOUTH CUMBRIA ICB",129,1061,0.93023255813953487,2.3255813953488372E-2,106,14,3,2,1,3]
["QF7","SOUTH YORKSHIRE ICB",115,1336,0.93913043478260871,3.4782608695652174E-2,96,12,2,1,3,1]
["QGH","HEREFORDSHIRE AND WORCESTERSHIRE ICB",11,173,1,0,9,2,0,0,0,0]
["QH8","MID AND SOUTH ESSEX ICB",159,509,0.8867924528301887,5.0314465408805034E-2,127,14,9,4,4,1]
["QHG","BEDFORDSHIRE, LUTON AND MILTON KEYNES ICB",180,1393,0.93333333333333335,4.4444444444444446E-2,128,40,4,2,6,0]
["QHL","BIRMINGHAM AND SOLIHULL ICB",101,1879,0.84158415841584155,0.11881188118811881,71,14,3,2,10,1]
["QHM","NORTH EAST AND NORTH CUMBRIA ICB",208,2386,0.91826923076923073,3.8461538461538464E-2,156,35,9,5,3,0]
["QJ2","DERBY AND DERBYSHIRE ICB",6,755,0.83333333333333337,0.16666666666666666,"*","*","*","*","*","*"]
["QJG","SUFFOLK AND NORTH EAST ESSEX ICB",59,936,0.96610169491525422,1.6949152542372881E-2,47,10,1,0,1,0]
["QJK","DEVON ICB",1,622,"*","*","*","*","*","*","*","*"]
["QJM","LINCOLNSHIRE ICB",11,354,0.90909090909090906,0,9,1,0,0,0,1]
["QK1","LEICESTER, LEICESTERSHIRE AND RUTLAND ICB",221,742,0.92307692307692313,2.7149321266968326E-2,170,34,8,4,2,3]
["QKK","SOUTH EAST LONDON ICB",284,1438,0.89436619718309862,5.9859154929577461E-2,189,65,11,10,7,2]
["QKS","KENT AND MEDWAY ICB",106,1300,0.97169811320754718,1.8867924528301886E-2,96,7,1,0,2,0]
["QM7","HERTFORDSHIRE AND WEST ESSEX ICB",52,1082,0.82692307692307687,7.6923076923076927E-2,25,18,5,2,2,0]
["QMF","NORTH EAST LONDON ICB",386,2328,0.93005181347150256,4.4041450777202069E-2,294,65,9,4,13,1]
["QMJ","NORTH CENTRAL LONDON ICB",303,1138,0.90759075907590758,5.2805280528052806E-2,178,97,11,8,8,1]
["QMM","NORFOLK AND WAVENEY ICB",47,758,0.95744680851063835,4.2553191489361701E-2,42,3,0,1,1,0]
["QNC","STAFFORDSHIRE AND STOKE-ON-TRENT ICB",2,415,"*","*","*","*","*","*","*","*"]
["QNQ","FRIMLEY ICB",9,0,1,0,9,0,0,0,0,0]
["QNX","SUSSEX ICB",165,1023,0.93333333333333335,2.4242424242424242E-2,136,18,7,1,3,0]
["QOC","SHROPSHIRE, TELFORD AND WREKIN ICB",22,356,1,0,22,0,0,0,0,0]
["QOP","GREATER MANCHESTER ICB",253,2537,0.84189723320158105,0.11857707509881422,185,28,10,13,17,0]
["QOQ","HUMBER AND NORTH YORKSHIRE ICB",66,1220,0.98484848484848486,0,62,3,0,0,0,1]
["QOX","BATH AND NORTH EAST SOMERSET, SWINDON AND WILTSHIRE ICB",95,855,0.94736842105263153,2.1052631578947368E-2,80,10,3,0,2,0]
["QPM","NORTHAMPTONSHIRE ICB",56,655,0.9107142857142857,7.1428571428571425E-2,40,11,1,3,1,0]
["QR1","GLOUCESTERSHIRE ICB",51,67,0.96078431372549022,0,38,11,2,0,0,0]
["QRL","HAMPSHIRE AND ISLE OF WIGHT ICB",217,1394,0.98617511520737322,9.2165898617511521E-3,187,27,1,1,1,0]
["QRV","NORTH WEST LONDON ICB",192,1578,0.93229166666666663,3.125E-2,148,31,7,2,4,0]
["QSL","SOMERSET ICB",12,232,1,0,10,2,0,0,0,0]
["QT1","NOTTINGHAM AND NOTTINGHAMSHIRE ICB",82,917,0.93902439024390238,4.878048780487805E-2,64,13,1,4,0,0]
["QT6","CORNWALL AND THE ISLES OF SCILLY ICB",12,337,1,0,12,0,0,0,0,0]
["QU9","BUCKINGHAMSHIRE, OXFORDSHIRE AND BERKSHIRE WEST ICB",201,1265,0.89552238805970152,5.4726368159203981E-2,144,36,10,6,5,0]
["QUA","BLACK COUNTRY ICB",183,985,0.86885245901639341,7.1038251366120214E-2,130,29,7,10,3,4]
["QUE","CAMBRIDGESHIRE AND PETERBOROUGH ICB",115,1122,0.97391304347826091,2.6086956521739129E-2,105,7,0,2,1,0]
["QUY","BRISTOL, NORTH SOMERSET AND SOUTH GLOUCESTERSHIRE ICB",153,888,0.94117647058823528,3.9215686274509803E-2,125,19,3,2,4,0]
["QVV","DORSET ICB",174,466,0.94252873563218387,2.8735632183908046E-2,133,31,2,2,3,3]
["QWE","SOUTH WEST LONDON ICB",89,1268,0.9213483146067416,5.6179775280898875E-2,69,13,2,2,3,0]
["QWO","WEST YORKSHIRE ICB",470,2000,0.95744680851063835,2.7659574468085105E-2,407,43,5,5,8,2]
["QWU","COVENTRY AND WARWICKSHIRE ICB",211,1046,0.92890995260663511,4.7393364928909949E-2,178,18,2,4,6,3]
["QXU","SURREY HEARTLANDS ICB",11,956,1,0,11,0,0,0,0,0]
["QYG","CHESHIRE AND MERSEYSIDE ICB",274,1673,0.93795620437956206,4.7445255474452552E-2,229,28,4,6,7,0]

{"sheet":"Trusts Q2","index":6,"n_rows":130,"n_cols":21,"rows_kept":130,"cut":false,"hidden":false,"merged":[[8,6,9,6],[8,7,8,12],[8,13,8,20],[8,0,9,0],[8,1,9,1],[8,2,9,2],[8,3,9,3],[8,4,9,4],[8,5,9,5]]}
[]
[]
[]
[]
[]
[null,"   Sort data by:           "]
[]
[]
["ICB Code","Trust Code","Trust Name","Total Responses","Total Eligible","Percentage Positive","Percentage Negative","Breakdown of Responses",null,null,null,null,null,"Mode of Collection"]
[null,null,null,null,null,null,null,"Very Good","Good","Neither Good nor Poor","Poor","Very Poor","Don't Know","Mode SMS","Mode Electronic Discharge","Mode Electronic Home","Mode Paper Discharge","Mode Paper Home","Mode Telephone","Mode Online","Mode Other"]
[null,null,"England (including Independent Sector providers)",5494,43445,0.92519111758281758,4.3684018929741539E-2,4272,811,144,109,131,27,2636,983,27,1097,47,0,618,86]
[null,null,"England (excluding Independent Sector providers)",5494,43445,0.92519111758281758,4.3684018929741539E-2,4272,811,144,109,131,27,2636,983,27,1097,47,0,618,86]
[null,null,"Selection (excluding suppressed data)",{"$f":"SUBTOTAL(9,D14:D299)","v":5494},{"$f":"SUBTOTAL(9,E14:E299)","v":43445},{"$f":"IFERROR((H13+I13)/SUM(H13:M13), \"-\")","v":0.92622634221707223},{"$f":"IFERROR((K13+L13)/SUM(H13:M13), \"-\")","v":4.3453070683661645E-2},{"$f":"SUBTOTAL(9,H14:H299)","v":4021},{"$f":"SUBTOTAL(9,I14:I299)","v":775},130,100,125,27,2416,976,27,1057,47,0,584,71]
["QE1","RXL","BLACKPOOL TEACHING HOSPITALS NHS FOUNDATION TRUST",15,234,0.73333333333333328,0.2,10,1,1,2,1,0,15,0,0,0,0,0,0,0]
["QE1","RXR","EAST LANCASHIRE HOSPITALS NHS TRUST",58,462,0.91379310344827591,0,45,8,2,0,0,3,49,0,0,9,0,0,0,0]
["QE1","RXN","LANCASHIRE TEACHING HOSPITALS NHS FOUNDATION TRUST",14,207,1,0,13,1,0,0,0,0,14,0,0,0,0,0,0,0]
["QE1","RTX","UNIVERSITY HOSPITALS OF MORECAMBE BAY NHS FOUNDATION TRUST",42,158,1,0,38,4,0,0,0,0,39,0,0,0,0,0,3,0]
["QF7","RFF","BARNSLEY HOSPITAL NHS FOUNDATION TRUST",2,250,"*","*","*","*","*","*","*","*","*","*","*","*","*","*","*","*"]
["QF7","RP5","DONCASTER AND BASSETLAW TEACHING HOSPITALS NHS FOUNDATION TRUST",1,404,"*","*","*","*","*","*","*","*","*","*","*","*","*","*","*","*"]
["QF7","RHQ","SHEFFIELD TEACHING HOSPITALS NHS FOUNDATION TRUST",105,456,0.93333333333333335,3.8095238095238099E-2,86,12,2,1,3,1,52,0,0,52,0,0,1,0]
["QF7","RFR","THE ROTHERHAM NHS FOUNDATION TRUST",7,226,1,0,7,0,0,0,0,0,0,0,0,6,0,0,1,0]
["QGH","RWP","WORCESTERSHIRE ACUTE HOSPITALS NHS TRUST",11,173,1,0,9,2,0,0,0,0,0,11,0,0,0,0,0,0]
["QH8","RAJ","MID AND SOUTH ESSEX NHS FOUNDATION TRUST",159,509,0.8867924528301887,5.0314465408805034E-2,127,14,9,4,4,1,158,0,0,0,0,0,1,0]
["QHG","RC9","BEDFORDSHIRE HOSPITALS NHS FOUNDATION TRUST",138,1086,0.94927536231884058,2.8985507246376812E-2,100,31,3,1,3,0,0,135,0,0,0,0,3,0]
["QHG","RD8","MILTON KEYNES UNIVERSITY HOSPITAL NHS FOUNDATION TRUST",42,307,0.88095238095238093,9.5238095238095233E-2,28,9,1,1,3,0,15,0,0,21,0,0,0,6]
["QHL","RQ3","BIRMINGHAM WOMEN'S AND CHILDREN'S NHS FOUNDATION TRUST",9,578,1,0,8,1,0,0,0,0,0,0,0,0,0,0,9,0]
["QHL","RXK","SANDWELL AND WEST BIRMINGHAM HOSPITALS NHS TRUST",40,442,0.77500000000000002,0.17499999999999999,25,6,1,1,6,1,40,0,0,0,0,0,0,0]
["QHL","RRK","UNIVERSITY HOSPITALS BIRMINGHAM NHS FOUNDATION TRUST",52,859,0.86538461538461542,9.6153846153846159E-2,38,7,2,1,4,0,49,0,0,3,0,0,0,0]
["QHM","RXP","COUNTY DURHAM AND DARLINGTON NHS FOUNDATION TRUST",25,351,0.96,0,22,2,1,0,0,0,0,0,0,25,0,0,0,0]
["QHM","RR7","GATESHEAD HEALTH NHS FOUNDATION TRUST",2,144,"*","*","*","*","*","*","*","*","*","*","*","*","*","*","*","*"]
["QHM","RNN","NORTH CUMBRIA INTEGRATED CARE NHS FOUNDATION TRUST",8,222,1,0,8,0,0,0,0,0,0,0,0,8,0,0,0,0]
["QHM","RVW","NORTH TEES AND HARTLEPOOL NHS FOUNDATION TRUST",6,248,1,0,"*","*","*","*","*","*","*","*","*","*","*","*","*","*"]
["QHM","RTF","NORTHUMBRIA HEALTHCARE NHS FOUNDATION TRUST",66,265,0.9242424242424242,1.5151515151515152E-2,48,13,4,0,1,0,43,0,0,23,0,0,0,0]
["QHM","RTR","SOUTH TEES HOSPITALS NHS FOUNDATION TRUST",66,337,0.86363636363636365,9.0909090909090912E-2,42,15,3,4,2,0,63,0,0,0,0,0,0,3]
["QHM","R0B","SOUTH TYNESIDE AND SUNDERLAND NHS FOUNDATION TRUST",20,270,1,0,16,4,0,0,0,0,0,0,0,12,0,0,8,0]
["QHM","RTD","THE NEWCASTLE UPON TYNE HOSPITALS NHS FOUNDATION TRUST",15,549,0.93333333333333335,0,13,1,1,0,0,0,0,0,0,15,0,0,0,0]
["QJ2","RFS","CHESTERFIELD ROYAL HOSPITAL NHS FOUNDATION TRUST",3,0,"*","*","*","*","*","*","*","*","*","*","*","*","*","*","*","*"]
["QJ2","RTG","UNIVERSITY HOSPITALS OF DERBY AND BURTON NHS FOUNDATION TRUST",3,755,"*","*","*","*","*","*","*","*","*","*","*","*","*","*","*","*"]
["QJG","RDE","EAST SUFFOLK AND NORTH ESSEX NHS FOUNDATION TRUST",29,562,0.96551724137931039,3.4482758620689655E-2,26,2,0,0,1,0,0,0,0,0,0,0,29,0]
["QJG","RGR","WEST SUFFOLK NHS FOUNDATION TRUST",30,374,0.96666666666666667,0,21,8,1,0,0,0,0,30,0,0,0,0,0,0]
["QJK","RH8","ROYAL DEVON UNIVERSITY HEALTHCARE NHS FOUNDATION TRUST",0,412,"NA","NA",0,0,0,0,0,0,0,0,0,0,0,0,0,0]
["QJK","RA9","TORBAY AND SOUTH DEVON NHS FOUNDATION TRUST",0,176,"NA","NA",0,0,0,0,0,0,0,0,0,0,0,0,0,0]
["QJK","RK9","UNIVERSITY HOSPITALS PLYMOUTH NHS TRUST",1,34,"*","*","*","*","*","*","*","*","*","*","*","*","*","*","*","*"]
["QJM","RWD","UNITED LINCOLNSHIRE HOSPITALS NHS TRUST",11,354,0.90909090909090906,0,9,1,0,0,0,1,0,0,0,11,0,0,0,0]
["QK1","RWE","UNIVERSITY HOSPITALS OF LEICESTER NHS TRUST",221,742,0.92307692307692313,2.7149321266968326E-2,170,34,8,4,2,3,0,221,0,0,0,0,0,0]
["QKK","RJ1","GUY'S AND ST THOMAS' NHS FOUNDATION TRUST",76,579,0.92105263157894735,0,50,20,5,0,0,1,0,0,0,59,0,0,17,0]
["QKK","RJZ","KING'S COLLEGE HOSPITAL NHS FOUNDATION TRUST",178,593,0.88764044943820219,7.8651685393258425E-2,117,41,6,8,6,0,61,106,0,0,0,0,11,0]
["QKK","RJ2","LEWISHAM AND GREENWICH NHS TRUST",30,266,0.8666666666666667,0.1,22,4,0,2,1,1,0,0,0,0,5,0,25,0]
["QKS","RN7","DARTFORD AND GRAVESHAM NHS TRUST",11,392,0.90909090909090906,0,8,2,1,0,0,0,0,1,0,0,0,0,10,0]
["QKS","RWF","MAIDSTONE AND TUNBRIDGE WELLS NHS TRUST",55,509,1,0,53,2,0,0,0,0,0,15,0,0,0,0,40,0]
["QKS","RPA","MEDWAY NHS FOUNDATION TRUST",40,399,0.95,0.05,35,3,0,0,2,0,0,0,0,11,0,0,29,0]
["QM7","RWH","EAST AND NORTH HERTFORDSHIRE NHS TRUST",2,439,"*","*","*","*","*","*","*","*","*","*","*","*","*","*","*","*"]
["QM7","RQW","THE PRINCESS ALEXANDRA HOSPITAL NHS TRUST",15,307,0.6,0.13333333333333333,"*","*","*","*","*","*","*","*","*","*","*","*","*","*"]
["QM7","RWG","WEST HERTFORDSHIRE TEACHING HOSPITALS NHS TRUST",35,336,0.91428571428571426,5.7142857142857141E-2,16,16,1,1,1,0,0,35,0,0,0,0,0,0]
["QMF","RF4","BARKING, HAVERING AND REDBRIDGE UNIVERSITY HOSPITALS NHS TRUST",168,602,0.98809523809523814,1.1904761904761904E-2,143,23,0,0,2,0,0,71,0,97,0,0,0,0]
["QMF","R1H","BARTS HEALTH NHS TRUST",160,1231,0.88124999999999998,6.8750000000000006E-2,106,35,7,3,8,1,13,0,0,141,0,0,6,0]
["QMF","RQX","HOMERTON HEALTHCARE NHS FOUNDATION TRUST",58,495,0.89655172413793105,6.8965517241379309E-2,45,7,2,1,3,0,58,0,0,0,0,0,0,0]
["QMJ","RAP","NORTH MIDDLESEX UNIVERSITY HOSPITAL NHS TRUST",31,325,0.70967741935483875,0.19354838709677419,21,1,2,1,5,1,25,0,0,6,0,0,0,0]
["QMJ","RAL","ROYAL FREE LONDON NHS FOUNDATION TRUST",217,667,0.9447004608294931,2.3041474654377881E-2,117,88,7,4,1,0,0,216,0,0,0,0,1,0]
["QMJ","RRV","UNIVERSITY COLLEGE LONDON HOSPITALS NHS FOUNDATION TRUST",55,146,0.87272727272727268,9.0909090909090912E-2,40,8,2,3,2,0,54,0,0,0,0,0,1,0]
["QMM","RGP","JAMES PAGET UNIVERSITY HOSPITALS NHS FOUNDATION TRUST",28,148,1,0,26,2,0,0,0,0,0,0,0,28,0,0,0,0]
["QMM","RM1","NORFOLK AND NORWICH UNIVERSITY HOSPITALS NHS FOUNDATION TRUST",4,452,"*","*","*","*","*","*","*","*","*","*","*","*","*","*","*","*"]
["QMM","RCX","THE QUEEN ELIZABETH HOSPITAL, KING'S LYNN, NHS FOUNDATION TRUST",15,158,1,0,"*","*","*","*","*","*","*","*","*","*","*","*","*","*"]
["QNC","RJE","UNIVERSITY HOSPITALS OF NORTH MIDLANDS NHS TRUST",2,415,"*","*","*","*","*","*","*","*","*","*","*","*","*","*","*","*"]
["QNQ","RDU","FRIMLEY HEALTH NHS FOUNDATION TRUST",9,0,1,0,9,0,0,0,0,0,0,0,0,9,0,0,0,0]
["QNX","RXC","EAST SUSSEX HEALTHCARE NHS TRUST",3,227,"*","*","*","*","*","*","*","*","*","*","*","*","*","*","*","*"]
["QNX","RYR","UNIVERSITY HOSPITALS SUSSEX NHS FOUNDATION TRUST",162,796,0.9320987654320988,2.4691358024691357E-2,"*","*","*","*","*","*","*","*","*","*","*","*","*","*"]
["QOC","RXW","THE SHREWSBURY AND TELFORD HOSPITAL NHS TRUST",22,356,1,0,22,0,0,0,0,0,0,0,0,22,0,0,0,0]
["QOP","RMC","BOLTON NHS FOUNDATION TRUST",130,856,0.84615384615384615,0.1076923076923077,93,17,6,5,9,0,128,2,0,0,0,0,0,0]
["QOP","R0A","MANCHESTER UNIVERSITY NHS FOUNDATION TRUST",42,758,0.88095238095238093,9.5238095238095233E-2,32,5,1,2,2,0,0,1,0,0,24,0,17,0]
["QOP","RM3","NORTHERN CARE ALLIANCE NHS FOUNDATION TRUST",65,399,0.8,0.16923076923076924,46,6,2,5,6,0,65,0,0,0,0,0,0,0]
["QOP","RWJ","STOCKPORT NHS FOUNDATION TRUST",12,292,0.83333333333333337,8.3333333333333329E-2,"*","*","*","*","*","*","*","*","*","*","*","*","*","*"]
["QOP","RRF","WRIGHTINGTON, WIGAN AND LEIGH NHS FOUNDATION TRUST",4,232,"*","*","*","*","*","*","*","*","*","*","*","*","*","*","*","*"]
["QOQ","RCD","HARROGATE AND DISTRICT NHS FOUNDATION TRUST",2,134,"*","*","*","*","*","*","*","*","*","*","*","*","*","*","*","*"]
["QOQ","RWA","HULL UNIVERSITY TEACHING HOSPITALS NHS TRUST",1,418,"*","*","*","*","*","*","*","*","*","*","*","*","*","*","*","*"]
["QOQ","RJL","NORTHERN LINCOLNSHIRE AND GOOLE NHS FOUNDATION TRUST",25,295,1,0,25,0,0,0,0,0,0,0,0,21,0,0,4,0]
["QOQ","RCB","YORK AND SCARBOROUGH TEACHING HOSPITALS NHS FOUNDATION TRUST",38,373,0.97368421052631582,0,34,3,0,0,0,1,0,0,0,38,0,0,0,0]
["QOX","RN3","GREAT WESTERN HOSPITALS NHS FOUNDATION TRUST",86,297,0.94186046511627908,2.3255813953488372E-2,73,8,3,0,2,0,86,0,0,0,0,0,0,0]
["QOX","RD1","ROYAL UNITED HOSPITALS BATH NHS FOUNDATION TRUST",8,376,1,0,"*","*","*","*","*","*","*","*","*","*","*","*","*","*"]
["QOX","RNZ","SALISBURY NHS FOUNDATION TRUST",1,182,"*","*","*","*","*","*","*","*","*","*","*","*","*","*","*","*"]
["QPM","RNQ","KETTERING GENERAL HOSPITAL NHS FOUNDATION TRUST",3,304,"*","*","*","*","*","*","*","*","*","*","*","*","*","*","*","*"]
["QPM","RNS","NORTHAMPTON GENERAL HOSPITAL NHS TRUST",53,351,0.92452830188679247,7.5471698113207544E-2,"*","*","*","*","*","*","*","*","*","*","*","*","*","*"]
["QR1","RTE","GLOUCESTERSHIRE HOSPITALS NHS FOUNDATION TRUST",51,67,0.96078431372549022,0,38,11,2,0,0,0,51,0,0,0,0,0,0,0]
["QRL","RN5","HAMPSHIRE HOSPITALS NHS FOUNDATION TRUST",62,385,1,0,54,8,0,0,0,0,0,0,0,54,0,0,8,0]
["QRL","R1F","ISLE OF WIGHT NHS TRUST",10,66,1,0,7,3,0,0,0,0,0,0,0,10,0,0,0,0]
["QRL","RHU","PORTSMOUTH HOSPITALS UNIVERSITY NATIONAL HEALTH SERVICE TRUST",34,486,1,0,31,3,0,0,0,0,0,0,0,34,0,0,0,0]
["QRL","RHM","UNIVERSITY HOSPITAL SOUTHAMPTON NHS FOUNDATION TRUST",111,457,0.97297297297297303,1.8018018018018018E-2,95,13,1,1,1,0,0,0,0,0,18,0,93,0]
["QRV","RQM","CHELSEA AND WESTMINSTER HOSPITAL NHS FOUNDATION TRUST",50,167,0.94,0.02,43,4,2,0,1,0,43,0,0,0,0,0,7,0]
["QRV","RYJ","IMPERIAL COLLEGE HEALTHCARE NHS TRUST",64,731,0.984375,0,56,7,1,0,0,0,0,0,0,55,0,0,9,0]
["QRV","R1K","LONDON NORTH WEST UNIVERSITY HEALTHCARE NHS TRUST",49,333,0.91836734693877553,2.0408163265306121E-2,28,17,3,1,0,0,45,0,0,4,0,0,0,0]
["QRV","RAS","THE HILLINGDON HOSPITALS NHS FOUNDATION TRUST",29,347,0.82758620689655171,0.13793103448275862,21,3,1,1,3,0,0,0,0,1,0,0,28,0]
["QSL","RH5","SOMERSET NHS FOUNDATION TRUST",0,232,"NA","NA",0,0,0,0,0,0,0,0,0,0,0,0,0,0]
["QSL","RA4","YEOVIL DISTRICT HOSPITAL NHS FOUNDATION TRUST",12,0,1,0,10,2,0,0,0,0,0,12,0,0,0,0,0,0]
["QT1","RX1","NOTTINGHAM UNIVERSITY HOSPITALS NHS TRUST",38,635,1,0,37,1,0,0,0,0,0,2,0,0,0,0,36,0]
["QT1","RK5","SHERWOOD FOREST HOSPITALS NHS FOUNDATION TRUST",44,282,0.88636363636363635,9.0909090909090912E-2,27,12,1,4,0,0,0,0,0,0,0,0,44,0]
["QT6","REF","ROYAL CORNWALL HOSPITALS NHS TRUST",12,337,1,0,12,0,0,0,0,0,0,12,0,0,0,0,0,0]
["QU9","RXQ","BUCKINGHAMSHIRE HEALTHCARE NHS TRUST",24,261,0.79166666666666663,0.125,15,4,2,2,1,0,24,0,0,0,0,0,0,0]
["QU9","RTH","OXFORD UNIVERSITY HOSPITALS NHS FOUNDATION TRUST",113,607,0.87610619469026552,6.1946902654867256E-2,77,22,7,4,3,0,105,0,0,0,0,0,8,0]
["QU9","RHW","ROYAL BERKSHIRE NHS FOUNDATION TRUST",64,397,0.96875,1.5625E-2,52,10,1,0,1,0,1,0,0,63,0,0,0,0]
["QUA","RNA","THE DUDLEY GROUP NHS FOUNDATION TRUST",27,298,0.92592592592592593,0,21,4,1,0,0,1,0,0,27,0,0,0,0,0]
["QUA","RL4","THE ROYAL WOLVERHAMPTON NHS TRUST",108,429,0.87962962962962965,6.4814814814814811E-2,80,15,4,6,1,2,95,0,0,0,0,0,13,0]
["QUA","RBK","WALSALL HEALTHCARE NHS TRUST",48,258,0.8125,0.125,29,10,2,4,2,1,44,4,0,0,0,0,0,0]
["QUE","RGT","CAMBRIDGE UNIVERSITY HOSPITALS NHS FOUNDATION TRUST",68,498,0.95588235294117652,4.4117647058823532E-2,60,5,0,2,1,0,0,65,0,2,0,0,1,0]
["QUE","RGN","NORTH WEST ANGLIA NHS FOUNDATION TRUST",47,624,1,0,45,2,0,0,0,0,0,0,0,47,0,0,0,0]
["QUY","RVJ","NORTH BRISTOL NHS TRUST",114,501,0.92982456140350878,5.2631578947368418E-2,87,19,2,2,4,0,114,0,0,0,0,0,0,0]
["QUY","RA7","UNIVERSITY HOSPITALS BRISTOL AND WESTON NHS FOUNDATION TRUST",39,387,0.97435897435897434,0,38,0,1,0,0,0,0,0,0,39,0,0,0,0]
["QVV","RBD","DORSET COUNTY HOSPITAL NHS FOUNDATION TRUST",47,119,0.95744680851063835,4.2553191489361701E-2,37,8,0,1,1,0,47,0,0,0,0,0,0,0]
["QVV","R0D","UNIVERSITY HOSPITALS DORSET NHS FOUNDATION TRUST",127,347,0.93700787401574803,2.3622047244094488E-2,96,23,2,1,2,3,127,0,0,0,0,0,0,0]
["QWE","RJ6","CROYDON HEALTH SERVICES NHS TRUST",29,272,0.89655172413793105,0.10344827586206896,19,7,0,2,1,0,29,0,0,0,0,0,0,0]
["QWE","RVR","EPSOM AND ST HELIER UNIVERSITY HOSPITALS NHS TRUST",23,319,1,0,23,0,0,0,0,0,13,8,0,0,0,0,2,0]
["QWE","RAX","KINGSTON HOSPITAL NHS FOUNDATION TRUST",8,457,1,0,7,1,0,0,0,0,0,0,0,0,0,0,8,0]
["QWE","RJ7","ST GEORGE'S UNIVERSITY HOSPITALS NHS FOUNDATION TRUST",29,220,0.86206896551724133,6.8965517241379309E-2,20,5,2,0,2,0,0,0,0,0,0,0,29,0]
["QWO","RCF","AIREDALE NHS FOUNDATION TRUST",48,143,0.9375,4.1666666666666664E-2,40,5,1,1,1,0,48,0,0,0,0,0,0,0]
["QWO","RAE","BRADFORD TEACHING HOSPITALS NHS FOUNDATION TRUST",47,364,1,0,45,2,0,0,0,0,0,0,0,44,0,0,1,2]
["QWO","RWY","CALDERDALE AND HUDDERSFIELD NHS FOUNDATION TRUST",60,348,0.91666666666666663,3.3333333333333333E-2,43,12,1,0,2,2,0,0,0,0,0,0,60,0]
["QWO","RR8","LEEDS TEACHING HOSPITALS NHS TRUST",238,667,0.97478991596638653,2.100840336134454E-2,213,19,1,3,2,0,209,29,0,0,0,0,0,0]
["QWO","RXF","MID YORKSHIRE HOSPITALS NHS TRUST",77,478,0.92207792207792205,5.1948051948051951E-2,66,5,2,1,3,0,38,0,0,31,0,0,8,0]
["QWU","RLT","GEORGE ELIOT HOSPITAL NHS TRUST",92,254,0.94565217391304346,3.2608695652173912E-2,74,13,1,2,1,1,92,0,0,0,0,0,0,0]
["QWU","RJC","SOUTH WARWICKSHIRE UNIVERSITY NHS FOUNDATION TRUST",36,311,0.86111111111111116,8.3333333333333329E-2,30,1,0,1,2,2,0,0,0,25,0,0,11,0]
["QWU","RKB","UNIVERSITY HOSPITALS COVENTRY AND WARWICKSHIRE NHS TRUST",83,481,0.93975903614457834,4.8192771084337352E-2,74,4,1,1,3,0,82,0,0,0,0,0,1,0]
["QXU","RTK","ASHFORD AND ST PETER'S HOSPITALS NHS FOUNDATION TRUST",0,265,"NA","NA",0,0,0,0,0,0,0,0,0,0,0,0,0,0]
["QXU","RA2","ROYAL SURREY COUNTY HOSPITAL NHS FOUNDATION TRUST",1,293,"*","*","*","*","*","*","*","*","*","*","*","*","*","*","*","*"]
["QXU","RTP","SURREY AND SUSSEX HEALTHCARE NHS TRUST",10,398,1,0,"*","*","*","*","*","*","*","*","*","*","*","*","*","*"]
["QYG","RJN","EAST CHESHIRE NHS TRUST",0,0,"NA","NA",0,0,0,0,0,0,0,0,0,0,0,0,0,0]
["QYG","REP","LIVERPOOL WOMEN'S NHS FOUNDATION TRUST",60,635,0.8666666666666667,0.1,40,12,2,4,2,0,0,0,0,0,0,0,0,60]
["QYG","RBT","MID CHESHIRE HOSPITALS NHS FOUNDATION TRUST",88,301,0.94318181818181823,4.5454545454545456E-2,78,5,1,1,3,0,75,0,0,13,0,0,0,0]
["QYG","RVY","SOUTHPORT AND ORMSKIRK HOSPITAL NHS TRUST",68,182,0.97058823529411764,2.9411764705882353E-2,61,5,0,0,2,0,67,0,0,0,0,0,1,0]
["QYG","RBN","ST HELENS AND KNOWSLEY TEACHING HOSPITALS NHS TRUST",40,322,0.95,2.5000000000000001E-2,33,5,1,1,0,0,40,0,0,0,0,0,0,0]
["QYG","RWW","WARRINGTON AND HALTON TEACHING HOSPITALS NHS FOUNDATION TRUST",0,233,"NA","NA",0,0,0,0,0,0,0,0,0,0,0,0,0,0]
["QYG","RBL","WIRRAL UNIVERSITY TEACHING HOSPITAL NHS FOUNDATION TRUST",18,0,1,0,17,1,0,0,0,0,0,0,0,18,0,0,0,0]

{"sheet":"Sites Q2","index":7,"n_rows":226,"n_cols":14,"rows_kept":226,"cut":false,"hidden":false,"merged":[[8,6,9,6],[8,7,9,7],[8,8,8,13],[8,0,9,0],[8,1,9,1],[8,2,9,2],[8,3,9,3],[8,4,9,4],[8,5,9,5]]}
[]
[]
[]
[]
[]
[null,"   Sort data by:           "]
[]
[]
["ICB Code","Trust Code","Trust Name","Site Code","Site Name","Total Responses","Percentage Positive","Percentage Negative","Breakdown of Responses"]
[null,null,null,null,null,null,null,null,"Very Good","Good","Neither Good nor Poor","Poor","Very Poor","Don't Know"]
[null,null,null,null,"England (including Independent Sector providers)",5494,0.92519111758281758,4.3684018929741539E-2,4272,811,144,109,131,27]
[null,null,null,null,"England (excluding Independent Sector providers)",5494,0.92519111758281758,4.3684018929741539E-2,4272,811,144,109,131,27]
[null,null,null,null,"Selection (excluding suppressed data)",{"$f":"SUBTOTAL(9,F14:F299)","v":5494},{"$f":"IFERROR((I13+J13)/SUM(I13:N13), \"-\")","v":0.9263133954969297},{"$f":"IFERROR((L13+M13)/SUM(I13:N13), \"-\")","v":4.252899704343871E-2},{"$f":"SUBTOTAL(9,I14:I299)","v":3401},{"$f":"SUBTOTAL(9,J14:J299)","v":672},113,85,102,24]
["QE1","RXL","BLACKPOOL TEACHING HOSPITALS NHS FOUNDATION TRUST","RXL01","Blackpool Victoria Hospital",15,0.73333333333333328,0.2,10,1,1,2,1,0]
["QE1","RXR","EAST LANCASHIRE HOSPITALS NHS TRUST","RXR20","Royal Blackburn Hospital",58,0.91379310344827591,0,45,8,2,0,0,3]
["QE1","RXN","LANCASHIRE TEACHING HOSPITALS NHS FOUNDATION TRUST","RXN01","Chorley and South Ribble Hospital",0,"NA","NA",0,0,0,0,0,0]
["QE1","RXN","LANCASHIRE TEACHING HOSPITALS NHS FOUNDATION TRUST","RXN02","Royal Preston Hospital",14,1,0,13,1,0,0,0,0]
["QE1","RTX","UNIVERSITY HOSPITALS OF MORECAMBE BAY NHS FOUNDATION TRUST","RTXBU","Furness General Hospital",27,1,0,24,3,0,0,0,0]
["QE1","RTX","UNIVERSITY HOSPITALS OF MORECAMBE BAY NHS FOUNDATION TRUST","RTX02","Royal Lancaster Infirmary",15,1,0,14,1,0,0,0,0]
["QE1","RTX","UNIVERSITY HOSPITALS OF MORECAMBE BAY NHS FOUNDATION TRUST","RTXBW","Westmorland General Hospital",0,"NA","NA",0,0,0,0,0,0]
["QF7","RFF","BARNSLEY HOSPITAL NHS FOUNDATION TRUST","RFFAA","Barnsley Hospital NHS Foundation Trust HQ",2,"*","*","*","*","*","*","*","*"]
["QF7","RP5","DONCASTER AND BASSETLAW TEACHING HOSPITALS NHS FOUNDATION TRUST","RP5BA","Bassetlaw Hospital",0,"NA","NA",0,0,0,0,0,0]
["QF7","RP5","DONCASTER AND BASSETLAW TEACHING HOSPITALS NHS FOUNDATION TRUST","RP5DR","Doncaster Royal Infirmary",1,"*","*","*","*","*","*","*","*"]
["QF7","RP5","DONCASTER AND BASSETLAW TEACHING HOSPITALS NHS FOUNDATION TRUST","RP5XXX","Non-hospital site",0,"NA","NA",0,0,0,0,0,0]
["QF7","RHQ","SHEFFIELD TEACHING HOSPITALS NHS FOUNDATION TRUST","RHQHH","Royal Hallamshire Hospital",105,0.93333333333333335,3.8095238095238099E-2,86,12,2,1,3,1]
["QF7","RFR","THE ROTHERHAM NHS FOUNDATION TRUST","RFRPA","Rotherham District General Hospital",7,1,0,7,0,0,0,0,0]
["QGH","RWP","WORCESTERSHIRE ACUTE HOSPITALS NHS TRUST","RWP50","Worcestershire Royal Hospital",11,1,0,9,2,0,0,0,0]
["QH8","RAJ","MID AND SOUTH ESSEX NHS FOUNDATION TRUST","RAJ12","BASILDON HOSPITAL",9,0.55555555555555558,0.1111111111111111,3,2,2,1,0,1]
["QH8","RAJ","MID AND SOUTH ESSEX NHS FOUNDATION TRUST","RAJ32","MID ESSEX HOSPITAL",65,0.89230769230769236,7.6923076923076927E-2,52,6,2,2,3,0]
["QH8","RAJ","MID AND SOUTH ESSEX NHS FOUNDATION TRUST","RAJ01","Southend Hospital",85,0.91764705882352937,2.3529411764705882E-2,72,6,5,1,1,0]
["QHG","RC9","BEDFORDSHIRE HOSPITALS NHS FOUNDATION TRUST","RC979","BEDFORD HOSPITAL SOUTH WING",18,1,0,18,0,0,0,0,0]
["QHG","RC9","BEDFORDSHIRE HOSPITALS NHS FOUNDATION TRUST","RC971","Luton and Dunstable Hospital",120,0.94166666666666665,3.3333333333333333E-2,82,31,3,1,3,0]
["QHG","RD8","MILTON KEYNES UNIVERSITY HOSPITAL NHS FOUNDATION TRUST","RD816","Milton Keynes Hospital",42,0.88095238095238093,9.5238095238095233E-2,28,9,1,1,3,0]
["QHL","RQ3","BIRMINGHAM WOMEN'S AND CHILDREN'S NHS FOUNDATION TRUST","RQ370","Birmingham Women's Hospital",9,1,0,8,1,0,0,0,0]
["QHL","RXK","SANDWELL AND WEST BIRMINGHAM HOSPITALS NHS TRUST","RXK02","City Hospital",40,0.77500000000000002,0.17499999999999999,25,6,1,1,6,1]
["QHL","RRK","UNIVERSITY HOSPITALS BIRMINGHAM NHS FOUNDATION TRUST","RRK98","Good Hope Hospital",22,0.90909090909090906,9.0909090909090912E-2,17,3,0,0,2,0]
["QHL","RRK","UNIVERSITY HOSPITALS BIRMINGHAM NHS FOUNDATION TRUST","RRK97","Heartlands Hospital",30,0.83333333333333337,0.1,21,4,2,1,2,0]
["QHL","RRK","UNIVERSITY HOSPITALS BIRMINGHAM NHS FOUNDATION TRUST","RRK99","Solihull Hospital",0,"NA","NA",0,0,0,0,0,0]
["QHM","RXP","COUNTY DURHAM AND DARLINGTON NHS FOUNDATION TRUST","RXPDA","Darlington Memorial Hospital",15,1,0,14,1,0,0,0,0]
["QHM","RXP","COUNTY DURHAM AND DARLINGTON NHS FOUNDATION TRUST","RXPCP","University Hospital Of North Durham",10,0.9,0,8,1,1,0,0,0]
["QHM","RR7","GATESHEAD HEALTH NHS FOUNDATION TRUST","RR7EN","Queen Elizabeth Hospital",2,"*","*","*","*","*","*","*","*"]
["QHM","RNN","NORTH CUMBRIA INTEGRATED CARE NHS FOUNDATION TRUST","RNN62","Cumberland Infirmary",7,1,0,"*","*","*","*","*","*"]
["QHM","RNN","NORTH CUMBRIA INTEGRATED CARE NHS FOUNDATION TRUST","RNNXXX","Non-hospital site",0,"NA","NA",0,0,0,0,0,0]
["QHM","RNN","NORTH CUMBRIA INTEGRATED CARE NHS FOUNDATION TRUST","RNNKV","Penrith Hospital",0,"NA","NA",0,0,0,0,0,0]
["QHM","RNN","NORTH CUMBRIA INTEGRATED CARE NHS FOUNDATION TRUST","RNNBX","West Cumberland Hospital",1,"*","*","*","*","*","*","*","*"]
["QHM","RVW","NORTH TEES AND HARTLEPOOL NHS FOUNDATION TRUST","RVWAE","University Hospital Of North Tees",6,1,0,"*","*","*","*","*","*"]
["QHM","RTF","NORTHUMBRIA HEALTHCARE NHS FOUNDATION TRUST","RTFDJ","Alnwick Infirmary",0,"NA","NA",0,0,0,0,0,0]
["QHM","RTF","NORTHUMBRIA HEALTHCARE NHS FOUNDATION TRUST","RTFDH","Berwick Infirmary",1,"*","*","*","*","*","*","*","*"]
["QHM","RTF","NORTHUMBRIA HEALTHCARE NHS FOUNDATION TRUST","RTFDR","Hexham General Hospital",1,"*","*","*","*","*","*","*","*"]
["QHM","RTF","NORTHUMBRIA HEALTHCARE NHS FOUNDATION TRUST","RTFXXX","Non-hospital site",0,"NA","NA",0,0,0,0,0,0]
["QHM","RTF","NORTHUMBRIA HEALTHCARE NHS FOUNDATION TRUST","RTF86","The Northumbria",64,0.921875,1.5625E-2,46,13,4,0,1,0]
["QHM","RTR","SOUTH TEES HOSPITALS NHS FOUNDATION TRUST","RTR45","Friarage Hospital Site",3,"*","*","*","*","*","*","*","*"]
["QHM","RTR","SOUTH TEES HOSPITALS NHS FOUNDATION TRUST","RTRAT","The James Cook University Hospital",63,0.8571428571428571,9.5238095238095233E-2,"*","*","*","*","*","*"]
["QHM","R0B","SOUTH TYNESIDE AND SUNDERLAND NHS FOUNDATION TRUST","R0BXXX","Non-hospital site",1,"*","*","*","*","*","*","*","*"]
["QHM","R0B","SOUTH TYNESIDE AND SUNDERLAND NHS FOUNDATION TRUST","R0B0Q","South Tyneside District Hospital",0,"NA","NA",0,0,0,0,0,0]
["QHM","R0B","SOUTH TYNESIDE AND SUNDERLAND NHS FOUNDATION TRUST","R0B01","Sunderland Royal Hospital",19,1,0,"*","*","*","*","*","*"]
["QHM","RTD","THE NEWCASTLE UPON TYNE HOSPITALS NHS FOUNDATION TRUST","RTD02","The Royal Victoria Infirmary",15,0.93333333333333335,0,13,1,1,0,0,0]
["QJ2","RFS","CHESTERFIELD ROYAL HOSPITAL NHS FOUNDATION TRUST","RFSDA","Chesterfield Royal Hospital",3,"*","*","*","*","*","*","*","*"]
["QJ2","RTG","UNIVERSITY HOSPITALS OF DERBY AND BURTON NHS FOUNDATION TRUST","RTG02","Queens Hospital, Burton Upon Trent",1,"*","*","*","*","*","*","*","*"]
["QJ2","RTG","UNIVERSITY HOSPITALS OF DERBY AND BURTON NHS FOUNDATION TRUST","RTGFG","Royal Derby Hospital",2,"*","*","*","*","*","*","*","*"]
["QJG","RDE","EAST SUFFOLK AND NORTH ESSEX NHS FOUNDATION TRUST","RDEE2","Clacton and District Hospital",0,"NA","NA",0,0,0,0,0,0]
["QJG","RDE","EAST SUFFOLK AND NORTH ESSEX NHS FOUNDATION TRUST","RDEE4","Colchester General Hospital",1,"*","*","*","*","*","*","*","*"]
["QJG","RDE","EAST SUFFOLK AND NORTH ESSEX NHS FOUNDATION TRUST","RDE03","Ipswich Hospital",28,0.9642857142857143,3.5714285714285712E-2,"*","*","*","*","*","*"]
["QJG","RDE","EAST SUFFOLK AND NORTH ESSEX NHS FOUNDATION TRUST","RDEXXX","Non-hospital site",0,"NA","NA",0,0,0,0,0,0]
["QJG","RGR","WEST SUFFOLK NHS FOUNDATION TRUST","RGR50","West Suffolk Hospital",30,0.96666666666666667,0,21,8,1,0,0,0]
["QJK","RH8","ROYAL DEVON UNIVERSITY HEALTHCARE NHS FOUNDATION TRUST","RH8XXX","Non-hospital site",0,"NA","NA",0,0,0,0,0,0]
["QJK","RH8","ROYAL DEVON UNIVERSITY HEALTHCARE NHS FOUNDATION TRUST","RH880","North Devon District Hospital",0,"NA","NA",0,0,0,0,0,0]
["QJK","RH8","ROYAL DEVON UNIVERSITY HEALTHCARE NHS FOUNDATION TRUST","RH801","Royal Devon and Exeter Hospital (Wonford)",0,"NA","NA",0,0,0,0,0,0]
["QJK","RA9","TORBAY AND SOUTH DEVON NHS FOUNDATION TRUST","RA901","Torbay Hospital",0,"NA","NA",0,0,0,0,0,0]
["QJK","RK9","UNIVERSITY HOSPITALS PLYMOUTH NHS TRUST","RK950","Derriford Hospital",1,"*","*","*","*","*","*","*","*"]
["QJK","RK9","UNIVERSITY HOSPITALS PLYMOUTH NHS TRUST","RK9XXX","Non-hospital site",0,"NA","NA",0,0,0,0,0,0]
["QJM","RWD","UNITED LINCOLNSHIRE HOSPITALS NHS TRUST","RWDLP","Grantham and District Hospital",0,"NA","NA",0,0,0,0,0,0]
["QJM","RWD","UNITED LINCOLNSHIRE HOSPITALS NHS TRUST","RWDDA","Lincoln County Hospital",11,0.90909090909090906,0,9,1,0,0,0,1]
["QJM","RWD","UNITED LINCOLNSHIRE HOSPITALS NHS TRUST","RWDLA","Pilgrim Hospital",0,"NA","NA",0,0,0,0,0,0]
["QK1","RWE","UNIVERSITY HOSPITALS OF LEICESTER NHS TRUST","RWEAK","Leicester General Hospital",107,0.94392523364485981,1.8691588785046728E-2,95,6,3,1,1,1]
["QK1","RWE","UNIVERSITY HOSPITALS OF LEICESTER NHS TRUST","RWEAA","Leicester Royal Infirmary",91,0.91208791208791207,3.2967032967032968E-2,61,22,3,3,0,2]
["QK1","RWE","UNIVERSITY HOSPITALS OF LEICESTER NHS TRUST","RWEXXX","Non-hospital site",22,0.86363636363636365,4.5454545454545456E-2,"*","*","*","*","*","*"]
["QK1","RWE","UNIVERSITY HOSPITALS OF LEICESTER NHS TRUST","RWE10","St Mary's Hospital",1,"*","*","*","*","*","*","*","*"]
["QKK","RJ1","GUY'S AND ST THOMAS' NHS FOUNDATION TRUST","RJ1XXX","Non-hospital site",0,"NA","NA",0,0,0,0,0,0]
["QKK","RJ1","GUY'S AND ST THOMAS' NHS FOUNDATION TRUST","RJ122","St Thomas' Hospital",76,0.92105263157894735,0,50,20,5,0,0,1]
["QKK","RJZ","KING'S COLLEGE HOSPITAL NHS FOUNDATION TRUST","RJZ01","King's College Hospital (Denmark Hill)",49,0.79591836734693877,0.14285714285714285,26,13,3,5,2,0]
["QKK","RJZ","KING'S COLLEGE HOSPITAL NHS FOUNDATION TRUST","RJZ30","Princess Royal University Hospital",129,0.92248062015503873,5.4263565891472867E-2,91,28,3,3,4,0]
["QKK","RJ2","LEWISHAM AND GREENWICH NHS TRUST","RJ2XXX","Non-hospital site",5,1,0,"*","*","*","*","*","*"]
["QKK","RJ2","LEWISHAM AND GREENWICH NHS TRUST","RJ231","Queen Elizabeth Hospital",3,"*","*","*","*","*","*","*","*"]
["QKK","RJ2","LEWISHAM AND GREENWICH NHS TRUST","RJ224","University Hospital Lewisham",22,0.81818181818181823,0.13636363636363635,15,3,0,2,1,1]
["QKS","RN7","DARTFORD AND GRAVESHAM NHS TRUST","RN707","Darent Valley Hospital",11,0.90909090909090906,0,8,2,1,0,0,0]
["QKS","RWF","MAIDSTONE AND TUNBRIDGE WELLS NHS TRUST","RWF08","Crowborough Birthing Centre",15,1,0,15,0,0,0,0,0]
["QKS","RWF","MAIDSTONE AND TUNBRIDGE WELLS NHS TRUST","RWF03","Maidstone District General Hospital",30,1,0,30,0,0,0,0,0]
["QKS","RWF","MAIDSTONE AND TUNBRIDGE WELLS NHS TRUST","RWFXXX","Non-hospital site",0,"NA","NA",0,0,0,0,0,0]
["QKS","RWF","MAIDSTONE AND TUNBRIDGE WELLS NHS TRUST","RWFTW","The Tunbridge Wells Hospital",10,1,0,8,2,0,0,0,0]
["QKS","RPA","MEDWAY NHS FOUNDATION TRUST","RPA02","Medway Maritime Hospital",40,0.95,0.05,35,3,0,0,2,0]
["QM7","RWH","EAST AND NORTH HERTFORDSHIRE NHS TRUST","RWH01","Lister Hospital",2,"*","*","*","*","*","*","*","*"]
["QM7","RWH","EAST AND NORTH HERTFORDSHIRE NHS TRUST","RWHXXX","Non-hospital site",0,"NA","NA",0,0,0,0,0,0]
["QM7","RQW","THE PRINCESS ALEXANDRA HOSPITAL NHS TRUST","RQWG0","Princess Alexandra Hospital",15,0.6,0.13333333333333333,"*","*","*","*","*","*"]
["QM7","RWG","WEST HERTFORDSHIRE TEACHING HOSPITALS NHS TRUST","RWG02","Watford General Hospital",35,0.91428571428571426,5.7142857142857141E-2,16,16,1,1,1,0]
["QMF","RF4","BARKING, HAVERING AND REDBRIDGE UNIVERSITY HOSPITALS NHS TRUST","RF4QH","Queen's Hospital",168,0.98809523809523814,1.1904761904761904E-2,143,23,0,0,2,0]
["QMF","R1H","BARTS HEALTH NHS TRUST","R1HNH","Newham General Hospital",25,0.76,0.16,14,5,1,0,4,1]
["QMF","R1H","BARTS HEALTH NHS TRUST","R1H12","The Royal London Hospital",29,0.86206896551724133,6.8965517241379309E-2,13,12,2,1,1,0]
["QMF","R1H","BARTS HEALTH NHS TRUST","R1HKH","Whipps Cross University Hospital",106,0.91509433962264153,4.716981132075472E-2,79,18,4,2,3,0]
["QMF","RQX","HOMERTON HEALTHCARE NHS FOUNDATION TRUST","RQXM1","Homerton University Hospital",58,0.89655172413793105,6.8965517241379309E-2,45,7,2,1,3,0]
["QMJ","RAP","NORTH MIDDLESEX UNIVERSITY HOSPITAL NHS TRUST","RAPNM","North Middlesex Hospital",31,0.70967741935483875,0.19354838709677419,21,1,2,1,5,1]
["QMJ","RAL","ROYAL FREE LONDON NHS FOUNDATION TRUST","RAL26","Barnet Hospital",128,0.9453125,1.5625E-2,61,60,5,1,1,0]
["QMJ","RAL","ROYAL FREE LONDON NHS FOUNDATION TRUST","RAL01","Royal Free Hospital",89,0.9438202247191011,3.3707865168539325E-2,56,28,2,3,0,0]
["QMJ","RRV","UNIVERSITY COLLEGE LONDON HOSPITALS NHS FOUNDATION TRUST","RRV11","University College Hospital Elizabeth Garrett Anderson Wing",55,0.87272727272727268,9.0909090909090912E-2,40,8,2,3,2,0]
["QMM","RGP","JAMES PAGET UNIVERSITY HOSPITALS NHS FOUNDATION TRUST","RGP75","James Paget University Hospital",28,1,0,26,2,0,0,0,0]
["QMM","RM1","NORFOLK AND NORWICH UNIVERSITY HOSPITALS NHS FOUNDATION TRUST","RM102","Norfolk and Norwich University Hospital",4,"*","*","*","*","*","*","*","*"]
["QMM","RCX","THE QUEEN ELIZABETH HOSPITAL, KING'S LYNN, NHS FOUNDATION TRUST","RCXXXX","Non-hospital site",0,"NA","NA",0,0,0,0,0,0]
["QMM","RCX","THE QUEEN ELIZABETH HOSPITAL, KING'S LYNN, NHS FOUNDATION TRUST","RCX70","The Queen Elizabeth Hospital",15,1,0,"*","*","*","*","*","*"]
["QNC","RJE","UNIVERSITY HOSPITALS OF NORTH MIDLANDS NHS TRUST","RJE01","Royal Stoke University Hospital",2,"*","*","*","*","*","*","*","*"]
["QNQ","RDU","FRIMLEY HEALTH NHS FOUNDATION TRUST","RDU01","Frimley Park Hospital",9,1,0,9,0,0,0,0,0]
["QNQ","RDU","FRIMLEY HEALTH NHS FOUNDATION TRUST","RDU50","Wexham Park Hospital",0,"NA","NA",0,0,0,0,0,0]
["QNX","RXC","EAST SUSSEX HEALTHCARE NHS TRUST","RXC01","Conquest Hospital",0,"NA","NA",0,0,0,0,0,0]
["QNX","RXC","EAST SUSSEX HEALTHCARE NHS TRUST","RXC02","Eastbourne District General Hospital",3,"*","*","*","*","*","*","*","*"]
["QNX","RXC","EAST SUSSEX HEALTHCARE NHS TRUST","RXCXXX","Non-hospital site",0,"NA","NA",0,0,0,0,0,0]
["QNX","RYR","UNIVERSITY HOSPITALS SUSSEX NHS FOUNDATION TRUST","RYRXXX","Non-hospital site",0,"NA","NA",0,0,0,0,0,0]
["QNX","RYR","UNIVERSITY HOSPITALS SUSSEX NHS FOUNDATION TRUST","N6J7V","Princess Royal Hospital",11,1,0,"*","*","*","*","*","*"]
["QNX","RYR","UNIVERSITY HOSPITALS SUSSEX NHS FOUNDATION TRUST","E0A3H","Royal Sussex County Hospital",41,0.92682926829268297,4.878048780487805E-2,"*","*","*","*","*","*"]
["QNX","RYR","UNIVERSITY HOSPITALS SUSSEX NHS FOUNDATION TRUST","RYR16","St Richard's Hospital",51,0.96078431372549022,0,42,7,2,0,0,0]
["QNX","RYR","UNIVERSITY HOSPITALS SUSSEX NHS FOUNDATION TRUST","RYR18","Worthing Hospital",59,0.89830508474576276,3.3898305084745763E-2,46,7,4,1,1,0]
["QOC","RXW","THE SHREWSBURY AND TELFORD HOSPITAL NHS TRUST","RXWMB","Bridgnorth Hospital (Maternity)",0,"NA","NA",0,0,0,0,0,0]
["QOC","RXW","THE SHREWSBURY AND TELFORD HOSPITAL NHS TRUST","RXWML","Ludlow Hospital (Maternity)",0,"NA","NA",0,0,0,0,0,0]
["QOC","RXW","THE SHREWSBURY AND TELFORD HOSPITAL NHS TRUST","RXWXXX","Non-hospital site",0,"NA","NA",0,0,0,0,0,0]
["QOC","RXW","THE SHREWSBURY AND TELFORD HOSPITAL NHS TRUST","RXWMJ","Robert Jones & Agnes Hunt Orthopaedic & District Hospital",0,"NA","NA",0,0,0,0,0,0]
["QOC","RXW","THE SHREWSBURY AND TELFORD HOSPITAL NHS TRUST","RXWAS","Royal Shrewsbury Hospital",0,"NA","NA",0,0,0,0,0,0]
["QOC","RXW","THE SHREWSBURY AND TELFORD HOSPITAL NHS TRUST","RXWAT","The Princess Royal Hospital",22,1,0,22,0,0,0,0,0]
["QOP","RMC","BOLTON NHS FOUNDATION TRUST","RMC01","Royal Bolton Hospital",130,0.84615384615384615,0.1076923076923077,93,17,6,5,9,0]
["QOP","R0A","MANCHESTER UNIVERSITY NHS FOUNDATION TRUST","R0A05","St Mary's Hospital",42,0.88095238095238093,9.5238095238095233E-2,32,5,1,2,2,0]
["QOP","RM3","NORTHERN CARE ALLIANCE NHS FOUNDATION TRUST","RW604","Rochdale Infirmary",1,"*","*","*","*","*","*","*","*"]
["QOP","RM3","NORTHERN CARE ALLIANCE NHS FOUNDATION TRUST","RW603","Royal Oldham Hospital",64,0.796875,0.171875,"*","*","*","*","*","*"]
["QOP","RWJ","STOCKPORT NHS FOUNDATION TRUST","RWJXXX","Non-hospital site",0,"NA","NA",0,0,0,0,0,0]
["QOP","RWJ","STOCKPORT NHS FOUNDATION TRUST","RWJ09","Stepping Hill Hospital",12,0.83333333333333337,8.3333333333333329E-2,"*","*","*","*","*","*"]
["QOP","RRF","WRIGHTINGTON, WIGAN AND LEIGH NHS FOUNDATION TRUST","RRF02","Royal Albert Edward Infirmary",4,"*","*","*","*","*","*","*","*"]
["QOQ","RCD","HARROGATE AND DISTRICT NHS FOUNDATION TRUST","RCD01","Harrogate District Hospital",2,"*","*","*","*","*","*","*","*"]
["QOQ","RWA","HULL UNIVERSITY TEACHING HOSPITALS NHS TRUST","RWA01","Hull Royal Infirmary",1,"*","*","*","*","*","*","*","*"]
["QOQ","RJL","NORTHERN LINCOLNSHIRE AND GOOLE NHS FOUNDATION TRUST","RJL30","Diana, Princess Of Wales Hospital",24,1,0,"*","*","*","*","*","*"]
["QOQ","RJL","NORTHERN LINCOLNSHIRE AND GOOLE NHS FOUNDATION TRUST","RJL32","Scunthorpe General Hospital",1,"*","*","*","*","*","*","*","*"]
["QOQ","RCB","YORK AND SCARBOROUGH TEACHING HOSPITALS NHS FOUNDATION TRUST","RCBCA","Scarborough General Hospital",37,0.97297297297297303,0,"*","*","*","*","*","*"]
["QOQ","RCB","YORK AND SCARBOROUGH TEACHING HOSPITALS NHS FOUNDATION TRUST","RCB55","York Hospital",1,"*","*","*","*","*","*","*","*"]
["QOX","RN3","GREAT WESTERN HOSPITALS NHS FOUNDATION TRUST","RN3XXX","Non-hospital site",1,"*","*","*","*","*","*","*","*"]
["QOX","RN3","GREAT WESTERN HOSPITALS NHS FOUNDATION TRUST","RN325","The Great Western Hospital",85,0.94117647058823528,2.3529411764705882E-2,"*","*","*","*","*","*"]
["QOX","RD1","ROYAL UNITED HOSPITALS BATH NHS FOUNDATION TRUST","RD1XXX","Non Hospital Site",0,"NA","NA",0,0,0,0,0,0]
["QOX","RD1","ROYAL UNITED HOSPITALS BATH NHS FOUNDATION TRUST","RD129","Paulton Memorial Hospital",0,"NA","NA",0,0,0,0,0,0]
["QOX","RD1","ROYAL UNITED HOSPITALS BATH NHS FOUNDATION TRUST","RD130","Princess Anne Wing RUH",8,1,0,"*","*","*","*","*","*"]
["QOX","RD1","ROYAL UNITED HOSPITALS BATH NHS FOUNDATION TRUST","RD108","Trowbridge Community Hospital",0,"NA","NA",0,0,0,0,0,0]
["QOX","RNZ","SALISBURY NHS FOUNDATION TRUST","RNZXXX","Non-hospital site",0,"NA","NA",0,0,0,0,0,0]
["QOX","RNZ","SALISBURY NHS FOUNDATION TRUST","RNZ02","Salisbury District Hospital",1,"*","*","*","*","*","*","*","*"]
["QPM","RNQ","KETTERING GENERAL HOSPITAL NHS FOUNDATION TRUST","RNQ51","Kettering General Hospital",3,"*","*","*","*","*","*","*","*"]
["QPM","RNS","NORTHAMPTON GENERAL HOSPITAL NHS TRUST","RNS01","Northampton General Hospital (Acute)",53,0.92452830188679247,7.5471698113207544E-2,"*","*","*","*","*","*"]
["QR1","RTE","GLOUCESTERSHIRE HOSPITALS NHS FOUNDATION TRUST","RTE03","Gloucestershire Royal Hospital",47,0.95744680851063835,0,"*","*","*","*","*","*"]
["QR1","RTE","GLOUCESTERSHIRE HOSPITALS NHS FOUNDATION TRUST","RTE27","Stroud Maternity Hospital",4,"*","*","*","*","*","*","*","*"]
["QRL","RN5","HAMPSHIRE HOSPITALS NHS FOUNDATION TRUST","RN542","Andover War Memorial Hospital",1,"*","*","*","*","*","*","*","*"]
["QRL","RN5","HAMPSHIRE HOSPITALS NHS FOUNDATION TRUST","RN506","Basingstoke and North Hampshire Hospital",58,1,0,51,7,0,0,0,0]
["QRL","RN5","HAMPSHIRE HOSPITALS NHS FOUNDATION TRUST","RN541","Royal Hampshire County Hospital",3,"*","*","*","*","*","*","*","*"]
["QRL","R1F","ISLE OF WIGHT NHS TRUST","R1F01","St Mary's Hospital",10,1,0,7,3,0,0,0,0]
["QRL","RHU","PORTSMOUTH HOSPITALS UNIVERSITY NATIONAL HEALTH SERVICE TRUST","RHU10","Gosport War Memorial Hospital",0,"NA","NA",0,0,0,0,0,0]
["QRL","RHU","PORTSMOUTH HOSPITALS UNIVERSITY NATIONAL HEALTH SERVICE TRUST","RHU04","Petersfield Community Hospital",0,"NA","NA",0,0,0,0,0,0]
["QRL","RHU","PORTSMOUTH HOSPITALS UNIVERSITY NATIONAL HEALTH SERVICE TRUST","RHU03","Queen Alexandra Hospital",34,1,0,31,3,0,0,0,0]
["QRL","RHU","PORTSMOUTH HOSPITALS UNIVERSITY NATIONAL HEALTH SERVICE TRUST","RHU02","St Mary's Hospital",0,"NA","NA",0,0,0,0,0,0]
["QRL","RHM","UNIVERSITY HOSPITAL SOUTHAMPTON NHS FOUNDATION TRUST","RHM01","Southampton General Hospital",111,0.97297297297297303,1.8018018018018018E-2,95,13,1,1,1,0]
["QRV","RQM","CHELSEA AND WESTMINSTER HOSPITAL NHS FOUNDATION TRUST","RQM01","Chelsea and Westminster Hospital",36,0.94444444444444442,2.7777777777777776E-2,33,1,1,0,1,0]
["QRV","RQM","CHELSEA AND WESTMINSTER HOSPITAL NHS FOUNDATION TRUST","RQM91","West Middlesex University Hospital",14,0.9285714285714286,0,10,3,1,0,0,0]
["QRV","RYJ","IMPERIAL COLLEGE HEALTHCARE NHS TRUST","RYJ04","Queen Charlotte's Hospital",51,0.98039215686274506,0,45,5,1,0,0,0]
["QRV","RYJ","IMPERIAL COLLEGE HEALTHCARE NHS TRUST","RYJ01","St Mary's Hospital (HQ)",13,1,0,11,2,0,0,0,0]
["QRV","R1K","LONDON NORTH WEST UNIVERSITY HEALTHCARE NHS TRUST","R1K01","Northwick Park Hospital",49,0.91836734693877553,2.0408163265306121E-2,28,17,3,1,0,0]
["QRV","RAS","THE HILLINGDON HOSPITALS NHS FOUNDATION TRUST","RAS01","Hillingdon Hospital",29,0.82758620689655171,0.13793103448275862,21,3,1,1,3,0]
["QSL","RH5","SOMERSET NHS FOUNDATION TRUST","RH5K6","Bridgwater Hospital",0,"NA","NA",0,0,0,0,0,0]
["QSL","RH5","SOMERSET NHS FOUNDATION TRUST","RH5A8","MUSGROVE PARK HOSPITAL",0,"NA","NA",0,0,0,0,0,0]
["QSL","RH5","SOMERSET NHS FOUNDATION TRUST","RH5XXXX","Non-hospital site home/in-transit births",0,"NA","NA",0,0,0,0,0,0]
["QSL","RA4","YEOVIL DISTRICT HOSPITAL NHS FOUNDATION TRUST","RA430","Yeovil District Hospital",12,1,0,10,2,0,0,0,0]
["QT1","RX1","NOTTINGHAM UNIVERSITY HOSPITALS NHS TRUST","RX1XXX","Non-hospital site",0,"NA","NA",0,0,0,0,0,0]
["QT1","RX1","NOTTINGHAM UNIVERSITY HOSPITALS NHS TRUST","RX1CC","Nottingham University Hospitals NHS Trust - City Campus",2,"*","*","*","*","*","*","*","*"]
["QT1","RX1","NOTTINGHAM UNIVERSITY HOSPITALS NHS TRUST","RX1RA","Nottingham University Hospitals NHS Trust - Queen's Medical Centre Campus",36,1,0,"*","*","*","*","*","*"]
["QT1","RK5","SHERWOOD FOREST HOSPITALS NHS FOUNDATION TRUST","RK5BC","King's Mill Hospital",44,0.88636363636363635,9.0909090909090912E-2,27,12,1,4,0,0]
["QT1","RK5","SHERWOOD FOREST HOSPITALS NHS FOUNDATION TRUST","RK5XXX","Non-hospital site",0,"NA","NA",0,0,0,0,0,0]
["QT6","REF","ROYAL CORNWALL HOSPITALS NHS TRUST","REFXXX","Non-hospital site",0,"NA","NA",0,0,0,0,0,0]
["QT6","REF","ROYAL CORNWALL HOSPITALS NHS TRUST","REF12","Royal Cornwall Hospital (Treliske)",12,1,0,12,0,0,0,0,0]
["QU9","RXQ","BUCKINGHAMSHIRE HEALTHCARE NHS TRUST","RXQ02","Stoke Mandeville Hospital",24,0.79166666666666663,0.125,15,4,2,2,1,0]
["QU9","RTH","OXFORD UNIVERSITY HOSPITALS NHS FOUNDATION TRUST","RTH05","Horton General Hospital",1,"*","*","*","*","*","*","*","*"]
["QU9","RTH","OXFORD UNIVERSITY HOSPITALS NHS FOUNDATION TRUST","RTH08","John Radcliffe Hospital",112,0.875,6.25E-2,"*","*","*","*","*","*"]
["QU9","RTH","OXFORD UNIVERSITY HOSPITALS NHS FOUNDATION TRUST","RTH16","Wallingford Community Hospital",0,"NA","NA",0,0,0,0,0,0]
["QU9","RHW","ROYAL BERKSHIRE NHS FOUNDATION TRUST","RHW01","Royal Berkshire Hospital",64,0.96875,1.5625E-2,52,10,1,0,1,0]
["QUA","RNA","THE DUDLEY GROUP NHS FOUNDATION TRUST","RNA01","Russells Hall Hospital",27,0.92592592592592593,0,21,4,1,0,0,1]
["QUA","RL4","THE ROYAL WOLVERHAMPTON NHS TRUST","RL403","New Cross Hospital",108,0.87962962962962965,6.4814814814814811E-2,80,15,4,6,1,2]
["QUA","RBK","WALSALL HEALTHCARE NHS TRUST","RBK02","Manor Hospital",48,0.8125,0.125,29,10,2,4,2,1]
["QUE","RGT","CAMBRIDGE UNIVERSITY HOSPITALS NHS FOUNDATION TRUST","RGT32","Rosie Hospital",68,0.95588235294117652,4.4117647058823532E-2,60,5,0,2,1,0]
["QUE","RGN","NORTH WEST ANGLIA NHS FOUNDATION TRUST","RGN90","Hinchingbrooke Hospital",1,"*","*","*","*","*","*","*","*"]
["QUE","RGN","NORTH WEST ANGLIA NHS FOUNDATION TRUST","RGN80","Peterborough City Hospital",46,1,0,"*","*","*","*","*","*"]
["QUY","RVJ","NORTH BRISTOL NHS TRUST","RVJ21","Cossham Hospital",0,"NA","NA",0,0,0,0,0,0]
["QUY","RVJ","NORTH BRISTOL NHS TRUST","RVJXXX","Non-hospital site",1,"*","*","*","*","*","*","*","*"]
["QUY","RVJ","NORTH BRISTOL NHS TRUST","RVJ01","Southmead Hospital",113,0.92920353982300885,5.3097345132743362E-2,"*","*","*","*","*","*"]
["QUY","RA7","UNIVERSITY HOSPITALS BRISTOL AND WESTON NHS FOUNDATION TRUST","RA707","St Michael's Hospital",39,0.97435897435897434,0,38,0,1,0,0,0]
["QVV","RBD","DORSET COUNTY HOSPITAL NHS FOUNDATION TRUST","RBD01","Dorset County Hospital",47,0.95744680851063835,4.2553191489361701E-2,37,8,0,1,1,0]
["QVV","R0D","UNIVERSITY HOSPITALS DORSET NHS FOUNDATION TRUST","R0D01","Poole Hospital",127,0.93700787401574803,2.3622047244094488E-2,96,23,2,1,2,3]
["QVV","R0D","UNIVERSITY HOSPITALS DORSET NHS FOUNDATION TRUST","R0D02","Royal Bournemouth Hospital",0,"NA","NA",0,0,0,0,0,0]
["QWE","RJ6","CROYDON HEALTH SERVICES NHS TRUST","RJ611","Croydon University Hospital",29,0.89655172413793105,0.10344827586206896,19,7,0,2,1,0]
["QWE","RVR","EPSOM AND ST HELIER UNIVERSITY HOSPITALS NHS TRUST","RVR50","Epsom Hospital",15,1,0,15,0,0,0,0,0]
["QWE","RVR","EPSOM AND ST HELIER UNIVERSITY HOSPITALS NHS TRUST","RVRXXX","Non-hospital site",1,"*","*","*","*","*","*","*","*"]
["QWE","RVR","EPSOM AND ST HELIER UNIVERSITY HOSPITALS NHS TRUST","RVR05","St Helier Hospital",7,1,0,"*","*","*","*","*","*"]
["QWE","RAX","KINGSTON HOSPITAL NHS FOUNDATION TRUST","RAX01","Kingston Hospital",8,1,0,7,1,0,0,0,0]
["QWE","RJ7","ST GEORGE'S UNIVERSITY HOSPITALS NHS FOUNDATION TRUST","RJ701","St George's Hospital (Tooting)",29,0.86206896551724133,6.8965517241379309E-2,20,5,2,0,2,0]
["QWO","RCF","AIREDALE NHS FOUNDATION TRUST","RCF22","Airedale General Hospital",48,0.9375,4.1666666666666664E-2,40,5,1,1,1,0]
["QWO","RAE","BRADFORD TEACHING HOSPITALS NHS FOUNDATION TRUST","RAE01","Bradford Royal Infirmary",47,1,0,45,2,0,0,0,0]
["QWO","RWY","CALDERDALE AND HUDDERSFIELD NHS FOUNDATION TRUST","RWY02","Calderdale Royal Hospital",59,0.93220338983050843,1.6949152542372881E-2,"*","*","*","*","*","*"]
["QWO","RWY","CALDERDALE AND HUDDERSFIELD NHS FOUNDATION TRUST","RWYXXX","Non-hospital site",1,"*","*","*","*","*","*","*","*"]
["QWO","RR8","LEEDS TEACHING HOSPITALS NHS TRUST","RR801","Leeds General Infirmary",136,0.9779411764705882,2.2058823529411766E-2,121,12,0,1,2,0]
["QWO","RR8","LEEDS TEACHING HOSPITALS NHS TRUST","RR8XXX","Non-hospital site",0,"NA","NA",0,0,0,0,0,0]
["QWO","RR8","LEEDS TEACHING HOSPITALS NHS TRUST","RR813","St James's University Hospital",102,0.97058823529411764,1.9607843137254902E-2,92,7,1,2,0,0]
["QWO","RXF","MID YORKSHIRE HOSPITALS NHS TRUST","RXF10","Dewsbury and District Hospital",2,"*","*","*","*","*","*","*","*"]
["QWO","RXF","MID YORKSHIRE HOSPITALS NHS TRUST","RXFXXX","Non-hospital site",1,"*","*","*","*","*","*","*","*"]
["QWO","RXF","MID YORKSHIRE HOSPITALS NHS TRUST","RXF05","Pinderfields General Hospital",74,0.91891891891891897,5.4054054054054057E-2,63,5,2,1,3,0]
["QWO","RXF","MID YORKSHIRE HOSPITALS NHS TRUST","RXF03","Pontefract General Infirmary",0,"NA","NA",0,0,0,0,0,0]
["QWU","RLT","GEORGE ELIOT HOSPITAL NHS TRUST","RLT01","George Eliot Hospital - Acute Services",92,0.94565217391304346,3.2608695652173912E-2,74,13,1,2,1,1]
["QWU","RJC","SOUTH WARWICKSHIRE UNIVERSITY NHS FOUNDATION TRUST","RJC02","Warwick Hospital",36,0.86111111111111116,8.3333333333333329E-2,30,1,0,1,2,2]
["QWU","RKB","UNIVERSITY HOSPITALS COVENTRY AND WARWICKSHIRE NHS TRUST","RKB03","Hospital Of St Cross",0,"NA","NA",0,0,0,0,0,0]
["QWU","RKB","UNIVERSITY HOSPITALS COVENTRY AND WARWICKSHIRE NHS TRUST","RKBXXX","Non-hospital site",2,"*","*","*","*","*","*","*","*"]
["QWU","RKB","UNIVERSITY HOSPITALS COVENTRY AND WARWICKSHIRE NHS TRUST","RKB01","University Hospital (Coventry)",81,0.93827160493827155,4.9382716049382713E-2,"*","*","*","*","*","*"]
["QXU","RTK","ASHFORD AND ST PETER'S HOSPITALS NHS FOUNDATION TRUST","RTK01","St Peter's Hospital",0,"NA","NA",0,0,0,0,0,0]
["QXU","RA2","ROYAL SURREY COUNTY HOSPITAL NHS FOUNDATION TRUST","RA201","Royal Surrey County Hospital",1,"*","*","*","*","*","*","*","*"]
["QXU","RTP","SURREY AND SUSSEX HEALTHCARE NHS TRUST","RTP04","East Surrey Hospital",10,1,0,"*","*","*","*","*","*"]
["QYG","RJN","EAST CHESHIRE NHS TRUST","RJN71","Macclesfield District General Hospital",0,"NA","NA",0,0,0,0,0,0]
["QYG","REP","LIVERPOOL WOMEN'S NHS FOUNDATION TRUST","REP01","Liverpool Womens Hospital",60,0.8666666666666667,0.1,40,12,2,4,2,0]
["QYG","RBT","MID CHESHIRE HOSPITALS NHS FOUNDATION TRUST","RBT20","Leighton Hospital",88,0.94318181818181823,4.5454545454545456E-2,78,5,1,1,3,0]
["QYG","RVY","SOUTHPORT AND ORMSKIRK HOSPITAL NHS TRUST","RVY02","Ormskirk and District General Hospital",68,0.97058823529411764,2.9411764705882353E-2,61,5,0,0,2,0]
["QYG","RBN","ST HELENS AND KNOWSLEY TEACHING HOSPITALS NHS TRUST","RBN01","Whiston Hospital",40,0.95,2.5000000000000001E-2,33,5,1,1,0,0]
["QYG","RWW","WARRINGTON AND HALTON TEACHING HOSPITALS NHS FOUNDATION TRUST","RWWWH","Warrington Hospital",0,"NA","NA",0,0,0,0,0,0]
["QYG","RBL","WIRRAL UNIVERSITY TEACHING HOSPITAL NHS FOUNDATION TRUST","RBL14","Arrowe Park Hospital",18,1,0,17,1,0,0,0,0]

{"sheet":"ICB Q3","index":8,"n_rows":55,"n_cols":11,"rows_kept":55,"cut":false,"hidden":false,"merged":[[8,5,8,10],[8,0,9,0],[8,1,9,1],[8,2,9,2],[8,3,9,3],[8,4,9,4]]}
[]
[]
[]
[]
[]
[null,"   Sort data by:           "]
[]
[]
["ICB Code","ICB Name","Total Responses","Percentage Positive","Percentage Negative","Breakdown of Responses"]
[null,null,null,null,null,"Very Good","Good","Neither Good nor Poor","Poor","Very Poor","Don't Know"]
[null,"England (including Independent Sector providers)",6214,0.9169616993884776,4.4093981332475059E-2,4409,1289,211,147,127,31]
[null,"England (excluding Independent Sector providers)",6214,0.9169616993884776,4.4093981332475059E-2,4409,1289,211,147,127,31]
[null,"Selection (excluding suppressed data)",{"$f":"SUBTOTAL(9,C14:C55)","v":6214},{"$f":"IFERROR((F13+G13)/SUM(F13:K13), \"-\")","v":0.91698903932946485},{"$f":"IFERROR((I13+J13)/SUM(F13:K13), \"-\")","v":4.4003868471953575E-2},{"$f":"SUBTOTAL(9,F14:F55)","v":4400},{"$f":"SUBTOTAL(9,G14:G55)","v":1289},211,146,127,31]
["QE1","LANCASHIRE AND SOUTH CUMBRIA ICB",280,0.91785714285714282,3.9285714285714285E-2,218,39,7,8,3,5]
["QF7","SOUTH YORKSHIRE ICB",149,0.95302013422818788,3.3557046979865772E-2,115,27,2,2,3,0]
["QGH","HEREFORDSHIRE AND WORCESTERSHIRE ICB",34,1,0,31,3,0,0,0,0]
["QH8","MID AND SOUTH ESSEX ICB",104,0.78846153846153844,0.11538461538461539,62,20,10,4,8,0]
["QHG","BEDFORDSHIRE, LUTON AND MILTON KEYNES ICB",279,0.95340501792114696,3.9426523297491037E-2,199,67,2,7,4,0]
["QHL","BIRMINGHAM AND SOLIHULL ICB",27,0.85185185185185186,0.1111111111111111,20,3,0,1,2,1]
["QHM","NORTH EAST AND NORTH CUMBRIA ICB",268,0.97014925373134331,1.4925373134328358E-2,216,44,4,3,1,0]
["QJ2","DERBY AND DERBYSHIRE ICB",39,0.92307692307692313,5.128205128205128E-2,26,10,1,2,0,0]
["QJG","SUFFOLK AND NORTH EAST ESSEX ICB",187,0.95187165775401072,1.6042780748663103E-2,139,39,6,3,0,0]
["QJK","DEVON ICB",29,0.68965517241379315,0,16,4,9,0,0,0]
["QJM","LINCOLNSHIRE ICB",0,"NA","NA",0,0,0,0,0,0]
["QK1","LEICESTER, LEICESTERSHIRE AND RUTLAND ICB",202,0.9356435643564357,3.9603960396039604E-2,148,41,5,3,5,0]
["QKK","SOUTH EAST LONDON ICB",97,0.87628865979381443,2.0618556701030927E-2,45,40,8,1,1,2]
["QKS","KENT AND MEDWAY ICB",116,0.97413793103448276,2.5862068965517241E-2,91,22,0,1,2,0]
["QM7","HERTFORDSHIRE AND WEST ESSEX ICB",52,0.80769230769230771,5.7692307692307696E-2,27,15,7,1,2,0]
["QMF","NORTH EAST LONDON ICB",415,0.88915662650602412,6.0240963855421686E-2,260,109,20,13,12,1]
["QMJ","NORTH CENTRAL LONDON ICB",456,0.89912280701754388,4.8245614035087717E-2,272,138,22,13,9,2]
["QMM","NORFOLK AND WAVENEY ICB",49,0.95918367346938771,0,44,3,2,0,0,0]
["QNC","STAFFORDSHIRE AND STOKE-ON-TRENT ICB",2,"*","*","*","*","*","*","*","*"]
["QNQ","FRIMLEY ICB",1,"*","*","*","*","*","*","*","*"]
["QNX","SUSSEX ICB",59,0.93220338983050843,6.7796610169491525E-2,48,7,0,2,2,0]
["QOC","SHROPSHIRE, TELFORD AND WREKIN ICB",7,1,0,"*","*","*","*","*","*"]
["QOP","GREATER MANCHESTER ICB",488,0.92008196721311475,5.1229508196721313E-2,272,177,14,11,14,0]
["QOQ","HUMBER AND NORTH YORKSHIRE ICB",251,0.9760956175298805,1.1952191235059761E-2,213,32,3,2,1,0]
["QOX","BATH AND NORTH EAST SOMERSET, SWINDON AND WILTSHIRE ICB",103,0.93203883495145634,4.8543689320388349E-2,84,12,2,3,2,0]
["QPM","NORTHAMPTONSHIRE ICB",40,0.9,7.4999999999999997E-2,30,6,1,3,0,0]
["QR1","GLOUCESTERSHIRE ICB",27,0.66666666666666663,0.1111111111111111,10,8,6,2,1,0]
["QRL","HAMPSHIRE AND ISLE OF WIGHT ICB",269,0.94052044609665431,1.858736059479554E-2,195,58,9,5,0,2]
["QRV","NORTH WEST LONDON ICB",412,0.90776699029126218,5.3398058252427182E-2,303,71,16,10,12,0]
["QSL","SOMERSET ICB",41,0.95121951219512191,0,36,3,2,0,0,0]
["QT1","NOTTINGHAM AND NOTTINGHAMSHIRE ICB",90,0.8666666666666667,5.5555555555555552E-2,60,18,7,3,2,0]
["QT6","CORNWALL AND THE ISLES OF SCILLY ICB",13,0.92307692307692313,7.6923076923076927E-2,8,4,0,1,0,0]
["QU9","BUCKINGHAMSHIRE, OXFORDSHIRE AND BERKSHIRE WEST ICB",84,0.94047619047619047,2.3809523809523808E-2,67,12,3,2,0,0]
["QUA","BLACK COUNTRY ICB",149,0.79194630872483218,0.12080536912751678,97,21,9,14,4,4]
["QUE","CAMBRIDGESHIRE AND PETERBOROUGH ICB",255,0.93725490196078431,2.3529411764705882E-2,200,39,8,3,3,2]
["QUY","BRISTOL, NORTH SOMERSET AND SOUTH GLOUCESTERSHIRE ICB",147,0.93877551020408168,4.0816326530612242E-2,115,23,3,2,4,0]
["QVV","DORSET ICB",164,0.85365853658536583,4.2682926829268296E-2,100,40,7,4,3,10]
["QWE","SOUTH WEST LONDON ICB",112,0.9285714285714286,3.5714285714285712E-2,79,25,4,2,2,0]
["QWO","WEST YORKSHIRE ICB",338,0.92011834319526631,6.2130177514792898E-2,263,48,6,11,10,0]
["QWU","COVENTRY AND WARWICKSHIRE ICB",135,0.91111111111111109,7.407407407407407E-2,95,28,0,1,9,2]
["QXU","SURREY HEARTLANDS ICB",64,0.953125,4.6875E-2,47,14,0,0,3,0]
["QYG","CHESHIRE AND MERSEYSIDE ICB",180,0.93333333333333335,3.3333333333333333E-2,149,19,6,3,3,0]

{"sheet":"Trusts Q3","index":9,"n_rows":124,"n_cols":20,"rows_kept":124,"cut":false,"hidden":false,"merged":[[8,6,8,11],[8,12,8,19],[8,0,9,0],[8,1,9,1],[8,2,9,2],[8,3,9,3],[8,4,9,4],[8,5,9,5]]}
[]
[]
[]
[]
[]
[null,"   Sort data by:           "]
[]
[]
["ICB Code","Trust Code","Trust Name","Total Responses","Percentage Positive","Percentage Negative","Breakdown of Responses",null,null,null,null,null,"Mode of Collection"]
[null,null,null,null,null,null,"Very Good","Good","Neither Good nor Poor","Poor","Very Poor","Don't Know","Mode SMS","Mode Electronic Discharge","Mode Electronic Home","Mode Paper Discharge","Mode Paper Home","Mode Telephone","Mode Online","Mode Other"]
[null,null,"England (including Independent Sector providers)",6214,0.9169616993884776,4.4093981332475059E-2,4409,1289,211,147,127,31,1564,1259,5,2604,43,0,673,66]
[null,null,"England (excluding Independent Sector providers)",6214,0.9169616993884776,4.4093981332475059E-2,4409,1289,211,147,127,31,1564,1259,5,2604,43,0,673,66]
[null,null,"Selection (excluding suppressed data)",{"$f":"SUBTOTAL(9,D14:D299)","v":6214},{"$f":"IFERROR((G13+H13)/SUM(G13:L13), \"-\")","v":0.91640759930915372},{"$f":"IFERROR((J13+K13)/SUM(G13:L13), \"-\")","v":4.283246977547496E-2},{"$f":"SUBTOTAL(9,G14:G299)","v":4068},1238,205,133,115,31,1305,1248,5,2488,31,0,647,66]
["QE1","RXN","LANCASHIRE TEACHING HOSPITALS NHS FOUNDATION TRUST",19,1,0,15,4,0,0,0,0,19,0,0,0,0,0,0,0]
["QE1","RTX","UNIVERSITY HOSPITALS OF MORECAMBE BAY NHS FOUNDATION TRUST",45,0.9555555555555556,2.2222222222222223E-2,37,6,1,1,0,0,42,0,0,0,0,0,3,0]
["QE1","RXL","BLACKPOOL TEACHING HOSPITALS NHS FOUNDATION TRUST",86,0.90697674418604646,5.8139534883720929E-2,66,12,2,3,2,1,12,0,0,74,0,0,0,0]
["QE1","RXR","EAST LANCASHIRE HOSPITALS NHS TRUST",130,0.9,3.8461538461538464E-2,100,17,4,4,1,4,46,0,0,0,0,0,84,0]
["QF7","RFF","BARNSLEY HOSPITAL NHS FOUNDATION TRUST",5,1,0,3,2,0,0,0,0,5,0,0,0,0,0,0,0]
["QF7","RFR","THE ROTHERHAM NHS FOUNDATION TRUST",41,0.97560975609756095,2.4390243902439025E-2,35,5,0,1,0,0,0,0,0,41,0,0,0,0]
["QF7","RP5","DONCASTER AND BASSETLAW TEACHING HOSPITALS NHS FOUNDATION TRUST",41,0.92682926829268297,4.878048780487805E-2,31,7,1,1,1,0,0,0,0,41,0,0,0,0]
["QF7","RHQ","SHEFFIELD TEACHING HOSPITALS NHS FOUNDATION TRUST",62,0.95161290322580649,3.2258064516129031E-2,46,13,1,0,2,0,22,0,0,38,0,0,2,0]
["QGH","RWP","WORCESTERSHIRE ACUTE HOSPITALS NHS TRUST",8,1,0,8,0,0,0,0,0,0,8,0,0,0,0,0,0]
["QGH","RLQ","WYE VALLEY NHS TRUST",26,1,0,23,3,0,0,0,0,0,0,0,0,0,0,26,0]
["QH8","RAJ","MID AND SOUTH ESSEX NHS FOUNDATION TRUST",104,0.78846153846153844,0.11538461538461539,62,20,10,4,8,0,104,0,0,0,0,0,0,0]
["QHG","RD8","MILTON KEYNES UNIVERSITY HOSPITAL NHS FOUNDATION TRUST",42,0.8571428571428571,0.11904761904761904,25,11,1,1,4,0,13,0,0,20,0,0,9,0]
["QHG","RC9","BEDFORDSHIRE HOSPITALS NHS FOUNDATION TRUST",237,0.97046413502109707,2.5316455696202531E-2,174,56,1,6,0,0,0,231,0,0,0,0,6,0]
["QHL","RXK","SANDWELL AND WEST BIRMINGHAM HOSPITALS NHS TRUST",1,"*","*","*","*","*","*","*","*","*","*","*","*","*","*","*","*"]
["QHL","RQ3","BIRMINGHAM WOMEN'S AND CHILDREN'S NHS FOUNDATION TRUST",12,1,0,"*","*","*","*","*","*","*","*","*","*","*","*","*","*"]
["QHL","RRK","UNIVERSITY HOSPITALS BIRMINGHAM NHS FOUNDATION TRUST",14,0.7857142857142857,0.14285714285714285,11,0,0,1,1,1,0,0,0,14,0,0,0,0]
["QHM","RR7","GATESHEAD HEALTH NHS FOUNDATION TRUST",2,"*","*","*","*","*","*","*","*","*","*","*","*","*","*","*","*"]
["QHM","RNN","NORTH CUMBRIA INTEGRATED CARE NHS FOUNDATION TRUST",8,1,0,"*","*","*","*","*","*","*","*","*","*","*","*","*","*"]
["QHM","RTD","THE NEWCASTLE UPON TYNE HOSPITALS NHS FOUNDATION TRUST",13,0.84615384615384615,0.15384615384615385,9,2,0,2,0,0,0,0,0,13,0,0,0,0]
["QHM","R0B","SOUTH TYNESIDE AND SUNDERLAND NHS FOUNDATION TRUST",20,1,0,16,4,0,0,0,0,0,0,0,20,0,0,0,0]
["QHM","RTR","SOUTH TEES HOSPITALS NHS FOUNDATION TRUST",31,1,0,26,5,0,0,0,0,0,31,0,0,0,0,0,0]
["QHM","RVW","NORTH TEES AND HARTLEPOOL NHS FOUNDATION TRUST",50,1,0,40,10,0,0,0,0,4,0,0,46,0,0,0,0]
["QHM","RTF","NORTHUMBRIA HEALTHCARE NHS FOUNDATION TRUST",66,0.9242424242424242,1.5151515151515152E-2,48,13,4,0,1,0,43,0,0,23,0,0,0,0]
["QHM","RXP","COUNTY DURHAM AND DARLINGTON NHS FOUNDATION TRUST",78,1,0,68,10,0,0,0,0,0,0,0,78,0,0,0,0]
["QJ2","RFS","CHESTERFIELD ROYAL HOSPITAL NHS FOUNDATION TRUST",14,1,0,11,3,0,0,0,0,0,12,0,0,0,0,2,0]
["QJ2","RTG","UNIVERSITY HOSPITALS OF DERBY AND BURTON NHS FOUNDATION TRUST",25,0.88,0.08,15,7,1,2,0,0,0,1,0,23,0,0,1,0]
["QJG","RGR","WEST SUFFOLK NHS FOUNDATION TRUST",50,0.9,0.04,30,15,3,2,0,0,0,47,0,2,0,0,1,0]
["QJG","RDE","EAST SUFFOLK AND NORTH ESSEX NHS FOUNDATION TRUST",137,0.97080291970802923,7.2992700729927005E-3,109,24,3,1,0,0,0,0,0,0,0,0,137,0]
["QJK","RA9","TORBAY AND SOUTH DEVON NHS FOUNDATION TRUST",5,1,0,5,0,0,0,0,0,0,0,0,5,0,0,0,0]
["QJK","RK9","UNIVERSITY HOSPITALS PLYMOUTH NHS TRUST",11,1,0,8,3,0,0,0,0,0,0,0,11,0,0,0,0]
["QJK","RH8","ROYAL DEVON UNIVERSITY HEALTHCARE NHS FOUNDATION TRUST",13,0.30769230769230771,0,3,1,9,0,0,0,0,0,0,11,0,0,2,0]
["QJM","RWD","UNITED LINCOLNSHIRE HOSPITALS NHS TRUST",0,"NA","NA",0,0,0,0,0,0,0,0,0,0,0,0,0,0]
["QK1","RWE","UNIVERSITY HOSPITALS OF LEICESTER NHS TRUST",202,0.9356435643564357,3.9603960396039604E-2,148,41,5,3,5,0,0,202,0,0,0,0,0,0]
["QKK","RJ2","LEWISHAM AND GREENWICH NHS TRUST",25,0.84,0.04,10,11,3,1,0,0,0,0,0,3,0,0,22,0]
["QKK","RJ1","GUY'S AND ST THOMAS' NHS FOUNDATION TRUST",72,0.88888888888888884,1.3888888888888888E-2,35,29,5,0,1,2,0,0,0,57,0,0,15,0]
["QKS","RWF","MAIDSTONE AND TUNBRIDGE WELLS NHS TRUST",17,1,0,11,6,0,0,0,0,0,0,0,0,0,0,17,0]
["QKS","RN7","DARTFORD AND GRAVESHAM NHS TRUST",29,0.96551724137931039,3.4482758620689655E-2,21,7,0,0,1,0,0,1,0,0,0,0,28,0]
["QKS","RPA","MEDWAY NHS FOUNDATION TRUST",70,0.97142857142857142,2.8571428571428571E-2,59,9,0,1,1,0,0,0,0,20,0,0,50,0]
["QM7","RWH","EAST AND NORTH HERTFORDSHIRE NHS TRUST",6,1,0,5,1,0,0,0,0,0,0,5,1,0,0,0,0]
["QM7","RQW","THE PRINCESS ALEXANDRA HOSPITAL NHS TRUST",15,0.6,0.13333333333333333,7,2,4,1,1,0,0,0,0,0,0,0,0,15]
["QM7","RWG","WEST HERTFORDSHIRE TEACHING HOSPITALS NHS TRUST",31,0.87096774193548387,3.2258064516129031E-2,15,12,3,0,1,0,0,31,0,0,0,0,0,0]
["QMF","RQX","HOMERTON HEALTHCARE NHS FOUNDATION TRUST",17,0.76470588235294112,0.11764705882352941,8,5,2,1,1,0,17,0,0,0,0,0,0,0]
["QMF","RF4","BARKING, HAVERING AND REDBRIDGE UNIVERSITY HOSPITALS NHS TRUST",173,0.92485549132947975,4.046242774566474E-2,132,28,5,2,5,1,0,0,0,172,0,0,1,0]
["QMF","R1H","BARTS HEALTH NHS TRUST",225,0.87111111111111106,7.1111111111111111E-2,120,76,13,10,6,0,9,0,0,208,0,0,8,0]
["QMJ","RAL","ROYAL FREE LONDON NHS FOUNDATION TRUST",182,0.9505494505494505,2.197802197802198E-2,127,46,3,3,1,2,0,181,0,0,0,0,1,0]
["QMJ","RAP","NORTH MIDDLESEX UNIVERSITY HOSPITAL NHS TRUST",274,0.86496350364963503,6.569343065693431E-2,145,92,19,10,8,0,33,238,0,3,0,0,0,0]
["QMM","RM1","NORFOLK AND NORWICH UNIVERSITY HOSPITALS NHS FOUNDATION TRUST",5,0.8,0,4,0,1,0,0,0,0,0,0,0,0,0,5,0]
["QMM","RCX","THE QUEEN ELIZABETH HOSPITAL, KING'S LYNN, NHS FOUNDATION TRUST",19,1,0,18,1,0,0,0,0,0,0,0,15,0,0,4,0]
["QMM","RGP","JAMES PAGET UNIVERSITY HOSPITALS NHS FOUNDATION TRUST",25,0.96,0,22,2,1,0,0,0,0,0,0,25,0,0,0,0]
["QNC","RJE","UNIVERSITY HOSPITALS OF NORTH MIDLANDS NHS TRUST",2,"*","*","*","*","*","*","*","*","*","*","*","*","*","*","*","*"]
["QNQ","RDU","FRIMLEY HEALTH NHS FOUNDATION TRUST",1,"*","*","*","*","*","*","*","*","*","*","*","*","*","*","*","*"]
["QNX","RXC","EAST SUSSEX HEALTHCARE NHS TRUST",2,"*","*","*","*","*","*","*","*","*","*","*","*","*","*","*","*"]
["QNX","RYR","UNIVERSITY HOSPITALS SUSSEX NHS FOUNDATION TRUST",57,0.92982456140350878,7.0175438596491224E-2,"*","*","*","*","*","*","*","*","*","*","*","*","*","*"]
["QOC","RXW","THE SHREWSBURY AND TELFORD HOSPITAL NHS TRUST",7,1,0,"*","*","*","*","*","*","*","*","*","*","*","*","*","*"]
["QOP","RRF","WRIGHTINGTON, WIGAN AND LEIGH NHS FOUNDATION TRUST",5,1,0,4,1,0,0,0,0,0,0,0,5,0,0,0,0]
["QOP","RWJ","STOCKPORT NHS FOUNDATION TRUST",25,0.92,0,21,2,2,0,0,0,0,0,0,25,0,0,0,0]
["QOP","RM3","NORTHERN CARE ALLIANCE NHS FOUNDATION TRUST",34,0.73529411764705888,0.17647058823529413,21,4,3,3,3,0,33,0,0,0,0,0,1,0]
["QOP","RMC","BOLTON NHS FOUNDATION TRUST",51,0.70588235294117652,0.19607843137254902,23,13,5,1,9,0,50,1,0,0,0,0,0,0]
["QOP","R0A","MANCHESTER UNIVERSITY NHS FOUNDATION TRUST",373,0.9651474530831099,2.4128686327077747E-2,203,157,4,7,2,0,0,28,0,343,0,0,2,0]
["QOQ","RCD","HARROGATE AND DISTRICT NHS FOUNDATION TRUST",0,"NA","NA",0,0,0,0,0,0,0,0,0,0,0,0,0,0]
["QOQ","RJL","NORTHERN LINCOLNSHIRE AND GOOLE NHS FOUNDATION TRUST",17,0.88235294117647056,0.11764705882352941,10,5,0,1,1,0,0,0,0,16,0,0,1,0]
["QOQ","RCB","YORK AND SCARBOROUGH TEACHING HOSPITALS NHS FOUNDATION TRUST",234,0.98290598290598286,4.2735042735042739E-3,203,27,3,1,0,0,0,0,0,234,0,0,0,0]
["QOX","RNZ","SALISBURY NHS FOUNDATION TRUST",2,"*","*","*","*","*","*","*","*","*","*","*","*","*","*","*","*"]
["QOX","RD1","ROYAL UNITED HOSPITALS BATH NHS FOUNDATION TRUST",49,1,0,"*","*","*","*","*","*","*","*","*","*","*","*","*","*"]
["QOX","RN3","GREAT WESTERN HOSPITALS NHS FOUNDATION TRUST",52,0.86538461538461542,9.6153846153846159E-2,37,8,2,3,2,0,52,0,0,0,0,0,0,0]
["QPM","RNQ","KETTERING GENERAL HOSPITAL NHS FOUNDATION TRUST",1,"*","*","*","*","*","*","*","*","*","*","*","*","*","*","*","*"]
["QPM","RNS","NORTHAMPTON GENERAL HOSPITAL NHS TRUST",39,0.89743589743589747,7.6923076923076927E-2,"*","*","*","*","*","*","*","*","*","*","*","*","*","*"]
["QR1","RTE","GLOUCESTERSHIRE HOSPITALS NHS FOUNDATION TRUST",27,0.66666666666666663,0.1111111111111111,10,8,6,2,1,0,27,0,0,0,0,0,0,0]
["QRL","R1F","ISLE OF WIGHT NHS TRUST",8,1,0,8,0,0,0,0,0,0,0,0,8,0,0,0,0]
["QRL","RN5","HAMPSHIRE HOSPITALS NHS FOUNDATION TRUST",63,0.93650793650793651,0,49,10,2,0,0,2,0,0,0,60,0,0,3,0]
["QRL","RHU","PORTSMOUTH HOSPITALS UNIVERSITY NATIONAL HEALTH SERVICE TRUST",87,0.9885057471264368,0,79,7,1,0,0,0,0,0,0,87,0,0,0,0]
["QRL","RHM","UNIVERSITY HOSPITAL SOUTHAMPTON NHS FOUNDATION TRUST",111,0.90090090090090091,4.5045045045045043E-2,59,41,6,5,0,0,0,0,0,0,18,0,93,0]
["QRV","RYJ","IMPERIAL COLLEGE HEALTHCARE NHS TRUST",56,0.9821428571428571,1.7857142857142856E-2,48,7,0,1,0,0,0,0,0,55,0,0,1,0]
["QRV","RAS","THE HILLINGDON HOSPITALS NHS FOUNDATION TRUST",67,0.91044776119402981,7.4626865671641784E-2,52,9,1,2,3,0,0,0,0,47,0,0,20,0]
["QRV","R1K","LONDON NORTH WEST UNIVERSITY HEALTHCARE NHS TRUST",137,0.94160583941605835,7.2992700729927005E-3,90,39,7,0,1,0,31,0,0,106,0,0,0,0]
["QRV","RQM","CHELSEA AND WESTMINSTER HOSPITAL NHS FOUNDATION TRUST",152,0.84868421052631582,9.8684210526315791E-2,113,16,8,7,8,0,137,0,0,0,0,0,15,0]
["QSL","RH5","SOMERSET NHS FOUNDATION TRUST",13,1,0,13,0,0,0,0,0,0,0,0,0,13,0,0,0]
["QSL","RA4","YEOVIL DISTRICT HOSPITAL NHS FOUNDATION TRUST",28,0.9285714285714286,0,23,3,2,0,0,0,0,28,0,0,0,0,0,0]
["QT1","RK5","SHERWOOD FOREST HOSPITALS NHS FOUNDATION TRUST",8,0.75,0,5,1,2,0,0,0,0,0,0,0,0,0,8,0]
["QT1","RX1","NOTTINGHAM UNIVERSITY HOSPITALS NHS TRUST",82,0.87804878048780488,6.097560975609756E-2,55,17,5,3,2,0,0,19,0,38,0,0,25,0]
["QT6","REF","ROYAL CORNWALL HOSPITALS NHS TRUST",13,0.92307692307692313,7.6923076923076927E-2,8,4,0,1,0,0,0,13,0,0,0,0,0,0]
["QU9","RTH","OXFORD UNIVERSITY HOSPITALS NHS FOUNDATION TRUST",2,"*","*","*","*","*","*","*","*","*","*","*","*","*","*","*","*"]
["QU9","RXQ","BUCKINGHAMSHIRE HEALTHCARE NHS TRUST",22,0.95454545454545459,4.5454545454545456E-2,"*","*","*","*","*","*","*","*","*","*","*","*","*","*"]
["QU9","RHW","ROYAL BERKSHIRE NHS FOUNDATION TRUST",60,0.95,0,50,7,3,0,0,0,0,0,0,60,0,0,0,0]
["QUA","RBK","WALSALL HEALTHCARE NHS TRUST",27,0.7407407407407407,0.22222222222222221,15,5,1,4,2,0,26,1,0,0,0,0,0,0]
["QUA","RNA","THE DUDLEY GROUP NHS FOUNDATION TRUST",27,0.77777777777777779,0,17,4,2,0,0,4,0,0,0,27,0,0,0,0]
["QUA","RL4","THE ROYAL WOLVERHAMPTON NHS TRUST",95,0.81052631578947365,0.12631578947368421,65,12,6,10,2,0,95,0,0,0,0,0,0,0]
["QUE","RGT","CAMBRIDGE UNIVERSITY HOSPITALS NHS FOUNDATION TRUST",114,0.8771929824561403,4.3859649122807015E-2,73,27,7,3,2,2,0,99,0,12,0,0,3,0]
["QUE","RGN","NORTH WEST ANGLIA NHS FOUNDATION TRUST",141,0.98581560283687941,7.0921985815602835E-3,127,12,1,0,1,0,0,0,0,139,0,0,2,0]
["QUY","RA7","UNIVERSITY HOSPITALS BRISTOL AND WESTON NHS FOUNDATION TRUST",34,0.97058823529411764,0,29,4,1,0,0,0,0,0,0,34,0,0,0,0]
["QUY","RVJ","NORTH BRISTOL NHS TRUST",113,0.92920353982300885,5.3097345132743362E-2,86,19,2,2,4,0,113,0,0,0,0,0,0,0]
["QVV","RBD","DORSET COUNTY HOSPITAL NHS FOUNDATION TRUST",35,0.88571428571428568,5.7142857142857141E-2,26,5,1,0,2,1,35,0,0,0,0,0,0,0]
["QVV","R0D","UNIVERSITY HOSPITALS DORSET NHS FOUNDATION TRUST",129,0.84496124031007747,3.875968992248062E-2,74,35,6,4,1,9,129,0,0,0,0,0,0,0]
["QWE","RVR","EPSOM AND ST HELIER UNIVERSITY HOSPITALS NHS TRUST",5,1,0,4,1,0,0,0,0,0,5,0,0,0,0,0,0]
["QWE","RJ6","CROYDON HEALTH SERVICES NHS TRUST",26,0.92307692307692313,3.8461538461538464E-2,18,6,1,0,1,0,26,0,0,0,0,0,0,0]
["QWE","RAX","KINGSTON HOSPITAL NHS FOUNDATION TRUST",40,0.875,0.05,32,3,3,1,1,0,0,0,0,0,0,0,40,0]
["QWE","RJ7","ST GEORGE'S UNIVERSITY HOSPITALS NHS FOUNDATION TRUST",41,0.97560975609756095,2.4390243902439025E-2,25,15,0,1,0,0,0,41,0,0,0,0,0,0]
["QWO","RAE","BRADFORD TEACHING HOSPITALS NHS FOUNDATION TRUST",0,"NA","NA",0,0,0,0,0,0,0,0,0,0,0,0,0,0]
["QWO","RWY","CALDERDALE AND HUDDERSFIELD NHS FOUNDATION TRUST",1,"*","*","*","*","*","*","*","*","*","*","*","*","*","*","*","*"]
["QWO","RR8","LEEDS TEACHING HOSPITALS NHS TRUST",152,0.89473684210526316,7.2368421052631582E-2,"*","*","*","*","*","*","*","*","*","*","*","*","*","*"]
["QWO","RXF","MID YORKSHIRE HOSPITALS NHS TRUST",185,0.94054054054054059,5.4054054054054057E-2,138,36,1,6,4,0,11,0,0,170,0,0,4,0]
["QWU","RJC","SOUTH WARWICKSHIRE UNIVERSITY NHS FOUNDATION TRUST",35,0.82857142857142863,0.11428571428571428,25,4,0,0,4,2,0,0,0,34,0,0,1,0]
["QWU","RKB","UNIVERSITY HOSPITALS COVENTRY AND WARWICKSHIRE NHS TRUST",100,0.94,0.06,70,24,0,1,5,0,68,30,0,0,0,0,2,0]
["QXU","RTK","ASHFORD AND ST PETER'S HOSPITALS NHS FOUNDATION TRUST",0,"NA","NA",0,0,0,0,0,0,0,0,0,0,0,0,0,0]
["QXU","RA2","ROYAL SURREY COUNTY HOSPITAL NHS FOUNDATION TRUST",2,"*","*","*","*","*","*","*","*","*","*","*","*","*","*","*","*"]
["QXU","RTP","SURREY AND SUSSEX HEALTHCARE NHS TRUST",62,0.95161290322580649,4.8387096774193547E-2,"*","*","*","*","*","*","*","*","*","*","*","*","*","*"]
["QYG","RBL","WIRRAL UNIVERSITY TEACHING HOSPITAL NHS FOUNDATION TRUST",18,1,0,17,1,0,0,0,0,0,0,0,18,0,0,0,0]
["QYG","RVY","SOUTHPORT AND ORMSKIRK HOSPITAL NHS TRUST",20,0.95,0,15,4,1,0,0,0,18,0,0,0,0,0,2,0]
["QYG","RBN","ST HELENS AND KNOWSLEY TEACHING HOSPITALS NHS TRUST",22,0.95454545454545459,0,19,2,1,0,0,0,16,0,0,6,0,0,0,0]
["QYG","REP","LIVERPOOL WOMEN'S NHS FOUNDATION TRUST",51,0.84313725490196079,9.8039215686274508E-2,36,7,3,2,3,0,0,0,0,0,0,0,0,51]
["QYG","RBT","MID CHESHIRE HOSPITALS NHS FOUNDATION TRUST",69,0.97101449275362317,1.4492753623188406E-2,62,5,1,1,0,0,69,0,0,0,0,0,0,0]

{"sheet":"Sites Q3","index":10,"n_rows":176,"n_cols":14,"rows_kept":176,"cut":false,"hidden":false,"merged":[[8,6,9,6],[8,7,9,7],[8,8,8,13],[8,0,9,0],[8,1,9,1],[8,2,9,2],[8,3,9,3],[8,4,9,4],[8,5,9,5]]}
[]
[]
[]
[]
[]
[null,"   Sort data by:           "]
[]
[]
["ICB Code","Trust Code","Trust Name","Site Code","Site Name","Total Responses","Percentage Positive","Percentage Negative","Breakdown of Responses"]
[null,null,null,null,null,null,null,null,"Very Good","Good","Neither Good nor Poor","Poor","Very Poor","Don't Know"]
[null,null,null,null,"England (including Independent Sector providers)",6214,0.9169616993884776,4.4093981332475059E-2,4409,1289,211,147,127,31]
[null,null,null,null,"England (excluding Independent Sector providers)",6214,0.9169616993884776,4.4093981332475059E-2,4409,1289,211,147,127,31]
[null,null,null,null,"Selection (excluding suppressed data)",{"$f":"SUBTOTAL(9,F14:F298)","v":6214},{"$f":"IFERROR((I13+J13)/SUM(I13:N13), \"-\")","v":0.91816367265469057},{"$f":"IFERROR((L13+M13)/SUM(I13:N13), \"-\")","v":4.3186354563600073E-2},{"$f":"SUBTOTAL(9,I14:I298)","v":3879},1181,185,126,112,28]
["QE1","RXL","BLACKPOOL TEACHING HOSPITALS NHS FOUNDATION TRUST","RXL01","Blackpool Victoria Hospital",86,0.90697674418604646,5.8139534883720929E-2,66,12,2,3,2,1]
["QE1","RXR","EAST LANCASHIRE HOSPITALS NHS TRUST","RXR20","Royal Blackburn Hospital",130,0.9,3.8461538461538464E-2,100,17,4,4,1,4]
["QE1","RXN","LANCASHIRE TEACHING HOSPITALS NHS FOUNDATION TRUST","RXN01","Chorley and South Ribble Hospital",0,"NA","NA",0,0,0,0,0,0]
["QE1","RXN","LANCASHIRE TEACHING HOSPITALS NHS FOUNDATION TRUST","RXN02","Royal Preston Hospital",19,1,0,15,4,0,0,0,0]
["QE1","RTX","UNIVERSITY HOSPITALS OF MORECAMBE BAY NHS FOUNDATION TRUST","RTXBU","Furness General Hospital",10,1,0,7,3,0,0,0,0]
["QE1","RTX","UNIVERSITY HOSPITALS OF MORECAMBE BAY NHS FOUNDATION TRUST","RTX02","Royal Lancaster Infirmary",35,0.94285714285714284,2.8571428571428571E-2,30,3,1,1,0,0]
["QF7","RFF","BARNSLEY HOSPITAL NHS FOUNDATION TRUST","RFFAA","Barnsley Hospital NHS Foundation Trust HQ",5,1,0,3,2,0,0,0,0]
["QF7","RP5","DONCASTER AND BASSETLAW TEACHING HOSPITALS NHS FOUNDATION TRUST","RP5BA","Bassetlaw Hospital",34,0.91176470588235292,5.8823529411764705E-2,26,5,1,1,1,0]
["QF7","RP5","DONCASTER AND BASSETLAW TEACHING HOSPITALS NHS FOUNDATION TRUST","RP5DR","Doncaster Royal Infirmary",7,1,0,5,2,0,0,0,0]
["QF7","RHQ","SHEFFIELD TEACHING HOSPITALS NHS FOUNDATION TRUST","RHQHH","Royal Hallamshire Hospital",62,0.95161290322580649,3.2258064516129031E-2,46,13,1,0,2,0]
["QF7","RFR","THE ROTHERHAM NHS FOUNDATION TRUST","RFRPA","Rotherham District General Hospital",41,0.97560975609756095,2.4390243902439025E-2,35,5,0,1,0,0]
["QGH","RWP","WORCESTERSHIRE ACUTE HOSPITALS NHS TRUST","RWP50","Worcestershire Royal Hospital",8,1,0,8,0,0,0,0,0]
["QGH","RLQ","WYE VALLEY NHS TRUST","RLQ01","Hereford County Hospital",26,1,0,23,3,0,0,0,0]
["QH8","RAJ","MID AND SOUTH ESSEX NHS FOUNDATION TRUST","RAJ12","BASILDON HOSPITAL",44,0.81818181818181823,0.13636363636363635,26,10,2,1,5,0]
["QH8","RAJ","MID AND SOUTH ESSEX NHS FOUNDATION TRUST","RAJ32","MID ESSEX HOSPITAL",24,0.875,8.3333333333333329E-2,18,3,1,1,1,0]
["QH8","RAJ","MID AND SOUTH ESSEX NHS FOUNDATION TRUST","RAJ01","Southend Hospital",36,0.69444444444444442,0.1111111111111111,18,7,7,2,2,0]
["QHG","RC9","BEDFORDSHIRE HOSPITALS NHS FOUNDATION TRUST","RC979","BEDFORD HOSPITAL SOUTH WING",64,0.96875,3.125E-2,47,15,0,2,0,0]
["QHG","RC9","BEDFORDSHIRE HOSPITALS NHS FOUNDATION TRUST","RC971","Luton and Dunstable Hospital",173,0.97109826589595372,2.3121387283236993E-2,127,41,1,4,0,0]
["QHG","RD8","MILTON KEYNES UNIVERSITY HOSPITAL NHS FOUNDATION TRUST","RD816","Milton Keynes Hospital",42,0.8571428571428571,0.11904761904761904,25,11,1,1,4,0]
["QHL","RQ3","BIRMINGHAM WOMEN'S AND CHILDREN'S NHS FOUNDATION TRUST","RQ370","Birmingham Women's Hospital",12,1,0,"*","*","*","*","*","*"]
["QHL","RXK","SANDWELL AND WEST BIRMINGHAM HOSPITALS NHS TRUST","RXKTC","Birmingham Treatment Centre",1,"*","*","*","*","*","*","*","*"]
["QHL","RXK","SANDWELL AND WEST BIRMINGHAM HOSPITALS NHS TRUST","RXK02","City Hospital",0,"NA","NA",0,0,0,0,0,0]
["QHL","RRK","UNIVERSITY HOSPITALS BIRMINGHAM NHS FOUNDATION TRUST","RRK98","Good Hope Hospital",13,0.84615384615384615,7.6923076923076927E-2,"*","*","*","*","*","*"]
["QHL","RRK","UNIVERSITY HOSPITALS BIRMINGHAM NHS FOUNDATION TRUST","RRK97","Heartlands Hospital",1,"*","*","*","*","*","*","*","*"]
["QHL","RRK","UNIVERSITY HOSPITALS BIRMINGHAM NHS FOUNDATION TRUST","RRK99","Solihull Hospital",0,"NA","NA",0,0,0,0,0,0]
["QHM","RXP","COUNTY DURHAM AND DARLINGTON NHS FOUNDATION TRUST","RXPDA","Darlington Memorial Hospital",43,1,0,36,7,0,0,0,0]
["QHM","RXP","COUNTY DURHAM AND DARLINGTON NHS FOUNDATION TRUST","RXPCP","University Hospital Of North Durham",35,1,0,32,3,0,0,0,0]
["QHM","RR7","GATESHEAD HEALTH NHS FOUNDATION TRUST","RR7EN","Queen Elizabeth Hospital",2,"*","*","*","*","*","*","*","*"]
["QHM","RNN","NORTH CUMBRIA INTEGRATED CARE NHS FOUNDATION TRUST","RNN62","Cumberland Infirmary",7,1,0,"*","*","*","*","*","*"]
["QHM","RNN","NORTH CUMBRIA INTEGRATED CARE NHS FOUNDATION TRUST","RNNBX","West Cumberland Hospital",1,"*","*","*","*","*","*","*","*"]
["QHM","RVW","NORTH TEES AND HARTLEPOOL NHS FOUNDATION TRUST","RVWXXX","Non-hospital site",1,"*","*","*","*","*","*","*","*"]
["QHM","RVW","NORTH TEES AND HARTLEPOOL NHS FOUNDATION TRUST","RVWAE","University Hospital Of North Tees",49,1,0,"*","*","*","*","*","*"]
["QHM","RTF","NORTHUMBRIA HEALTHCARE NHS FOUNDATION TRUST","RTFDJ","Alnwick Infirmary",0,"NA","NA",0,0,0,0,0,0]
["QHM","RTF","NORTHUMBRIA HEALTHCARE NHS FOUNDATION TRUST","RTFDH","Berwick Infirmary",1,"*","*","*","*","*","*","*","*"]
["QHM","RTF","NORTHUMBRIA HEALTHCARE NHS FOUNDATION TRUST","RTFDR","Hexham General Hospital",1,"*","*","*","*","*","*","*","*"]
["QHM","RTF","NORTHUMBRIA HEALTHCARE NHS FOUNDATION TRUST","RTF86","The Northumbria",64,0.921875,1.5625E-2,46,13,4,0,1,0]
["QHM","RTR","SOUTH TEES HOSPITALS NHS FOUNDATION TRUST","RTR45","Friarage Hospital Site",0,"NA","NA",0,0,0,0,0,0]
["QHM","RTR","SOUTH TEES HOSPITALS NHS FOUNDATION TRUST","RTRAT","The James Cook University Hospital",31,1,0,26,5,0,0,0,0]
["QHM","R0B","SOUTH TYNESIDE AND SUNDERLAND NHS FOUNDATION TRUST","R0BXXX","Non-hospital site",0,"NA","NA",0,0,0,0,0,0]
["QHM","R0B","SOUTH TYNESIDE AND SUNDERLAND NHS FOUNDATION TRUST","R0B0Q","South Tyneside District Hospital",0,"NA","NA",0,0,0,0,0,0]
["QHM","R0B","SOUTH TYNESIDE AND SUNDERLAND NHS FOUNDATION TRUST","R0B01","Sunderland Royal Hospital",20,1,0,16,4,0,0,0,0]
["QHM","RTD","THE NEWCASTLE UPON TYNE HOSPITALS NHS FOUNDATION TRUST","RTD02","The Royal Victoria Infirmary",13,0.84615384615384615,0.15384615384615385,9,2,0,2,0,0]
["QJ2","RFS","CHESTERFIELD ROYAL HOSPITAL NHS FOUNDATION TRUST","RFSDA","Chesterfield Royal Hospital",14,1,0,11,3,0,0,0,0]
["QJ2","RTG","UNIVERSITY HOSPITALS OF DERBY AND BURTON NHS FOUNDATION TRUST","RTG02","Queens Hospital, Burton Upon Trent",23,0.95652173913043481,0,"*","*","*","*","*","*"]
["QJ2","RTG","UNIVERSITY HOSPITALS OF DERBY AND BURTON NHS FOUNDATION TRUST","RTGFG","Royal Derby Hospital",2,"*","*","*","*","*","*","*","*"]
["QJG","RDE","EAST SUFFOLK AND NORTH ESSEX NHS FOUNDATION TRUST","RDEE4","Colchester General Hospital",37,0.91891891891891897,2.7027027027027029E-2,28,6,2,1,0,0]
["QJG","RDE","EAST SUFFOLK AND NORTH ESSEX NHS FOUNDATION TRUST","RDE03","Ipswich Hospital",100,0.99,0,81,18,1,0,0,0]
["QJG","RGR","WEST SUFFOLK NHS FOUNDATION TRUST","RGR50","West Suffolk Hospital",50,0.9,0.04,30,15,3,2,0,0]
["QJK","RH8","ROYAL DEVON UNIVERSITY HEALTHCARE NHS FOUNDATION TRUST","RH880","North Devon District Hospital",3,"*","*","*","*","*","*","*","*"]
["QJK","RH8","ROYAL DEVON UNIVERSITY HEALTHCARE NHS FOUNDATION TRUST","RH801","Royal Devon and Exeter Hospital (Wonford)",10,0.1,0,"*","*","*","*","*","*"]
["QJK","RA9","TORBAY AND SOUTH DEVON NHS FOUNDATION TRUST","RA901","Torbay Hospital",5,1,0,5,0,0,0,0,0]
["QJK","RK9","UNIVERSITY HOSPITALS PLYMOUTH NHS TRUST","RK950","Derriford Hospital",11,1,0,8,3,0,0,0,0]
["QJM","RWD","UNITED LINCOLNSHIRE HOSPITALS NHS TRUST","RWDLP","Grantham and District Hospital",0,"NA","NA",0,0,0,0,0,0]
["QJM","RWD","UNITED LINCOLNSHIRE HOSPITALS NHS TRUST","RWDDA","Lincoln County Hospital",0,"NA","NA",0,0,0,0,0,0]
["QJM","RWD","UNITED LINCOLNSHIRE HOSPITALS NHS TRUST","RWDLA","Pilgrim Hospital",0,"NA","NA",0,0,0,0,0,0]
["QK1","RWE","UNIVERSITY HOSPITALS OF LEICESTER NHS TRUST","RWEAK","Leicester General Hospital",94,0.93617021276595747,4.2553191489361701E-2,82,6,2,1,3,0]
["QK1","RWE","UNIVERSITY HOSPITALS OF LEICESTER NHS TRUST","RWEAA","Leicester Royal Infirmary",92,0.92391304347826086,4.3478260869565216E-2,51,34,3,2,2,0]
["QK1","RWE","UNIVERSITY HOSPITALS OF LEICESTER NHS TRUST","RWE10","St Mary's Hospital",16,1,0,15,1,0,0,0,0]
["QKK","RJ1","GUY'S AND ST THOMAS' NHS FOUNDATION TRUST","RJ122","St Thomas' Hospital",72,0.88888888888888884,1.3888888888888888E-2,35,29,5,0,1,2]
["QKK","RJ2","LEWISHAM AND GREENWICH NHS TRUST","RJ231","Queen Elizabeth Hospital",2,"*","*","*","*","*","*","*","*"]
["QKK","RJ2","LEWISHAM AND GREENWICH NHS TRUST","RJ224","University Hospital Lewisham",23,0.86956521739130432,4.3478260869565216E-2,"*","*","*","*","*","*"]
["QKS","RN7","DARTFORD AND GRAVESHAM NHS TRUST","RN707","Darent Valley Hospital",29,0.96551724137931039,3.4482758620689655E-2,21,7,0,0,1,0]
["QKS","RWF","MAIDSTONE AND TUNBRIDGE WELLS NHS TRUST","RWFTW","The Tunbridge Wells Hospital",17,1,0,11,6,0,0,0,0]
["QKS","RPA","MEDWAY NHS FOUNDATION TRUST","RPA02","Medway Maritime Hospital",70,0.97142857142857142,2.8571428571428571E-2,59,9,0,1,1,0]
["QM7","RWH","EAST AND NORTH HERTFORDSHIRE NHS TRUST","RWH01","Lister Hospital",6,1,0,5,1,0,0,0,0]
["QM7","RQW","THE PRINCESS ALEXANDRA HOSPITAL NHS TRUST","RQWG0","Princess Alexandra Hospital",15,0.6,0.13333333333333333,7,2,4,1,1,0]
["QM7","RWG","WEST HERTFORDSHIRE TEACHING HOSPITALS NHS TRUST","RWG02","Watford General Hospital",31,0.87096774193548387,3.2258064516129031E-2,15,12,3,0,1,0]
["QMF","RF4","BARKING, HAVERING AND REDBRIDGE UNIVERSITY HOSPITALS NHS TRUST","RF4QH","Queen's Hospital",173,0.92485549132947975,4.046242774566474E-2,132,28,5,2,5,1]
["QMF","R1H","BARTS HEALTH NHS TRUST","R1HNH","Newham General Hospital",40,0.92500000000000004,7.4999999999999997E-2,26,11,0,1,2,0]
["QMF","R1H","BARTS HEALTH NHS TRUST","R1H12","The Royal London Hospital",44,0.79545454545454541,9.0909090909090912E-2,20,15,5,2,2,0]
["QMF","R1H","BARTS HEALTH NHS TRUST","R1HKH","Whipps Cross University Hospital",141,0.87943262411347523,6.3829787234042548E-2,74,50,8,7,2,0]
["QMF","RQX","HOMERTON HEALTHCARE NHS FOUNDATION TRUST","RQXM1","Homerton University Hospital",17,0.76470588235294112,0.11764705882352941,8,5,2,1,1,0]
["QMJ","RAP","NORTH MIDDLESEX UNIVERSITY HOSPITAL NHS TRUST","RAPNM","North Middlesex Hospital",274,0.86496350364963503,6.569343065693431E-2,145,92,19,10,8,0]
["QMJ","RAL","ROYAL FREE LONDON NHS FOUNDATION TRUST","RAL26","Barnet Hospital",110,0.97272727272727277,1.8181818181818181E-2,82,25,1,1,1,0]
["QMJ","RAL","ROYAL FREE LONDON NHS FOUNDATION TRUST","RAL01","Royal Free Hospital",72,0.91666666666666663,2.7777777777777776E-2,45,21,2,2,0,2]
["QMM","RGP","JAMES PAGET UNIVERSITY HOSPITALS NHS FOUNDATION TRUST","RGP75","James Paget University Hospital",25,0.96,0,22,2,1,0,0,0]
["QMM","RM1","NORFOLK AND NORWICH UNIVERSITY HOSPITALS NHS FOUNDATION TRUST","RM102","Norfolk and Norwich University Hospital",5,0.8,0,4,0,1,0,0,0]
["QMM","RCX","THE QUEEN ELIZABETH HOSPITAL, KING'S LYNN, NHS FOUNDATION TRUST","RCX70","The Queen Elizabeth Hospital",19,1,0,18,1,0,0,0,0]
["QNC","RJE","UNIVERSITY HOSPITALS OF NORTH MIDLANDS NHS TRUST","RJE01","Royal Stoke University Hospital",2,"*","*","*","*","*","*","*","*"]
["QNQ","RDU","FRIMLEY HEALTH NHS FOUNDATION TRUST","RDU01","Frimley Park Hospital",1,"*","*","*","*","*","*","*","*"]
["QNQ","RDU","FRIMLEY HEALTH NHS FOUNDATION TRUST","RDU50","Wexham Park Hospital",0,"NA","NA",0,0,0,0,0,0]
["QNX","RXC","EAST SUSSEX HEALTHCARE NHS TRUST","RXC01","Conquest Hospital",0,"NA","NA",0,0,0,0,0,0]
["QNX","RXC","EAST SUSSEX HEALTHCARE NHS TRUST","RXC02","Eastbourne District General Hospital",2,"*","*","*","*","*","*","*","*"]
["QNX","RYR","UNIVERSITY HOSPITALS SUSSEX NHS FOUNDATION TRUST","N6J7V","Princess Royal Hospital",32,0.9375,6.25E-2,"*","*","*","*","*","*"]
["QNX","RYR","UNIVERSITY HOSPITALS SUSSEX NHS FOUNDATION TRUST","E0A3H","Royal Sussex County Hospital",25,0.92,0.08,"*","*","*","*","*","*"]
["QOC","RXW","THE SHREWSBURY AND TELFORD HOSPITAL NHS TRUST","RXWMB","Bridgnorth Hospital (Maternity)",0,"NA","NA",0,0,0,0,0,0]
["QOC","RXW","THE SHREWSBURY AND TELFORD HOSPITAL NHS TRUST","RXWML","Ludlow Hospital (Maternity)",0,"NA","NA",0,0,0,0,0,0]
["QOC","RXW","THE SHREWSBURY AND TELFORD HOSPITAL NHS TRUST","RXWMJ","Robert Jones & Agnes Hunt Orthopaedic & District Hospital",0,"NA","NA",0,0,0,0,0,0]
["QOC","RXW","THE SHREWSBURY AND TELFORD HOSPITAL NHS TRUST","RXWAS","Royal Shrewsbury Hospital",0,"NA","NA",0,0,0,0,0,0]
["QOC","RXW","THE SHREWSBURY AND TELFORD HOSPITAL NHS TRUST","RXWAT","The Princess Royal Hospital",7,1,0,"*","*","*","*","*","*"]
["QOP","RMC","BOLTON NHS FOUNDATION TRUST","RMC01","Royal Bolton Hospital",51,0.70588235294117652,0.19607843137254902,23,13,5,1,9,0]
["QOP","R0A","MANCHESTER UNIVERSITY NHS FOUNDATION TRUST","R0A05","St Mary's Hospital",373,0.9651474530831099,2.4128686327077747E-2,203,157,4,7,2,0]
["QOP","RM3","NORTHERN CARE ALLIANCE NHS FOUNDATION TRUST","RW603","Royal Oldham Hospital",34,0.73529411764705888,0.17647058823529413,21,4,3,3,3,0]
["QOP","RWJ","STOCKPORT NHS FOUNDATION TRUST","RWJ09","Stepping Hill Hospital",25,0.92,0,21,2,2,0,0,0]
["QOP","RRF","WRIGHTINGTON, WIGAN AND LEIGH NHS FOUNDATION TRUST","RRF02","Royal Albert Edward Infirmary",5,1,0,4,1,0,0,0,0]
["QOQ","RCD","HARROGATE AND DISTRICT NHS FOUNDATION TRUST","RCD01","Harrogate District Hospital",0,"NA","NA",0,0,0,0,0,0]
["QOQ","RJL","NORTHERN LINCOLNSHIRE AND GOOLE NHS FOUNDATION TRUST","RJL32","Scunthorpe General Hospital",17,0.88235294117647056,0.11764705882352941,10,5,0,1,1,0]
["QOQ","RCB","YORK AND SCARBOROUGH TEACHING HOSPITALS NHS FOUNDATION TRUST","RCBCA","Scarborough General Hospital",31,0.967741935483871,0,28,2,1,0,0,0]
["QOQ","RCB","YORK AND SCARBOROUGH TEACHING HOSPITALS NHS FOUNDATION TRUST","RCB55","York Hospital",203,0.98522167487684731,4.9261083743842365E-3,175,25,2,1,0,0]
["QOX","RN3","GREAT WESTERN HOSPITALS NHS FOUNDATION TRUST","RN325","The Great Western Hospital",52,0.86538461538461542,9.6153846153846159E-2,37,8,2,3,2,0]
["QOX","RD1","ROYAL UNITED HOSPITALS BATH NHS FOUNDATION TRUST","RD130","Princess Anne Wing RUH",49,1,0,"*","*","*","*","*","*"]
["QOX","RNZ","SALISBURY NHS FOUNDATION TRUST","RNZ02","Salisbury District Hospital",2,"*","*","*","*","*","*","*","*"]
["QPM","RNQ","KETTERING GENERAL HOSPITAL NHS FOUNDATION TRUST","RNQ51","Kettering General Hospital",1,"*","*","*","*","*","*","*","*"]
["QPM","RNS","NORTHAMPTON GENERAL HOSPITAL NHS TRUST","RNS01","Northampton General Hospital (Acute)",39,0.89743589743589747,7.6923076923076927E-2,"*","*","*","*","*","*"]
["QR1","RTE","GLOUCESTERSHIRE HOSPITALS NHS FOUNDATION TRUST","RTE03","Gloucestershire Royal Hospital",27,0.66666666666666663,0.1111111111111111,10,8,6,2,1,0]
["QRL","RN5","HAMPSHIRE HOSPITALS NHS FOUNDATION TRUST","RN506","Basingstoke and North Hampshire Hospital",61,0.93442622950819676,0,"*","*","*","*","*","*"]
["QRL","RN5","HAMPSHIRE HOSPITALS NHS FOUNDATION TRUST","RN541","Royal Hampshire County Hospital",2,"*","*","*","*","*","*","*","*"]
["QRL","R1F","ISLE OF WIGHT NHS TRUST","R1F01","St Mary's Hospital",8,1,0,8,0,0,0,0,0]
["QRL","RHU","PORTSMOUTH HOSPITALS UNIVERSITY NATIONAL HEALTH SERVICE TRUST","RHU10","Gosport War Memorial Hospital",0,"NA","NA",0,0,0,0,0,0]
["QRL","RHU","PORTSMOUTH HOSPITALS UNIVERSITY NATIONAL HEALTH SERVICE TRUST","RHU04","Petersfield Community Hospital",0,"NA","NA",0,0,0,0,0,0]
["QRL","RHU","PORTSMOUTH HOSPITALS UNIVERSITY NATIONAL HEALTH SERVICE TRUST","RHU03","Queen Alexandra Hospital",52,1,0,49,3,0,0,0,0]
["QRL","RHU","PORTSMOUTH HOSPITALS UNIVERSITY NATIONAL HEALTH SERVICE TRUST","RHU02","St Mary's Hospital",35,0.97142857142857142,0,30,4,1,0,0,0]
["QRL","RHM","UNIVERSITY HOSPITAL SOUTHAMPTON NHS FOUNDATION TRUST","RHM01","Southampton General Hospital",111,0.90090090090090091,4.5045045045045043E-2,59,41,6,5,0,0]
["QRV","RQM","CHELSEA AND WESTMINSTER HOSPITAL NHS FOUNDATION TRUST","RQM01","Chelsea and Westminster Hospital",84,0.8214285714285714,8.3333333333333329E-2,60,9,8,4,3,0]
["QRV","RQM","CHELSEA AND WESTMINSTER HOSPITAL NHS FOUNDATION TRUST","RQM91","West Middlesex University Hospital",68,0.88235294117647056,0.11764705882352941,53,7,0,3,5,0]
["QRV","RYJ","IMPERIAL COLLEGE HEALTHCARE NHS TRUST","RYJ04","Queen Charlotte's Hospital",43,1,0,36,7,0,0,0,0]
["QRV","RYJ","IMPERIAL COLLEGE HEALTHCARE NHS TRUST","RYJ01","St Mary's Hospital (HQ)",13,0.92307692307692313,7.6923076923076927E-2,12,0,0,1,0,0]
["QRV","R1K","LONDON NORTH WEST UNIVERSITY HEALTHCARE NHS TRUST","R1K01","Northwick Park Hospital",137,0.94160583941605835,7.2992700729927005E-3,90,39,7,0,1,0]
["QRV","RAS","THE HILLINGDON HOSPITALS NHS FOUNDATION TRUST","RAS01","Hillingdon Hospital",67,0.91044776119402981,7.4626865671641784E-2,52,9,1,2,3,0]
["QSL","RH5","SOMERSET NHS FOUNDATION TRUST","RH5K6","Bridgwater Hospital",0,"NA","NA",0,0,0,0,0,0]
["QSL","RH5","SOMERSET NHS FOUNDATION TRUST","RH5A8","MUSGROVE PARK HOSPITAL",13,1,0,13,0,0,0,0,0]
["QSL","RH5","SOMERSET NHS FOUNDATION TRUST","RH5XXXX","Non-hospital site home/in-transit births",0,"NA","NA",0,0,0,0,0,0]
["QSL","RA4","YEOVIL DISTRICT HOSPITAL NHS FOUNDATION TRUST","RA430","Yeovil District Hospital",28,0.9285714285714286,0,23,3,2,0,0,0]
["QT1","RX1","NOTTINGHAM UNIVERSITY HOSPITALS NHS TRUST","RX1CC","Nottingham University Hospitals NHS Trust - City Campus",2,"*","*","*","*","*","*","*","*"]
["QT1","RX1","NOTTINGHAM UNIVERSITY HOSPITALS NHS TRUST","RX1RA","Nottingham University Hospitals NHS Trust - Queen's Medical Centre Campus",80,0.88749999999999996,0.05,"*","*","*","*","*","*"]
["QT1","RK5","SHERWOOD FOREST HOSPITALS NHS FOUNDATION TRUST","RK5BC","King's Mill Hospital",8,0.75,0,5,1,2,0,0,0]
["QT6","REF","ROYAL CORNWALL HOSPITALS NHS TRUST","REF12","Royal Cornwall Hospital (Treliske)",13,0.92307692307692313,7.6923076923076927E-2,8,4,0,1,0,0]
["QU9","RXQ","BUCKINGHAMSHIRE HEALTHCARE NHS TRUST","RXQ02","Stoke Mandeville Hospital",22,0.95454545454545459,4.5454545454545456E-2,"*","*","*","*","*","*"]
["QU9","RTH","OXFORD UNIVERSITY HOSPITALS NHS FOUNDATION TRUST","RTH05","Horton General Hospital",0,"NA","NA",0,0,0,0,0,0]
["QU9","RTH","OXFORD UNIVERSITY HOSPITALS NHS FOUNDATION TRUST","RTH08","John Radcliffe Hospital",2,"*","*","*","*","*","*","*","*"]
["QU9","RTH","OXFORD UNIVERSITY HOSPITALS NHS FOUNDATION TRUST","RTH16","Wallingford Community Hospital",0,"NA","NA",0,0,0,0,0,0]
["QU9","RHW","ROYAL BERKSHIRE NHS FOUNDATION TRUST","RHW01","Royal Berkshire Hospital",60,0.95,0,50,7,3,0,0,0]
["QUA","RNA","THE DUDLEY GROUP NHS FOUNDATION TRUST","RNA01","Russells Hall Hospital",27,0.77777777777777779,0,17,4,2,0,0,4]
["QUA","RL4","THE ROYAL WOLVERHAMPTON NHS TRUST","RL403","New Cross Hospital",95,0.81052631578947365,0.12631578947368421,65,12,6,10,2,0]
["QUA","RBK","WALSALL HEALTHCARE NHS TRUST","RBK02","Manor Hospital",27,0.7407407407407407,0.22222222222222221,15,5,1,4,2,0]
["QUE","RGT","CAMBRIDGE UNIVERSITY HOSPITALS NHS FOUNDATION TRUST","RGT32","Rosie Hospital",114,0.8771929824561403,4.3859649122807015E-2,73,27,7,3,2,2]
["QUE","RGN","NORTH WEST ANGLIA NHS FOUNDATION TRUST","RGN90","Hinchingbrooke Hospital",96,0.97916666666666663,1.0416666666666666E-2,86,8,1,0,1,0]
["QUE","RGN","NORTH WEST ANGLIA NHS FOUNDATION TRUST","RGN80","Peterborough City Hospital",45,1,0,41,4,0,0,0,0]
["QUY","RVJ","NORTH BRISTOL NHS TRUST","RVJ01","Southmead Hospital",113,0.92920353982300885,5.3097345132743362E-2,86,19,2,2,4,0]
["QUY","RA7","UNIVERSITY HOSPITALS BRISTOL AND WESTON NHS FOUNDATION TRUST","RA707","St Michael's Hospital",34,0.97058823529411764,0,29,4,1,0,0,0]
["QVV","RBD","DORSET COUNTY HOSPITAL NHS FOUNDATION TRUST","RBD01","Dorset County Hospital",35,0.88571428571428568,5.7142857142857141E-2,26,5,1,0,2,1]
["QVV","R0D","UNIVERSITY HOSPITALS DORSET NHS FOUNDATION TRUST","R0D01","Poole Hospital",129,0.84496124031007747,3.875968992248062E-2,74,35,6,4,1,9]
["QVV","R0D","UNIVERSITY HOSPITALS DORSET NHS FOUNDATION TRUST","R0D02","Royal Bournemouth Hospital",0,"NA","NA",0,0,0,0,0,0]
["QWE","RJ6","CROYDON HEALTH SERVICES NHS TRUST","RJ611","Croydon University Hospital",26,0.92307692307692313,3.8461538461538464E-2,18,6,1,0,1,0]
["QWE","RVR","EPSOM AND ST HELIER UNIVERSITY HOSPITALS NHS TRUST","RVR50","Epsom Hospital",4,"*","*","*","*","*","*","*","*"]
["QWE","RVR","EPSOM AND ST HELIER UNIVERSITY HOSPITALS NHS TRUST","RVR05","St Helier Hospital",1,"*","*","*","*","*","*","*","*"]
["QWE","RAX","KINGSTON HOSPITAL NHS FOUNDATION TRUST","RAXXXX","Non-hospital site",40,0.875,0.05,32,3,3,1,1,0]
["QWE","RJ7","ST GEORGE'S UNIVERSITY HOSPITALS NHS FOUNDATION TRUST","RJ701","St George's Hospital (Tooting)",41,0.97560975609756095,2.4390243902439025E-2,25,15,0,1,0,0]
["QWO","RAE","BRADFORD TEACHING HOSPITALS NHS FOUNDATION TRUST","RAE01","Bradford Royal Infirmary",0,"NA","NA",0,0,0,0,0,0]
["QWO","RWY","CALDERDALE AND HUDDERSFIELD NHS FOUNDATION TRUST","RWY02","Calderdale Royal Hospital",1,"*","*","*","*","*","*","*","*"]
["QWO","RR8","LEEDS TEACHING HOSPITALS NHS TRUST","RR801","Leeds General Infirmary",80,0.92500000000000004,6.25E-2,"*","*","*","*","*","*"]
["QWO","RR8","LEEDS TEACHING HOSPITALS NHS TRUST","RR813","St James's University Hospital",72,0.86111111111111116,8.3333333333333329E-2,"*","*","*","*","*","*"]
["QWO","RXF","MID YORKSHIRE HOSPITALS NHS TRUST","RXF05","Pinderfields General Hospital",185,0.94054054054054059,5.4054054054054057E-2,138,36,1,6,4,0]
["QWU","RJC","SOUTH WARWICKSHIRE UNIVERSITY NHS FOUNDATION TRUST","RJC02","Warwick Hospital",35,0.82857142857142863,0.11428571428571428,25,4,0,0,4,2]
["QWU","RKB","UNIVERSITY HOSPITALS COVENTRY AND WARWICKSHIRE NHS TRUST","RKB01","University Hospital (Coventry)",100,0.94,0.06,70,24,0,1,5,0]
["QXU","RTK","ASHFORD AND ST PETER'S HOSPITALS NHS FOUNDATION TRUST","RTK02","Ashford Hospital",0,"NA","NA",0,0,0,0,0,0]
["QXU","RA2","ROYAL SURREY COUNTY HOSPITAL NHS FOUNDATION TRUST","RA201","Royal Surrey County Hospital",2,"*","*","*","*","*","*","*","*"]
["QXU","RTP","SURREY AND SUSSEX HEALTHCARE NHS TRUST","RTP04","East Surrey Hospital",62,0.95161290322580649,4.8387096774193547E-2,"*","*","*","*","*","*"]
["QYG","REP","LIVERPOOL WOMEN'S NHS FOUNDATION TRUST","REP01","Liverpool Womens Hospital",51,0.84313725490196079,9.8039215686274508E-2,36,7,3,2,3,0]
["QYG","RBT","MID CHESHIRE HOSPITALS NHS FOUNDATION TRUST","RBT20","Leighton Hospital",69,0.97101449275362317,1.4492753623188406E-2,62,5,1,1,0,0]
["QYG","RVY","SOUTHPORT AND ORMSKIRK HOSPITAL NHS TRUST","RVY02","Ormskirk and District General Hospital",20,0.95,0,15,4,1,0,0,0]
["QYG","RBN","ST HELENS AND KNOWSLEY TEACHING HOSPITALS NHS TRUST","RBN01","Whiston Hospital",22,0.95454545454545459,0,19,2,1,0,0,0]
["QYG","RBL","WIRRAL UNIVERSITY TEACHING HOSPITAL NHS FOUNDATION TRUST","RBL14","Arrowe Park Hospital",18,1,0,17,1,0,0,0,0]

{"sheet":"ICB Q4","index":11,"n_rows":55,"n_cols":11,"rows_kept":55,"cut":false,"hidden":false,"merged":[[8,5,8,10],[8,0,9,0],[8,1,9,1],[8,2,9,2],[8,3,9,3],[8,4,9,4]]}
[]
[]
[]
[]
[]
[null,"   Sort data by:           "]
[]
[]
["ICB Code","ICB Name","Total Responses","Percentage Positive","Percentage Negative","Breakdown of Responses"]
[null,null,null,null,null,"Very Good","Good","Neither Good nor Poor","Poor","Very Poor","Don't Know"]
[null,"England (including Independent Sector providers)",1304,0.89570552147239269,5.7515337423312884E-2,945,223,47,30,45,14]
[null,"England (excluding Independent Sector providers)",1304,0.89570552147239269,5.7515337423312884E-2,945,223,47,30,45,14]
[null,"Selection (excluding suppressed data)",{"$f":"SUBTOTAL(9,C14:C55)","v":1304},{"$f":"IFERROR((F13+G13)/SUM(F13:K13), \"-\")","v":0.89449185415050425},{"$f":"IFERROR((I13+J13)/SUM(F13:K13), \"-\")","v":5.818463925523662E-2},{"$f":"SUBTOTAL(9,F14:F55)","v":932},{"$f":"SUBTOTAL(9,G14:G55)","v":221},47,30,45,14]
["QE1","LANCASHIRE AND SOUTH CUMBRIA ICB",81,0.90123456790123457,0,56,17,5,0,0,3]
["QF7","SOUTH YORKSHIRE ICB",80,0.82499999999999996,0.1,53,13,6,5,3,0]
["QGH","HEREFORDSHIRE AND WORCESTERSHIRE ICB",0,"NA","NA",0,0,0,0,0,0]
["QH8","MID AND SOUTH ESSEX ICB",0,"NA","NA",0,0,0,0,0,0]
["QHG","BEDFORDSHIRE, LUTON AND MILTON KEYNES ICB",22,0.95454545454545459,0,17,4,1,0,0,0]
["QHL","BIRMINGHAM AND SOLIHULL ICB",74,0.85135135135135132,9.45945945945946E-2,55,8,2,2,5,2]
["QHM","NORTH EAST AND NORTH CUMBRIA ICB",53,0.8867924528301887,5.6603773584905662E-2,38,9,3,1,2,0]
["QJ2","DERBY AND DERBYSHIRE ICB",9,1,0,9,0,0,0,0,0]
["QJG","SUFFOLK AND NORTH EAST ESSEX ICB",16,1,0,14,2,0,0,0,0]
["QJK","DEVON ICB",2,"*","*","*","*","*","*","*","*"]
["QJM","LINCOLNSHIRE ICB",0,"NA","NA",0,0,0,0,0,0]
["QK1","LEICESTER, LEICESTERSHIRE AND RUTLAND ICB",61,0.98360655737704916,0,56,4,1,0,0,0]
["QKK","SOUTH EAST LONDON ICB",41,0.85365853658536583,0.12195121951219512,31,4,1,2,3,0]
["QKS","KENT AND MEDWAY ICB",7,0.42857142857142855,0.2857142857142857,3,0,2,2,0,0]
["QM7","HERTFORDSHIRE AND WEST ESSEX ICB",1,"*","*","*","*","*","*","*","*"]
["QMF","NORTH EAST LONDON ICB",54,0.90740740740740744,5.5555555555555552E-2,37,12,1,1,2,1]
["QMJ","NORTH CENTRAL LONDON ICB",7,0.5714285714285714,0.2857142857142857,2,2,1,1,1,0]
["QMM","NORFOLK AND WAVENEY ICB",10,1,0,10,0,0,0,0,0]
["QNC","STAFFORDSHIRE AND STOKE-ON-TRENT ICB",1,"*","*","*","*","*","*","*","*"]
["QNQ","FRIMLEY ICB",1,"*","*","*","*","*","*","*","*"]
["QNX","SUSSEX ICB",17,0.94117647058823528,5.8823529411764705E-2,15,1,0,1,0,0]
["QOC","SHROPSHIRE, TELFORD AND WREKIN ICB",4,"*","*","*","*","*","*","*","*"]
["QOP","GREATER MANCHESTER ICB",65,0.92307692307692313,6.1538461538461542E-2,49,11,1,0,4,0]
["QOQ","HUMBER AND NORTH YORKSHIRE ICB",1,"*","*","*","*","*","*","*","*"]
["QOX","BATH AND NORTH EAST SOMERSET, SWINDON AND WILTSHIRE ICB",49,0.93877551020408168,0,41,5,2,0,0,1]
["QPM","NORTHAMPTONSHIRE ICB",19,1,0,17,2,0,0,0,0]
["QR1","GLOUCESTERSHIRE ICB",0,"NA","NA",0,0,0,0,0,0]
["QRL","HAMPSHIRE AND ISLE OF WIGHT ICB",129,0.93023255813953487,0,73,47,4,0,0,5]
["QRV","NORTH WEST LONDON ICB",36,0.86111111111111116,0.1111111111111111,22,9,1,2,2,0]
["QSL","SOMERSET ICB",5,1,0,"*","*","*","*","*","*"]
["QT1","NOTTINGHAM AND NOTTINGHAMSHIRE ICB",29,1,0,27,2,0,0,0,0]
["QT6","CORNWALL AND THE ISLES OF SCILLY ICB",0,"NA","NA",0,0,0,0,0,0]
["QU9","BUCKINGHAMSHIRE, OXFORDSHIRE AND BERKSHIRE WEST ICB",9,0.66666666666666663,0.22222222222222221,5,1,1,1,1,0]
["QUA","BLACK COUNTRY ICB",92,0.82608695652173914,0.10869565217391304,57,19,5,4,6,1]
["QUE","CAMBRIDGESHIRE AND PETERBOROUGH ICB",11,1,0,11,0,0,0,0,0]
["QUY","BRISTOL, NORTH SOMERSET AND SOUTH GLOUCESTERSHIRE ICB",55,0.89090909090909087,9.0909090909090912E-2,41,8,1,1,4,0]
["QVV","DORSET ICB",53,0.86792452830188682,9.4339622641509441E-2,35,11,2,2,3,0]
["QWE","SOUTH WEST LONDON ICB",20,1,0,18,2,0,0,0,0]
["QWO","WEST YORKSHIRE ICB",75,0.88,5.3333333333333337E-2,56,10,5,1,3,0]
["QWU","COVENTRY AND WARWICKSHIRE ICB",54,0.85185185185185186,0.12962962962962962,41,5,0,4,3,1]
["QXU","SURREY HEARTLANDS ICB",20,1,0,17,3,0,0,0,0]
["QYG","CHESHIRE AND MERSEYSIDE ICB",41,0.87804878048780488,7.3170731707317069E-2,26,10,2,0,3,0]

{"sheet":"Trusts Q4","index":12,"n_rows":132,"n_cols":20,"rows_kept":132,"cut":false,"hidden":false,"merged":[[8,6,8,11],[8,12,8,19],[8,0,9,0],[8,1,9,1],[8,2,9,2],[8,3,9,3],[8,4,9,4],[8,5,9,5]]}
[]
[]
[]
[]
[]
[null,"   Sort data by:           "]
[]
[]
["ICB Code","Trust Code","Trust Name","Total Responses","Percentage Positive","Percentage Negative","Breakdown of Responses",null,null,null,null,null,"Mode of Collection"]
[null,null,null,null,null,null,"Very Good","Good","Neither Good nor Poor","Poor","Very Poor","Don't Know","Mode SMS","Mode Electronic Discharge","Mode Electronic Home","Mode Paper Discharge","Mode Paper Home","Mode Telephone","Mode Online","Mode Other"]
[null,null,"England (including Independent Sector providers)",1304,0.89570552147239269,5.7515337423312884E-2,945,223,47,30,45,14,626,53,9,308,14,1,260,33]
[null,null,"England (excluding Independent Sector providers)",1304,0.89570552147239269,5.7515337423312884E-2,945,223,47,30,45,14,626,53,9,308,14,1,260,33]
[null,null,"Selection (excluding suppressed data)",{"$f":"SUBTOTAL(9,D14:D299)","v":1304},{"$f":"IFERROR((G13+H13)/SUM(G13:L13), \"-\")","v":0.89359605911330053},{"$f":"IFERROR((J13+K13)/SUM(G13:L13), \"-\")","v":5.8128078817733991E-2},{"$f":"SUBTOTAL(9,G14:G299)","v":728},179,36,24,35,13,491,28,9,248,9,0,197,33]
["QE1","RTX","UNIVERSITY HOSPITALS OF MORECAMBE BAY NHS FOUNDATION TRUST",0,"NA","NA",0,0,0,0,0,0,0,0,0,0,0,0,0,0]
["QE1","RXL","BLACKPOOL TEACHING HOSPITALS NHS FOUNDATION TRUST",12,0.58333333333333337,0,4,3,3,0,0,2,12,0,0,0,0,0,0,0]
["QE1","RXN","LANCASHIRE TEACHING HOSPITALS NHS FOUNDATION TRUST",25,1,0,21,4,0,0,0,0,25,0,0,0,0,0,0,0]
["QE1","RXR","EAST LANCASHIRE HOSPITALS NHS TRUST",44,0.93181818181818177,0,31,10,2,0,0,1,0,0,0,44,0,0,0,0]
["QF7","RFF","BARNSLEY HOSPITAL NHS FOUNDATION TRUST",0,"NA","NA",0,0,0,0,0,0,0,0,0,0,0,0,0,0]
["QF7","RP5","DONCASTER AND BASSETLAW TEACHING HOSPITALS NHS FOUNDATION TRUST",0,"NA","NA",0,0,0,0,0,0,0,0,0,0,0,0,0,0]
["QF7","RFR","THE ROTHERHAM NHS FOUNDATION TRUST",11,1,0,9,2,0,0,0,0,0,0,0,11,0,0,0,0]
["QF7","RHQ","SHEFFIELD TEACHING HOSPITALS NHS FOUNDATION TRUST",69,0.79710144927536231,0.11594202898550725,44,11,6,5,3,0,62,0,0,7,0,0,0,0]
["QGH","RLQ","WYE VALLEY NHS TRUST",0,"NA","NA",0,0,0,0,0,0,0,0,0,0,0,0,0,0]
["QGH","RWP","WORCESTERSHIRE ACUTE HOSPITALS NHS TRUST",0,"NA","NA",0,0,0,0,0,0,0,0,0,0,0,0,0,0]
["QH8","RAJ","MID AND SOUTH ESSEX NHS FOUNDATION TRUST",0,"NA","NA",0,0,0,0,0,0,0,0,0,0,0,0,0,0]
["QHG","RC9","BEDFORDSHIRE HOSPITALS NHS FOUNDATION TRUST",1,"*","*","*","*","*","*","*","*","*","*","*","*","*","*","*","*"]
["QHG","RD8","MILTON KEYNES UNIVERSITY HOSPITAL NHS FOUNDATION TRUST",21,0.95238095238095233,0,"*","*","*","*","*","*","*","*","*","*","*","*","*","*"]
["QHL","RXK","SANDWELL AND WEST BIRMINGHAM HOSPITALS NHS TRUST",0,"NA","NA",0,0,0,0,0,0,0,0,0,0,0,0,0,0]
["QHL","RQ3","BIRMINGHAM WOMEN'S AND CHILDREN'S NHS FOUNDATION TRUST",6,1,0,5,1,0,0,0,0,0,0,0,0,0,0,6,0]
["QHL","RRK","UNIVERSITY HOSPITALS BIRMINGHAM NHS FOUNDATION TRUST",68,0.83823529411764708,0.10294117647058823,50,7,2,2,5,2,49,0,0,19,0,0,0,0]
["QHM","R0B","SOUTH TYNESIDE AND SUNDERLAND NHS FOUNDATION TRUST",0,"NA","NA",0,0,0,0,0,0,0,0,0,0,0,0,0,0]
["QHM","RNN","NORTH CUMBRIA INTEGRATED CARE NHS FOUNDATION TRUST",0,"NA","NA",0,0,0,0,0,0,0,0,0,0,0,0,0,0]
["QHM","RR7","GATESHEAD HEALTH NHS FOUNDATION TRUST",0,"NA","NA",0,0,0,0,0,0,0,0,0,0,0,0,0,0]
["QHM","RTD","THE NEWCASTLE UPON TYNE HOSPITALS NHS FOUNDATION TRUST",0,"NA","NA",0,0,0,0,0,0,0,0,0,0,0,0,0,0]
["QHM","RVW","NORTH TEES AND HARTLEPOOL NHS FOUNDATION TRUST",0,"NA","NA",0,0,0,0,0,0,0,0,0,0,0,0,0,0]
["QHM","RXP","COUNTY DURHAM AND DARLINGTON NHS FOUNDATION TRUST",0,"NA","NA",0,0,0,0,0,0,0,0,0,0,0,0,0,0]
["QHM","RTR","SOUTH TEES HOSPITALS NHS FOUNDATION TRUST",1,"*","*","*","*","*","*","*","*","*","*","*","*","*","*","*","*"]
["QHM","RTF","NORTHUMBRIA HEALTHCARE NHS FOUNDATION TRUST",52,0.88461538461538458,5.7692307692307696E-2,"*","*","*","*","*","*","*","*","*","*","*","*","*","*"]
["QJ2","RTG","UNIVERSITY HOSPITALS OF DERBY AND BURTON NHS FOUNDATION TRUST",0,"NA","NA",0,0,0,0,0,0,0,0,0,0,0,0,0,0]
["QJ2","RFS","CHESTERFIELD ROYAL HOSPITAL NHS FOUNDATION TRUST",9,1,0,9,0,0,0,0,0,0,0,9,0,0,0,0,0]
["QJG","RDE","EAST SUFFOLK AND NORTH ESSEX NHS FOUNDATION TRUST",1,"*","*","*","*","*","*","*","*","*","*","*","*","*","*","*","*"]
["QJG","RGR","WEST SUFFOLK NHS FOUNDATION TRUST",15,1,0,"*","*","*","*","*","*","*","*","*","*","*","*","*","*"]
["QJK","RA9","TORBAY AND SOUTH DEVON NHS FOUNDATION TRUST",0,"NA","NA",0,0,0,0,0,0,0,0,0,0,0,0,0,0]
["QJK","RH8","ROYAL DEVON UNIVERSITY HEALTHCARE NHS FOUNDATION TRUST",0,"NA","NA",0,0,0,0,0,0,0,0,0,0,0,0,0,0]
["QJK","RK9","UNIVERSITY HOSPITALS PLYMOUTH NHS TRUST",2,"*","*","*","*","*","*","*","*","*","*","*","*","*","*","*","*"]
["QJM","RWD","UNITED LINCOLNSHIRE HOSPITALS NHS TRUST",0,"NA","NA",0,0,0,0,0,0,0,0,0,0,0,0,0,0]
["QK1","RWE","UNIVERSITY HOSPITALS OF LEICESTER NHS TRUST",61,0.98360655737704916,0,56,4,1,0,0,0,0,27,0,34,0,0,0,0]
["QKK","RJ2","LEWISHAM AND GREENWICH NHS TRUST",1,"*","*","*","*","*","*","*","*","*","*","*","*","*","*","*","*"]
["QKK","RJ1","GUY'S AND ST THOMAS' NHS FOUNDATION TRUST",10,1,0,"*","*","*","*","*","*","*","*","*","*","*","*","*","*"]
["QKK","RJZ","KING'S COLLEGE HOSPITAL NHS FOUNDATION TRUST",30,0.8,0.16666666666666666,21,3,1,2,3,0,27,0,0,0,0,0,3,0]
["QKS","RPA","MEDWAY NHS FOUNDATION TRUST",0,"NA","NA",0,0,0,0,0,0,0,0,0,0,0,0,0,0]
["QKS","RVV","EAST KENT HOSPITALS UNIVERSITY NHS FOUNDATION TRUST",0,"NA","NA",0,0,0,0,0,0,0,0,0,0,0,0,0,0]
["QKS","RWF","MAIDSTONE AND TUNBRIDGE WELLS NHS TRUST",2,"*","*","*","*","*","*","*","*","*","*","*","*","*","*","*","*"]
["QKS","RN7","DARTFORD AND GRAVESHAM NHS TRUST",5,0.2,0.4,"*","*","*","*","*","*","*","*","*","*","*","*","*","*"]
["QM7","RQW","THE PRINCESS ALEXANDRA HOSPITAL NHS TRUST",0,"NA","NA",0,0,0,0,0,0,0,0,0,0,0,0,0,0]
["QM7","RWH","EAST AND NORTH HERTFORDSHIRE NHS TRUST",0,"NA","NA",0,0,0,0,0,0,0,0,0,0,0,0,0,0]
["QM7","RWG","WEST HERTFORDSHIRE TEACHING HOSPITALS NHS TRUST",1,"*","*","*","*","*","*","*","*","*","*","*","*","*","*","*","*"]
["QMF","RF4","BARKING, HAVERING AND REDBRIDGE UNIVERSITY HOSPITALS NHS TRUST",0,"NA","NA",0,0,0,0,0,0,0,0,0,0,0,0,0,0]
["QMF","RQX","HOMERTON HEALTHCARE NHS FOUNDATION TRUST",14,1,0,11,3,0,0,0,0,14,0,0,0,0,0,0,0]
["QMF","R1H","BARTS HEALTH NHS TRUST",40,0.875,7.4999999999999997E-2,26,9,1,1,2,1,9,0,0,9,0,0,22,0]
["QMJ","RAP","NORTH MIDDLESEX UNIVERSITY HOSPITAL NHS TRUST",0,"NA","NA",0,0,0,0,0,0,0,0,0,0,0,0,0,0]
["QMJ","RRV","UNIVERSITY COLLEGE LONDON HOSPITALS NHS FOUNDATION TRUST",0,"NA","NA",0,0,0,0,0,0,0,0,0,0,0,0,0,0]
["QMJ","RAL","ROYAL FREE LONDON NHS FOUNDATION TRUST",7,0.5714285714285714,0.2857142857142857,2,2,1,1,1,0,0,0,0,0,0,0,7,0]
["QMM","RGP","JAMES PAGET UNIVERSITY HOSPITALS NHS FOUNDATION TRUST",0,"NA","NA",0,0,0,0,0,0,0,0,0,0,0,0,0,0]
["QMM","RM1","NORFOLK AND NORWICH UNIVERSITY HOSPITALS NHS FOUNDATION TRUST",0,"NA","NA",0,0,0,0,0,0,0,0,0,0,0,0,0,0]
["QMM","RCX","THE QUEEN ELIZABETH HOSPITAL, KING'S LYNN, NHS FOUNDATION TRUST",10,1,0,10,0,0,0,0,0,0,0,0,10,0,0,0,0]
["QNC","RJE","UNIVERSITY HOSPITALS OF NORTH MIDLANDS NHS TRUST",1,"*","*","*","*","*","*","*","*","*","*","*","*","*","*","*","*"]
["QNQ","RDU","FRIMLEY HEALTH NHS FOUNDATION TRUST",1,"*","*","*","*","*","*","*","*","*","*","*","*","*","*","*","*"]
["QNX","RXC","EAST SUSSEX HEALTHCARE NHS TRUST",0,"NA","NA",0,0,0,0,0,0,0,0,0,0,0,0,0,0]
["QNX","RYR","UNIVERSITY HOSPITALS SUSSEX NHS FOUNDATION TRUST",17,0.94117647058823528,5.8823529411764705E-2,15,1,0,1,0,0,17,0,0,0,0,0,0,0]
["QOC","RXW","THE SHREWSBURY AND TELFORD HOSPITAL NHS TRUST",4,"*","*","*","*","*","*","*","*","*","*","*","*","*","*","*","*"]
["QOP","R0A","MANCHESTER UNIVERSITY NHS FOUNDATION TRUST",0,"NA","NA",0,0,0,0,0,0,0,0,0,0,0,0,0,0]
["QOP","RM3","NORTHERN CARE ALLIANCE NHS FOUNDATION TRUST",0,"NA","NA",0,0,0,0,0,0,0,0,0,0,0,0,0,0]
["QOP","RRF","WRIGHTINGTON, WIGAN AND LEIGH NHS FOUNDATION TRUST",0,"NA","NA",0,0,0,0,0,0,0,0,0,0,0,0,0,0]
["QOP","RWJ","STOCKPORT NHS FOUNDATION TRUST",3,"*","*","*","*","*","*","*","*","*","*","*","*","*","*","*","*"]
["QOP","RMC","BOLTON NHS FOUNDATION TRUST",62,0.91935483870967738,6.4516129032258063E-2,"*","*","*","*","*","*","*","*","*","*","*","*","*","*"]
["QOQ","RCB","YORK AND SCARBOROUGH TEACHING HOSPITALS NHS FOUNDATION TRUST",0,"NA","NA",0,0,0,0,0,0,0,0,0,0,0,0,0,0]
["QOQ","RCD","HARROGATE AND DISTRICT NHS FOUNDATION TRUST",0,"NA","NA",0,0,0,0,0,0,0,0,0,0,0,0,0,0]
["QOQ","RWA","HULL UNIVERSITY TEACHING HOSPITALS NHS TRUST",0,"NA","NA",0,0,0,0,0,0,0,0,0,0,0,0,0,0]
["QOQ","RJL","NORTHERN LINCOLNSHIRE AND GOOLE NHS FOUNDATION TRUST",1,"*","*","*","*","*","*","*","*","*","*","*","*","*","*","*","*"]
["QOX","RNZ","SALISBURY NHS FOUNDATION TRUST",2,"*","*","*","*","*","*","*","*","*","*","*","*","*","*","*","*"]
["QOX","RD1","ROYAL UNITED HOSPITALS BATH NHS FOUNDATION TRUST",9,1,0,"*","*","*","*","*","*","*","*","*","*","*","*","*","*"]
["QOX","RN3","GREAT WESTERN HOSPITALS NHS FOUNDATION TRUST",38,0.94736842105263153,0,32,4,1,0,0,1,38,0,0,0,0,0,0,0]
["QPM","RNS","NORTHAMPTON GENERAL HOSPITAL NHS TRUST",4,"*","*","*","*","*","*","*","*","*","*","*","*","*","*","*","*"]
["QPM","RNQ","KETTERING GENERAL HOSPITAL NHS FOUNDATION TRUST",15,1,0,"*","*","*","*","*","*","*","*","*","*","*","*","*","*"]
["QR1","RTE","GLOUCESTERSHIRE HOSPITALS NHS FOUNDATION TRUST",0,"NA","NA",0,0,0,0,0,0,0,0,0,0,0,0,0,0]
["QRL","R1F","ISLE OF WIGHT NHS TRUST",0,"NA","NA",0,0,0,0,0,0,0,0,0,0,0,0,0,0]
["QRL","RN5","HAMPSHIRE HOSPITALS NHS FOUNDATION TRUST",3,"*","*","*","*","*","*","*","*","*","*","*","*","*","*","*","*"]
["QRL","RHU","PORTSMOUTH HOSPITALS UNIVERSITY NATIONAL HEALTH SERVICE TRUST",24,1,0,"*","*","*","*","*","*","*","*","*","*","*","*","*","*"]
["QRL","RHM","UNIVERSITY HOSPITAL SOUTHAMPTON NHS FOUNDATION TRUST",102,0.91176470588235292,0,51,42,4,0,0,5,0,0,0,0,9,0,93,0]
["QRV","R1K","LONDON NORTH WEST UNIVERSITY HEALTHCARE NHS TRUST",0,"NA","NA",0,0,0,0,0,0,0,0,0,0,0,0,0,0]
["QRV","RQM","CHELSEA AND WESTMINSTER HOSPITAL NHS FOUNDATION TRUST",1,"*","*","*","*","*","*","*","*","*","*","*","*","*","*","*","*"]
["QRV","RAS","THE HILLINGDON HOSPITALS NHS FOUNDATION TRUST",16,0.75,0.1875,"*","*","*","*","*","*","*","*","*","*","*","*","*","*"]
["QRV","RYJ","IMPERIAL COLLEGE HEALTHCARE NHS TRUST",19,1,0,15,4,0,0,0,0,0,0,0,0,0,0,19,0]
["QSL","RH5","SOMERSET NHS FOUNDATION TRUST",0,"NA","NA",0,0,0,0,0,0,0,0,0,0,0,0,0,0]
["QSL","RA4","YEOVIL DISTRICT HOSPITAL NHS FOUNDATION TRUST",5,1,0,"*","*","*","*","*","*","*","*","*","*","*","*","*","*"]
["QT1","RK5","SHERWOOD FOREST HOSPITALS NHS FOUNDATION TRUST",5,1,0,4,1,0,0,0,0,0,0,0,0,0,0,5,0]
["QT1","RX1","NOTTINGHAM UNIVERSITY HOSPITALS NHS TRUST",24,1,0,23,1,0,0,0,0,0,0,0,24,0,0,0,0]
["QT6","REF","ROYAL CORNWALL HOSPITALS NHS TRUST",0,"NA","NA",0,0,0,0,0,0,0,0,0,0,0,0,0,0]
["QU9","RHW","ROYAL BERKSHIRE NHS FOUNDATION TRUST",0,"NA","NA",0,0,0,0,0,0,0,0,0,0,0,0,0,0]
["QU9","RTH","OXFORD UNIVERSITY HOSPITALS NHS FOUNDATION TRUST",0,"NA","NA",0,0,0,0,0,0,0,0,0,0,0,0,0,0]
["QU9","RXQ","BUCKINGHAMSHIRE HEALTHCARE NHS TRUST",9,0.66666666666666663,0.22222222222222221,5,1,1,1,1,0,9,0,0,0,0,0,0,0]
["QUA","RNA","THE DUDLEY GROUP NHS FOUNDATION TRUST",2,"*","*","*","*","*","*","*","*","*","*","*","*","*","*","*","*"]
["QUA","RBK","WALSALL HEALTHCARE NHS TRUST",12,0.66666666666666663,0.25,"*","*","*","*","*","*","*","*","*","*","*","*","*","*"]
["QUA","RL4","THE ROYAL WOLVERHAMPTON NHS TRUST",78,0.85897435897435892,8.9743589743589744E-2,49,18,4,3,4,0,69,0,0,0,0,0,9,0]
["QUE","RGT","CAMBRIDGE UNIVERSITY HOSPITALS NHS FOUNDATION TRUST",0,"NA","NA",0,0,0,0,0,0,0,0,0,0,0,0,0,0]
["QUE","RGN","NORTH WEST ANGLIA NHS FOUNDATION TRUST",11,1,0,11,0,0,0,0,0,0,0,0,11,0,0,0,0]
["QUY","RA7","UNIVERSITY HOSPITALS BRISTOL AND WESTON NHS FOUNDATION TRUST",14,1,0,14,0,0,0,0,0,0,0,0,14,0,0,0,0]
["QUY","RVJ","NORTH BRISTOL NHS TRUST",41,0.85365853658536583,0.12195121951219512,27,8,1,1,4,0,41,0,0,0,0,0,0,0]
["QVV","RBD","DORSET COUNTY HOSPITAL NHS FOUNDATION TRUST",16,0.875,0.125,9,5,0,1,1,0,16,0,0,0,0,0,0,0]
["QVV","R0D","UNIVERSITY HOSPITALS DORSET NHS FOUNDATION TRUST",37,0.86486486486486491,8.1081081081081086E-2,26,6,2,1,2,0,37,0,0,0,0,0,0,0]
["QWE","RJ6","CROYDON HEALTH SERVICES NHS TRUST",0,"NA","NA",0,0,0,0,0,0,0,0,0,0,0,0,0,0]
["QWE","RJ7","ST GEORGE'S UNIVERSITY HOSPITALS NHS FOUNDATION TRUST",0,"NA","NA",0,0,0,0,0,0,0,0,0,0,0,0,0,0]
["QWE","RVR","EPSOM AND ST HELIER UNIVERSITY HOSPITALS NHS TRUST",9,1,0,8,1,0,0,0,0,0,0,0,8,0,0,1,0]
["QWE","RAX","KINGSTON HOSPITAL NHS FOUNDATION TRUST",11,1,0,10,1,0,0,0,0,0,0,0,0,0,0,11,0]
["QWO","RAE","BRADFORD TEACHING HOSPITALS NHS FOUNDATION TRUST",0,"NA","NA",0,0,0,0,0,0,0,0,0,0,0,0,0,0]
["QWO","RCF","AIREDALE NHS FOUNDATION TRUST",0,"NA","NA",0,0,0,0,0,0,0,0,0,0,0,0,0,0]
["QWO","RR8","LEEDS TEACHING HOSPITALS NHS TRUST",0,"NA","NA",0,0,0,0,0,0,0,0,0,0,0,0,0,0]
["QWO","RWY","CALDERDALE AND HUDDERSFIELD NHS FOUNDATION TRUST",0,"NA","NA",0,0,0,0,0,0,0,0,0,0,0,0,0,0]
["QWO","RXF","MID YORKSHIRE HOSPITALS NHS TRUST",75,0.88,5.3333333333333337E-2,56,10,5,1,3,0,13,0,0,55,0,0,7,0]
["QWU","RJC","SOUTH WARWICKSHIRE UNIVERSITY NHS FOUNDATION TRUST",0,"NA","NA",0,0,0,0,0,0,0,0,0,0,0,0,0,0]
["QWU","RLT","GEORGE ELIOT HOSPITAL NHS TRUST",0,"NA","NA",0,0,0,0,0,0,0,0,0,0,0,0,0,0]
["QWU","RKB","UNIVERSITY HOSPITALS COVENTRY AND WARWICKSHIRE NHS TRUST",54,0.85185185185185186,0.12962962962962962,41,5,0,4,3,1,53,1,0,0,0,0,0,0]
["QXU","RA2","ROYAL SURREY COUNTY HOSPITAL NHS FOUNDATION TRUST",0,"NA","NA",0,0,0,0,0,0,0,0,0,0,0,0,0,0]
["QXU","RTK","ASHFORD AND ST PETER'S HOSPITALS NHS FOUNDATION TRUST",0,"NA","NA",0,0,0,0,0,0,0,0,0,0,0,0,0,0]
["QXU","RTP","SURREY AND SUSSEX HEALTHCARE NHS TRUST",20,1,0,17,3,0,0,0,0,0,0,0,2,0,0,14,4]
["QYG","RBL","WIRRAL UNIVERSITY TEACHING HOSPITAL NHS FOUNDATION TRUST",0,"NA","NA",0,0,0,0,0,0,0,0,0,0,0,0,0,0]
["QYG","RBT","MID CHESHIRE HOSPITALS NHS FOUNDATION TRUST",0,"NA","NA",0,0,0,0,0,0,0,0,0,0,0,0,0,0]
["QYG","RJN","EAST CHESHIRE NHS TRUST",0,"NA","NA",0,0,0,0,0,0,0,0,0,0,0,0,0,0]
["QYG","RWW","WARRINGTON AND HALTON TEACHING HOSPITALS NHS FOUNDATION TRUST",0,"NA","NA",0,0,0,0,0,0,0,0,0,0,0,0,0,0]
["QYG","RVY","SOUTHPORT AND ORMSKIRK HOSPITAL NHS TRUST",3,"*","*","*","*","*","*","*","*","*","*","*","*","*","*","*","*"]
["QYG","RBN","ST HELENS AND KNOWSLEY TEACHING HOSPITALS NHS TRUST",9,1,0,"*","*","*","*","*","*","*","*","*","*","*","*","*","*"]
["QYG","REP","LIVERPOOL WOMEN'S NHS FOUNDATION TRUST",29,0.86206896551724133,0.10344827586206896,16,9,1,0,3,0,0,0,0,0,0,0,0,29]

{"sheet":"BSQ1","index":13,"n_rows":178,"n_cols":33,"rows_kept":178,"cut":false,"hidden":true,"merged":[]}
[null,"Sort","ICB","ICB","Trusts","Trusts","Sites","Sites",null,"Sort ranges:","Sort range…","Sort range…","Sort range…","Reference Region List:","Code…","Name…","Linked Region List:","Code…","Name…","Reference Lists:","Code…","Code…","Name…","Code…","Name…","Trusts Linked Lists:","Code…","Name…","Site Linked Lists:","Code…","Name…","Code…","Name…"]
["ICB",1,1,1,"-","-","-","-",null,null,"ICB Code","ICB Code","ICB Code",null,"QE1","LANCASHIRE AND SOUTH CUMBRIA ICB",null,"QE1","LANCASHIRE AND SOUTH CUMBRIA ICB",null,"QE1","RXL","BLACKPOOL TEACHING HOSPITALS NHS FOUNDATION TRUST","RXL01","Blackpool Victoria Hospital",null,"R0A","ASHFORD AND ST PETER'S HOSPITALS NHS FOUNDATION TRUST",null,"R0A","ASHFORD AND ST PETER'S HOSPITALS NHS FOUNDATION TRUST","E0A3H","Alexandra Hospital"]
["Trusts",1,1,1,1,1,"-","-",null,null,"ICB Name","Trust Code","Trust Code",null,"QF7","SOUTH YORKSHIRE ICB",null,"QF7","SOUTH YORKSHIRE ICB",null,"QE1","RXR","EAST LANCASHIRE HOSPITALS NHS TRUST","RXR20","Royal Blackburn Hospital",null,"R0B","BARKING, HAVERING AND REDBRIDGE UNIVERSITY HOSPITALS NHS TRUST",null,"R0B","BARKING, HAVERING AND REDBRIDGE UNIVERSITY HOSPITALS NHS TRUST","R0A05","Andover War Memorial Hospital"]
["Sites",1,1,1,1,1,1,1,null,null,"Total Responses","Trust Name","Trust Name",null,"QGH","HEREFORDSHIRE AND WORCESTERSHIRE ICB",null,"QGH","HEREFORDSHIRE AND WORCESTERSHIRE ICB",null,"QE1","RXN","LANCASHIRE TEACHING HOSPITALS NHS FOUNDATION TRUST","RXN01","Chorley and South Ribble Hospital",null,"R0D","BARNSLEY HOSPITAL NHS FOUNDATION TRUST",null,"R0D","BARNSLEY HOSPITAL NHS FOUNDATION TRUST","R0B01","Arrowe Park Hospital"]
[null,null,null,null,null,null,null,null,null,null,"Percentage Positive","Total Responses","Site Code",null,"QH8","MID AND SOUTH ESSEX ICB",null,"QH8","MID AND SOUTH ESSEX ICB",null,"QE1","RXN","LANCASHIRE TEACHING HOSPITALS NHS FOUNDATION TRUST","RXN02","Royal Preston Hospital",null,"R1F","BARTS HEALTH NHS TRUST",null,"R1F","BARTS HEALTH NHS TRUST","R0B0Q","Ashford Hospital"]
[null,null,null,null,null,null,null,null,null,null,"Percentage Negative","Percentage Positive","Site Name",null,"QHG","BEDFORDSHIRE, LUTON AND MILTON KEYNES ICB",null,"QHG","BEDFORDSHIRE, LUTON AND MILTON KEYNES ICB",null,"QE1","RTX","UNIVERSITY HOSPITALS OF MORECAMBE BAY NHS FOUNDATION TRUST","RTXBU","Furness General Hospital",null,"R1H","BEDFORDSHIRE HOSPITALS NHS FOUNDATION TRUST",null,"R1H","BEDFORDSHIRE HOSPITALS NHS FOUNDATION TRUST","R0BXXX","Barnet Hospital"]
[null,null,null,null,null,null,null,null,null,null,"Very Good","Percentage Negative","Total Responses",null,"QHL","BIRMINGHAM AND SOLIHULL ICB",null,"QHL","BIRMINGHAM AND SOLIHULL ICB",null,"QE1","RTX","UNIVERSITY HOSPITALS OF MORECAMBE BAY NHS FOUNDATION TRUST","RTX02","Royal Lancaster Infirmary",null,"R1K","BIRMINGHAM WOMEN'S AND CHILDREN'S NHS FOUNDATION TRUST",null,"R1K","BIRMINGHAM WOMEN'S AND CHILDREN'S NHS FOUNDATION TRUST","R0D01","Barnsley Hospital NHS Foundation Trust HQ"]
[null,null,null,null,null,null,null,null,null,null,"Good","Very Good","Percentage Positive",null,"QHM","NORTH EAST AND NORTH CUMBRIA ICB",null,"QHM","NORTH EAST AND NORTH CUMBRIA ICB",null,"QF7","RFF","BARNSLEY HOSPITAL NHS FOUNDATION TRUST","RFFAA","Barnsley Hospital NHS Foundation Trust HQ",null,"RA2","BLACKPOOL TEACHING HOSPITALS NHS FOUNDATION TRUST",null,"RA2","BLACKPOOL TEACHING HOSPITALS NHS FOUNDATION TRUST","R0D02","BASILDON HOSPITAL"]
[null,null,null,null,null,null,null,null,null,null,"Neither Good nor Poor","Good","Percentage Negative",null,"QJ2","DERBY AND DERBYSHIRE ICB",null,"QJ2","DERBY AND DERBYSHIRE ICB",null,"QF7","RP5","DONCASTER AND BASSETLAW TEACHING HOSPITALS NHS FOUNDATION TRUST","RP5BA","Bassetlaw Hospital",null,"RA4","BOLTON NHS FOUNDATION TRUST",null,"RA4","BOLTON NHS FOUNDATION TRUST","R1F01","Basingstoke and North Hampshire Hospital"]
[null,null,null,null,null,null,null,null,null,null,"Poor","Neither Good nor Poor","Very Good",null,"QJG","SUFFOLK AND NORTH EAST ESSEX ICB",null,"QJG","SUFFOLK AND NORTH EAST ESSEX ICB",null,"QF7","RP5","DONCASTER AND BASSETLAW TEACHING HOSPITALS NHS FOUNDATION TRUST","RP5DR","Doncaster Royal Infirmary",null,"RA7","BRADFORD TEACHING HOSPITALS NHS FOUNDATION TRUST",null,"RA7","BRADFORD TEACHING HOSPITALS NHS FOUNDATION TRUST","R1H12","Bassetlaw Hospital"]
[null,null,null,null,null,null,null,null,null,null,"Very Poor","Poor","Good",null,"QJK","DEVON ICB",null,"QJK","DEVON ICB",null,"QF7","RP5","DONCASTER AND BASSETLAW TEACHING HOSPITALS NHS FOUNDATION TRUST","RP5XXX","Non-hospital site",null,"RAE","BUCKINGHAMSHIRE HEALTHCARE NHS TRUST",null,"RAE","BUCKINGHAMSHIRE HEALTHCARE NHS TRUST","R1HKH","BEDFORD HOSPITAL SOUTH WING"]
[null,null,null,null,null,null,null,null,null,null,"Don't Know","Very Poor","Neither Good nor Poor",null,"QJM","LINCOLNSHIRE ICB",null,"QJM","LINCOLNSHIRE ICB",null,"QF7","RHQ","SHEFFIELD TEACHING HOSPITALS NHS FOUNDATION TRUST","RHQHH","Royal Hallamshire Hospital",null,"RAJ","CALDERDALE AND HUDDERSFIELD NHS FOUNDATION TRUST",null,"RAJ","CALDERDALE AND HUDDERSFIELD NHS FOUNDATION TRUST","R1HNH","Birmingham Women's Hospital"]
[null,null,null,null,null,null,null,null,null,null,null,"Don't Know","Poor",null,"QK1","LEICESTER, LEICESTERSHIRE AND RUTLAND ICB",null,"QK1","LEICESTER, LEICESTERSHIRE AND RUTLAND ICB",null,"QF7","RFR","THE ROTHERHAM NHS FOUNDATION TRUST","RFRPA","Rotherham District General Hospital",null,"RAL","CAMBRIDGE UNIVERSITY HOSPITALS NHS FOUNDATION TRUST",null,"RAL","CAMBRIDGE UNIVERSITY HOSPITALS NHS FOUNDATION TRUST","R1K01","Blackpool Victoria Hospital"]
[null,null,null,null,null,null,null,null,null,null,null,"Mode SMS","Very Poor",null,"QKK","SOUTH EAST LONDON ICB",null,"QKK","SOUTH EAST LONDON ICB",null,"QGH","RWP","WORCESTERSHIRE ACUTE HOSPITALS NHS TRUST","RWP01","Alexandra Hospital",null,"RAP","CHELSEA AND WESTMINSTER HOSPITAL NHS FOUNDATION TRUST",null,"RAP","CHELSEA AND WESTMINSTER HOSPITAL NHS FOUNDATION TRUST","RA201","Bradford Royal Infirmary"]
[null,null,null,null,null,null,null,null,null,null,null,"Mode Electronic Discharge","Don't Know",null,"QKS","KENT AND MEDWAY ICB",null,"QKS","KENT AND MEDWAY ICB",null,"QGH","RWP","WORCESTERSHIRE ACUTE HOSPITALS NHS TRUST","RWP31","Kidderminster Hospital",null,"RAS","CHESTERFIELD ROYAL HOSPITAL NHS FOUNDATION TRUST",null,"RAS","CHESTERFIELD ROYAL HOSPITAL NHS FOUNDATION TRUST","RA430","Bridgwater Hospital"]
[null,null,null,null,null,null,null,null,null,null,null,"Mode Electronic Home",null,null,"QM7","HERTFORDSHIRE AND WEST ESSEX ICB",null,"QM7","HERTFORDSHIRE AND WEST ESSEX ICB",null,"QGH","RWP","WORCESTERSHIRE ACUTE HOSPITALS NHS TRUST","RWP50","Worcestershire Royal Hospital",null,"RAX","CROYDON HEALTH SERVICES NHS TRUST",null,"RAX","CROYDON HEALTH SERVICES NHS TRUST","RA707","Calderdale Royal Hospital"]
[null,null,null,null,null,null,null,null,null,null,null,"Mode Paper Discharge",null,null,"QMF","NORTH EAST LONDON ICB",null,"QMF","NORTH EAST LONDON ICB",null,"QGH","RLQ","WYE VALLEY NHS TRUST","RLQ01","Hereford County Hospital",null,"RBD","DARTFORD AND GRAVESHAM NHS TRUST",null,"RBD","DARTFORD AND GRAVESHAM NHS TRUST","RAE01","Chelsea and Westminster Hospital"]
[null,null,null,null,null,null,null,null,null,null,null,"Mode Paper Home",null,null,"QMJ","NORTH CENTRAL LONDON ICB",null,"QMJ","NORTH CENTRAL LONDON ICB",null,"QH8","RAJ","MID AND SOUTH ESSEX NHS FOUNDATION TRUST","RAJ12","BASILDON HOSPITAL",null,"RBK","DONCASTER AND BASSETLAW TEACHING HOSPITALS NHS FOUNDATION TRUST",null,"RBK","DONCASTER AND BASSETLAW TEACHING HOSPITALS NHS FOUNDATION TRUST","RAJ01","Chesterfield Royal Hospital"]
[null,null,null,null,null,null,null,null,null,null,null,"Mode Telephone",null,null,"QMM","NORFOLK AND WAVENEY ICB",null,"QMM","NORFOLK AND WAVENEY ICB",null,"QH8","RAJ","MID AND SOUTH ESSEX NHS FOUNDATION TRUST","RAJ32","MID ESSEX HOSPITAL",null,"RBL","DORSET COUNTY HOSPITAL NHS FOUNDATION TRUST",null,"RBL","DORSET COUNTY HOSPITAL NHS FOUNDATION TRUST","RAJ12","Chorley and South Ribble Hospital"]
[null,null,null,null,null,null,null,null,null,null,null,"Mode Online",null,null,"QNC","STAFFORDSHIRE AND STOKE-ON-TRENT ICB",null,"QNC","STAFFORDSHIRE AND STOKE-ON-TRENT ICB",null,"QH8","RAJ","MID AND SOUTH ESSEX NHS FOUNDATION TRUST","RAJ01","Southend Hospital",null,"RBN","EAST AND NORTH HERTFORDSHIRE NHS TRUST",null,"RBN","EAST AND NORTH HERTFORDSHIRE NHS TRUST","RAJ32","City Hospital"]
[null,null,null,null,null,null,null,null,null,null,null,"Mode Other",null,null,"QNQ","FRIMLEY ICB",null,"QNQ","FRIMLEY ICB",null,"QHG","RC9","BEDFORDSHIRE HOSPITALS NHS FOUNDATION TRUST","RC979","BEDFORD HOSPITAL SOUTH WING",null,"RBT","EAST CHESHIRE NHS TRUST",null,"RBT","EAST CHESHIRE NHS TRUST","RAL01","Colchester General Hospital"]
[null,null,null,null,null,null,null,null,null,null,null,null,null,null,"QNX","SUSSEX ICB",null,"QNX","SUSSEX ICB",null,"QHG","RC9","BEDFORDSHIRE HOSPITALS NHS FOUNDATION TRUST","RC971","Luton and Dunstable Hospital",null,"RC9","EAST KENT HOSPITALS UNIVERSITY NHS FOUNDATION TRUST",null,"RC9","EAST KENT HOSPITALS UNIVERSITY NHS FOUNDATION TRUST","RAL26","Conquest Hospital"]
[null,null,null,null,null,null,null,null,null,null,null,null,null,null,"QOC","SHROPSHIRE, TELFORD AND WREKIN ICB",null,"QOC","SHROPSHIRE, TELFORD AND WREKIN ICB",null,"QHG","RD8","MILTON KEYNES UNIVERSITY HOSPITAL NHS FOUNDATION TRUST","RD816","Milton Keynes Hospital",null,"RCB","EAST LANCASHIRE HOSPITALS NHS TRUST",null,"RCB","EAST LANCASHIRE HOSPITALS NHS TRUST","RAPNM","Croydon University Hospital"]
[null,null,null,null,null,null,null,null,null,null,null,null,null,null,"QOP","GREATER MANCHESTER ICB",null,"QOP","GREATER MANCHESTER ICB",null,"QHL","RQ3","BIRMINGHAM WOMEN'S AND CHILDREN'S NHS FOUNDATION TRUST","RQ370","Birmingham Women's Hospital",null,"RCD","EAST SUFFOLK AND NORTH ESSEX NHS FOUNDATION TRUST",null,"RCD","EAST SUFFOLK AND NORTH ESSEX NHS FOUNDATION TRUST","RAS01","Darent Valley Hospital"]
[null,null,null,null,null,null,null,null,null,null,null,null,null,null,"QOQ","HUMBER AND NORTH YORKSHIRE ICB",null,"QOQ","HUMBER AND NORTH YORKSHIRE ICB",null,"QHL","RXK","SANDWELL AND WEST BIRMINGHAM HOSPITALS NHS TRUST","RXK02","City Hospital",null,"RCX","EAST SUSSEX HEALTHCARE NHS TRUST",null,"RCX","EAST SUSSEX HEALTHCARE NHS TRUST","RAX01","Derriford Hospital"]
[null,null,null,null,null,null,null,null,null,null,null,null,null,null,"QOX","BATH AND NORTH EAST SOMERSET, SWINDON AND WILTSHIRE ICB",null,"QOX","BATH AND NORTH EAST SOMERSET, SWINDON AND WILTSHIRE ICB",null,"QHL","RXK","SANDWELL AND WEST BIRMINGHAM HOSPITALS NHS TRUST","RXK01","Sandwell General Hospital",null,"RD1","EPSOM AND ST HELIER UNIVERSITY HOSPITALS NHS TRUST",null,"RD1","EPSOM AND ST HELIER UNIVERSITY HOSPITALS NHS TRUST","RBD01","Dewsbury and District Hospital"]
[null,null,null,null,null,null,null,null,null,null,null,null,null,null,"QPM","NORTHAMPTONSHIRE ICB",null,"QPM","NORTHAMPTONSHIRE ICB",null,"QHL","RRK","UNIVERSITY HOSPITALS BIRMINGHAM NHS FOUNDATION TRUST","RRK98","Good Hope Hospital",null,"RD8","FRIMLEY HEALTH NHS FOUNDATION TRUST",null,"RD8","FRIMLEY HEALTH NHS FOUNDATION TRUST","RBK02","Diana, Princess Of Wales Hospital"]
[null,null,null,null,null,null,null,null,null,null,null,null,null,null,"QR1","GLOUCESTERSHIRE ICB",null,"QR1","GLOUCESTERSHIRE ICB",null,"QHL","RRK","UNIVERSITY HOSPITALS BIRMINGHAM NHS FOUNDATION TRUST","RRK97","Heartlands Hospital",null,"RDE","GATESHEAD HEALTH NHS FOUNDATION TRUST",null,"RDE","GATESHEAD HEALTH NHS FOUNDATION TRUST","RBL14","Doncaster Royal Infirmary"]
[null,null,null,null,null,null,null,null,null,null,null,null,null,null,"QRL","HAMPSHIRE AND ISLE OF WIGHT ICB",null,"QRL","HAMPSHIRE AND ISLE OF WIGHT ICB",null,"QHL","RRK","UNIVERSITY HOSPITALS BIRMINGHAM NHS FOUNDATION TRUST","RRK99","Solihull Hospital",null,"RDU","GREAT WESTERN HOSPITALS NHS FOUNDATION TRUST",null,"RDU","GREAT WESTERN HOSPITALS NHS FOUNDATION TRUST","RBN01","Dorset County Hospital"]
[null,null,null,null,null,null,null,null,null,null,null,null,null,null,"QRV","NORTH WEST LONDON ICB",null,"QRV","NORTH WEST LONDON ICB",null,"QHM","RR7","GATESHEAD HEALTH NHS FOUNDATION TRUST","RR7EN","Queen Elizabeth Hospital",null,"REF","GUY'S AND ST THOMAS' NHS FOUNDATION TRUST",null,"REF","GUY'S AND ST THOMAS' NHS FOUNDATION TRUST","RBT20","East Surrey Hospital"]
[null,null,null,null,null,null,null,null,null,null,null,null,null,null,"QSL","SOMERSET ICB",null,"QSL","SOMERSET ICB",null,"QHM","RVW","NORTH TEES AND HARTLEPOOL NHS FOUNDATION TRUST","RVWAE","University Hospital Of North Tees",null,"REP","HAMPSHIRE HOSPITALS NHS FOUNDATION TRUST",null,"REP","HAMPSHIRE HOSPITALS NHS FOUNDATION TRUST","RC971","Eastbourne District General Hospital"]
[null,null,null,null,null,null,null,null,null,null,null,null,null,null,"QT1","NOTTINGHAM AND NOTTINGHAMSHIRE ICB",null,"QT1","NOTTINGHAM AND NOTTINGHAMSHIRE ICB",null,"QHM","RTF","NORTHUMBRIA HEALTHCARE NHS FOUNDATION TRUST","RTFXXX","Non-hospital site",null,"RF4","HARROGATE AND DISTRICT NHS FOUNDATION TRUST",null,"RF4","HARROGATE AND DISTRICT NHS FOUNDATION TRUST","RC979","Epsom Hospital"]
[null,null,null,null,null,null,null,null,null,null,null,null,null,null,"QT6","CORNWALL AND THE ISLES OF SCILLY ICB",null,"QT6","CORNWALL AND THE ISLES OF SCILLY ICB",null,"QHM","RTR","SOUTH TEES HOSPITALS NHS FOUNDATION TRUST","RTR45","Friarage Hospital Site",null,"RFF","HOMERTON HEALTHCARE NHS FOUNDATION TRUST",null,"RFF","HOMERTON HEALTHCARE NHS FOUNDATION TRUST","RCB55","Friarage Hospital Site"]
[null,null,null,null,null,null,null,null,null,null,null,null,null,null,"QU9","BUCKINGHAMSHIRE, OXFORDSHIRE AND BERKSHIRE WEST ICB",null,"QU9","BUCKINGHAMSHIRE, OXFORDSHIRE AND BERKSHIRE WEST ICB",null,"QHM","RTR","SOUTH TEES HOSPITALS NHS FOUNDATION TRUST","RTRAT","The James Cook University Hospital",null,"RFR","HULL UNIVERSITY TEACHING HOSPITALS NHS TRUST",null,"RFR","HULL UNIVERSITY TEACHING HOSPITALS NHS TRUST","RCBCA","Frimley Park Hospital"]
[null,null,null,null,null,null,null,null,null,null,null,null,null,null,"QUA","BLACK COUNTRY ICB",null,"QUA","BLACK COUNTRY ICB",null,"QHM","R0B","SOUTH TYNESIDE AND SUNDERLAND NHS FOUNDATION TRUST","R0BXXX","Non-hospital site",null,"RFS","IMPERIAL COLLEGE HEALTHCARE NHS TRUST",null,"RFS","IMPERIAL COLLEGE HEALTHCARE NHS TRUST","RCD01","Frome Community Hospital"]
[null,null,null,null,null,null,null,null,null,null,null,null,null,null,"QUE","CAMBRIDGESHIRE AND PETERBOROUGH ICB",null,"QUE","CAMBRIDGESHIRE AND PETERBOROUGH ICB",null,"QHM","R0B","SOUTH TYNESIDE AND SUNDERLAND NHS FOUNDATION TRUST","R0B0Q","South Tyneside District Hospital",null,"RGN","ISLE OF WIGHT NHS TRUST",null,"RGN","ISLE OF WIGHT NHS TRUST","RCX66","Furness General Hospital"]
[null,null,null,null,null,null,null,null,null,null,null,null,null,null,"QUY","BRISTOL, NORTH SOMERSET AND SOUTH GLOUCESTERSHIRE ICB",null,"QUY","BRISTOL, NORTH SOMERSET AND SOUTH GLOUCESTERSHIRE ICB",null,"QHM","R0B","SOUTH TYNESIDE AND SUNDERLAND NHS FOUNDATION TRUST","R0B01","Sunderland Royal Hospital",null,"RGP","JAMES PAGET UNIVERSITY HOSPITALS NHS FOUNDATION TRUST",null,"RGP","JAMES PAGET UNIVERSITY HOSPITALS NHS FOUNDATION TRUST","RCX70","Good Hope Hospital"]
[null,null,null,null,null,null,null,null,null,null,null,null,null,null,"QVV","DORSET ICB",null,"QVV","DORSET ICB",null,"QHM","RTD","THE NEWCASTLE UPON TYNE HOSPITALS NHS FOUNDATION TRUST","RTD02","The Royal Victoria Infirmary",null,"RGR","KETTERING GENERAL HOSPITAL NHS FOUNDATION TRUST",null,"RGR","KETTERING GENERAL HOSPITAL NHS FOUNDATION TRUST","RCXXXX","Gosport War Memorial Hospital"]
[null,null,null,null,null,null,null,null,null,null,null,null,null,null,"QWE","SOUTH WEST LONDON ICB",null,"QWE","SOUTH WEST LONDON ICB",null,"QJ2","RFS","CHESTERFIELD ROYAL HOSPITAL NHS FOUNDATION TRUST","RFSDA","Chesterfield Royal Hospital",null,"RGT","KING'S COLLEGE HOSPITAL NHS FOUNDATION TRUST",null,"RGT","KING'S COLLEGE HOSPITAL NHS FOUNDATION TRUST","RD121","Grantham and District Hospital"]
[null,null,null,null,null,null,null,null,null,null,null,null,null,null,"QWO","WEST YORKSHIRE ICB",null,"QWO","WEST YORKSHIRE ICB",null,"QJ2","RTG","UNIVERSITY HOSPITALS OF DERBY AND BURTON NHS FOUNDATION TRUST","RTG02","Queens Hospital, Burton Upon Trent",null,"RH5","KINGSTON HOSPITAL NHS FOUNDATION TRUST",null,"RH5","KINGSTON HOSPITAL NHS FOUNDATION TRUST","RD130","Harrogate District Hospital"]
[null,null,null,null,null,null,null,null,null,null,null,null,null,null,"QWU","COVENTRY AND WARWICKSHIRE ICB",null,"QWU","COVENTRY AND WARWICKSHIRE ICB",null,"QJ2","RTG","UNIVERSITY HOSPITALS OF DERBY AND BURTON NHS FOUNDATION TRUST","RTGFG","Royal Derby Hospital",null,"RH8","LANCASHIRE TEACHING HOSPITALS NHS FOUNDATION TRUST",null,"RH8","LANCASHIRE TEACHING HOSPITALS NHS FOUNDATION TRUST","RD816","Heartlands Hospital"]
[null,null,null,null,null,null,null,null,null,null,null,null,null,null,"QXU","SURREY HEARTLANDS ICB",null,"QXU","SURREY HEARTLANDS ICB",null,"QJG","RDE","EAST SUFFOLK AND NORTH ESSEX NHS FOUNDATION TRUST","RDEE4","Colchester General Hospital",null,"RHM","LEEDS TEACHING HOSPITALS NHS TRUST",null,"RHM","LEEDS TEACHING HOSPITALS NHS TRUST","RDE03","Hereford County Hospital"]
[null,null,null,null,null,null,null,null,null,null,null,null,null,null,"QYG","CHESHIRE AND MERSEYSIDE ICB",null,"QYG","CHESHIRE AND MERSEYSIDE ICB",null,"QJG","RDE","EAST SUFFOLK AND NORTH ESSEX NHS FOUNDATION TRUST","RDE03","Ipswich Hospital",null,"RHQ","LEWISHAM AND GREENWICH NHS TRUST",null,"RHQ","LEWISHAM AND GREENWICH NHS TRUST","RDEE4","Hillingdon Hospital"]
[null,null,null,null,null,null,null,null,null,null,null,null,null,null,null,null,null,null,null,null,"QJG","RGR","WEST SUFFOLK NHS FOUNDATION TRUST","RGR50","West Suffolk Hospital",null,"RHU","LIVERPOOL WOMEN'S NHS FOUNDATION TRUST",null,"RHU","LIVERPOOL WOMEN'S NHS FOUNDATION TRUST","RDU01","Hinchingbrooke Hospital"]
[null,null,null,null,null,null,null,null,null,null,null,null,null,null,null,null,null,null,null,null,"QJK","RH8","ROYAL DEVON UNIVERSITY HEALTHCARE NHS FOUNDATION TRUST","RH880","North Devon District Hospital",null,"RHW","LONDON NORTH WEST UNIVERSITY HEALTHCARE NHS TRUST",null,"RHW","LONDON NORTH WEST UNIVERSITY HEALTHCARE NHS TRUST","RDU50","Homerton University Hospital"]
[null,null,null,null,null,null,null,null,null,null,null,null,null,null,null,null,null,null,null,null,"QJK","RH8","ROYAL DEVON UNIVERSITY HEALTHCARE NHS FOUNDATION TRUST","RH801","Royal Devon and Exeter Hospital (Wonford)",null,"RJ1","MAIDSTONE AND TUNBRIDGE WELLS NHS TRUST",null,"RJ1","MAIDSTONE AND TUNBRIDGE WELLS NHS TRUST","REF12","Horton General Hospital"]
[null,null,null,null,null,null,null,null,null,null,null,null,null,null,null,null,null,null,null,null,"QJK","RK9","UNIVERSITY HOSPITALS PLYMOUTH NHS TRUST","RK950","Derriford Hospital",null,"RJ2","MANCHESTER UNIVERSITY NHS FOUNDATION TRUST",null,"RJ2","MANCHESTER UNIVERSITY NHS FOUNDATION TRUST","REFXXX","Hospital Of St Cross"]
[null,null,null,null,null,null,null,null,null,null,null,null,null,null,null,null,null,null,null,null,"QJK","RK9","UNIVERSITY HOSPITALS PLYMOUTH NHS TRUST","RK9XXX","Non-hospital site",null,"RJ6","MEDWAY NHS FOUNDATION TRUST",null,"RJ6","MEDWAY NHS FOUNDATION TRUST","REP01","Huddersfield Royal Infirmary"]
[null,null,null,null,null,null,null,null,null,null,null,null,null,null,null,null,null,null,null,null,"QJM","RWD","UNITED LINCOLNSHIRE HOSPITALS NHS TRUST","RWDLP","Grantham and District Hospital",null,"RJ7","MID AND SOUTH ESSEX NHS FOUNDATION TRUST",null,"RJ7","MID AND SOUTH ESSEX NHS FOUNDATION TRUST","RF4XXX","Hull Royal Infirmary"]
[null,null,null,null,null,null,null,null,null,null,null,null,null,null,null,null,null,null,null,null,"QJM","RWD","UNITED LINCOLNSHIRE HOSPITALS NHS TRUST","RWDDA","Lincoln County Hospital",null,"RJC","MID CHESHIRE HOSPITALS NHS FOUNDATION TRUST",null,"RJC","MID CHESHIRE HOSPITALS NHS FOUNDATION TRUST","RFFAA","Ipswich Hospital"]
[null,null,null,null,null,null,null,null,null,null,null,null,null,null,null,null,null,null,null,null,"QJM","RWD","UNITED LINCOLNSHIRE HOSPITALS NHS TRUST","RWDLA","Pilgrim Hospital",null,"RJE","MID YORKSHIRE HOSPITALS NHS TRUST",null,"RJE","MID YORKSHIRE HOSPITALS NHS TRUST","RFRPA","James Paget University Hospital"]
[null,null,null,null,null,null,null,null,null,null,null,null,null,null,null,null,null,null,null,null,"QK1","RWE","UNIVERSITY HOSPITALS OF LEICESTER NHS TRUST","RWEAK","Leicester General Hospital",null,"RJL","MILTON KEYNES UNIVERSITY HOSPITAL NHS FOUNDATION TRUST",null,"RJL","MILTON KEYNES UNIVERSITY HOSPITAL NHS FOUNDATION TRUST","RFSDA","John Radcliffe Hospital"]
[null,null,null,null,null,null,null,null,null,null,null,null,null,null,null,null,null,null,null,null,"QK1","RWE","UNIVERSITY HOSPITALS OF LEICESTER NHS TRUST","RWEAA","Leicester Royal Infirmary",null,"RJN","NORFOLK AND NORWICH UNIVERSITY HOSPITALS NHS FOUNDATION TRUST",null,"RJN","NORFOLK AND NORWICH UNIVERSITY HOSPITALS NHS FOUNDATION TRUST","RGN80","Kettering General Hospital"]
[null,null,null,null,null,null,null,null,null,null,null,null,null,null,null,null,null,null,null,null,"QK1","RWE","UNIVERSITY HOSPITALS OF LEICESTER NHS TRUST","RWEXXX","Non-hospital site",null,"RJZ","NORTH BRISTOL NHS TRUST",null,"RJZ","NORTH BRISTOL NHS TRUST","RGN90","Kidderminster Hospital"]
[null,null,null,null,null,null,null,null,null,null,null,null,null,null,null,null,null,null,null,null,"QKK","RJ1","GUY'S AND ST THOMAS' NHS FOUNDATION TRUST","RJ122","St Thomas' Hospital",null,"RK5","NORTH MIDDLESEX UNIVERSITY HOSPITAL NHS TRUST",null,"RK5","NORTH MIDDLESEX UNIVERSITY HOSPITAL NHS TRUST","RGP75","King's College Hospital (Denmark Hill)"]
[null,null,null,null,null,null,null,null,null,null,null,null,null,null,null,null,null,null,null,null,"QKK","RJZ","KING'S COLLEGE HOSPITAL NHS FOUNDATION TRUST","RJZ01","King's College Hospital (Denmark Hill)",null,"RK9","NORTH TEES AND HARTLEPOOL NHS FOUNDATION TRUST",null,"RK9","NORTH TEES AND HARTLEPOOL NHS FOUNDATION TRUST","RGR50","King's Mill Hospital"]
[null,null,null,null,null,null,null,null,null,null,null,null,null,null,null,null,null,null,null,null,"QKK","RJZ","KING'S COLLEGE HOSPITAL NHS FOUNDATION TRUST","RJZ30","Princess Royal University Hospital",null,"RKB","NORTH WEST ANGLIA NHS FOUNDATION TRUST",null,"RKB","NORTH WEST ANGLIA NHS FOUNDATION TRUST","RGT32","Kingston Hospital"]
[null,null,null,null,null,null,null,null,null,null,null,null,null,null,null,null,null,null,null,null,"QKK","RJ2","LEWISHAM AND GREENWICH NHS TRUST","RJ231","Queen Elizabeth Hospital",null,"RL4","NORTHAMPTON GENERAL HOSPITAL NHS TRUST",null,"RL4","NORTHAMPTON GENERAL HOSPITAL NHS TRUST","RH5A8","Leeds General Infirmary"]
[null,null,null,null,null,null,null,null,null,null,null,null,null,null,null,null,null,null,null,null,"QKK","RJ2","LEWISHAM AND GREENWICH NHS TRUST","RJ224","University Hospital Lewisham",null,"RLQ","NORTHERN CARE ALLIANCE NHS FOUNDATION TRUST",null,"RLQ","NORTHERN CARE ALLIANCE NHS FOUNDATION TRUST","RH5K6","Leicester General Hospital"]
[null,null,null,null,null,null,null,null,null,null,null,null,null,null,null,null,null,null,null,null,"QKS","RN7","DARTFORD AND GRAVESHAM NHS TRUST","RN707","Darent Valley Hospital",null,"RM1","NORTHERN LINCOLNSHIRE AND GOOLE NHS FOUNDATION TRUST",null,"RM1","NORTHERN LINCOLNSHIRE AND GOOLE NHS FOUNDATION TRUST","RH5XXX","Leicester Royal Infirmary"]
[null,null,null,null,null,null,null,null,null,null,null,null,null,null,null,null,null,null,null,null,"QKS","RVV","EAST KENT HOSPITALS UNIVERSITY NHS FOUNDATION TRUST","RVV01","William Harvey Hospital (Ashford)",null,"RM3","NORTHUMBRIA HEALTHCARE NHS FOUNDATION TRUST",null,"RM3","NORTHUMBRIA HEALTHCARE NHS FOUNDATION TRUST","RH801","Leighton Hospital"]
[null,null,null,null,null,null,null,null,null,null,null,null,null,null,null,null,null,null,null,null,"QKS","RWF","MAIDSTONE AND TUNBRIDGE WELLS NHS TRUST","RWF03","Maidstone District General Hospital",null,"RMC","NOTTINGHAM UNIVERSITY HOSPITALS NHS TRUST",null,"RMC","NOTTINGHAM UNIVERSITY HOSPITALS NHS TRUST","RH880","Lincoln County Hospital"]
[null,null,null,null,null,null,null,null,null,null,null,null,null,null,null,null,null,null,null,null,"QKS","RWF","MAIDSTONE AND TUNBRIDGE WELLS NHS TRUST","RWFXXX","Non-hospital site",null,"RN3","OXFORD UNIVERSITY HOSPITALS NHS FOUNDATION TRUST",null,"RN3","OXFORD UNIVERSITY HOSPITALS NHS FOUNDATION TRUST","RHM01","Lister Hospital"]
[null,null,null,null,null,null,null,null,null,null,null,null,null,null,null,null,null,null,null,null,"QKS","RWF","MAIDSTONE AND TUNBRIDGE WELLS NHS TRUST","RWFTW","The Tunbridge Wells Hospital",null,"RN5","PORTSMOUTH HOSPITALS UNIVERSITY NATIONAL HEALTH SERVICE TRUST",null,"RN5","PORTSMOUTH HOSPITALS UNIVERSITY NATIONAL HEALTH SERVICE TRUST","RHQHH","Liverpool Womens Hospital"]
[null,null,null,null,null,null,null,null,null,null,null,null,null,null,null,null,null,null,null,null,"QKS","RPA","MEDWAY NHS FOUNDATION TRUST","RPA02","Medway Maritime Hospital",null,"RN7","ROYAL BERKSHIRE NHS FOUNDATION TRUST",null,"RN7","ROYAL BERKSHIRE NHS FOUNDATION TRUST","RHU02","Luton and Dunstable Hospital"]
[null,null,null,null,null,null,null,null,null,null,null,null,null,null,null,null,null,null,null,null,"QM7","RWH","EAST AND NORTH HERTFORDSHIRE NHS TRUST","RWH01","Lister Hospital",null,"RNA","ROYAL CORNWALL HOSPITALS NHS TRUST",null,"RNA","ROYAL CORNWALL HOSPITALS NHS TRUST","RHU03","Macclesfield District General Hospital"]
[null,null,null,null,null,null,null,null,null,null,null,null,null,null,null,null,null,null,null,null,"QM7","RWH","EAST AND NORTH HERTFORDSHIRE NHS TRUST","RWHXXX","Non-hospital site",null,"RNQ","ROYAL DEVON UNIVERSITY HEALTHCARE NHS FOUNDATION TRUST",null,"RNQ","ROYAL DEVON UNIVERSITY HEALTHCARE NHS FOUNDATION TRUST","RHU04","Maidstone District General Hospital"]
[null,null,null,null,null,null,null,null,null,null,null,null,null,null,null,null,null,null,null,null,"QM7","RQW","THE PRINCESS ALEXANDRA HOSPITAL NHS TRUST","RQWG0","Princess Alexandra Hospital",null,"RNS","ROYAL FREE LONDON NHS FOUNDATION TRUST",null,"RNS","ROYAL FREE LONDON NHS FOUNDATION TRUST","RHU10","Manor Hospital"]
[null,null,null,null,null,null,null,null,null,null,null,null,null,null,null,null,null,null,null,null,"QM7","RWG","WEST HERTFORDSHIRE TEACHING HOSPITALS NHS TRUST","RWG02","Watford General Hospital",null,"RNZ","ROYAL SURREY COUNTY HOSPITAL NHS FOUNDATION TRUST",null,"RNZ","ROYAL SURREY COUNTY HOSPITAL NHS FOUNDATION TRUST","RHW01","Medway Maritime Hospital"]
[null,null,null,null,null,null,null,null,null,null,null,null,null,null,null,null,null,null,null,null,"QMF","RF4","BARKING, HAVERING AND REDBRIDGE UNIVERSITY HOSPITALS NHS TRUST","RF4XXX","Non-hospital site",null,"RP5","ROYAL UNITED HOSPITALS BATH NHS FOUNDATION TRUST",null,"RP5","ROYAL UNITED HOSPITALS BATH NHS FOUNDATION TRUST","RJ122","MID ESSEX HOSPITAL"]
[null,null,null,null,null,null,null,null,null,null,null,null,null,null,null,null,null,null,null,null,"QMF","R1H","BARTS HEALTH NHS TRUST","R1HNH","Newham General Hospital",null,"RPA","SALISBURY NHS FOUNDATION TRUST",null,"RPA","SALISBURY NHS FOUNDATION TRUST","RJ224","Milton Keynes Hospital"]
[null,null,null,null,null,null,null,null,null,null,null,null,null,null,null,null,null,null,null,null,"QMF","R1H","BARTS HEALTH NHS TRUST","R1H12","The Royal London Hospital",null,"RQ3","SANDWELL AND WEST BIRMINGHAM HOSPITALS NHS TRUST",null,"RQ3","SANDWELL AND WEST BIRMINGHAM HOSPITALS NHS TRUST","RJ231","MUSGROVE PARK HOSPITAL"]
[null,null,null,null,null,null,null,null,null,null,null,null,null,null,null,null,null,null,null,null,"QMF","R1H","BARTS HEALTH NHS TRUST","R1HKH","Whipps Cross University Hospital",null,"RQM","SHEFFIELD TEACHING HOSPITALS NHS FOUNDATION TRUST",null,"RQM","SHEFFIELD TEACHING HOSPITALS NHS FOUNDATION TRUST","RJ611","New Cross Hospital"]
[null,null,null,null,null,null,null,null,null,null,null,null,null,null,null,null,null,null,null,null,"QMF","RQX","HOMERTON HEALTHCARE NHS FOUNDATION TRUST","RQXM1","Homerton University Hospital",null,"RQW","SHERWOOD FOREST HOSPITALS NHS FOUNDATION TRUST",null,"RQW","SHERWOOD FOREST HOSPITALS NHS FOUNDATION TRUST","RJ701","Newham General Hospital"]
[null,null,null,null,null,null,null,null,null,null,null,null,null,null,null,null,null,null,null,null,"QMJ","RAP","NORTH MIDDLESEX UNIVERSITY HOSPITAL NHS TRUST","RAPNM","North Middlesex Hospital",null,"RQX","SOMERSET NHS FOUNDATION TRUST",null,"RQX","SOMERSET NHS FOUNDATION TRUST","RJC02","Non-hospital site"]
[null,null,null,null,null,null,null,null,null,null,null,null,null,null,null,null,null,null,null,null,"QMJ","RAL","ROYAL FREE LONDON NHS FOUNDATION TRUST","RAL26","Barnet Hospital",null,"RR7","SOUTH TEES HOSPITALS NHS FOUNDATION TRUST",null,"RR7","SOUTH TEES HOSPITALS NHS FOUNDATION TRUST","RJCXXX","Non-hospital site"]
[null,null,null,null,null,null,null,null,null,null,null,null,null,null,null,null,null,null,null,null,"QMJ","RAL","ROYAL FREE LONDON NHS FOUNDATION TRUST","RAL01","Royal Free Hospital",null,"RR8","SOUTH TYNESIDE AND SUNDERLAND NHS FOUNDATION TRUST",null,"RR8","SOUTH TYNESIDE AND SUNDERLAND NHS FOUNDATION TRUST","RJE01","Non-hospital site"]
[null,null,null,null,null,null,null,null,null,null,null,null,null,null,null,null,null,null,null,null,"QMJ","RRV","UNIVERSITY COLLEGE LONDON HOSPITALS NHS FOUNDATION TRUST","RRV11","University College Hospital Elizabeth Garrett Anderson Wing",null,"RRF","SOUTH WARWICKSHIRE UNIVERSITY NHS FOUNDATION TRUST",null,"RRF","SOUTH WARWICKSHIRE UNIVERSITY NHS FOUNDATION TRUST","RJL30","Non-hospital site"]
[null,null,null,null,null,null,null,null,null,null,null,null,null,null,null,null,null,null,null,null,"QMM","RGP","JAMES PAGET UNIVERSITY HOSPITALS NHS FOUNDATION TRUST","RGP75","James Paget University Hospital",null,"RRK","SOUTHPORT AND ORMSKIRK HOSPITAL NHS TRUST",null,"RRK","SOUTHPORT AND ORMSKIRK HOSPITAL NHS TRUST","RJL32","Non-hospital site"]
[null,null,null,null,null,null,null,null,null,null,null,null,null,null,null,null,null,null,null,null,"QMM","RM1","NORFOLK AND NORWICH UNIVERSITY HOSPITALS NHS FOUNDATION TRUST","RM102","Norfolk and Norwich University Hospital",null,"RRV","ST GEORGE'S UNIVERSITY HOSPITALS NHS FOUNDATION TRUST",null,"RRV","ST GEORGE'S UNIVERSITY HOSPITALS NHS FOUNDATION TRUST","RJN71","Non-hospital site"]
[null,null,null,null,null,null,null,null,null,null,null,null,null,null,null,null,null,null,null,null,"QMM","RCX","THE QUEEN ELIZABETH HOSPITAL, KING'S LYNN, NHS FOUNDATION TRUST","RCXXXX","Non-hospital site",null,"RTD","ST HELENS AND KNOWSLEY TEACHING HOSPITALS NHS TRUST",null,"RTD","ST HELENS AND KNOWSLEY TEACHING HOSPITALS NHS TRUST","RJZ01","Non-hospital site"]
[null,null,null,null,null,null,null,null,null,null,null,null,null,null,null,null,null,null,null,null,"QMM","RCX","THE QUEEN ELIZABETH HOSPITAL, KING'S LYNN, NHS FOUNDATION TRUST","RCX66","North Cambridgeshire Hospital",null,"RTF","STOCKPORT NHS FOUNDATION TRUST",null,"RTF","STOCKPORT NHS FOUNDATION TRUST","RJZ30","Non-hospital site"]
[null,null,null,null,null,null,null,null,null,null,null,null,null,null,null,null,null,null,null,null,"QMM","RCX","THE QUEEN ELIZABETH HOSPITAL, KING'S LYNN, NHS FOUNDATION TRUST","RCX70","The Queen Elizabeth Hospital",null,"RTG","SURREY AND SUSSEX HEALTHCARE NHS TRUST",null,"RTG","SURREY AND SUSSEX HEALTHCARE NHS TRUST","RK5BC","Non-hospital site"]
[null,null,null,null,null,null,null,null,null,null,null,null,null,null,null,null,null,null,null,null,"QNC","RJE","UNIVERSITY HOSPITALS OF NORTH MIDLANDS NHS TRUST","RJE01","Royal Stoke University Hospital",null,"RTH","THE DUDLEY GROUP NHS FOUNDATION TRUST",null,"RTH","THE DUDLEY GROUP NHS FOUNDATION TRUST","RK950","Non-hospital site"]
[null,null,null,null,null,null,null,null,null,null,null,null,null,null,null,null,null,null,null,null,"QNQ","RDU","FRIMLEY HEALTH NHS FOUNDATION TRUST","RDU01","Frimley Park Hospital",null,"RTK","THE HILLINGDON HOSPITALS NHS FOUNDATION TRUST",null,"RTK","THE HILLINGDON HOSPITALS NHS FOUNDATION TRUST","RK9XXX","Non-hospital site"]
[null,null,null,null,null,null,null,null,null,null,null,null,null,null,null,null,null,null,null,null,"QNQ","RDU","FRIMLEY HEALTH NHS FOUNDATION TRUST","RDU50","Wexham Park Hospital",null,"RTP","THE NEWCASTLE UPON TYNE HOSPITALS NHS FOUNDATION TRUST",null,"RTP","THE NEWCASTLE UPON TYNE HOSPITALS NHS FOUNDATION TRUST","RKB01","Non-hospital site"]
[null,null,null,null,null,null,null,null,null,null,null,null,null,null,null,null,null,null,null,null,"QNX","RXC","EAST SUSSEX HEALTHCARE NHS TRUST","RXC01","Conquest Hospital",null,"RTR","THE PRINCESS ALEXANDRA HOSPITAL NHS TRUST",null,"RTR","THE PRINCESS ALEXANDRA HOSPITAL NHS TRUST","RKB03","Non-hospital site"]
[null,null,null,null,null,null,null,null,null,null,null,null,null,null,null,null,null,null,null,null,"QNX","RXC","EAST SUSSEX HEALTHCARE NHS TRUST","RXC02","Eastbourne District General Hospital",null,"RTX","THE QUEEN ELIZABETH HOSPITAL, KING'S LYNN, NHS FOUNDATION TRUST",null,"RTX","THE QUEEN ELIZABETH HOSPITAL, KING'S LYNN, NHS FOUNDATION TRUST","RKBXXX","Non-hospital site"]
[null,null,null,null,null,null,null,null,null,null,null,null,null,null,null,null,null,null,null,null,"QNX","RXC","EAST SUSSEX HEALTHCARE NHS TRUST","RXCXXX","Non-hospital site",null,"RVJ","THE ROTHERHAM NHS FOUNDATION TRUST",null,"RVJ","THE ROTHERHAM NHS FOUNDATION TRUST","RL403","Non-hospital site"]
[null,null,null,null,null,null,null,null,null,null,null,null,null,null,null,null,null,null,null,null,"QNX","RYR","UNIVERSITY HOSPITALS SUSSEX NHS FOUNDATION TRUST","E0A3H","Royal Sussex County Hospital",null,"RVR","THE ROYAL WOLVERHAMPTON NHS TRUST",null,"RVR","THE ROYAL WOLVERHAMPTON NHS TRUST","RLQ01","Non-hospital site"]
[null,null,null,null,null,null,null,null,null,null,null,null,null,null,null,null,null,null,null,null,"QOC","RXW","THE SHREWSBURY AND TELFORD HOSPITAL NHS TRUST","RXWXXX","Non-hospital site",null,"RVV","THE SHREWSBURY AND TELFORD HOSPITAL NHS TRUST",null,"RVV","THE SHREWSBURY AND TELFORD HOSPITAL NHS TRUST","RM102","Non-hospital site"]
[null,null,null,null,null,null,null,null,null,null,null,null,null,null,null,null,null,null,null,null,"QOP","RMC","BOLTON NHS FOUNDATION TRUST","RMC01","Royal Bolton Hospital",null,"RVW","UNITED LINCOLNSHIRE HOSPITALS NHS TRUST",null,"RVW","UNITED LINCOLNSHIRE HOSPITALS NHS TRUST","RMC01","Non-hospital site"]
[null,null,null,null,null,null,null,null,null,null,null,null,null,null,null,null,null,null,null,null,"QOP","R0A","MANCHESTER UNIVERSITY NHS FOUNDATION TRUST","R0A05","St Mary's Hospital",null,"RVY","UNIVERSITY COLLEGE LONDON HOSPITALS NHS FOUNDATION TRUST",null,"RVY","UNIVERSITY COLLEGE LONDON HOSPITALS NHS FOUNDATION TRUST","RN325","Non-hospital site"]
[null,null,null,null,null,null,null,null,null,null,null,null,null,null,null,null,null,null,null,null,"QOP","RM3","NORTHERN CARE ALLIANCE NHS FOUNDATION TRUST","RW603","Royal Oldham Hospital",null,"RWA","UNIVERSITY HOSPITAL SOUTHAMPTON NHS FOUNDATION TRUST",null,"RWA","UNIVERSITY HOSPITAL SOUTHAMPTON NHS FOUNDATION TRUST","RN506","Norfolk and Norwich University Hospital"]
[null,null,null,null,null,null,null,null,null,null,null,null,null,null,null,null,null,null,null,null,"QOP","RWJ","STOCKPORT NHS FOUNDATION TRUST","RWJ09","Stepping Hill Hospital",null,"RWD","UNIVERSITY HOSPITALS BIRMINGHAM NHS FOUNDATION TRUST",null,"RWD","UNIVERSITY HOSPITALS BIRMINGHAM NHS FOUNDATION TRUST","RN541","North Cambridgeshire Hospital"]
[null,null,null,null,null,null,null,null,null,null,null,null,null,null,null,null,null,null,null,null,"QOP","RRF","WRIGHTINGTON, WIGAN AND LEIGH NHS FOUNDATION TRUST","RRF02","Royal Albert Edward Infirmary",null,"RWE","UNIVERSITY HOSPITALS BRISTOL AND WESTON NHS FOUNDATION TRUST",null,"RWE","UNIVERSITY HOSPITALS BRISTOL AND WESTON NHS FOUNDATION TRUST","RN542","North Devon District Hospital"]
[null,null,null,null,null,null,null,null,null,null,null,null,null,null,null,null,null,null,null,null,"QOQ","RCD","HARROGATE AND DISTRICT NHS FOUNDATION TRUST","RCD01","Harrogate District Hospital",null,"RWF","UNIVERSITY HOSPITALS COVENTRY AND WARWICKSHIRE NHS TRUST",null,"RWF","UNIVERSITY HOSPITALS COVENTRY AND WARWICKSHIRE NHS TRUST","RN5XXX","North Middlesex Hospital"]
[null,null,null,null,null,null,null,null,null,null,null,null,null,null,null,null,null,null,null,null,"QOQ","RWA","HULL UNIVERSITY TEACHING HOSPITALS NHS TRUST","RWA01","Hull Royal Infirmary",null,"RWG","UNIVERSITY HOSPITALS DORSET NHS FOUNDATION TRUST",null,"RWG","UNIVERSITY HOSPITALS DORSET NHS FOUNDATION TRUST","RN707","Northampton General Hospital (Acute)"]
[null,null,null,null,null,null,null,null,null,null,null,null,null,null,null,null,null,null,null,null,"QOQ","RJL","NORTHERN LINCOLNSHIRE AND GOOLE NHS FOUNDATION TRUST","RJL30","Diana, Princess Of Wales Hospital",null,"RWH","UNIVERSITY HOSPITALS OF DERBY AND BURTON NHS FOUNDATION TRUST",null,"RWH","UNIVERSITY HOSPITALS OF DERBY AND BURTON NHS FOUNDATION TRUST","RNA01","Northwick Park Hospital"]
[null,null,null,null,null,null,null,null,null,null,null,null,null,null,null,null,null,null,null,null,"QOQ","RJL","NORTHERN LINCOLNSHIRE AND GOOLE NHS FOUNDATION TRUST","RJL32","Scunthorpe General Hospital",null,"RWJ","UNIVERSITY HOSPITALS OF LEICESTER NHS TRUST",null,"RWJ","UNIVERSITY HOSPITALS OF LEICESTER NHS TRUST","RNQ51","Ormskirk and District General Hospital"]
[null,null,null,null,null,null,null,null,null,null,null,null,null,null,null,null,null,null,null,null,"QOQ","RCB","YORK AND SCARBOROUGH TEACHING HOSPITALS NHS FOUNDATION TRUST","RCBCA","Scarborough General Hospital",null,"RWP","UNIVERSITY HOSPITALS OF MORECAMBE BAY NHS FOUNDATION TRUST",null,"RWP","UNIVERSITY HOSPITALS OF MORECAMBE BAY NHS FOUNDATION TRUST","RNS01","Peterborough City Hospital"]
[null,null,null,null,null,null,null,null,null,null,null,null,null,null,null,null,null,null,null,null,"QOQ","RCB","YORK AND SCARBOROUGH TEACHING HOSPITALS NHS FOUNDATION TRUST","RCB55","York Hospital",null,"RWY","UNIVERSITY HOSPITALS OF NORTH MIDLANDS NHS TRUST",null,"RWY","UNIVERSITY HOSPITALS OF NORTH MIDLANDS NHS TRUST","RNZ02","Petersfield Community Hospital"]
[null,null,null,null,null,null,null,null,null,null,null,null,null,null,null,null,null,null,null,null,"QOX","RN3","GREAT WESTERN HOSPITALS NHS FOUNDATION TRUST","RN325","The Great Western Hospital",null,"RX1","UNIVERSITY HOSPITALS PLYMOUTH NHS TRUST",null,"RX1","UNIVERSITY HOSPITALS PLYMOUTH NHS TRUST","RP5BA","Pilgrim Hospital"]
[null,null,null,null,null,null,null,null,null,null,null,null,null,null,null,null,null,null,null,null,"QOX","RD1","ROYAL UNITED HOSPITALS BATH NHS FOUNDATION TRUST","RD121","Frome Community Hospital",null,"RXC","UNIVERSITY HOSPITALS SUSSEX NHS FOUNDATION TRUST",null,"RXC","UNIVERSITY HOSPITALS SUSSEX NHS FOUNDATION TRUST","RP5DR","Pinderfields General Hospital"]
[null,null,null,null,null,null,null,null,null,null,null,null,null,null,null,null,null,null,null,null,"QOX","RD1","ROYAL UNITED HOSPITALS BATH NHS FOUNDATION TRUST","RD130","Princess Anne Wing RUH",null,"RXF","WALSALL HEALTHCARE NHS TRUST",null,"RXF","WALSALL HEALTHCARE NHS TRUST","RP5XXX","Pontefract General Infirmary"]
[null,null,null,null,null,null,null,null,null,null,null,null,null,null,null,null,null,null,null,null,"QOX","RNZ","SALISBURY NHS FOUNDATION TRUST","RNZ02","Salisbury District Hospital",null,"RXK","WEST HERTFORDSHIRE TEACHING HOSPITALS NHS TRUST",null,"RXK","WEST HERTFORDSHIRE TEACHING HOSPITALS NHS TRUST","RPA02","Poole Hospital"]
[null,null,null,null,null,null,null,null,null,null,null,null,null,null,null,null,null,null,null,null,"QPM","RNQ","KETTERING GENERAL HOSPITAL NHS FOUNDATION TRUST","RNQ51","Kettering General Hospital",null,"RXL","WEST SUFFOLK NHS FOUNDATION TRUST",null,"RXL","WEST SUFFOLK NHS FOUNDATION TRUST","RQ370","Princess Alexandra Hospital"]
[null,null,null,null,null,null,null,null,null,null,null,null,null,null,null,null,null,null,null,null,"QPM","RNS","NORTHAMPTON GENERAL HOSPITAL NHS TRUST","RNS01","Northampton General Hospital (Acute)",null,"RXN","WIRRAL UNIVERSITY TEACHING HOSPITAL NHS FOUNDATION TRUST",null,"RXN","WIRRAL UNIVERSITY TEACHING HOSPITAL NHS FOUNDATION TRUST","RQM01","Princess Anne Wing RUH"]
[null,null,null,null,null,null,null,null,null,null,null,null,null,null,null,null,null,null,null,null,"QRL","RN5","HAMPSHIRE HOSPITALS NHS FOUNDATION TRUST","RN542","Andover War Memorial Hospital",null,"RXQ","WORCESTERSHIRE ACUTE HOSPITALS NHS TRUST",null,"RXQ","WORCESTERSHIRE ACUTE HOSPITALS NHS TRUST","RQM91","Princess Royal University Hospital"]
[null,null,null,null,null,null,null,null,null,null,null,null,null,null,null,null,null,null,null,null,"QRL","RN5","HAMPSHIRE HOSPITALS NHS FOUNDATION TRUST","RN506","Basingstoke and North Hampshire Hospital",null,"RXR","WRIGHTINGTON, WIGAN AND LEIGH NHS FOUNDATION TRUST",null,"RXR","WRIGHTINGTON, WIGAN AND LEIGH NHS FOUNDATION TRUST","RQWG0","Queen Alexandra Hospital"]
[null,null,null,null,null,null,null,null,null,null,null,null,null,null,null,null,null,null,null,null,"QRL","RN5","HAMPSHIRE HOSPITALS NHS FOUNDATION TRUST","RN5XXX","Non-hospital site",null,"RXW","WYE VALLEY NHS TRUST",null,"RXW","WYE VALLEY NHS TRUST","RQXM1","Queen Charlotte's Hospital"]
[null,null,null,null,null,null,null,null,null,null,null,null,null,null,null,null,null,null,null,null,"QRL","RN5","HAMPSHIRE HOSPITALS NHS FOUNDATION TRUST","RN541","Royal Hampshire County Hospital",null,"RYJ","YEOVIL DISTRICT HOSPITAL NHS FOUNDATION TRUST",null,"RYJ","YEOVIL DISTRICT HOSPITAL NHS FOUNDATION TRUST","RR7EN","Queen Elizabeth Hospital"]
[null,null,null,null,null,null,null,null,null,null,null,null,null,null,null,null,null,null,null,null,"QRL","R1F","ISLE OF WIGHT NHS TRUST","R1F01","St Mary's Hospital",null,"RYR","YORK AND SCARBOROUGH TEACHING HOSPITALS NHS FOUNDATION TRUST",null,"RYR","YORK AND SCARBOROUGH TEACHING HOSPITALS NHS FOUNDATION TRUST","RR801","Queen Elizabeth Hospital"]
[null,null,null,null,null,null,null,null,null,null,null,null,null,null,null,null,null,null,null,null,"QRL","RHU","PORTSMOUTH HOSPITALS UNIVERSITY NATIONAL HEALTH SERVICE TRUST","RHU10","Gosport War Memorial Hospital",null,null,null,null,null,null,"RR813","Queens Hospital, Burton Upon Trent"]
[null,null,null,null,null,null,null,null,null,null,null,null,null,null,null,null,null,null,null,null,"QRL","RHU","PORTSMOUTH HOSPITALS UNIVERSITY NATIONAL HEALTH SERVICE TRUST","RHU04","Petersfield Community Hospital",null,null,null,null,null,null,"RR8XXX","Rosie Hospital"]
[null,null,null,null,null,null,null,null,null,null,null,null,null,null,null,null,null,null,null,null,"QRL","RHU","PORTSMOUTH HOSPITALS UNIVERSITY NATIONAL HEALTH SERVICE TRUST","RHU03","Queen Alexandra Hospital",null,null,null,null,null,null,"RRF02","Rotherham District General Hospital"]
[null,null,null,null,null,null,null,null,null,null,null,null,null,null,null,null,null,null,null,null,"QRL","RHU","PORTSMOUTH HOSPITALS UNIVERSITY NATIONAL HEALTH SERVICE TRUST","RHU02","St Mary's Hospital",null,null,null,null,null,null,"RRK97","Royal Albert Edward Infirmary"]
[null,null,null,null,null,null,null,null,null,null,null,null,null,null,null,null,null,null,null,null,"QRL","RHM","UNIVERSITY HOSPITAL SOUTHAMPTON NHS FOUNDATION TRUST","RHM01","Southampton General Hospital",null,null,null,null,null,null,"RRK98","Royal Berkshire Hospital"]
[null,null,null,null,null,null,null,null,null,null,null,null,null,null,null,null,null,null,null,null,"QRV","RQM","CHELSEA AND WESTMINSTER HOSPITAL NHS FOUNDATION TRUST","RQM01","Chelsea and Westminster Hospital",null,null,null,null,null,null,"RRK99","Royal Blackburn Hospital"]
[null,null,null,null,null,null,null,null,null,null,null,null,null,null,null,null,null,null,null,null,"QRV","RQM","CHELSEA AND WESTMINSTER HOSPITAL NHS FOUNDATION TRUST","RQM91","West Middlesex University Hospital",null,null,null,null,null,null,"RRV11","Royal Bolton Hospital"]
[null,null,null,null,null,null,null,null,null,null,null,null,null,null,null,null,null,null,null,null,"QRV","RYJ","IMPERIAL COLLEGE HEALTHCARE NHS TRUST","RYJ04","Queen Charlotte's Hospital",null,null,null,null,null,null,"RTD02","Royal Bournemouth Hospital"]
[null,null,null,null,null,null,null,null,null,null,null,null,null,null,null,null,null,null,null,null,"QRV","RYJ","IMPERIAL COLLEGE HEALTHCARE NHS TRUST","RYJ01","St Mary's Hospital (HQ)",null,null,null,null,null,null,"RTFXXX","Royal Cornwall Hospital (Treliske)"]
[null,null,null,null,null,null,null,null,null,null,null,null,null,null,null,null,null,null,null,null,"QRV","R1K","LONDON NORTH WEST UNIVERSITY HEALTHCARE NHS TRUST","R1K01","Northwick Park Hospital",null,null,null,null,null,null,"RTG02","Royal Derby Hospital"]
[null,null,null,null,null,null,null,null,null,null,null,null,null,null,null,null,null,null,null,null,"QRV","RAS","THE HILLINGDON HOSPITALS NHS FOUNDATION TRUST","RAS01","Hillingdon Hospital",null,null,null,null,null,null,"RTGFG","Royal Devon and Exeter Hospital (Wonford)"]
[null,null,null,null,null,null,null,null,null,null,null,null,null,null,null,null,null,null,null,null,"QSL","RH5","SOMERSET NHS FOUNDATION TRUST","RH5K6","Bridgwater Hospital",null,null,null,null,null,null,"RTH05","Royal Free Hospital"]
[null,null,null,null,null,null,null,null,null,null,null,null,null,null,null,null,null,null,null,null,"QSL","RH5","SOMERSET NHS FOUNDATION TRUST","RH5A8","MUSGROVE PARK HOSPITAL",null,null,null,null,null,null,"RTH08","Royal Hallamshire Hospital"]
[null,null,null,null,null,null,null,null,null,null,null,null,null,null,null,null,null,null,null,null,"QSL","RH5","SOMERSET NHS FOUNDATION TRUST","RH5XXX","WiC MIU - RH5XXX",null,null,null,null,null,null,"RTK02","Royal Hampshire County Hospital"]
[null,null,null,null,null,null,null,null,null,null,null,null,null,null,null,null,null,null,null,null,"QSL","RA4","YEOVIL DISTRICT HOSPITAL NHS FOUNDATION TRUST","RA430","Yeovil District Hospital",null,null,null,null,null,null,"RTP04","Royal Lancaster Infirmary"]
[null,null,null,null,null,null,null,null,null,null,null,null,null,null,null,null,null,null,null,null,"QT1","RX1","NOTTINGHAM UNIVERSITY HOSPITALS NHS TRUST","RX1XXX","Non-hospital site",null,null,null,null,null,null,"RTR45","Royal Oldham Hospital"]
[null,null,null,null,null,null,null,null,null,null,null,null,null,null,null,null,null,null,null,null,"QT1","RK5","SHERWOOD FOREST HOSPITALS NHS FOUNDATION TRUST","RK5BC","King's Mill Hospital",null,null,null,null,null,null,"RTRAT","Royal Preston Hospital"]
[null,null,null,null,null,null,null,null,null,null,null,null,null,null,null,null,null,null,null,null,"QT6","REF","ROYAL CORNWALL HOSPITALS NHS TRUST","REFXXX","Non-hospital site",null,null,null,null,null,null,"RTX02","Royal Stoke University Hospital"]
[null,null,null,null,null,null,null,null,null,null,null,null,null,null,null,null,null,null,null,null,"QT6","REF","ROYAL CORNWALL HOSPITALS NHS TRUST","REF12","Royal Cornwall Hospital (Treliske)",null,null,null,null,null,null,"RTXBU","Royal Surrey County Hospital"]
[null,null,null,null,null,null,null,null,null,null,null,null,null,null,null,null,null,null,null,null,"QU9","RXQ","BUCKINGHAMSHIRE HEALTHCARE NHS TRUST","RXQ02","Stoke Mandeville Hospital",null,null,null,null,null,null,"RVJ01","Royal Sussex County Hospital"]
[null,null,null,null,null,null,null,null,null,null,null,null,null,null,null,null,null,null,null,null,"QU9","RXQ","BUCKINGHAMSHIRE HEALTHCARE NHS TRUST","RXQ50","Wycombe Hospital",null,null,null,null,null,null,"RVR05","Russells Hall Hospital"]
[null,null,null,null,null,null,null,null,null,null,null,null,null,null,null,null,null,null,null,null,"QU9","RTH","OXFORD UNIVERSITY HOSPITALS NHS FOUNDATION TRUST","RTH05","Horton General Hospital",null,null,null,null,null,null,"RVR50","Salisbury District Hospital"]
[null,null,null,null,null,null,null,null,null,null,null,null,null,null,null,null,null,null,null,null,"QU9","RTH","OXFORD UNIVERSITY HOSPITALS NHS FOUNDATION TRUST","RTH08","John Radcliffe Hospital",null,null,null,null,null,null,"RVRXXX","Sandwell General Hospital"]
[null,null,null,null,null,null,null,null,null,null,null,null,null,null,null,null,null,null,null,null,"QU9","RHW","ROYAL BERKSHIRE NHS FOUNDATION TRUST","RHW01","Royal Berkshire Hospital",null,null,null,null,null,null,"RVV01","Scarborough General Hospital"]
[null,null,null,null,null,null,null,null,null,null,null,null,null,null,null,null,null,null,null,null,"QUA","RNA","THE DUDLEY GROUP NHS FOUNDATION TRUST","RNA01","Russells Hall Hospital",null,null,null,null,null,null,"RVWAE","Scunthorpe General Hospital"]
[null,null,null,null,null,null,null,null,null,null,null,null,null,null,null,null,null,null,null,null,"QUA","RL4","THE ROYAL WOLVERHAMPTON NHS TRUST","RL403","New Cross Hospital",null,null,null,null,null,null,"RVY02","Solihull Hospital"]
[null,null,null,null,null,null,null,null,null,null,null,null,null,null,null,null,null,null,null,null,"QUA","RBK","WALSALL HEALTHCARE NHS TRUST","RBK02","Manor Hospital",null,null,null,null,null,null,"RW603","South Tyneside District Hospital"]
[null,null,null,null,null,null,null,null,null,null,null,null,null,null,null,null,null,null,null,null,"QUE","RGT","CAMBRIDGE UNIVERSITY HOSPITALS NHS FOUNDATION TRUST","RGT32","Rosie Hospital",null,null,null,null,null,null,"RWA01","Southampton General Hospital"]
[null,null,null,null,null,null,null,null,null,null,null,null,null,null,null,null,null,null,null,null,"QUE","RGN","NORTH WEST ANGLIA NHS FOUNDATION TRUST","RGN90","Hinchingbrooke Hospital",null,null,null,null,null,null,"RWDDA","Southend Hospital"]
[null,null,null,null,null,null,null,null,null,null,null,null,null,null,null,null,null,null,null,null,"QUE","RGN","NORTH WEST ANGLIA NHS FOUNDATION TRUST","RGN80","Peterborough City Hospital",null,null,null,null,null,null,"RWDLA","Southmead Hospital"]
[null,null,null,null,null,null,null,null,null,null,null,null,null,null,null,null,null,null,null,null,"QUY","RVJ","NORTH BRISTOL NHS TRUST","RVJ01","Southmead Hospital",null,null,null,null,null,null,"RWDLP","St George's Hospital (Tooting)"]
[null,null,null,null,null,null,null,null,null,null,null,null,null,null,null,null,null,null,null,null,"QUY","RA7","UNIVERSITY HOSPITALS BRISTOL AND WESTON NHS FOUNDATION TRUST","RA707","St Michael's Hospital",null,null,null,null,null,null,"RWEAA","St Helier Hospital"]
[null,null,null,null,null,null,null,null,null,null,null,null,null,null,null,null,null,null,null,null,"QVV","RBD","DORSET COUNTY HOSPITAL NHS FOUNDATION TRUST","RBD01","Dorset County Hospital",null,null,null,null,null,null,"RWEAK","St James's University Hospital"]
[null,null,null,null,null,null,null,null,null,null,null,null,null,null,null,null,null,null,null,null,"QVV","R0D","UNIVERSITY HOSPITALS DORSET NHS FOUNDATION TRUST","R0D01","Poole Hospital",null,null,null,null,null,null,"RWEXXX","St Mary's Hospital"]
[null,null,null,null,null,null,null,null,null,null,null,null,null,null,null,null,null,null,null,null,"QVV","R0D","UNIVERSITY HOSPITALS DORSET NHS FOUNDATION TRUST","R0D02","Royal Bournemouth Hospital",null,null,null,null,null,null,"RWF03","St Mary's Hospital"]
[null,null,null,null,null,null,null,null,null,null,null,null,null,null,null,null,null,null,null,null,"QWE","RJ6","CROYDON HEALTH SERVICES NHS TRUST","RJ611","Croydon University Hospital",null,null,null,null,null,null,"RWFTW","St Mary's Hospital"]
[null,null,null,null,null,null,null,null,null,null,null,null,null,null,null,null,null,null,null,null,"QWE","RVR","EPSOM AND ST HELIER UNIVERSITY HOSPITALS NHS TRUST","RVR50","Epsom Hospital",null,null,null,null,null,null,"RWFXXX","St Mary's Hospital (HQ)"]
[null,null,null,null,null,null,null,null,null,null,null,null,null,null,null,null,null,null,null,null,"QWE","RVR","EPSOM AND ST HELIER UNIVERSITY HOSPITALS NHS TRUST","RVRXXX","Non-hospital site",null,null,null,null,null,null,"RWG02","St Michael's Hospital"]
[null,null,null,null,null,null,null,null,null,null,null,null,null,null,null,null,null,null,null,null,"QWE","RVR","EPSOM AND ST HELIER UNIVERSITY HOSPITALS NHS TRUST","RVR05","St Helier Hospital",null,null,null,null,null,null,"RWH01","St Thomas' Hospital"]
[null,null,null,null,null,null,null,null,null,null,null,null,null,null,null,null,null,null,null,null,"QWE","RAX","KINGSTON HOSPITAL NHS FOUNDATION TRUST","RAX01","Kingston Hospital",null,null,null,null,null,null,"RWHXXX","Stepping Hill Hospital"]
[null,null,null,null,null,null,null,null,null,null,null,null,null,null,null,null,null,null,null,null,"QWE","RJ7","ST GEORGE'S UNIVERSITY HOSPITALS NHS FOUNDATION TRUST","RJ701","St George's Hospital (Tooting)",null,null,null,null,null,null,"RWJ09","Stoke Mandeville Hospital"]
[null,null,null,null,null,null,null,null,null,null,null,null,null,null,null,null,null,null,null,null,"QWO","RAE","BRADFORD TEACHING HOSPITALS NHS FOUNDATION TRUST","RAE01","Bradford Royal Infirmary",null,null,null,null,null,null,"RWP01","Sunderland Royal Hospital"]
[null,null,null,null,null,null,null,null,null,null,null,null,null,null,null,null,null,null,null,null,"QWO","RWY","CALDERDALE AND HUDDERSFIELD NHS FOUNDATION TRUST","RWY02","Calderdale Royal Hospital",null,null,null,null,null,null,"RWP31","The Great Western Hospital"]
[null,null,null,null,null,null,null,null,null,null,null,null,null,null,null,null,null,null,null,null,"QWO","RWY","CALDERDALE AND HUDDERSFIELD NHS FOUNDATION TRUST","RWY01","Huddersfield Royal Infirmary",null,null,null,null,null,null,"RWP50","The James Cook University Hospital"]
[null,null,null,null,null,null,null,null,null,null,null,null,null,null,null,null,null,null,null,null,"QWO","RWY","CALDERDALE AND HUDDERSFIELD NHS FOUNDATION TRUST","RWYXXX","Non-hospital site",null,null,null,null,null,null,"RWY01","The Queen Elizabeth Hospital"]
[null,null,null,null,null,null,null,null,null,null,null,null,null,null,null,null,null,null,null,null,"QWO","RR8","LEEDS TEACHING HOSPITALS NHS TRUST","RR801","Leeds General Infirmary",null,null,null,null,null,null,"RWY02","The Royal London Hospital"]
[null,null,null,null,null,null,null,null,null,null,null,null,null,null,null,null,null,null,null,null,"QWO","RR8","LEEDS TEACHING HOSPITALS NHS TRUST","RR8XXX","Non-hospital site",null,null,null,null,null,null,"RWYXXX","The Royal Victoria Infirmary"]
[null,null,null,null,null,null,null,null,null,null,null,null,null,null,null,null,null,null,null,null,"QWO","RR8","LEEDS TEACHING HOSPITALS NHS TRUST","RR813","St James's University Hospital",null,null,null,null,null,null,"RX1XXX","The Tunbridge Wells Hospital"]
[null,null,null,null,null,null,null,null,null,null,null,null,null,null,null,null,null,null,null,null,"QWO","RXF","MID YORKSHIRE HOSPITALS NHS TRUST","RXF10","Dewsbury and District Hospital",null,null,null,null,null,null,"RXC01","University College Hospital Elizabeth Garrett Anderson Wing"]
[null,null,null,null,null,null,null,null,null,null,null,null,null,null,null,null,null,null,null,null,"QWO","RXF","MID YORKSHIRE HOSPITALS NHS TRUST","RXF05","Pinderfields General Hospital",null,null,null,null,null,null,"RXC02","University Hospital (Coventry)"]
[null,null,null,null,null,null,null,null,null,null,null,null,null,null,null,null,null,null,null,null,"QWO","RXF","MID YORKSHIRE HOSPITALS NHS TRUST","RXF03","Pontefract General Infirmary",null,null,null,null,null,null,"RXCXXX","University Hospital Lewisham"]
[null,null,null,null,null,null,null,null,null,null,null,null,null,null,null,null,null,null,null,null,"QWU","RJC","SOUTH WARWICKSHIRE UNIVERSITY NHS FOUNDATION TRUST","RJCXXX","Non-hospital site",null,null,null,null,null,null,"RXF03","University Hospital Of North Tees"]
[null,null,null,null,null,null,null,null,null,null,null,null,null,null,null,null,null,null,null,null,"QWU","RJC","SOUTH WARWICKSHIRE UNIVERSITY NHS FOUNDATION TRUST","RJC02","Warwick Hospital",null,null,null,null,null,null,"RXF05","Warwick Hospital"]
[null,null,null,null,null,null,null,null,null,null,null,null,null,null,null,null,null,null,null,null,"QWU","RKB","UNIVERSITY HOSPITALS COVENTRY AND WARWICKSHIRE NHS TRUST","RKB03","Hospital Of St Cross",null,null,null,null,null,null,"RXF10","Watford General Hospital"]
[null,null,null,null,null,null,null,null,null,null,null,null,null,null,null,null,null,null,null,null,"QWU","RKB","UNIVERSITY HOSPITALS COVENTRY AND WARWICKSHIRE NHS TRUST","RKBXXX","Non-hospital site",null,null,null,null,null,null,"RXK01","West Middlesex University Hospital"]
[null,null,null,null,null,null,null,null,null,null,null,null,null,null,null,null,null,null,null,null,"QWU","RKB","UNIVERSITY HOSPITALS COVENTRY AND WARWICKSHIRE NHS TRUST","RKB01","University Hospital (Coventry)",null,null,null,null,null,null,"RXK02","West Suffolk Hospital"]
[null,null,null,null,null,null,null,null,null,null,null,null,null,null,null,null,null,null,null,null,"QXU","RTK","ASHFORD AND ST PETER'S HOSPITALS NHS FOUNDATION TRUST","RTK02","Ashford Hospital",null,null,null,null,null,null,"RXL01","Wexham Park Hospital"]
[null,null,null,null,null,null,null,null,null,null,null,null,null,null,null,null,null,null,null,null,"QXU","RA2","ROYAL SURREY COUNTY HOSPITAL NHS FOUNDATION TRUST","RA201","Royal Surrey County Hospital",null,null,null,null,null,null,"RXN01","Whipps Cross University Hospital"]
[null,null,null,null,null,null,null,null,null,null,null,null,null,null,null,null,null,null,null,null,"QXU","RTP","SURREY AND SUSSEX HEALTHCARE NHS TRUST","RTP04","East Surrey Hospital",null,null,null,null,null,null,"RXN02","Whiston Hospital"]
[null,null,null,null,null,null,null,null,null,null,null,null,null,null,null,null,null,null,null,null,"QYG","RJN","EAST CHESHIRE NHS TRUST","RJN71","Macclesfield District General Hospital",null,null,null,null,null,null,"RXQ02","WiC MIU - RH5XXX"]
[null,null,null,null,null,null,null,null,null,null,null,null,null,null,null,null,null,null,null,null,"QYG","REP","LIVERPOOL WOMEN'S NHS FOUNDATION TRUST","REP01","Liverpool Womens Hospital",null,null,null,null,null,null,"RXQ50","William Harvey Hospital (Ashford)"]
[null,null,null,null,null,null,null,null,null,null,null,null,null,null,null,null,null,null,null,null,"QYG","RBT","MID CHESHIRE HOSPITALS NHS FOUNDATION TRUST","RBT20","Leighton Hospital",null,null,null,null,null,null,"RXR20","Worcestershire Royal Hospital"]
[null,null,null,null,null,null,null,null,null,null,null,null,null,null,null,null,null,null,null,null,"QYG","RVY","SOUTHPORT AND ORMSKIRK HOSPITAL NHS TRUST","RVY02","Ormskirk and District General Hospital",null,null,null,null,null,null,"RXWXXX","Wycombe Hospital"]
[null,null,null,null,null,null,null,null,null,null,null,null,null,null,null,null,null,null,null,null,"QYG","RBN","ST HELENS AND KNOWSLEY TEACHING HOSPITALS NHS TRUST","RBN01","Whiston Hospital",null,null,null,null,null,null,"RYJ01","Yeovil District Hospital"]
[null,null,null,null,null,null,null,null,null,null,null,null,null,null,null,null,null,null,null,null,"QYG","RBL","WIRRAL UNIVERSITY TEACHING HOSPITAL NHS FOUNDATION TRUST","RBL14","Arrowe Park Hospital",null,null,null,null,null,null,"RYJ04","York Hospital"]

{"sheet":"BSQ2","index":14,"n_rows":214,"n_cols":33,"rows_kept":214,"cut":false,"hidden":true,"merged":[]}
[null,"Sort","ICB","ICB","Trusts","Trusts","Sites","Sites",null,"Sort ranges:","Sort range…","Sort range…","Sort range…","Reference Region List:","Code…","Name…","Linked Region List:","Code…","Name…","Reference Lists:","Code…","Code…","Name…","Code…","Name…","Trusts Linked Lists:","Code…","Name…","Site Linked Lists:","Code…","Name…","Code…","Name…"]
["ICB",1,1,1,"-","-","-","-",null,null,"ICB Code","ICB Code","ICB Code",null,"QE1","LANCASHIRE AND SOUTH CUMBRIA ICB",null,"QE1","LANCASHIRE AND SOUTH CUMBRIA ICB",null,"QE1","RXL","BLACKPOOL TEACHING HOSPITALS NHS FOUNDATION TRUST","RXL01","Blackpool Victoria Hospital",null,"R0A","AIREDALE NHS FOUNDATION TRUST",null,"R0A","AIREDALE NHS FOUNDATION TRUST","E0A3H","Airedale General Hospital"]
["Trusts",1,1,1,1,1,"-","-",null,null,"ICB Name","Trust Code","Trust Code",null,"QF7","SOUTH YORKSHIRE ICB",null,"QF7","SOUTH YORKSHIRE ICB",null,"QE1","RXR","EAST LANCASHIRE HOSPITALS NHS TRUST","RXR20","Royal Blackburn Hospital",null,"R0B","ASHFORD AND ST PETER'S HOSPITALS NHS FOUNDATION TRUST",null,"R0B","ASHFORD AND ST PETER'S HOSPITALS NHS FOUNDATION TRUST","N6J7V","Alnwick Infirmary"]
["Sites",1,1,1,1,1,1,1,null,null,"Total Responses","Trust Name","Trust Name",null,"QGH","HEREFORDSHIRE AND WORCESTERSHIRE ICB",null,"QGH","HEREFORDSHIRE AND WORCESTERSHIRE ICB",null,"QE1","RXN","LANCASHIRE TEACHING HOSPITALS NHS FOUNDATION TRUST","RXN01","Chorley and South Ribble Hospital",null,"R0D","BARKING, HAVERING AND REDBRIDGE UNIVERSITY HOSPITALS NHS TRUST",null,"R0D","BARKING, HAVERING AND REDBRIDGE UNIVERSITY HOSPITALS NHS TRUST","R0A05","Andover War Memorial Hospital"]
[null,null,null,null,null,null,null,null,null,null,"Total Eligible","Total Responses","Site Code",null,"QH8","MID AND SOUTH ESSEX ICB",null,"QH8","MID AND SOUTH ESSEX ICB",null,"QE1","RXN","LANCASHIRE TEACHING HOSPITALS NHS FOUNDATION TRUST","RXN02","Royal Preston Hospital",null,"R1F","BARNSLEY HOSPITAL NHS FOUNDATION TRUST",null,"R1F","BARNSLEY HOSPITAL NHS FOUNDATION TRUST","R0B01","Arrowe Park Hospital"]
[null,null,null,null,null,null,null,null,null,null,"Percentage Positive","Total Eligible","Site Name",null,"QHG","BEDFORDSHIRE, LUTON AND MILTON KEYNES ICB",null,"QHG","BEDFORDSHIRE, LUTON AND MILTON KEYNES ICB",null,"QE1","RTX","UNIVERSITY HOSPITALS OF MORECAMBE BAY NHS FOUNDATION TRUST","RTXBU","Furness General Hospital",null,"R1H","BARTS HEALTH NHS TRUST",null,"R1H","BARTS HEALTH NHS TRUST","R0B0Q","Barnet Hospital"]
[null,null,null,null,null,null,null,null,null,null,"Percentage Negative","Percentage Positive","Total Responses",null,"QHL","BIRMINGHAM AND SOLIHULL ICB",null,"QHL","BIRMINGHAM AND SOLIHULL ICB",null,"QE1","RTX","UNIVERSITY HOSPITALS OF MORECAMBE BAY NHS FOUNDATION TRUST","RTX02","Royal Lancaster Infirmary",null,"R1K","BEDFORDSHIRE HOSPITALS NHS FOUNDATION TRUST",null,"R1K","BEDFORDSHIRE HOSPITALS NHS FOUNDATION TRUST","R0BXXX","Barnsley Hospital NHS Foundation Trust HQ"]
[null,null,null,null,null,null,null,null,null,null,"Very Good","Percentage Negative","Percentage Positive",null,"QHM","NORTH EAST AND NORTH CUMBRIA ICB",null,"QHM","NORTH EAST AND NORTH CUMBRIA ICB",null,"QE1","RTX","UNIVERSITY HOSPITALS OF MORECAMBE BAY NHS FOUNDATION TRUST","RTXBW","Westmorland General Hospital",null,"RA2","BIRMINGHAM WOMEN'S AND CHILDREN'S NHS FOUNDATION TRUST",null,"RA2","BIRMINGHAM WOMEN'S AND CHILDREN'S NHS FOUNDATION TRUST","R0D01","BASILDON HOSPITAL"]
[null,null,null,null,null,null,null,null,null,null,"Good","Very Good","Percentage Negative",null,"QJ2","DERBY AND DERBYSHIRE ICB",null,"QJ2","DERBY AND DERBYSHIRE ICB",null,"QF7","RFF","BARNSLEY HOSPITAL NHS FOUNDATION TRUST","RFFAA","Barnsley Hospital NHS Foundation Trust HQ",null,"RA4","BLACKPOOL TEACHING HOSPITALS NHS FOUNDATION TRUST",null,"RA4","BLACKPOOL TEACHING HOSPITALS NHS FOUNDATION TRUST","R0D02","Basingstoke and North Hampshire Hospital"]
[null,null,null,null,null,null,null,null,null,null,"Neither Good nor Poor","Good","Very Good",null,"QJG","SUFFOLK AND NORTH EAST ESSEX ICB",null,"QJG","SUFFOLK AND NORTH EAST ESSEX ICB",null,"QF7","RP5","DONCASTER AND BASSETLAW TEACHING HOSPITALS NHS FOUNDATION TRUST","RP5BA","Bassetlaw Hospital",null,"RA7","BOLTON NHS FOUNDATION TRUST",null,"RA7","BOLTON NHS FOUNDATION TRUST","R1F01","Bassetlaw Hospital"]
[null,null,null,null,null,null,null,null,null,null,"Poor","Neither Good nor Poor","Good",null,"QJK","DEVON ICB",null,"QJK","DEVON ICB",null,"QF7","RP5","DONCASTER AND BASSETLAW TEACHING HOSPITALS NHS FOUNDATION TRUST","RP5DR","Doncaster Royal Infirmary",null,"RA9","BRADFORD TEACHING HOSPITALS NHS FOUNDATION TRUST",null,"RA9","BRADFORD TEACHING HOSPITALS NHS FOUNDATION TRUST","R1H12","BEDFORD HOSPITAL SOUTH WING"]
[null,null,null,null,null,null,null,null,null,null,"Very Poor","Poor","Neither Good nor Poor",null,"QJM","LINCOLNSHIRE ICB",null,"QJM","LINCOLNSHIRE ICB",null,"QF7","RP5","DONCASTER AND BASSETLAW TEACHING HOSPITALS NHS FOUNDATION TRUST","RP5XXX","Non-hospital site",null,"RAE","BUCKINGHAMSHIRE HEALTHCARE NHS TRUST",null,"RAE","BUCKINGHAMSHIRE HEALTHCARE NHS TRUST","R1HKH","Berwick Infirmary"]
[null,null,null,null,null,null,null,null,null,null,"Don't Know","Very Poor","Poor",null,"QK1","LEICESTER, LEICESTERSHIRE AND RUTLAND ICB",null,"QK1","LEICESTER, LEICESTERSHIRE AND RUTLAND ICB",null,"QF7","RHQ","SHEFFIELD TEACHING HOSPITALS NHS FOUNDATION TRUST","RHQHH","Royal Hallamshire Hospital",null,"RAJ","CALDERDALE AND HUDDERSFIELD NHS FOUNDATION TRUST",null,"RAJ","CALDERDALE AND HUDDERSFIELD NHS FOUNDATION TRUST","R1HNH","Birmingham Women's Hospital"]
[null,null,null,null,null,null,null,null,null,null,null,"Don't Know","Very Poor",null,"QKK","SOUTH EAST LONDON ICB",null,"QKK","SOUTH EAST LONDON ICB",null,"QF7","RFR","THE ROTHERHAM NHS FOUNDATION TRUST","RFRPA","Rotherham District General Hospital",null,"RAL","CAMBRIDGE UNIVERSITY HOSPITALS NHS FOUNDATION TRUST",null,"RAL","CAMBRIDGE UNIVERSITY HOSPITALS NHS FOUNDATION TRUST","R1K01","Blackpool Victoria Hospital"]
[null,null,null,null,null,null,null,null,null,null,null,"Mode SMS","Don't Know",null,"QKS","KENT AND MEDWAY ICB",null,"QKS","KENT AND MEDWAY ICB",null,"QGH","RWP","WORCESTERSHIRE ACUTE HOSPITALS NHS TRUST","RWP50","Worcestershire Royal Hospital",null,"RAP","CHELSEA AND WESTMINSTER HOSPITAL NHS FOUNDATION TRUST",null,"RAP","CHELSEA AND WESTMINSTER HOSPITAL NHS FOUNDATION TRUST","RA201","Bradford Royal Infirmary"]
[null,null,null,null,null,null,null,null,null,null,null,"Mode Electronic Discharge",null,null,"QM7","HERTFORDSHIRE AND WEST ESSEX ICB",null,"QM7","HERTFORDSHIRE AND WEST ESSEX ICB",null,"QH8","RAJ","MID AND SOUTH ESSEX NHS FOUNDATION TRUST","RAJ12","BASILDON HOSPITAL",null,"RAS","CHESTERFIELD ROYAL HOSPITAL NHS FOUNDATION TRUST",null,"RAS","CHESTERFIELD ROYAL HOSPITAL NHS FOUNDATION TRUST","RA430","Bridgnorth Hospital (Maternity)"]
[null,null,null,null,null,null,null,null,null,null,null,"Mode Electronic Home",null,null,"QMF","NORTH EAST LONDON ICB",null,"QMF","NORTH EAST LONDON ICB",null,"QH8","RAJ","MID AND SOUTH ESSEX NHS FOUNDATION TRUST","RAJ32","MID ESSEX HOSPITAL",null,"RAX","COUNTY DURHAM AND DARLINGTON NHS FOUNDATION TRUST",null,"RAX","COUNTY DURHAM AND DARLINGTON NHS FOUNDATION TRUST","RA707","Bridgwater Hospital"]
[null,null,null,null,null,null,null,null,null,null,null,"Mode Paper Discharge",null,null,"QMJ","NORTH CENTRAL LONDON ICB",null,"QMJ","NORTH CENTRAL LONDON ICB",null,"QH8","RAJ","MID AND SOUTH ESSEX NHS FOUNDATION TRUST","RAJ01","Southend Hospital",null,"RBD","CROYDON HEALTH SERVICES NHS TRUST",null,"RBD","CROYDON HEALTH SERVICES NHS TRUST","RA901","Calderdale Royal Hospital"]
[null,null,null,null,null,null,null,null,null,null,null,"Mode Paper Home",null,null,"QMM","NORFOLK AND WAVENEY ICB",null,"QMM","NORFOLK AND WAVENEY ICB",null,"QHG","RC9","BEDFORDSHIRE HOSPITALS NHS FOUNDATION TRUST","RC979","BEDFORD HOSPITAL SOUTH WING",null,"RBK","DARTFORD AND GRAVESHAM NHS TRUST",null,"RBK","DARTFORD AND GRAVESHAM NHS TRUST","RAE01","Chelsea and Westminster Hospital"]
[null,null,null,null,null,null,null,null,null,null,null,"Mode Telephone",null,null,"QNC","STAFFORDSHIRE AND STOKE-ON-TRENT ICB",null,"QNC","STAFFORDSHIRE AND STOKE-ON-TRENT ICB",null,"QHG","RC9","BEDFORDSHIRE HOSPITALS NHS FOUNDATION TRUST","RC971","Luton and Dunstable Hospital",null,"RBL","DONCASTER AND BASSETLAW TEACHING HOSPITALS NHS FOUNDATION TRUST",null,"RBL","DONCASTER AND BASSETLAW TEACHING HOSPITALS NHS FOUNDATION TRUST","RAJ01","Chesterfield Royal Hospital"]
[null,null,null,null,null,null,null,null,null,null,null,"Mode Online",null,null,"QNQ","FRIMLEY ICB",null,"QNQ","FRIMLEY ICB",null,"QHG","RD8","MILTON KEYNES UNIVERSITY HOSPITAL NHS FOUNDATION TRUST","RD816","Milton Keynes Hospital",null,"RBN","DORSET COUNTY HOSPITAL NHS FOUNDATION TRUST",null,"RBN","DORSET COUNTY HOSPITAL NHS FOUNDATION TRUST","RAJ12","Chorley and South Ribble Hospital"]
[null,null,null,null,null,null,null,null,null,null,null,"Mode Other",null,null,"QNX","SUSSEX ICB",null,"QNX","SUSSEX ICB",null,"QHL","RQ3","BIRMINGHAM WOMEN'S AND CHILDREN'S NHS FOUNDATION TRUST","RQ370","Birmingham Women's Hospital",null,"RBT","EAST AND NORTH HERTFORDSHIRE NHS TRUST",null,"RBT","EAST AND NORTH HERTFORDSHIRE NHS TRUST","RAJ32","City Hospital"]
[null,null,null,null,null,null,null,null,null,null,null,null,null,null,"QOC","SHROPSHIRE, TELFORD AND WREKIN ICB",null,"QOC","SHROPSHIRE, TELFORD AND WREKIN ICB",null,"QHL","RXK","SANDWELL AND WEST BIRMINGHAM HOSPITALS NHS TRUST","RXK02","City Hospital",null,"RC9","EAST CHESHIRE NHS TRUST",null,"RC9","EAST CHESHIRE NHS TRUST","RAL01","Clacton and District Hospital"]
[null,null,null,null,null,null,null,null,null,null,null,null,null,null,"QOP","GREATER MANCHESTER ICB",null,"QOP","GREATER MANCHESTER ICB",null,"QHL","RRK","UNIVERSITY HOSPITALS BIRMINGHAM NHS FOUNDATION TRUST","RRK98","Good Hope Hospital",null,"RCB","EAST LANCASHIRE HOSPITALS NHS TRUST",null,"RCB","EAST LANCASHIRE HOSPITALS NHS TRUST","RAL26","Colchester General Hospital"]
[null,null,null,null,null,null,null,null,null,null,null,null,null,null,"QOQ","HUMBER AND NORTH YORKSHIRE ICB",null,"QOQ","HUMBER AND NORTH YORKSHIRE ICB",null,"QHL","RRK","UNIVERSITY HOSPITALS BIRMINGHAM NHS FOUNDATION TRUST","RRK97","Heartlands Hospital",null,"RCD","EAST SUFFOLK AND NORTH ESSEX NHS FOUNDATION TRUST",null,"RCD","EAST SUFFOLK AND NORTH ESSEX NHS FOUNDATION TRUST","RAPNM","Conquest Hospital"]
[null,null,null,null,null,null,null,null,null,null,null,null,null,null,"QOX","BATH AND NORTH EAST SOMERSET, SWINDON AND WILTSHIRE ICB",null,"QOX","BATH AND NORTH EAST SOMERSET, SWINDON AND WILTSHIRE ICB",null,"QHL","RRK","UNIVERSITY HOSPITALS BIRMINGHAM NHS FOUNDATION TRUST","RRK99","Solihull Hospital",null,"RCF","EAST SUSSEX HEALTHCARE NHS TRUST",null,"RCF","EAST SUSSEX HEALTHCARE NHS TRUST","RAS01","Cossham Hospital"]
[null,null,null,null,null,null,null,null,null,null,null,null,null,null,"QPM","NORTHAMPTONSHIRE ICB",null,"QPM","NORTHAMPTONSHIRE ICB",null,"QHM","RXP","COUNTY DURHAM AND DARLINGTON NHS FOUNDATION TRUST","RXPDA","Darlington Memorial Hospital",null,"RCX","EPSOM AND ST HELIER UNIVERSITY HOSPITALS NHS TRUST",null,"RCX","EPSOM AND ST HELIER UNIVERSITY HOSPITALS NHS TRUST","RAX01","Crowborough Birthing Centre"]
[null,null,null,null,null,null,null,null,null,null,null,null,null,null,"QR1","GLOUCESTERSHIRE ICB",null,"QR1","GLOUCESTERSHIRE ICB",null,"QHM","RXP","COUNTY DURHAM AND DARLINGTON NHS FOUNDATION TRUST","RXPCP","University Hospital Of North Durham",null,"RD1","FRIMLEY HEALTH NHS FOUNDATION TRUST",null,"RD1","FRIMLEY HEALTH NHS FOUNDATION TRUST","RBD01","Croydon University Hospital"]
[null,null,null,null,null,null,null,null,null,null,null,null,null,null,"QRL","HAMPSHIRE AND ISLE OF WIGHT ICB",null,"QRL","HAMPSHIRE AND ISLE OF WIGHT ICB",null,"QHM","RR7","GATESHEAD HEALTH NHS FOUNDATION TRUST","RR7EN","Queen Elizabeth Hospital",null,"RD8","GATESHEAD HEALTH NHS FOUNDATION TRUST",null,"RD8","GATESHEAD HEALTH NHS FOUNDATION TRUST","RBK02","Cumberland Infirmary"]
[null,null,null,null,null,null,null,null,null,null,null,null,null,null,"QRV","NORTH WEST LONDON ICB",null,"QRV","NORTH WEST LONDON ICB",null,"QHM","RNN","NORTH CUMBRIA INTEGRATED CARE NHS FOUNDATION TRUST","RNN62","Cumberland Infirmary",null,"RDE","GEORGE ELIOT HOSPITAL NHS TRUST",null,"RDE","GEORGE ELIOT HOSPITAL NHS TRUST","RBL14","Darent Valley Hospital"]
[null,null,null,null,null,null,null,null,null,null,null,null,null,null,"QSL","SOMERSET ICB",null,"QSL","SOMERSET ICB",null,"QHM","RNN","NORTH CUMBRIA INTEGRATED CARE NHS FOUNDATION TRUST","RNNXXX","Non-hospital site",null,"RDU","GLOUCESTERSHIRE HOSPITALS NHS FOUNDATION TRUST",null,"RDU","GLOUCESTERSHIRE HOSPITALS NHS FOUNDATION TRUST","RBN01","Darlington Memorial Hospital"]
[null,null,null,null,null,null,null,null,null,null,null,null,null,null,"QT1","NOTTINGHAM AND NOTTINGHAMSHIRE ICB",null,"QT1","NOTTINGHAM AND NOTTINGHAMSHIRE ICB",null,"QHM","RNN","NORTH CUMBRIA INTEGRATED CARE NHS FOUNDATION TRUST","RNNKV","Penrith Hospital",null,"REF","GREAT WESTERN HOSPITALS NHS FOUNDATION TRUST",null,"REF","GREAT WESTERN HOSPITALS NHS FOUNDATION TRUST","RBT20","Derriford Hospital"]
[null,null,null,null,null,null,null,null,null,null,null,null,null,null,"QT6","CORNWALL AND THE ISLES OF SCILLY ICB",null,"QT6","CORNWALL AND THE ISLES OF SCILLY ICB",null,"QHM","RNN","NORTH CUMBRIA INTEGRATED CARE NHS FOUNDATION TRUST","RNNBX","West Cumberland Hospital",null,"REP","GUY'S AND ST THOMAS' NHS FOUNDATION TRUST",null,"REP","GUY'S AND ST THOMAS' NHS FOUNDATION TRUST","RC971","Dewsbury and District Hospital"]
[null,null,null,null,null,null,null,null,null,null,null,null,null,null,"QU9","BUCKINGHAMSHIRE, OXFORDSHIRE AND BERKSHIRE WEST ICB",null,"QU9","BUCKINGHAMSHIRE, OXFORDSHIRE AND BERKSHIRE WEST ICB",null,"QHM","RVW","NORTH TEES AND HARTLEPOOL NHS FOUNDATION TRUST","RVWAE","University Hospital Of North Tees",null,"RF4","HAMPSHIRE HOSPITALS NHS FOUNDATION TRUST",null,"RF4","HAMPSHIRE HOSPITALS NHS FOUNDATION TRUST","RC979","Diana, Princess Of Wales Hospital"]
[null,null,null,null,null,null,null,null,null,null,null,null,null,null,"QUA","BLACK COUNTRY ICB",null,"QUA","BLACK COUNTRY ICB",null,"QHM","RTF","NORTHUMBRIA HEALTHCARE NHS FOUNDATION TRUST","RTFDJ","Alnwick Infirmary",null,"RFF","HARROGATE AND DISTRICT NHS FOUNDATION TRUST",null,"RFF","HARROGATE AND DISTRICT NHS FOUNDATION TRUST","RCB55","Doncaster Royal Infirmary"]
[null,null,null,null,null,null,null,null,null,null,null,null,null,null,"QUE","CAMBRIDGESHIRE AND PETERBOROUGH ICB",null,"QUE","CAMBRIDGESHIRE AND PETERBOROUGH ICB",null,"QHM","RTF","NORTHUMBRIA HEALTHCARE NHS FOUNDATION TRUST","RTFDH","Berwick Infirmary",null,"RFR","HOMERTON HEALTHCARE NHS FOUNDATION TRUST",null,"RFR","HOMERTON HEALTHCARE NHS FOUNDATION TRUST","RCBCA","Dorset County Hospital"]
[null,null,null,null,null,null,null,null,null,null,null,null,null,null,"QUY","BRISTOL, NORTH SOMERSET AND SOUTH GLOUCESTERSHIRE ICB",null,"QUY","BRISTOL, NORTH SOMERSET AND SOUTH GLOUCESTERSHIRE ICB",null,"QHM","RTF","NORTHUMBRIA HEALTHCARE NHS FOUNDATION TRUST","RTFDR","Hexham General Hospital",null,"RFS","HULL UNIVERSITY TEACHING HOSPITALS NHS TRUST",null,"RFS","HULL UNIVERSITY TEACHING HOSPITALS NHS TRUST","RCD01","East Surrey Hospital"]
[null,null,null,null,null,null,null,null,null,null,null,null,null,null,"QVV","DORSET ICB",null,"QVV","DORSET ICB",null,"QHM","RTF","NORTHUMBRIA HEALTHCARE NHS FOUNDATION TRUST","RTFXXX","Non-hospital site",null,"RGN","IMPERIAL COLLEGE HEALTHCARE NHS TRUST",null,"RGN","IMPERIAL COLLEGE HEALTHCARE NHS TRUST","RCF22","Eastbourne District General Hospital"]
[null,null,null,null,null,null,null,null,null,null,null,null,null,null,"QWE","SOUTH WEST LONDON ICB",null,"QWE","SOUTH WEST LONDON ICB",null,"QHM","RTF","NORTHUMBRIA HEALTHCARE NHS FOUNDATION TRUST","RTF86","The Northumbria",null,"RGP","ISLE OF WIGHT NHS TRUST",null,"RGP","ISLE OF WIGHT NHS TRUST","RCX70","Epsom Hospital"]
[null,null,null,null,null,null,null,null,null,null,null,null,null,null,"QWO","WEST YORKSHIRE ICB",null,"QWO","WEST YORKSHIRE ICB",null,"QHM","RTR","SOUTH TEES HOSPITALS NHS FOUNDATION TRUST","RTR45","Friarage Hospital Site",null,"RGR","JAMES PAGET UNIVERSITY HOSPITALS NHS FOUNDATION TRUST",null,"RGR","JAMES PAGET UNIVERSITY HOSPITALS NHS FOUNDATION TRUST","RCXXXX","Friarage Hospital Site"]
[null,null,null,null,null,null,null,null,null,null,null,null,null,null,"QWU","COVENTRY AND WARWICKSHIRE ICB",null,"QWU","COVENTRY AND WARWICKSHIRE ICB",null,"QHM","RTR","SOUTH TEES HOSPITALS NHS FOUNDATION TRUST","RTRAT","The James Cook University Hospital",null,"RGT","KETTERING GENERAL HOSPITAL NHS FOUNDATION TRUST",null,"RGT","KETTERING GENERAL HOSPITAL NHS FOUNDATION TRUST","RD108","Frimley Park Hospital"]
[null,null,null,null,null,null,null,null,null,null,null,null,null,null,"QXU","SURREY HEARTLANDS ICB",null,"QXU","SURREY HEARTLANDS ICB",null,"QHM","R0B","SOUTH TYNESIDE AND SUNDERLAND NHS FOUNDATION TRUST","R0BXXX","Non-hospital site",null,"RH5","KING'S COLLEGE HOSPITAL NHS FOUNDATION TRUST",null,"RH5","KING'S COLLEGE HOSPITAL NHS FOUNDATION TRUST","RD129","Furness General Hospital"]
[null,null,null,null,null,null,null,null,null,null,null,null,null,null,"QYG","CHESHIRE AND MERSEYSIDE ICB",null,"QYG","CHESHIRE AND MERSEYSIDE ICB",null,"QHM","R0B","SOUTH TYNESIDE AND SUNDERLAND NHS FOUNDATION TRUST","R0B0Q","South Tyneside District Hospital",null,"RH8","KINGSTON HOSPITAL NHS FOUNDATION TRUST",null,"RH8","KINGSTON HOSPITAL NHS FOUNDATION TRUST","RD130","George Eliot Hospital - Acute Services"]
[null,null,null,null,null,null,null,null,null,null,null,null,null,null,null,null,null,null,null,null,"QHM","R0B","SOUTH TYNESIDE AND SUNDERLAND NHS FOUNDATION TRUST","R0B01","Sunderland Royal Hospital",null,"RHM","LANCASHIRE TEACHING HOSPITALS NHS FOUNDATION TRUST",null,"RHM","LANCASHIRE TEACHING HOSPITALS NHS FOUNDATION TRUST","RD1XXX","Gloucestershire Royal Hospital"]
[null,null,null,null,null,null,null,null,null,null,null,null,null,null,null,null,null,null,null,null,"QHM","RTD","THE NEWCASTLE UPON TYNE HOSPITALS NHS FOUNDATION TRUST","RTD02","The Royal Victoria Infirmary",null,"RHQ","LEEDS TEACHING HOSPITALS NHS TRUST",null,"RHQ","LEEDS TEACHING HOSPITALS NHS TRUST","RD816","Good Hope Hospital"]
[null,null,null,null,null,null,null,null,null,null,null,null,null,null,null,null,null,null,null,null,"QJ2","RFS","CHESTERFIELD ROYAL HOSPITAL NHS FOUNDATION TRUST","RFSDA","Chesterfield Royal Hospital",null,"RHU","LEWISHAM AND GREENWICH NHS TRUST",null,"RHU","LEWISHAM AND GREENWICH NHS TRUST","RDE03","Gosport War Memorial Hospital"]
[null,null,null,null,null,null,null,null,null,null,null,null,null,null,null,null,null,null,null,null,"QJ2","RTG","UNIVERSITY HOSPITALS OF DERBY AND BURTON NHS FOUNDATION TRUST","RTG02","Queens Hospital, Burton Upon Trent",null,"RHW","LIVERPOOL WOMEN'S NHS FOUNDATION TRUST",null,"RHW","LIVERPOOL WOMEN'S NHS FOUNDATION TRUST","RDEE2","Grantham and District Hospital"]
[null,null,null,null,null,null,null,null,null,null,null,null,null,null,null,null,null,null,null,null,"QJ2","RTG","UNIVERSITY HOSPITALS OF DERBY AND BURTON NHS FOUNDATION TRUST","RTGFG","Royal Derby Hospital",null,"RJ1","LONDON NORTH WEST UNIVERSITY HEALTHCARE NHS TRUST",null,"RJ1","LONDON NORTH WEST UNIVERSITY HEALTHCARE NHS TRUST","RDEE4","Harrogate District Hospital"]
[null,null,null,null,null,null,null,null,null,null,null,null,null,null,null,null,null,null,null,null,"QJG","RDE","EAST SUFFOLK AND NORTH ESSEX NHS FOUNDATION TRUST","RDEE2","Clacton and District Hospital",null,"RJ2","MAIDSTONE AND TUNBRIDGE WELLS NHS TRUST",null,"RJ2","MAIDSTONE AND TUNBRIDGE WELLS NHS TRUST","RDEXXX","Heartlands Hospital"]
[null,null,null,null,null,null,null,null,null,null,null,null,null,null,null,null,null,null,null,null,"QJG","RDE","EAST SUFFOLK AND NORTH ESSEX NHS FOUNDATION TRUST","RDEE4","Colchester General Hospital",null,"RJ6","MANCHESTER UNIVERSITY NHS FOUNDATION TRUST",null,"RJ6","MANCHESTER UNIVERSITY NHS FOUNDATION TRUST","RDU01","Hexham General Hospital"]
[null,null,null,null,null,null,null,null,null,null,null,null,null,null,null,null,null,null,null,null,"QJG","RDE","EAST SUFFOLK AND NORTH ESSEX NHS FOUNDATION TRUST","RDE03","Ipswich Hospital",null,"RJ7","MEDWAY NHS FOUNDATION TRUST",null,"RJ7","MEDWAY NHS FOUNDATION TRUST","RDU50","Hillingdon Hospital"]
[null,null,null,null,null,null,null,null,null,null,null,null,null,null,null,null,null,null,null,null,"QJG","RDE","EAST SUFFOLK AND NORTH ESSEX NHS FOUNDATION TRUST","RDEXXX","Non-hospital site",null,"RJC","MID AND SOUTH ESSEX NHS FOUNDATION TRUST",null,"RJC","MID AND SOUTH ESSEX NHS FOUNDATION TRUST","REF12","Hinchingbrooke Hospital"]
[null,null,null,null,null,null,null,null,null,null,null,null,null,null,null,null,null,null,null,null,"QJG","RGR","WEST SUFFOLK NHS FOUNDATION TRUST","RGR50","West Suffolk Hospital",null,"RJE","MID CHESHIRE HOSPITALS NHS FOUNDATION TRUST",null,"RJE","MID CHESHIRE HOSPITALS NHS FOUNDATION TRUST","REFXXX","Homerton University Hospital"]
[null,null,null,null,null,null,null,null,null,null,null,null,null,null,null,null,null,null,null,null,"QJK","RH8","ROYAL DEVON UNIVERSITY HEALTHCARE NHS FOUNDATION TRUST","RH8XXX","Non-hospital site",null,"RJL","MID YORKSHIRE HOSPITALS NHS TRUST",null,"RJL","MID YORKSHIRE HOSPITALS NHS TRUST","REP01","Horton General Hospital"]
[null,null,null,null,null,null,null,null,null,null,null,null,null,null,null,null,null,null,null,null,"QJK","RH8","ROYAL DEVON UNIVERSITY HEALTHCARE NHS FOUNDATION TRUST","RH880","North Devon District Hospital",null,"RJN","MILTON KEYNES UNIVERSITY HOSPITAL NHS FOUNDATION TRUST",null,"RJN","MILTON KEYNES UNIVERSITY HOSPITAL NHS FOUNDATION TRUST","RF4QH","Hospital Of St Cross"]
[null,null,null,null,null,null,null,null,null,null,null,null,null,null,null,null,null,null,null,null,"QJK","RH8","ROYAL DEVON UNIVERSITY HEALTHCARE NHS FOUNDATION TRUST","RH801","Royal Devon and Exeter Hospital (Wonford)",null,"RJZ","NORFOLK AND NORWICH UNIVERSITY HOSPITALS NHS FOUNDATION TRUST",null,"RJZ","NORFOLK AND NORWICH UNIVERSITY HOSPITALS NHS FOUNDATION TRUST","RFFAA","Hull Royal Infirmary"]
[null,null,null,null,null,null,null,null,null,null,null,null,null,null,null,null,null,null,null,null,"QJK","RA9","TORBAY AND SOUTH DEVON NHS FOUNDATION TRUST","RA901","Torbay Hospital",null,"RK5","NORTH BRISTOL NHS TRUST",null,"RK5","NORTH BRISTOL NHS TRUST","RFRPA","Ipswich Hospital"]
[null,null,null,null,null,null,null,null,null,null,null,null,null,null,null,null,null,null,null,null,"QJK","RK9","UNIVERSITY HOSPITALS PLYMOUTH NHS TRUST","RK950","Derriford Hospital",null,"RK9","NORTH CUMBRIA INTEGRATED CARE NHS FOUNDATION TRUST",null,"RK9","NORTH CUMBRIA INTEGRATED CARE NHS FOUNDATION TRUST","RFSDA","James Paget University Hospital"]
[null,null,null,null,null,null,null,null,null,null,null,null,null,null,null,null,null,null,null,null,"QJK","RK9","UNIVERSITY HOSPITALS PLYMOUTH NHS TRUST","RK9XXX","Non-hospital site",null,"RKB","NORTH MIDDLESEX UNIVERSITY HOSPITAL NHS TRUST",null,"RKB","NORTH MIDDLESEX UNIVERSITY HOSPITAL NHS TRUST","RGN80","John Radcliffe Hospital"]
[null,null,null,null,null,null,null,null,null,null,null,null,null,null,null,null,null,null,null,null,"QJM","RWD","UNITED LINCOLNSHIRE HOSPITALS NHS TRUST","RWDLP","Grantham and District Hospital",null,"RL4","NORTH TEES AND HARTLEPOOL NHS FOUNDATION TRUST",null,"RL4","NORTH TEES AND HARTLEPOOL NHS FOUNDATION TRUST","RGN90","Kettering General Hospital"]
[null,null,null,null,null,null,null,null,null,null,null,null,null,null,null,null,null,null,null,null,"QJM","RWD","UNITED LINCOLNSHIRE HOSPITALS NHS TRUST","RWDDA","Lincoln County Hospital",null,"RLT","NORTH WEST ANGLIA NHS FOUNDATION TRUST",null,"RLT","NORTH WEST ANGLIA NHS FOUNDATION TRUST","RGP75","King's College Hospital (Denmark Hill)"]
[null,null,null,null,null,null,null,null,null,null,null,null,null,null,null,null,null,null,null,null,"QJM","RWD","UNITED LINCOLNSHIRE HOSPITALS NHS TRUST","RWDLA","Pilgrim Hospital",null,"RM1","NORTHAMPTON GENERAL HOSPITAL NHS TRUST",null,"RM1","NORTHAMPTON GENERAL HOSPITAL NHS TRUST","RGR50","King's Mill Hospital"]
[null,null,null,null,null,null,null,null,null,null,null,null,null,null,null,null,null,null,null,null,"QK1","RWE","UNIVERSITY HOSPITALS OF LEICESTER NHS TRUST","RWEAK","Leicester General Hospital",null,"RM3","NORTHERN CARE ALLIANCE NHS FOUNDATION TRUST",null,"RM3","NORTHERN CARE ALLIANCE NHS FOUNDATION TRUST","RGT32","Kingston Hospital"]
[null,null,null,null,null,null,null,null,null,null,null,null,null,null,null,null,null,null,null,null,"QK1","RWE","UNIVERSITY HOSPITALS OF LEICESTER NHS TRUST","RWEAA","Leicester Royal Infirmary",null,"RMC","NORTHERN LINCOLNSHIRE AND GOOLE NHS FOUNDATION TRUST",null,"RMC","NORTHERN LINCOLNSHIRE AND GOOLE NHS FOUNDATION TRUST","RH5A8","Leeds General Infirmary"]
[null,null,null,null,null,null,null,null,null,null,null,null,null,null,null,null,null,null,null,null,"QK1","RWE","UNIVERSITY HOSPITALS OF LEICESTER NHS TRUST","RWEXXX","Non-hospital site",null,"RN3","NORTHUMBRIA HEALTHCARE NHS FOUNDATION TRUST",null,"RN3","NORTHUMBRIA HEALTHCARE NHS FOUNDATION TRUST","RH5K6","Leicester General Hospital"]
[null,null,null,null,null,null,null,null,null,null,null,null,null,null,null,null,null,null,null,null,"QK1","RWE","UNIVERSITY HOSPITALS OF LEICESTER NHS TRUST","RWE10","St Mary's Hospital",null,"RN5","NOTTINGHAM UNIVERSITY HOSPITALS NHS TRUST",null,"RN5","NOTTINGHAM UNIVERSITY HOSPITALS NHS TRUST","RH5XXXX","Leicester Royal Infirmary"]
[null,null,null,null,null,null,null,null,null,null,null,null,null,null,null,null,null,null,null,null,"QKK","RJ1","GUY'S AND ST THOMAS' NHS FOUNDATION TRUST","RJ1XXX","Non-hospital site",null,"RN7","OXFORD UNIVERSITY HOSPITALS NHS FOUNDATION TRUST",null,"RN7","OXFORD UNIVERSITY HOSPITALS NHS FOUNDATION TRUST","RH801","Leighton Hospital"]
[null,null,null,null,null,null,null,null,null,null,null,null,null,null,null,null,null,null,null,null,"QKK","RJ1","GUY'S AND ST THOMAS' NHS FOUNDATION TRUST","RJ122","St Thomas' Hospital",null,"RNA","PORTSMOUTH HOSPITALS UNIVERSITY NATIONAL HEALTH SERVICE TRUST",null,"RNA","PORTSMOUTH HOSPITALS UNIVERSITY NATIONAL HEALTH SERVICE TRUST","RH880","Lincoln County Hospital"]
[null,null,null,null,null,null,null,null,null,null,null,null,null,null,null,null,null,null,null,null,"QKK","RJZ","KING'S COLLEGE HOSPITAL NHS FOUNDATION TRUST","RJZ01","King's College Hospital (Denmark Hill)",null,"RNN","ROYAL BERKSHIRE NHS FOUNDATION TRUST",null,"RNN","ROYAL BERKSHIRE NHS FOUNDATION TRUST","RH8XXX","Lister Hospital"]
[null,null,null,null,null,null,null,null,null,null,null,null,null,null,null,null,null,null,null,null,"QKK","RJZ","KING'S COLLEGE HOSPITAL NHS FOUNDATION TRUST","RJZ30","Princess Royal University Hospital",null,"RNQ","ROYAL CORNWALL HOSPITALS NHS TRUST",null,"RNQ","ROYAL CORNWALL HOSPITALS NHS TRUST","RHM01","Liverpool Womens Hospital"]
[null,null,null,null,null,null,null,null,null,null,null,null,null,null,null,null,null,null,null,null,"QKK","RJ2","LEWISHAM AND GREENWICH NHS TRUST","RJ2XXX","Non-hospital site",null,"RNS","ROYAL DEVON UNIVERSITY HEALTHCARE NHS FOUNDATION TRUST",null,"RNS","ROYAL DEVON UNIVERSITY HEALTHCARE NHS FOUNDATION TRUST","RHQHH","Ludlow Hospital (Maternity)"]
[null,null,null,null,null,null,null,null,null,null,null,null,null,null,null,null,null,null,null,null,"QKK","RJ2","LEWISHAM AND GREENWICH NHS TRUST","RJ231","Queen Elizabeth Hospital",null,"RNZ","ROYAL FREE LONDON NHS FOUNDATION TRUST",null,"RNZ","ROYAL FREE LONDON NHS FOUNDATION TRUST","RHU02","Luton and Dunstable Hospital"]
[null,null,null,null,null,null,null,null,null,null,null,null,null,null,null,null,null,null,null,null,"QKK","RJ2","LEWISHAM AND GREENWICH NHS TRUST","RJ224","University Hospital Lewisham",null,"RP5","ROYAL SURREY COUNTY HOSPITAL NHS FOUNDATION TRUST",null,"RP5","ROYAL SURREY COUNTY HOSPITAL NHS FOUNDATION TRUST","RHU03","Macclesfield District General Hospital"]
[null,null,null,null,null,null,null,null,null,null,null,null,null,null,null,null,null,null,null,null,"QKS","RN7","DARTFORD AND GRAVESHAM NHS TRUST","RN707","Darent Valley Hospital",null,"RPA","ROYAL UNITED HOSPITALS BATH NHS FOUNDATION TRUST",null,"RPA","ROYAL UNITED HOSPITALS BATH NHS FOUNDATION TRUST","RHU04","Maidstone District General Hospital"]
[null,null,null,null,null,null,null,null,null,null,null,null,null,null,null,null,null,null,null,null,"QKS","RWF","MAIDSTONE AND TUNBRIDGE WELLS NHS TRUST","RWF08","Crowborough Birthing Centre",null,"RQ3","SALISBURY NHS FOUNDATION TRUST",null,"RQ3","SALISBURY NHS FOUNDATION TRUST","RHU10","Manor Hospital"]
[null,null,null,null,null,null,null,null,null,null,null,null,null,null,null,null,null,null,null,null,"QKS","RWF","MAIDSTONE AND TUNBRIDGE WELLS NHS TRUST","RWF03","Maidstone District General Hospital",null,"RQM","SANDWELL AND WEST BIRMINGHAM HOSPITALS NHS TRUST",null,"RQM","SANDWELL AND WEST BIRMINGHAM HOSPITALS NHS TRUST","RHW01","Medway Maritime Hospital"]
[null,null,null,null,null,null,null,null,null,null,null,null,null,null,null,null,null,null,null,null,"QKS","RWF","MAIDSTONE AND TUNBRIDGE WELLS NHS TRUST","RWFXXX","Non-hospital site",null,"RQW","SHEFFIELD TEACHING HOSPITALS NHS FOUNDATION TRUST",null,"RQW","SHEFFIELD TEACHING HOSPITALS NHS FOUNDATION TRUST","RJ122","MID ESSEX HOSPITAL"]
[null,null,null,null,null,null,null,null,null,null,null,null,null,null,null,null,null,null,null,null,"QKS","RWF","MAIDSTONE AND TUNBRIDGE WELLS NHS TRUST","RWFTW","The Tunbridge Wells Hospital",null,"RQX","SHERWOOD FOREST HOSPITALS NHS FOUNDATION TRUST",null,"RQX","SHERWOOD FOREST HOSPITALS NHS FOUNDATION TRUST","RJ1XXX","Milton Keynes Hospital"]
[null,null,null,null,null,null,null,null,null,null,null,null,null,null,null,null,null,null,null,null,"QKS","RPA","MEDWAY NHS FOUNDATION TRUST","RPA02","Medway Maritime Hospital",null,"RR7","SOMERSET NHS FOUNDATION TRUST",null,"RR7","SOMERSET NHS FOUNDATION TRUST","RJ224","MUSGROVE PARK HOSPITAL"]
[null,null,null,null,null,null,null,null,null,null,null,null,null,null,null,null,null,null,null,null,"QM7","RWH","EAST AND NORTH HERTFORDSHIRE NHS TRUST","RWH01","Lister Hospital",null,"RR8","SOUTH TEES HOSPITALS NHS FOUNDATION TRUST",null,"RR8","SOUTH TEES HOSPITALS NHS FOUNDATION TRUST","RJ231","New Cross Hospital"]
[null,null,null,null,null,null,null,null,null,null,null,null,null,null,null,null,null,null,null,null,"QM7","RWH","EAST AND NORTH HERTFORDSHIRE NHS TRUST","RWHXXX","Non-hospital site",null,"RRF","SOUTH TYNESIDE AND SUNDERLAND NHS FOUNDATION TRUST",null,"RRF","SOUTH TYNESIDE AND SUNDERLAND NHS FOUNDATION TRUST","RJ2XXX","Newham General Hospital"]
[null,null,null,null,null,null,null,null,null,null,null,null,null,null,null,null,null,null,null,null,"QM7","RQW","THE PRINCESS ALEXANDRA HOSPITAL NHS TRUST","RQWG0","Princess Alexandra Hospital",null,"RRK","SOUTH WARWICKSHIRE UNIVERSITY NHS FOUNDATION TRUST",null,"RRK","SOUTH WARWICKSHIRE UNIVERSITY NHS FOUNDATION TRUST","RJ611","Non Hospital Site"]
[null,null,null,null,null,null,null,null,null,null,null,null,null,null,null,null,null,null,null,null,"QM7","RWG","WEST HERTFORDSHIRE TEACHING HOSPITALS NHS TRUST","RWG02","Watford General Hospital",null,"RRV","SOUTHPORT AND ORMSKIRK HOSPITAL NHS TRUST",null,"RRV","SOUTHPORT AND ORMSKIRK HOSPITAL NHS TRUST","RJ701","Non-hospital site"]
[null,null,null,null,null,null,null,null,null,null,null,null,null,null,null,null,null,null,null,null,"QMF","RF4","BARKING, HAVERING AND REDBRIDGE UNIVERSITY HOSPITALS NHS TRUST","RF4QH","Queen's Hospital",null,"RTD","ST GEORGE'S UNIVERSITY HOSPITALS NHS FOUNDATION TRUST",null,"RTD","ST GEORGE'S UNIVERSITY HOSPITALS NHS FOUNDATION TRUST","RJC02","Non-hospital site"]
[null,null,null,null,null,null,null,null,null,null,null,null,null,null,null,null,null,null,null,null,"QMF","R1H","BARTS HEALTH NHS TRUST","R1HNH","Newham General Hospital",null,"RTE","ST HELENS AND KNOWSLEY TEACHING HOSPITALS NHS TRUST",null,"RTE","ST HELENS AND KNOWSLEY TEACHING HOSPITALS NHS TRUST","RJE01","Non-hospital site"]
[null,null,null,null,null,null,null,null,null,null,null,null,null,null,null,null,null,null,null,null,"QMF","R1H","BARTS HEALTH NHS TRUST","R1H12","The Royal London Hospital",null,"RTF","STOCKPORT NHS FOUNDATION TRUST",null,"RTF","STOCKPORT NHS FOUNDATION TRUST","RJL30","Non-hospital site"]
[null,null,null,null,null,null,null,null,null,null,null,null,null,null,null,null,null,null,null,null,"QMF","R1H","BARTS HEALTH NHS TRUST","R1HKH","Whipps Cross University Hospital",null,"RTG","SURREY AND SUSSEX HEALTHCARE NHS TRUST",null,"RTG","SURREY AND SUSSEX HEALTHCARE NHS TRUST","RJL32","Non-hospital site"]
[null,null,null,null,null,null,null,null,null,null,null,null,null,null,null,null,null,null,null,null,"QMF","RQX","HOMERTON HEALTHCARE NHS FOUNDATION TRUST","RQXM1","Homerton University Hospital",null,"RTH","THE DUDLEY GROUP NHS FOUNDATION TRUST",null,"RTH","THE DUDLEY GROUP NHS FOUNDATION TRUST","RJN71","Non-hospital site"]
[null,null,null,null,null,null,null,null,null,null,null,null,null,null,null,null,null,null,null,null,"QMJ","RAP","NORTH MIDDLESEX UNIVERSITY HOSPITAL NHS TRUST","RAPNM","North Middlesex Hospital",null,"RTK","THE HILLINGDON HOSPITALS NHS FOUNDATION TRUST",null,"RTK","THE HILLINGDON HOSPITALS NHS FOUNDATION TRUST","RJZ01","Non-hospital site"]
[null,null,null,null,null,null,null,null,null,null,null,null,null,null,null,null,null,null,null,null,"QMJ","RAL","ROYAL FREE LONDON NHS FOUNDATION TRUST","RAL26","Barnet Hospital",null,"RTP","THE NEWCASTLE UPON TYNE HOSPITALS NHS FOUNDATION TRUST",null,"RTP","THE NEWCASTLE UPON TYNE HOSPITALS NHS FOUNDATION TRUST","RJZ30","Non-hospital site"]
[null,null,null,null,null,null,null,null,null,null,null,null,null,null,null,null,null,null,null,null,"QMJ","RAL","ROYAL FREE LONDON NHS FOUNDATION TRUST","RAL01","Royal Free Hospital",null,"RTR","THE PRINCESS ALEXANDRA HOSPITAL NHS TRUST",null,"RTR","THE PRINCESS ALEXANDRA HOSPITAL NHS TRUST","RK5BC","Non-hospital site"]
[null,null,null,null,null,null,null,null,null,null,null,null,null,null,null,null,null,null,null,null,"QMJ","RRV","UNIVERSITY COLLEGE LONDON HOSPITALS NHS FOUNDATION TRUST","RRV11","University College Hospital Elizabeth Garrett Anderson Wing",null,"RTX","THE QUEEN ELIZABETH HOSPITAL, KING'S LYNN, NHS FOUNDATION TRUST",null,"RTX","THE QUEEN ELIZABETH HOSPITAL, KING'S LYNN, NHS FOUNDATION TRUST","RK5XXX","Non-hospital site"]
[null,null,null,null,null,null,null,null,null,null,null,null,null,null,null,null,null,null,null,null,"QMM","RGP","JAMES PAGET UNIVERSITY HOSPITALS NHS FOUNDATION TRUST","RGP75","James Paget University Hospital",null,"RVJ","THE ROTHERHAM NHS FOUNDATION TRUST",null,"RVJ","THE ROTHERHAM NHS FOUNDATION TRUST","RK950","Non-hospital site"]
[null,null,null,null,null,null,null,null,null,null,null,null,null,null,null,null,null,null,null,null,"QMM","RM1","NORFOLK AND NORWICH UNIVERSITY HOSPITALS NHS FOUNDATION TRUST","RM102","Norfolk and Norwich University Hospital",null,"RVR","THE ROYAL WOLVERHAMPTON NHS TRUST",null,"RVR","THE ROYAL WOLVERHAMPTON NHS TRUST","RK9XXX","Non-hospital site"]
[null,null,null,null,null,null,null,null,null,null,null,null,null,null,null,null,null,null,null,null,"QMM","RCX","THE QUEEN ELIZABETH HOSPITAL, KING'S LYNN, NHS FOUNDATION TRUST","RCXXXX","Non-hospital site",null,"RVW","THE SHREWSBURY AND TELFORD HOSPITAL NHS TRUST",null,"RVW","THE SHREWSBURY AND TELFORD HOSPITAL NHS TRUST","RKB01","Non-hospital site"]
[null,null,null,null,null,null,null,null,null,null,null,null,null,null,null,null,null,null,null,null,"QMM","RCX","THE QUEEN ELIZABETH HOSPITAL, KING'S LYNN, NHS FOUNDATION TRUST","RCX70","The Queen Elizabeth Hospital",null,"RVY","TORBAY AND SOUTH DEVON NHS FOUNDATION TRUST",null,"RVY","TORBAY AND SOUTH DEVON NHS FOUNDATION TRUST","RKB03","Non-hospital site"]
[null,null,null,null,null,null,null,null,null,null,null,null,null,null,null,null,null,null,null,null,"QNC","RJE","UNIVERSITY HOSPITALS OF NORTH MIDLANDS NHS TRUST","RJE01","Royal Stoke University Hospital",null,"RWA","UNITED LINCOLNSHIRE HOSPITALS NHS TRUST",null,"RWA","UNITED LINCOLNSHIRE HOSPITALS NHS TRUST","RKBXXX","Non-hospital site"]
[null,null,null,null,null,null,null,null,null,null,null,null,null,null,null,null,null,null,null,null,"QNQ","RDU","FRIMLEY HEALTH NHS FOUNDATION TRUST","RDU01","Frimley Park Hospital",null,"RWD","UNIVERSITY COLLEGE LONDON HOSPITALS NHS FOUNDATION TRUST",null,"RWD","UNIVERSITY COLLEGE LONDON HOSPITALS NHS FOUNDATION TRUST","RL403","Non-hospital site"]
[null,null,null,null,null,null,null,null,null,null,null,null,null,null,null,null,null,null,null,null,"QNQ","RDU","FRIMLEY HEALTH NHS FOUNDATION TRUST","RDU50","Wexham Park Hospital",null,"RWE","UNIVERSITY HOSPITAL SOUTHAMPTON NHS FOUNDATION TRUST",null,"RWE","UNIVERSITY HOSPITAL SOUTHAMPTON NHS FOUNDATION TRUST","RLT01","Non-hospital site"]
[null,null,null,null,null,null,null,null,null,null,null,null,null,null,null,null,null,null,null,null,"QNX","RXC","EAST SUSSEX HEALTHCARE NHS TRUST","RXC01","Conquest Hospital",null,"RWF","UNIVERSITY HOSPITALS BIRMINGHAM NHS FOUNDATION TRUST",null,"RWF","UNIVERSITY HOSPITALS BIRMINGHAM NHS FOUNDATION TRUST","RM102","Non-hospital site"]
[null,null,null,null,null,null,null,null,null,null,null,null,null,null,null,null,null,null,null,null,"QNX","RXC","EAST SUSSEX HEALTHCARE NHS TRUST","RXC02","Eastbourne District General Hospital",null,"RWG","UNIVERSITY HOSPITALS BRISTOL AND WESTON NHS FOUNDATION TRUST",null,"RWG","UNIVERSITY HOSPITALS BRISTOL AND WESTON NHS FOUNDATION TRUST","RMC01","Non-hospital site"]
[null,null,null,null,null,null,null,null,null,null,null,null,null,null,null,null,null,null,null,null,"QNX","RXC","EAST SUSSEX HEALTHCARE NHS TRUST","RXCXXX","Non-hospital site",null,"RWH","UNIVERSITY HOSPITALS COVENTRY AND WARWICKSHIRE NHS TRUST",null,"RWH","UNIVERSITY HOSPITALS COVENTRY AND WARWICKSHIRE NHS TRUST","RN325","Non-hospital site"]
[null,null,null,null,null,null,null,null,null,null,null,null,null,null,null,null,null,null,null,null,"QNX","RYR","UNIVERSITY HOSPITALS SUSSEX NHS FOUNDATION TRUST","RYRXXX","Non-hospital site",null,"RWJ","UNIVERSITY HOSPITALS DORSET NHS FOUNDATION TRUST",null,"RWJ","UNIVERSITY HOSPITALS DORSET NHS FOUNDATION TRUST","RN3XXX","Non-hospital site"]
[null,null,null,null,null,null,null,null,null,null,null,null,null,null,null,null,null,null,null,null,"QNX","RYR","UNIVERSITY HOSPITALS SUSSEX NHS FOUNDATION TRUST","N6J7V","Princess Royal Hospital",null,"RWP","UNIVERSITY HOSPITALS OF DERBY AND BURTON NHS FOUNDATION TRUST",null,"RWP","UNIVERSITY HOSPITALS OF DERBY AND BURTON NHS FOUNDATION TRUST","RN506","Non-hospital site"]
[null,null,null,null,null,null,null,null,null,null,null,null,null,null,null,null,null,null,null,null,"QNX","RYR","UNIVERSITY HOSPITALS SUSSEX NHS FOUNDATION TRUST","E0A3H","Royal Sussex County Hospital",null,"RWW","UNIVERSITY HOSPITALS OF LEICESTER NHS TRUST",null,"RWW","UNIVERSITY HOSPITALS OF LEICESTER NHS TRUST","RN541","Non-hospital site"]
[null,null,null,null,null,null,null,null,null,null,null,null,null,null,null,null,null,null,null,null,"QNX","RYR","UNIVERSITY HOSPITALS SUSSEX NHS FOUNDATION TRUST","RYR16","St Richard's Hospital",null,"RWY","UNIVERSITY HOSPITALS OF MORECAMBE BAY NHS FOUNDATION TRUST",null,"RWY","UNIVERSITY HOSPITALS OF MORECAMBE BAY NHS FOUNDATION TRUST","RN542","Non-hospital site"]
[null,null,null,null,null,null,null,null,null,null,null,null,null,null,null,null,null,null,null,null,"QNX","RYR","UNIVERSITY HOSPITALS SUSSEX NHS FOUNDATION TRUST","RYR18","Worthing Hospital",null,"RX1","UNIVERSITY HOSPITALS OF NORTH MIDLANDS NHS TRUST",null,"RX1","UNIVERSITY HOSPITALS OF NORTH MIDLANDS NHS TRUST","RN707","Non-hospital site"]
[null,null,null,null,null,null,null,null,null,null,null,null,null,null,null,null,null,null,null,null,"QOC","RXW","THE SHREWSBURY AND TELFORD HOSPITAL NHS TRUST","RXWMB","Bridgnorth Hospital (Maternity)",null,"RXC","UNIVERSITY HOSPITALS PLYMOUTH NHS TRUST",null,"RXC","UNIVERSITY HOSPITALS PLYMOUTH NHS TRUST","RNA01","Non-hospital site"]
[null,null,null,null,null,null,null,null,null,null,null,null,null,null,null,null,null,null,null,null,"QOC","RXW","THE SHREWSBURY AND TELFORD HOSPITAL NHS TRUST","RXWML","Ludlow Hospital (Maternity)",null,"RXF","UNIVERSITY HOSPITALS SUSSEX NHS FOUNDATION TRUST",null,"RXF","UNIVERSITY HOSPITALS SUSSEX NHS FOUNDATION TRUST","RNN62","Non-hospital site"]
[null,null,null,null,null,null,null,null,null,null,null,null,null,null,null,null,null,null,null,null,"QOC","RXW","THE SHREWSBURY AND TELFORD HOSPITAL NHS TRUST","RXWXXX","Non-hospital site",null,"RXK","WALSALL HEALTHCARE NHS TRUST",null,"RXK","WALSALL HEALTHCARE NHS TRUST","RNNBX","Non-hospital site"]
[null,null,null,null,null,null,null,null,null,null,null,null,null,null,null,null,null,null,null,null,"QOC","RXW","THE SHREWSBURY AND TELFORD HOSPITAL NHS TRUST","RXWMJ","Robert Jones & Agnes Hunt Orthopaedic & District Hospital",null,"RXL","WARRINGTON AND HALTON TEACHING HOSPITALS NHS FOUNDATION TRUST",null,"RXL","WARRINGTON AND HALTON TEACHING HOSPITALS NHS FOUNDATION TRUST","RNNKV","Non-hospital site home/in-transit births"]
[null,null,null,null,null,null,null,null,null,null,null,null,null,null,null,null,null,null,null,null,"QOC","RXW","THE SHREWSBURY AND TELFORD HOSPITAL NHS TRUST","RXWAS","Royal Shrewsbury Hospital",null,"RXN","WEST HERTFORDSHIRE TEACHING HOSPITALS NHS TRUST",null,"RXN","WEST HERTFORDSHIRE TEACHING HOSPITALS NHS TRUST","RNNXXX","Norfolk and Norwich University Hospital"]
[null,null,null,null,null,null,null,null,null,null,null,null,null,null,null,null,null,null,null,null,"QOC","RXW","THE SHREWSBURY AND TELFORD HOSPITAL NHS TRUST","RXWAT","The Princess Royal Hospital",null,"RXP","WEST SUFFOLK NHS FOUNDATION TRUST",null,"RXP","WEST SUFFOLK NHS FOUNDATION TRUST","RNQ51","North Devon District Hospital"]
[null,null,null,null,null,null,null,null,null,null,null,null,null,null,null,null,null,null,null,null,"QOP","RMC","BOLTON NHS FOUNDATION TRUST","RMC01","Royal Bolton Hospital",null,"RXQ","WIRRAL UNIVERSITY TEACHING HOSPITAL NHS FOUNDATION TRUST",null,"RXQ","WIRRAL UNIVERSITY TEACHING HOSPITAL NHS FOUNDATION TRUST","RNS01","North Middlesex Hospital"]
[null,null,null,null,null,null,null,null,null,null,null,null,null,null,null,null,null,null,null,null,"QOP","R0A","MANCHESTER UNIVERSITY NHS FOUNDATION TRUST","R0A05","St Mary's Hospital",null,"RXR","WORCESTERSHIRE ACUTE HOSPITALS NHS TRUST",null,"RXR","WORCESTERSHIRE ACUTE HOSPITALS NHS TRUST","RNZ02","Northampton General Hospital (Acute)"]
[null,null,null,null,null,null,null,null,null,null,null,null,null,null,null,null,null,null,null,null,"QOP","RM3","NORTHERN CARE ALLIANCE NHS FOUNDATION TRUST","RW604","Rochdale Infirmary",null,"RXW","WRIGHTINGTON, WIGAN AND LEIGH NHS FOUNDATION TRUST",null,"RXW","WRIGHTINGTON, WIGAN AND LEIGH NHS FOUNDATION TRUST","RNZXXX","Northwick Park Hospital"]
[null,null,null,null,null,null,null,null,null,null,null,null,null,null,null,null,null,null,null,null,"QOP","RM3","NORTHERN CARE ALLIANCE NHS FOUNDATION TRUST","RW603","Royal Oldham Hospital",null,"RYJ","YEOVIL DISTRICT HOSPITAL NHS FOUNDATION TRUST",null,"RYJ","YEOVIL DISTRICT HOSPITAL NHS FOUNDATION TRUST","RP5BA","Nottingham University Hospitals NHS Trust - City Campus"]
[null,null,null,null,null,null,null,null,null,null,null,null,null,null,null,null,null,null,null,null,"QOP","RWJ","STOCKPORT NHS FOUNDATION TRUST","RWJXXX","Non-hospital site",null,"RYR","YORK AND SCARBOROUGH TEACHING HOSPITALS NHS FOUNDATION TRUST",null,"RYR","YORK AND SCARBOROUGH TEACHING HOSPITALS NHS FOUNDATION TRUST","RP5DR","Nottingham University Hospitals NHS Trust - Queen's Medical Centre Campus"]
[null,null,null,null,null,null,null,null,null,null,null,null,null,null,null,null,null,null,null,null,"QOP","RWJ","STOCKPORT NHS FOUNDATION TRUST","RWJ09","Stepping Hill Hospital",null,null,null,null,null,null,"RP5XXX","Ormskirk and District General Hospital"]
[null,null,null,null,null,null,null,null,null,null,null,null,null,null,null,null,null,null,null,null,"QOP","RRF","WRIGHTINGTON, WIGAN AND LEIGH NHS FOUNDATION TRUST","RRF02","Royal Albert Edward Infirmary",null,null,null,null,null,null,"RPA02","Paulton Memorial Hospital"]
[null,null,null,null,null,null,null,null,null,null,null,null,null,null,null,null,null,null,null,null,"QOQ","RCD","HARROGATE AND DISTRICT NHS FOUNDATION TRUST","RCD01","Harrogate District Hospital",null,null,null,null,null,null,"RQ370","Penrith Hospital"]
[null,null,null,null,null,null,null,null,null,null,null,null,null,null,null,null,null,null,null,null,"QOQ","RWA","HULL UNIVERSITY TEACHING HOSPITALS NHS TRUST","RWA01","Hull Royal Infirmary",null,null,null,null,null,null,"RQM01","Peterborough City Hospital"]
[null,null,null,null,null,null,null,null,null,null,null,null,null,null,null,null,null,null,null,null,"QOQ","RJL","NORTHERN LINCOLNSHIRE AND GOOLE NHS FOUNDATION TRUST","RJL30","Diana, Princess Of Wales Hospital",null,null,null,null,null,null,"RQM91","Petersfield Community Hospital"]
[null,null,null,null,null,null,null,null,null,null,null,null,null,null,null,null,null,null,null,null,"QOQ","RJL","NORTHERN LINCOLNSHIRE AND GOOLE NHS FOUNDATION TRUST","RJL32","Scunthorpe General Hospital",null,null,null,null,null,null,"RQWG0","Pilgrim Hospital"]
[null,null,null,null,null,null,null,null,null,null,null,null,null,null,null,null,null,null,null,null,"QOQ","RCB","YORK AND SCARBOROUGH TEACHING HOSPITALS NHS FOUNDATION TRUST","RCBCA","Scarborough General Hospital",null,null,null,null,null,null,"RQXM1","Pinderfields General Hospital"]
[null,null,null,null,null,null,null,null,null,null,null,null,null,null,null,null,null,null,null,null,"QOQ","RCB","YORK AND SCARBOROUGH TEACHING HOSPITALS NHS FOUNDATION TRUST","RCB55","York Hospital",null,null,null,null,null,null,"RR7EN","Pontefract General Infirmary"]
[null,null,null,null,null,null,null,null,null,null,null,null,null,null,null,null,null,null,null,null,"QOX","RN3","GREAT WESTERN HOSPITALS NHS FOUNDATION TRUST","RN3XXX","Non-hospital site",null,null,null,null,null,null,"RR801","Poole Hospital"]
[null,null,null,null,null,null,null,null,null,null,null,null,null,null,null,null,null,null,null,null,"QOX","RN3","GREAT WESTERN HOSPITALS NHS FOUNDATION TRUST","RN325","The Great Western Hospital",null,null,null,null,null,null,"RR813","Princess Alexandra Hospital"]
[null,null,null,null,null,null,null,null,null,null,null,null,null,null,null,null,null,null,null,null,"QOX","RD1","ROYAL UNITED HOSPITALS BATH NHS FOUNDATION TRUST","RD1XXX","Non Hospital Site",null,null,null,null,null,null,"RR8XXX","Princess Anne Wing RUH"]
[null,null,null,null,null,null,null,null,null,null,null,null,null,null,null,null,null,null,null,null,"QOX","RD1","ROYAL UNITED HOSPITALS BATH NHS FOUNDATION TRUST","RD129","Paulton Memorial Hospital",null,null,null,null,null,null,"RRF02","Princess Royal Hospital"]
[null,null,null,null,null,null,null,null,null,null,null,null,null,null,null,null,null,null,null,null,"QOX","RD1","ROYAL UNITED HOSPITALS BATH NHS FOUNDATION TRUST","RD130","Princess Anne Wing RUH",null,null,null,null,null,null,"RRK97","Princess Royal University Hospital"]
[null,null,null,null,null,null,null,null,null,null,null,null,null,null,null,null,null,null,null,null,"QOX","RD1","ROYAL UNITED HOSPITALS BATH NHS FOUNDATION TRUST","RD108","Trowbridge Community Hospital",null,null,null,null,null,null,"RRK98","Queen Alexandra Hospital"]
[null,null,null,null,null,null,null,null,null,null,null,null,null,null,null,null,null,null,null,null,"QOX","RNZ","SALISBURY NHS FOUNDATION TRUST","RNZXXX","Non-hospital site",null,null,null,null,null,null,"RRK99","Queen Charlotte's Hospital"]
[null,null,null,null,null,null,null,null,null,null,null,null,null,null,null,null,null,null,null,null,"QOX","RNZ","SALISBURY NHS FOUNDATION TRUST","RNZ02","Salisbury District Hospital",null,null,null,null,null,null,"RRV11","Queen Elizabeth Hospital"]
[null,null,null,null,null,null,null,null,null,null,null,null,null,null,null,null,null,null,null,null,"QPM","RNQ","KETTERING GENERAL HOSPITAL NHS FOUNDATION TRUST","RNQ51","Kettering General Hospital",null,null,null,null,null,null,"RTD02","Queen Elizabeth Hospital"]
[null,null,null,null,null,null,null,null,null,null,null,null,null,null,null,null,null,null,null,null,"QPM","RNS","NORTHAMPTON GENERAL HOSPITAL NHS TRUST","RNS01","Northampton General Hospital (Acute)",null,null,null,null,null,null,"RTE03","Queen's Hospital"]
[null,null,null,null,null,null,null,null,null,null,null,null,null,null,null,null,null,null,null,null,"QR1","RTE","GLOUCESTERSHIRE HOSPITALS NHS FOUNDATION TRUST","RTE03","Gloucestershire Royal Hospital",null,null,null,null,null,null,"RTE27","Queens Hospital, Burton Upon Trent"]
[null,null,null,null,null,null,null,null,null,null,null,null,null,null,null,null,null,null,null,null,"QR1","RTE","GLOUCESTERSHIRE HOSPITALS NHS FOUNDATION TRUST","RTE27","Stroud Maternity Hospital",null,null,null,null,null,null,"RTF86","Robert Jones & Agnes Hunt Orthopaedic & District Hospital"]
[null,null,null,null,null,null,null,null,null,null,null,null,null,null,null,null,null,null,null,null,"QRL","RN5","HAMPSHIRE HOSPITALS NHS FOUNDATION TRUST","RN542","Andover War Memorial Hospital",null,null,null,null,null,null,"RTFDH","Rochdale Infirmary"]
[null,null,null,null,null,null,null,null,null,null,null,null,null,null,null,null,null,null,null,null,"QRL","RN5","HAMPSHIRE HOSPITALS NHS FOUNDATION TRUST","RN506","Basingstoke and North Hampshire Hospital",null,null,null,null,null,null,"RTFDJ","Rosie Hospital"]
[null,null,null,null,null,null,null,null,null,null,null,null,null,null,null,null,null,null,null,null,"QRL","RN5","HAMPSHIRE HOSPITALS NHS FOUNDATION TRUST","RN541","Royal Hampshire County Hospital",null,null,null,null,null,null,"RTFDR","Rotherham District General Hospital"]
[null,null,null,null,null,null,null,null,null,null,null,null,null,null,null,null,null,null,null,null,"QRL","R1F","ISLE OF WIGHT NHS TRUST","R1F01","St Mary's Hospital",null,null,null,null,null,null,"RTFXXX","Royal Albert Edward Infirmary"]
[null,null,null,null,null,null,null,null,null,null,null,null,null,null,null,null,null,null,null,null,"QRL","RHU","PORTSMOUTH HOSPITALS UNIVERSITY NATIONAL HEALTH SERVICE TRUST","RHU10","Gosport War Memorial Hospital",null,null,null,null,null,null,"RTG02","Royal Berkshire Hospital"]
[null,null,null,null,null,null,null,null,null,null,null,null,null,null,null,null,null,null,null,null,"QRL","RHU","PORTSMOUTH HOSPITALS UNIVERSITY NATIONAL HEALTH SERVICE TRUST","RHU04","Petersfield Community Hospital",null,null,null,null,null,null,"RTGFG","Royal Blackburn Hospital"]
[null,null,null,null,null,null,null,null,null,null,null,null,null,null,null,null,null,null,null,null,"QRL","RHU","PORTSMOUTH HOSPITALS UNIVERSITY NATIONAL HEALTH SERVICE TRUST","RHU03","Queen Alexandra Hospital",null,null,null,null,null,null,"RTH05","Royal Bolton Hospital"]
[null,null,null,null,null,null,null,null,null,null,null,null,null,null,null,null,null,null,null,null,"QRL","RHU","PORTSMOUTH HOSPITALS UNIVERSITY NATIONAL HEALTH SERVICE TRUST","RHU02","St Mary's Hospital",null,null,null,null,null,null,"RTH08","Royal Bournemouth Hospital"]
[null,null,null,null,null,null,null,null,null,null,null,null,null,null,null,null,null,null,null,null,"QRL","RHM","UNIVERSITY HOSPITAL SOUTHAMPTON NHS FOUNDATION TRUST","RHM01","Southampton General Hospital",null,null,null,null,null,null,"RTH16","Royal Cornwall Hospital (Treliske)"]
[null,null,null,null,null,null,null,null,null,null,null,null,null,null,null,null,null,null,null,null,"QRV","RQM","CHELSEA AND WESTMINSTER HOSPITAL NHS FOUNDATION TRUST","RQM01","Chelsea and Westminster Hospital",null,null,null,null,null,null,"RTK01","Royal Derby Hospital"]
[null,null,null,null,null,null,null,null,null,null,null,null,null,null,null,null,null,null,null,null,"QRV","RQM","CHELSEA AND WESTMINSTER HOSPITAL NHS FOUNDATION TRUST","RQM91","West Middlesex University Hospital",null,null,null,null,null,null,"RTP04","Royal Devon and Exeter Hospital (Wonford)"]
[null,null,null,null,null,null,null,null,null,null,null,null,null,null,null,null,null,null,null,null,"QRV","RYJ","IMPERIAL COLLEGE HEALTHCARE NHS TRUST","RYJ04","Queen Charlotte's Hospital",null,null,null,null,null,null,"RTR45","Royal Free Hospital"]
[null,null,null,null,null,null,null,null,null,null,null,null,null,null,null,null,null,null,null,null,"QRV","RYJ","IMPERIAL COLLEGE HEALTHCARE NHS TRUST","RYJ01","St Mary's Hospital (HQ)",null,null,null,null,null,null,"RTRAT","Royal Hallamshire Hospital"]
[null,null,null,null,null,null,null,null,null,null,null,null,null,null,null,null,null,null,null,null,"QRV","R1K","LONDON NORTH WEST UNIVERSITY HEALTHCARE NHS TRUST","R1K01","Northwick Park Hospital",null,null,null,null,null,null,"RTX02","Royal Hampshire County Hospital"]
[null,null,null,null,null,null,null,null,null,null,null,null,null,null,null,null,null,null,null,null,"QRV","RAS","THE HILLINGDON HOSPITALS NHS FOUNDATION TRUST","RAS01","Hillingdon Hospital",null,null,null,null,null,null,"RTXBU","Royal Lancaster Infirmary"]
[null,null,null,null,null,null,null,null,null,null,null,null,null,null,null,null,null,null,null,null,"QSL","RH5","SOMERSET NHS FOUNDATION TRUST","RH5K6","Bridgwater Hospital",null,null,null,null,null,null,"RTXBW","Royal Oldham Hospital"]
[null,null,null,null,null,null,null,null,null,null,null,null,null,null,null,null,null,null,null,null,"QSL","RH5","SOMERSET NHS FOUNDATION TRUST","RH5A8","MUSGROVE PARK HOSPITAL",null,null,null,null,null,null,"RVJ01","Royal Preston Hospital"]
[null,null,null,null,null,null,null,null,null,null,null,null,null,null,null,null,null,null,null,null,"QSL","RH5","SOMERSET NHS FOUNDATION TRUST","RH5XXXX","Non-hospital site home/in-transit births",null,null,null,null,null,null,"RVJ21","Royal Shrewsbury Hospital"]
[null,null,null,null,null,null,null,null,null,null,null,null,null,null,null,null,null,null,null,null,"QSL","RA4","YEOVIL DISTRICT HOSPITAL NHS FOUNDATION TRUST","RA430","Yeovil District Hospital",null,null,null,null,null,null,"RVJXXX","Royal Stoke University Hospital"]
[null,null,null,null,null,null,null,null,null,null,null,null,null,null,null,null,null,null,null,null,"QT1","RX1","NOTTINGHAM UNIVERSITY HOSPITALS NHS TRUST","RX1XXX","Non-hospital site",null,null,null,null,null,null,"RVR05","Royal Surrey County Hospital"]
[null,null,null,null,null,null,null,null,null,null,null,null,null,null,null,null,null,null,null,null,"QT1","RX1","NOTTINGHAM UNIVERSITY HOSPITALS NHS TRUST","RX1CC","Nottingham University Hospitals NHS Trust - City Campus",null,null,null,null,null,null,"RVR50","Royal Sussex County Hospital"]
[null,null,null,null,null,null,null,null,null,null,null,null,null,null,null,null,null,null,null,null,"QT1","RX1","NOTTINGHAM UNIVERSITY HOSPITALS NHS TRUST","RX1RA","Nottingham University Hospitals NHS Trust - Queen's Medical Centre Campus",null,null,null,null,null,null,"RVRXXX","Russells Hall Hospital"]
[null,null,null,null,null,null,null,null,null,null,null,null,null,null,null,null,null,null,null,null,"QT1","RK5","SHERWOOD FOREST HOSPITALS NHS FOUNDATION TRUST","RK5BC","King's Mill Hospital",null,null,null,null,null,null,"RVWAE","Salisbury District Hospital"]
[null,null,null,null,null,null,null,null,null,null,null,null,null,null,null,null,null,null,null,null,"QT1","RK5","SHERWOOD FOREST HOSPITALS NHS FOUNDATION TRUST","RK5XXX","Non-hospital site",null,null,null,null,null,null,"RVY02","Scarborough General Hospital"]
[null,null,null,null,null,null,null,null,null,null,null,null,null,null,null,null,null,null,null,null,"QT6","REF","ROYAL CORNWALL HOSPITALS NHS TRUST","REFXXX","Non-hospital site",null,null,null,null,null,null,"RW603","Scunthorpe General Hospital"]
[null,null,null,null,null,null,null,null,null,null,null,null,null,null,null,null,null,null,null,null,"QT6","REF","ROYAL CORNWALL HOSPITALS NHS TRUST","REF12","Royal Cornwall Hospital (Treliske)",null,null,null,null,null,null,"RW604","Solihull Hospital"]
[null,null,null,null,null,null,null,null,null,null,null,null,null,null,null,null,null,null,null,null,"QU9","RXQ","BUCKINGHAMSHIRE HEALTHCARE NHS TRUST","RXQ02","Stoke Mandeville Hospital",null,null,null,null,null,null,"RWA01","South Tyneside District Hospital"]
[null,null,null,null,null,null,null,null,null,null,null,null,null,null,null,null,null,null,null,null,"QU9","RTH","OXFORD UNIVERSITY HOSPITALS NHS FOUNDATION TRUST","RTH05","Horton General Hospital",null,null,null,null,null,null,"RWDDA","Southampton General Hospital"]
[null,null,null,null,null,null,null,null,null,null,null,null,null,null,null,null,null,null,null,null,"QU9","RTH","OXFORD UNIVERSITY HOSPITALS NHS FOUNDATION TRUST","RTH08","John Radcliffe Hospital",null,null,null,null,null,null,"RWDLA","Southend Hospital"]
[null,null,null,null,null,null,null,null,null,null,null,null,null,null,null,null,null,null,null,null,"QU9","RTH","OXFORD UNIVERSITY HOSPITALS NHS FOUNDATION TRUST","RTH16","Wallingford Community Hospital",null,null,null,null,null,null,"RWDLP","Southmead Hospital"]
[null,null,null,null,null,null,null,null,null,null,null,null,null,null,null,null,null,null,null,null,"QU9","RHW","ROYAL BERKSHIRE NHS FOUNDATION TRUST","RHW01","Royal Berkshire Hospital",null,null,null,null,null,null,"RWE10","St George's Hospital (Tooting)"]
[null,null,null,null,null,null,null,null,null,null,null,null,null,null,null,null,null,null,null,null,"QUA","RNA","THE DUDLEY GROUP NHS FOUNDATION TRUST","RNA01","Russells Hall Hospital",null,null,null,null,null,null,"RWEAA","St Helier Hospital"]
[null,null,null,null,null,null,null,null,null,null,null,null,null,null,null,null,null,null,null,null,"QUA","RL4","THE ROYAL WOLVERHAMPTON NHS TRUST","RL403","New Cross Hospital",null,null,null,null,null,null,"RWEAK","St James's University Hospital"]
[null,null,null,null,null,null,null,null,null,null,null,null,null,null,null,null,null,null,null,null,"QUA","RBK","WALSALL HEALTHCARE NHS TRUST","RBK02","Manor Hospital",null,null,null,null,null,null,"RWEXXX","St Mary's Hospital"]
[null,null,null,null,null,null,null,null,null,null,null,null,null,null,null,null,null,null,null,null,"QUE","RGT","CAMBRIDGE UNIVERSITY HOSPITALS NHS FOUNDATION TRUST","RGT32","Rosie Hospital",null,null,null,null,null,null,"RWF03","St Mary's Hospital"]
[null,null,null,null,null,null,null,null,null,null,null,null,null,null,null,null,null,null,null,null,"QUE","RGN","NORTH WEST ANGLIA NHS FOUNDATION TRUST","RGN90","Hinchingbrooke Hospital",null,null,null,null,null,null,"RWF08","St Mary's Hospital"]
[null,null,null,null,null,null,null,null,null,null,null,null,null,null,null,null,null,null,null,null,"QUE","RGN","NORTH WEST ANGLIA NHS FOUNDATION TRUST","RGN80","Peterborough City Hospital",null,null,null,null,null,null,"RWFTW","St Mary's Hospital"]
[null,null,null,null,null,null,null,null,null,null,null,null,null,null,null,null,null,null,null,null,"QUY","RVJ","NORTH BRISTOL NHS TRUST","RVJ21","Cossham Hospital",null,null,null,null,null,null,"RWFXXX","St Mary's Hospital (HQ)"]
[null,null,null,null,null,null,null,null,null,null,null,null,null,null,null,null,null,null,null,null,"QUY","RVJ","NORTH BRISTOL NHS TRUST","RVJXXX","Non-hospital site",null,null,null,null,null,null,"RWG02","St Michael's Hospital"]
[null,null,null,null,null,null,null,null,null,null,null,null,null,null,null,null,null,null,null,null,"QUY","RVJ","NORTH BRISTOL NHS TRUST","RVJ01","Southmead Hospital",null,null,null,null,null,null,"RWH01","St Peter's Hospital"]
[null,null,null,null,null,null,null,null,null,null,null,null,null,null,null,null,null,null,null,null,"QUY","RA7","UNIVERSITY HOSPITALS BRISTOL AND WESTON NHS FOUNDATION TRUST","RA707","St Michael's Hospital",null,null,null,null,null,null,"RWHXXX","St Richard's Hospital"]
[null,null,null,null,null,null,null,null,null,null,null,null,null,null,null,null,null,null,null,null,"QVV","RBD","DORSET COUNTY HOSPITAL NHS FOUNDATION TRUST","RBD01","Dorset County Hospital",null,null,null,null,null,null,"RWJ09","St Thomas' Hospital"]
[null,null,null,null,null,null,null,null,null,null,null,null,null,null,null,null,null,null,null,null,"QVV","R0D","UNIVERSITY HOSPITALS DORSET NHS FOUNDATION TRUST","R0D01","Poole Hospital",null,null,null,null,null,null,"RWJXXX","Stepping Hill Hospital"]
[null,null,null,null,null,null,null,null,null,null,null,null,null,null,null,null,null,null,null,null,"QVV","R0D","UNIVERSITY HOSPITALS DORSET NHS FOUNDATION TRUST","R0D02","Royal Bournemouth Hospital",null,null,null,null,null,null,"RWP50","Stoke Mandeville Hospital"]
[null,null,null,null,null,null,null,null,null,null,null,null,null,null,null,null,null,null,null,null,"QWE","RJ6","CROYDON HEALTH SERVICES NHS TRUST","RJ611","Croydon University Hospital",null,null,null,null,null,null,"RWWWH","Stroud Maternity Hospital"]
[null,null,null,null,null,null,null,null,null,null,null,null,null,null,null,null,null,null,null,null,"QWE","RVR","EPSOM AND ST HELIER UNIVERSITY HOSPITALS NHS TRUST","RVR50","Epsom Hospital",null,null,null,null,null,null,"RWY02","Sunderland Royal Hospital"]
[null,null,null,null,null,null,null,null,null,null,null,null,null,null,null,null,null,null,null,null,"QWE","RVR","EPSOM AND ST HELIER UNIVERSITY HOSPITALS NHS TRUST","RVRXXX","Non-hospital site",null,null,null,null,null,null,"RWYXXX","The Great Western Hospital"]
[null,null,null,null,null,null,null,null,null,null,null,null,null,null,null,null,null,null,null,null,"QWE","RVR","EPSOM AND ST HELIER UNIVERSITY HOSPITALS NHS TRUST","RVR05","St Helier Hospital",null,null,null,null,null,null,"RX1CC","The James Cook University Hospital"]
[null,null,null,null,null,null,null,null,null,null,null,null,null,null,null,null,null,null,null,null,"QWE","RAX","KINGSTON HOSPITAL NHS FOUNDATION TRUST","RAX01","Kingston Hospital",null,null,null,null,null,null,"RX1RA","The Northumbria"]
[null,null,null,null,null,null,null,null,null,null,null,null,null,null,null,null,null,null,null,null,"QWE","RJ7","ST GEORGE'S UNIVERSITY HOSPITALS NHS FOUNDATION TRUST","RJ701","St George's Hospital (Tooting)",null,null,null,null,null,null,"RX1XXX","The Princess Royal Hospital"]
[null,null,null,null,null,null,null,null,null,null,null,null,null,null,null,null,null,null,null,null,"QWO","RCF","AIREDALE NHS FOUNDATION TRUST","RCF22","Airedale General Hospital",null,null,null,null,null,null,"RXC01","The Queen Elizabeth Hospital"]
[null,null,null,null,null,null,null,null,null,null,null,null,null,null,null,null,null,null,null,null,"QWO","RAE","BRADFORD TEACHING HOSPITALS NHS FOUNDATION TRUST","RAE01","Bradford Royal Infirmary",null,null,null,null,null,null,"RXC02","The Royal London Hospital"]
[null,null,null,null,null,null,null,null,null,null,null,null,null,null,null,null,null,null,null,null,"QWO","RWY","CALDERDALE AND HUDDERSFIELD NHS FOUNDATION TRUST","RWY02","Calderdale Royal Hospital",null,null,null,null,null,null,"RXCXXX","The Royal Victoria Infirmary"]
[null,null,null,null,null,null,null,null,null,null,null,null,null,null,null,null,null,null,null,null,"QWO","RWY","CALDERDALE AND HUDDERSFIELD NHS FOUNDATION TRUST","RWYXXX","Non-hospital site",null,null,null,null,null,null,"RXF03","The Tunbridge Wells Hospital"]
[null,null,null,null,null,null,null,null,null,null,null,null,null,null,null,null,null,null,null,null,"QWO","RR8","LEEDS TEACHING HOSPITALS NHS TRUST","RR801","Leeds General Infirmary",null,null,null,null,null,null,"RXF05","Torbay Hospital"]
[null,null,null,null,null,null,null,null,null,null,null,null,null,null,null,null,null,null,null,null,"QWO","RR8","LEEDS TEACHING HOSPITALS NHS TRUST","RR8XXX","Non-hospital site",null,null,null,null,null,null,"RXF10","Trowbridge Community Hospital"]
[null,null,null,null,null,null,null,null,null,null,null,null,null,null,null,null,null,null,null,null,"QWO","RR8","LEEDS TEACHING HOSPITALS NHS TRUST","RR813","St James's University Hospital",null,null,null,null,null,null,"RXFXXX","University College Hospital Elizabeth Garrett Anderson Wing"]
[null,null,null,null,null,null,null,null,null,null,null,null,null,null,null,null,null,null,null,null,"QWO","RXF","MID YORKSHIRE HOSPITALS NHS TRUST","RXF10","Dewsbury and District Hospital",null,null,null,null,null,null,"RXK02","University Hospital (Coventry)"]
[null,null,null,null,null,null,null,null,null,null,null,null,null,null,null,null,null,null,null,null,"QWO","RXF","MID YORKSHIRE HOSPITALS NHS TRUST","RXFXXX","Non-hospital site",null,null,null,null,null,null,"RXL01","University Hospital Lewisham"]
[null,null,null,null,null,null,null,null,null,null,null,null,null,null,null,null,null,null,null,null,"QWO","RXF","MID YORKSHIRE HOSPITALS NHS TRUST","RXF05","Pinderfields General Hospital",null,null,null,null,null,null,"RXN01","University Hospital Of North Durham"]
[null,null,null,null,null,null,null,null,null,null,null,null,null,null,null,null,null,null,null,null,"QWO","RXF","MID YORKSHIRE HOSPITALS NHS TRUST","RXF03","Pontefract General Infirmary",null,null,null,null,null,null,"RXN02","University Hospital Of North Tees"]
[null,null,null,null,null,null,null,null,null,null,null,null,null,null,null,null,null,null,null,null,"QWU","RLT","GEORGE ELIOT HOSPITAL NHS TRUST","RLT01","George Eliot Hospital - Acute Services",null,null,null,null,null,null,"RXPCP","Wallingford Community Hospital"]
[null,null,null,null,null,null,null,null,null,null,null,null,null,null,null,null,null,null,null,null,"QWU","RJC","SOUTH WARWICKSHIRE UNIVERSITY NHS FOUNDATION TRUST","RJC02","Warwick Hospital",null,null,null,null,null,null,"RXPDA","Warrington Hospital"]
[null,null,null,null,null,null,null,null,null,null,null,null,null,null,null,null,null,null,null,null,"QWU","RKB","UNIVERSITY HOSPITALS COVENTRY AND WARWICKSHIRE NHS TRUST","RKB03","Hospital Of St Cross",null,null,null,null,null,null,"RXQ02","Warwick Hospital"]
[null,null,null,null,null,null,null,null,null,null,null,null,null,null,null,null,null,null,null,null,"QWU","RKB","UNIVERSITY HOSPITALS COVENTRY AND WARWICKSHIRE NHS TRUST","RKBXXX","Non-hospital site",null,null,null,null,null,null,"RXR20","Watford General Hospital"]
[null,null,null,null,null,null,null,null,null,null,null,null,null,null,null,null,null,null,null,null,"QWU","RKB","UNIVERSITY HOSPITALS COVENTRY AND WARWICKSHIRE NHS TRUST","RKB01","University Hospital (Coventry)",null,null,null,null,null,null,"RXWAS","West Cumberland Hospital"]
[null,null,null,null,null,null,null,null,null,null,null,null,null,null,null,null,null,null,null,null,"QXU","RTK","ASHFORD AND ST PETER'S HOSPITALS NHS FOUNDATION TRUST","RTK01","St Peter's Hospital",null,null,null,null,null,null,"RXWAT","West Middlesex University Hospital"]
[null,null,null,null,null,null,null,null,null,null,null,null,null,null,null,null,null,null,null,null,"QXU","RA2","ROYAL SURREY COUNTY HOSPITAL NHS FOUNDATION TRUST","RA201","Royal Surrey County Hospital",null,null,null,null,null,null,"RXWMB","West Suffolk Hospital"]
[null,null,null,null,null,null,null,null,null,null,null,null,null,null,null,null,null,null,null,null,"QXU","RTP","SURREY AND SUSSEX HEALTHCARE NHS TRUST","RTP04","East Surrey Hospital",null,null,null,null,null,null,"RXWMJ","Westmorland General Hospital"]
[null,null,null,null,null,null,null,null,null,null,null,null,null,null,null,null,null,null,null,null,"QYG","RJN","EAST CHESHIRE NHS TRUST","RJN71","Macclesfield District General Hospital",null,null,null,null,null,null,"RXWML","Wexham Park Hospital"]
[null,null,null,null,null,null,null,null,null,null,null,null,null,null,null,null,null,null,null,null,"QYG","REP","LIVERPOOL WOMEN'S NHS FOUNDATION TRUST","REP01","Liverpool Womens Hospital",null,null,null,null,null,null,"RXWXXX","Whipps Cross University Hospital"]
[null,null,null,null,null,null,null,null,null,null,null,null,null,null,null,null,null,null,null,null,"QYG","RBT","MID CHESHIRE HOSPITALS NHS FOUNDATION TRUST","RBT20","Leighton Hospital",null,null,null,null,null,null,"RYJ01","Whiston Hospital"]
[null,null,null,null,null,null,null,null,null,null,null,null,null,null,null,null,null,null,null,null,"QYG","RVY","SOUTHPORT AND ORMSKIRK HOSPITAL NHS TRUST","RVY02","Ormskirk and District General Hospital",null,null,null,null,null,null,"RYJ04","Worcestershire Royal Hospital"]
[null,null,null,null,null,null,null,null,null,null,null,null,null,null,null,null,null,null,null,null,"QYG","RBN","ST HELENS AND KNOWSLEY TEACHING HOSPITALS NHS TRUST","RBN01","Whiston Hospital",null,null,null,null,null,null,"RYR16","Worthing Hospital"]
[null,null,null,null,null,null,null,null,null,null,null,null,null,null,null,null,null,null,null,null,"QYG","RWW","WARRINGTON AND HALTON TEACHING HOSPITALS NHS FOUNDATION TRUST","RWWWH","Warrington Hospital",null,null,null,null,null,null,"RYR18","Yeovil District Hospital"]
[null,null,null,null,null,null,null,null,null,null,null,null,null,null,null,null,null,null,null,null,"QYG","RBL","WIRRAL UNIVERSITY TEACHING HOSPITAL NHS FOUNDATION TRUST","RBL14","Arrowe Park Hospital",null,null,null,null,null,null,"RYRXXX","York Hospital"]

{"sheet":"BSQ3","index":15,"n_rows":164,"n_cols":33,"rows_kept":164,"cut":false,"hidden":true,"merged":[]}
[null,"Sort","ICB","ICB","Trusts","Trusts","Sites","Sites",null,"Sort ranges:","Sort range…","Sort range…","Sort range…","Reference Region List:","Code…","Name…","Linked Region List:","Code…","Name…","Reference Lists:","Code…","Code…","Name…","Code…","Name…","Trusts Linked Lists:","Code…","Name…","Site Linked Lists:","Code…","Name…","Code…","Name…"]
["ICB",1,1,1,"-","-","-","-",null,null,"ICB Code","ICB Code","ICB Code",null,"QE1","LANCASHIRE AND SOUTH CUMBRIA ICB",null,"QE1","LANCASHIRE AND SOUTH CUMBRIA ICB",null,"QE1","RXL","BLACKPOOL TEACHING HOSPITALS NHS FOUNDATION TRUST","RXL01","Blackpool Victoria Hospital",null,"R0A","ASHFORD AND ST PETER'S HOSPITALS NHS FOUNDATION TRUST",null,"R0A","ASHFORD AND ST PETER'S HOSPITALS NHS FOUNDATION TRUST","E0A3H","Alnwick Infirmary"]
["Trusts",1,1,1,1,1,"-","-",null,null,"ICB Name","Trust Code","Trust Code",null,"QF7","SOUTH YORKSHIRE ICB",null,"QF7","SOUTH YORKSHIRE ICB",null,"QE1","RXR","EAST LANCASHIRE HOSPITALS NHS TRUST","RXR20","Royal Blackburn Hospital",null,"R0B","BARKING, HAVERING AND REDBRIDGE UNIVERSITY HOSPITALS NHS TRUST",null,"R0B","BARKING, HAVERING AND REDBRIDGE UNIVERSITY HOSPITALS NHS TRUST","N6J7V","Arrowe Park Hospital"]
["Sites",1,1,1,1,1,1,1,null,null,"Total Responses","Trust Name","Trust Name",null,"QGH","HEREFORDSHIRE AND WORCESTERSHIRE ICB",null,"QGH","HEREFORDSHIRE AND WORCESTERSHIRE ICB",null,"QE1","RXN","LANCASHIRE TEACHING HOSPITALS NHS FOUNDATION TRUST","RXN01","Chorley and South Ribble Hospital",null,"R0D","BARNSLEY HOSPITAL NHS FOUNDATION TRUST",null,"R0D","BARNSLEY HOSPITAL NHS FOUNDATION TRUST","R0A05","Ashford Hospital"]
[null,null,null,null,null,null,null,null,null,null,"Percentage Positive","Total Responses","Site Code",null,"QH8","MID AND SOUTH ESSEX ICB",null,"QH8","MID AND SOUTH ESSEX ICB",null,"QE1","RXN","LANCASHIRE TEACHING HOSPITALS NHS FOUNDATION TRUST","RXN02","Royal Preston Hospital",null,"R1F","BARTS HEALTH NHS TRUST",null,"R1F","BARTS HEALTH NHS TRUST","R0B01","Barnet Hospital"]
[null,null,null,null,null,null,null,null,null,null,"Percentage Negative","Percentage Positive","Site Name",null,"QHG","BEDFORDSHIRE, LUTON AND MILTON KEYNES ICB",null,"QHG","BEDFORDSHIRE, LUTON AND MILTON KEYNES ICB",null,"QE1","RTX","UNIVERSITY HOSPITALS OF MORECAMBE BAY NHS FOUNDATION TRUST","RTXBU","Furness General Hospital",null,"R1H","BEDFORDSHIRE HOSPITALS NHS FOUNDATION TRUST",null,"R1H","BEDFORDSHIRE HOSPITALS NHS FOUNDATION TRUST","R0B0Q","Barnsley Hospital NHS Foundation Trust HQ"]
[null,null,null,null,null,null,null,null,null,null,"Very Good","Percentage Negative","Total Responses",null,"QHL","BIRMINGHAM AND SOLIHULL ICB",null,"QHL","BIRMINGHAM AND SOLIHULL ICB",null,"QE1","RTX","UNIVERSITY HOSPITALS OF MORECAMBE BAY NHS FOUNDATION TRUST","RTX02","Royal Lancaster Infirmary",null,"R1K","BIRMINGHAM WOMEN'S AND CHILDREN'S NHS FOUNDATION TRUST",null,"R1K","BIRMINGHAM WOMEN'S AND CHILDREN'S NHS FOUNDATION TRUST","R0BXXX","BASILDON HOSPITAL"]
[null,null,null,null,null,null,null,null,null,null,"Good","Very Good","Percentage Positive",null,"QHM","NORTH EAST AND NORTH CUMBRIA ICB",null,"QHM","NORTH EAST AND NORTH CUMBRIA ICB",null,"QF7","RFF","BARNSLEY HOSPITAL NHS FOUNDATION TRUST","RFFAA","Barnsley Hospital NHS Foundation Trust HQ",null,"RA2","BLACKPOOL TEACHING HOSPITALS NHS FOUNDATION TRUST",null,"RA2","BLACKPOOL TEACHING HOSPITALS NHS FOUNDATION TRUST","R0D01","Basingstoke and North Hampshire Hospital"]
[null,null,null,null,null,null,null,null,null,null,"Neither Good nor Poor","Good","Percentage Negative",null,"QJ2","DERBY AND DERBYSHIRE ICB",null,"QJ2","DERBY AND DERBYSHIRE ICB",null,"QF7","RP5","DONCASTER AND BASSETLAW TEACHING HOSPITALS NHS FOUNDATION TRUST","RP5BA","Bassetlaw Hospital",null,"RA4","BOLTON NHS FOUNDATION TRUST",null,"RA4","BOLTON NHS FOUNDATION TRUST","R0D02","Bassetlaw Hospital"]
[null,null,null,null,null,null,null,null,null,null,"Poor","Neither Good nor Poor","Very Good",null,"QJG","SUFFOLK AND NORTH EAST ESSEX ICB",null,"QJG","SUFFOLK AND NORTH EAST ESSEX ICB",null,"QF7","RP5","DONCASTER AND BASSETLAW TEACHING HOSPITALS NHS FOUNDATION TRUST","RP5DR","Doncaster Royal Infirmary",null,"RA7","BRADFORD TEACHING HOSPITALS NHS FOUNDATION TRUST",null,"RA7","BRADFORD TEACHING HOSPITALS NHS FOUNDATION TRUST","R1F01","BEDFORD HOSPITAL SOUTH WING"]
[null,null,null,null,null,null,null,null,null,null,"Very Poor","Poor","Good",null,"QJK","DEVON ICB",null,"QJK","DEVON ICB",null,"QF7","RHQ","SHEFFIELD TEACHING HOSPITALS NHS FOUNDATION TRUST","RHQHH","Royal Hallamshire Hospital",null,"RA9","BUCKINGHAMSHIRE HEALTHCARE NHS TRUST",null,"RA9","BUCKINGHAMSHIRE HEALTHCARE NHS TRUST","R1H12","Berwick Infirmary"]
[null,null,null,null,null,null,null,null,null,null,"Don't Know","Very Poor","Neither Good nor Poor",null,"QJM","LINCOLNSHIRE ICB",null,"QJM","LINCOLNSHIRE ICB",null,"QF7","RFR","THE ROTHERHAM NHS FOUNDATION TRUST","RFRPA","Rotherham District General Hospital",null,"RAE","CALDERDALE AND HUDDERSFIELD NHS FOUNDATION TRUST",null,"RAE","CALDERDALE AND HUDDERSFIELD NHS FOUNDATION TRUST","R1HKH","Birmingham Treatment Centre"]
[null,null,null,null,null,null,null,null,null,null,null,"Don't Know","Poor",null,"QK1","LEICESTER, LEICESTERSHIRE AND RUTLAND ICB",null,"QK1","LEICESTER, LEICESTERSHIRE AND RUTLAND ICB",null,"QGH","RWP","WORCESTERSHIRE ACUTE HOSPITALS NHS TRUST","RWP50","Worcestershire Royal Hospital",null,"RAJ","CAMBRIDGE UNIVERSITY HOSPITALS NHS FOUNDATION TRUST",null,"RAJ","CAMBRIDGE UNIVERSITY HOSPITALS NHS FOUNDATION TRUST","R1HNH","Birmingham Women's Hospital"]
[null,null,null,null,null,null,null,null,null,null,null,"Mode SMS","Very Poor",null,"QKK","SOUTH EAST LONDON ICB",null,"QKK","SOUTH EAST LONDON ICB",null,"QGH","RLQ","WYE VALLEY NHS TRUST","RLQ01","Hereford County Hospital",null,"RAL","CHELSEA AND WESTMINSTER HOSPITAL NHS FOUNDATION TRUST",null,"RAL","CHELSEA AND WESTMINSTER HOSPITAL NHS FOUNDATION TRUST","R1K01","Blackpool Victoria Hospital"]
[null,null,null,null,null,null,null,null,null,null,null,"Mode Electronic Discharge","Don't Know",null,"QKS","KENT AND MEDWAY ICB",null,"QKS","KENT AND MEDWAY ICB",null,"QH8","RAJ","MID AND SOUTH ESSEX NHS FOUNDATION TRUST","RAJ12","BASILDON HOSPITAL",null,"RAP","CHESTERFIELD ROYAL HOSPITAL NHS FOUNDATION TRUST",null,"RAP","CHESTERFIELD ROYAL HOSPITAL NHS FOUNDATION TRUST","RA201","Bradford Royal Infirmary"]
[null,null,null,null,null,null,null,null,null,null,null,"Mode Electronic Home",null,null,"QM7","HERTFORDSHIRE AND WEST ESSEX ICB",null,"QM7","HERTFORDSHIRE AND WEST ESSEX ICB",null,"QH8","RAJ","MID AND SOUTH ESSEX NHS FOUNDATION TRUST","RAJ32","MID ESSEX HOSPITAL",null,"RAS","COUNTY DURHAM AND DARLINGTON NHS FOUNDATION TRUST",null,"RAS","COUNTY DURHAM AND DARLINGTON NHS FOUNDATION TRUST","RA430","Bridgnorth Hospital (Maternity)"]
[null,null,null,null,null,null,null,null,null,null,null,"Mode Paper Discharge",null,null,"QMF","NORTH EAST LONDON ICB",null,"QMF","NORTH EAST LONDON ICB",null,"QH8","RAJ","MID AND SOUTH ESSEX NHS FOUNDATION TRUST","RAJ01","Southend Hospital",null,"RAX","CROYDON HEALTH SERVICES NHS TRUST",null,"RAX","CROYDON HEALTH SERVICES NHS TRUST","RA707","Bridgwater Hospital"]
[null,null,null,null,null,null,null,null,null,null,null,"Mode Paper Home",null,null,"QMJ","NORTH CENTRAL LONDON ICB",null,"QMJ","NORTH CENTRAL LONDON ICB",null,"QHG","RC9","BEDFORDSHIRE HOSPITALS NHS FOUNDATION TRUST","RC979","BEDFORD HOSPITAL SOUTH WING",null,"RBD","DARTFORD AND GRAVESHAM NHS TRUST",null,"RBD","DARTFORD AND GRAVESHAM NHS TRUST","RA901","Calderdale Royal Hospital"]
[null,null,null,null,null,null,null,null,null,null,null,"Mode Telephone",null,null,"QMM","NORFOLK AND WAVENEY ICB",null,"QMM","NORFOLK AND WAVENEY ICB",null,"QHG","RC9","BEDFORDSHIRE HOSPITALS NHS FOUNDATION TRUST","RC971","Luton and Dunstable Hospital",null,"RBK","DONCASTER AND BASSETLAW TEACHING HOSPITALS NHS FOUNDATION TRUST",null,"RBK","DONCASTER AND BASSETLAW TEACHING HOSPITALS NHS FOUNDATION TRUST","RAE01","Chelsea and Westminster Hospital"]
[null,null,null,null,null,null,null,null,null,null,null,"Mode Online",null,null,"QNC","STAFFORDSHIRE AND STOKE-ON-TRENT ICB",null,"QNC","STAFFORDSHIRE AND STOKE-ON-TRENT ICB",null,"QHG","RD8","MILTON KEYNES UNIVERSITY HOSPITAL NHS FOUNDATION TRUST","RD816","Milton Keynes Hospital",null,"RBL","DORSET COUNTY HOSPITAL NHS FOUNDATION TRUST",null,"RBL","DORSET COUNTY HOSPITAL NHS FOUNDATION TRUST","RAJ01","Chesterfield Royal Hospital"]
[null,null,null,null,null,null,null,null,null,null,null,"Mode Other",null,null,"QNQ","FRIMLEY ICB",null,"QNQ","FRIMLEY ICB",null,"QHL","RQ3","BIRMINGHAM WOMEN'S AND CHILDREN'S NHS FOUNDATION TRUST","RQ370","Birmingham Women's Hospital",null,"RBN","EAST AND NORTH HERTFORDSHIRE NHS TRUST",null,"RBN","EAST AND NORTH HERTFORDSHIRE NHS TRUST","RAJ12","Chorley and South Ribble Hospital"]
[null,null,null,null,null,null,null,null,null,null,null,null,null,null,"QNX","SUSSEX ICB",null,"QNX","SUSSEX ICB",null,"QHL","RXK","SANDWELL AND WEST BIRMINGHAM HOSPITALS NHS TRUST","RXKTC","Birmingham Treatment Centre",null,"RBT","EAST LANCASHIRE HOSPITALS NHS TRUST",null,"RBT","EAST LANCASHIRE HOSPITALS NHS TRUST","RAJ32","City Hospital"]
[null,null,null,null,null,null,null,null,null,null,null,null,null,null,"QOC","SHROPSHIRE, TELFORD AND WREKIN ICB",null,"QOC","SHROPSHIRE, TELFORD AND WREKIN ICB",null,"QHL","RXK","SANDWELL AND WEST BIRMINGHAM HOSPITALS NHS TRUST","RXK02","City Hospital",null,"RC9","EAST SUFFOLK AND NORTH ESSEX NHS FOUNDATION TRUST",null,"RC9","EAST SUFFOLK AND NORTH ESSEX NHS FOUNDATION TRUST","RAL01","Colchester General Hospital"]
[null,null,null,null,null,null,null,null,null,null,null,null,null,null,"QOP","GREATER MANCHESTER ICB",null,"QOP","GREATER MANCHESTER ICB",null,"QHL","RRK","UNIVERSITY HOSPITALS BIRMINGHAM NHS FOUNDATION TRUST","RRK98","Good Hope Hospital",null,"RCB","EAST SUSSEX HEALTHCARE NHS TRUST",null,"RCB","EAST SUSSEX HEALTHCARE NHS TRUST","RAL26","Conquest Hospital"]
[null,null,null,null,null,null,null,null,null,null,null,null,null,null,"QOQ","HUMBER AND NORTH YORKSHIRE ICB",null,"QOQ","HUMBER AND NORTH YORKSHIRE ICB",null,"QHL","RRK","UNIVERSITY HOSPITALS BIRMINGHAM NHS FOUNDATION TRUST","RRK97","Heartlands Hospital",null,"RCD","EPSOM AND ST HELIER UNIVERSITY HOSPITALS NHS TRUST",null,"RCD","EPSOM AND ST HELIER UNIVERSITY HOSPITALS NHS TRUST","RAPNM","Croydon University Hospital"]
[null,null,null,null,null,null,null,null,null,null,null,null,null,null,"QOX","BATH AND NORTH EAST SOMERSET, SWINDON AND WILTSHIRE ICB",null,"QOX","BATH AND NORTH EAST SOMERSET, SWINDON AND WILTSHIRE ICB",null,"QHL","RRK","UNIVERSITY HOSPITALS BIRMINGHAM NHS FOUNDATION TRUST","RRK99","Solihull Hospital",null,"RCX","FRIMLEY HEALTH NHS FOUNDATION TRUST",null,"RCX","FRIMLEY HEALTH NHS FOUNDATION TRUST","RAS01","Cumberland Infirmary"]
[null,null,null,null,null,null,null,null,null,null,null,null,null,null,"QPM","NORTHAMPTONSHIRE ICB",null,"QPM","NORTHAMPTONSHIRE ICB",null,"QHM","RXP","COUNTY DURHAM AND DARLINGTON NHS FOUNDATION TRUST","RXPDA","Darlington Memorial Hospital",null,"RD1","GATESHEAD HEALTH NHS FOUNDATION TRUST",null,"RD1","GATESHEAD HEALTH NHS FOUNDATION TRUST","RAXXXX","Darent Valley Hospital"]
[null,null,null,null,null,null,null,null,null,null,null,null,null,null,"QR1","GLOUCESTERSHIRE ICB",null,"QR1","GLOUCESTERSHIRE ICB",null,"QHM","RXP","COUNTY DURHAM AND DARLINGTON NHS FOUNDATION TRUST","RXPCP","University Hospital Of North Durham",null,"RD8","GLOUCESTERSHIRE HOSPITALS NHS FOUNDATION TRUST",null,"RD8","GLOUCESTERSHIRE HOSPITALS NHS FOUNDATION TRUST","RBD01","Darlington Memorial Hospital"]
[null,null,null,null,null,null,null,null,null,null,null,null,null,null,"QRL","HAMPSHIRE AND ISLE OF WIGHT ICB",null,"QRL","HAMPSHIRE AND ISLE OF WIGHT ICB",null,"QHM","RR7","GATESHEAD HEALTH NHS FOUNDATION TRUST","RR7EN","Queen Elizabeth Hospital",null,"RDE","GREAT WESTERN HOSPITALS NHS FOUNDATION TRUST",null,"RDE","GREAT WESTERN HOSPITALS NHS FOUNDATION TRUST","RBK02","Derriford Hospital"]
[null,null,null,null,null,null,null,null,null,null,null,null,null,null,"QRV","NORTH WEST LONDON ICB",null,"QRV","NORTH WEST LONDON ICB",null,"QHM","RNN","NORTH CUMBRIA INTEGRATED CARE NHS FOUNDATION TRUST","RNN62","Cumberland Infirmary",null,"RDU","GUY'S AND ST THOMAS' NHS FOUNDATION TRUST",null,"RDU","GUY'S AND ST THOMAS' NHS FOUNDATION TRUST","RBL14","Doncaster Royal Infirmary"]
[null,null,null,null,null,null,null,null,null,null,null,null,null,null,"QSL","SOMERSET ICB",null,"QSL","SOMERSET ICB",null,"QHM","RNN","NORTH CUMBRIA INTEGRATED CARE NHS FOUNDATION TRUST","RNNBX","West Cumberland Hospital",null,"REF","HAMPSHIRE HOSPITALS NHS FOUNDATION TRUST",null,"REF","HAMPSHIRE HOSPITALS NHS FOUNDATION TRUST","RBN01","Dorset County Hospital"]
[null,null,null,null,null,null,null,null,null,null,null,null,null,null,"QT1","NOTTINGHAM AND NOTTINGHAMSHIRE ICB",null,"QT1","NOTTINGHAM AND NOTTINGHAMSHIRE ICB",null,"QHM","RVW","NORTH TEES AND HARTLEPOOL NHS FOUNDATION TRUST","RVWXXX","Non-hospital site",null,"REP","HARROGATE AND DISTRICT NHS FOUNDATION TRUST",null,"REP","HARROGATE AND DISTRICT NHS FOUNDATION TRUST","RBT20","East Surrey Hospital"]
[null,null,null,null,null,null,null,null,null,null,null,null,null,null,"QT6","CORNWALL AND THE ISLES OF SCILLY ICB",null,"QT6","CORNWALL AND THE ISLES OF SCILLY ICB",null,"QHM","RVW","NORTH TEES AND HARTLEPOOL NHS FOUNDATION TRUST","RVWAE","University Hospital Of North Tees",null,"RF4","HOMERTON HEALTHCARE NHS FOUNDATION TRUST",null,"RF4","HOMERTON HEALTHCARE NHS FOUNDATION TRUST","RC971","Eastbourne District General Hospital"]
[null,null,null,null,null,null,null,null,null,null,null,null,null,null,"QU9","BUCKINGHAMSHIRE, OXFORDSHIRE AND BERKSHIRE WEST ICB",null,"QU9","BUCKINGHAMSHIRE, OXFORDSHIRE AND BERKSHIRE WEST ICB",null,"QHM","RTF","NORTHUMBRIA HEALTHCARE NHS FOUNDATION TRUST","RTFDJ","Alnwick Infirmary",null,"RFF","IMPERIAL COLLEGE HEALTHCARE NHS TRUST",null,"RFF","IMPERIAL COLLEGE HEALTHCARE NHS TRUST","RC979","Epsom Hospital"]
[null,null,null,null,null,null,null,null,null,null,null,null,null,null,"QUA","BLACK COUNTRY ICB",null,"QUA","BLACK COUNTRY ICB",null,"QHM","RTF","NORTHUMBRIA HEALTHCARE NHS FOUNDATION TRUST","RTFDH","Berwick Infirmary",null,"RFR","ISLE OF WIGHT NHS TRUST",null,"RFR","ISLE OF WIGHT NHS TRUST","RCB55","Friarage Hospital Site"]
[null,null,null,null,null,null,null,null,null,null,null,null,null,null,"QUE","CAMBRIDGESHIRE AND PETERBOROUGH ICB",null,"QUE","CAMBRIDGESHIRE AND PETERBOROUGH ICB",null,"QHM","RTF","NORTHUMBRIA HEALTHCARE NHS FOUNDATION TRUST","RTFDR","Hexham General Hospital",null,"RFS","JAMES PAGET UNIVERSITY HOSPITALS NHS FOUNDATION TRUST",null,"RFS","JAMES PAGET UNIVERSITY HOSPITALS NHS FOUNDATION TRUST","RCBCA","Frimley Park Hospital"]
[null,null,null,null,null,null,null,null,null,null,null,null,null,null,"QUY","BRISTOL, NORTH SOMERSET AND SOUTH GLOUCESTERSHIRE ICB",null,"QUY","BRISTOL, NORTH SOMERSET AND SOUTH GLOUCESTERSHIRE ICB",null,"QHM","RTF","NORTHUMBRIA HEALTHCARE NHS FOUNDATION TRUST","RTF86","The Northumbria",null,"RGN","KETTERING GENERAL HOSPITAL NHS FOUNDATION TRUST",null,"RGN","KETTERING GENERAL HOSPITAL NHS FOUNDATION TRUST","RCD01","Furness General Hospital"]
[null,null,null,null,null,null,null,null,null,null,null,null,null,null,"QVV","DORSET ICB",null,"QVV","DORSET ICB",null,"QHM","RTR","SOUTH TEES HOSPITALS NHS FOUNDATION TRUST","RTR45","Friarage Hospital Site",null,"RGP","KINGSTON HOSPITAL NHS FOUNDATION TRUST",null,"RGP","KINGSTON HOSPITAL NHS FOUNDATION TRUST","RCX70","Gloucestershire Royal Hospital"]
[null,null,null,null,null,null,null,null,null,null,null,null,null,null,"QWE","SOUTH WEST LONDON ICB",null,"QWE","SOUTH WEST LONDON ICB",null,"QHM","RTR","SOUTH TEES HOSPITALS NHS FOUNDATION TRUST","RTRAT","The James Cook University Hospital",null,"RGR","LANCASHIRE TEACHING HOSPITALS NHS FOUNDATION TRUST",null,"RGR","LANCASHIRE TEACHING HOSPITALS NHS FOUNDATION TRUST","RD130","Good Hope Hospital"]
[null,null,null,null,null,null,null,null,null,null,null,null,null,null,"QWO","WEST YORKSHIRE ICB",null,"QWO","WEST YORKSHIRE ICB",null,"QHM","R0B","SOUTH TYNESIDE AND SUNDERLAND NHS FOUNDATION TRUST","R0BXXX","Non-hospital site",null,"RGT","LEEDS TEACHING HOSPITALS NHS TRUST",null,"RGT","LEEDS TEACHING HOSPITALS NHS TRUST","RD816","Gosport War Memorial Hospital"]
[null,null,null,null,null,null,null,null,null,null,null,null,null,null,"QWU","COVENTRY AND WARWICKSHIRE ICB",null,"QWU","COVENTRY AND WARWICKSHIRE ICB",null,"QHM","R0B","SOUTH TYNESIDE AND SUNDERLAND NHS FOUNDATION TRUST","R0B0Q","South Tyneside District Hospital",null,"RH5","LEWISHAM AND GREENWICH NHS TRUST",null,"RH5","LEWISHAM AND GREENWICH NHS TRUST","RDE03","Grantham and District Hospital"]
[null,null,null,null,null,null,null,null,null,null,null,null,null,null,"QXU","SURREY HEARTLANDS ICB",null,"QXU","SURREY HEARTLANDS ICB",null,"QHM","R0B","SOUTH TYNESIDE AND SUNDERLAND NHS FOUNDATION TRUST","R0B01","Sunderland Royal Hospital",null,"RH8","LIVERPOOL WOMEN'S NHS FOUNDATION TRUST",null,"RH8","LIVERPOOL WOMEN'S NHS FOUNDATION TRUST","RDEE4","Harrogate District Hospital"]
[null,null,null,null,null,null,null,null,null,null,null,null,null,null,"QYG","CHESHIRE AND MERSEYSIDE ICB",null,"QYG","CHESHIRE AND MERSEYSIDE ICB",null,"QHM","RTD","THE NEWCASTLE UPON TYNE HOSPITALS NHS FOUNDATION TRUST","RTD02","The Royal Victoria Infirmary",null,"RHM","LONDON NORTH WEST UNIVERSITY HEALTHCARE NHS TRUST",null,"RHM","LONDON NORTH WEST UNIVERSITY HEALTHCARE NHS TRUST","RDU01","Heartlands Hospital"]
[null,null,null,null,null,null,null,null,null,null,null,null,null,null,null,null,null,null,null,null,"QJ2","RFS","CHESTERFIELD ROYAL HOSPITAL NHS FOUNDATION TRUST","RFSDA","Chesterfield Royal Hospital",null,"RHQ","MAIDSTONE AND TUNBRIDGE WELLS NHS TRUST",null,"RHQ","MAIDSTONE AND TUNBRIDGE WELLS NHS TRUST","RDU50","Hereford County Hospital"]
[null,null,null,null,null,null,null,null,null,null,null,null,null,null,null,null,null,null,null,null,"QJ2","RTG","UNIVERSITY HOSPITALS OF DERBY AND BURTON NHS FOUNDATION TRUST","RTG02","Queens Hospital, Burton Upon Trent",null,"RHU","MANCHESTER UNIVERSITY NHS FOUNDATION TRUST",null,"RHU","MANCHESTER UNIVERSITY NHS FOUNDATION TRUST","REF12","Hexham General Hospital"]
[null,null,null,null,null,null,null,null,null,null,null,null,null,null,null,null,null,null,null,null,"QJ2","RTG","UNIVERSITY HOSPITALS OF DERBY AND BURTON NHS FOUNDATION TRUST","RTGFG","Royal Derby Hospital",null,"RHW","MEDWAY NHS FOUNDATION TRUST",null,"RHW","MEDWAY NHS FOUNDATION TRUST","REP01","Hillingdon Hospital"]
[null,null,null,null,null,null,null,null,null,null,null,null,null,null,null,null,null,null,null,null,"QJG","RDE","EAST SUFFOLK AND NORTH ESSEX NHS FOUNDATION TRUST","RDEE4","Colchester General Hospital",null,"RJ1","MID AND SOUTH ESSEX NHS FOUNDATION TRUST",null,"RJ1","MID AND SOUTH ESSEX NHS FOUNDATION TRUST","RF4QH","Hinchingbrooke Hospital"]
[null,null,null,null,null,null,null,null,null,null,null,null,null,null,null,null,null,null,null,null,"QJG","RDE","EAST SUFFOLK AND NORTH ESSEX NHS FOUNDATION TRUST","RDE03","Ipswich Hospital",null,"RJ2","MID CHESHIRE HOSPITALS NHS FOUNDATION TRUST",null,"RJ2","MID CHESHIRE HOSPITALS NHS FOUNDATION TRUST","RFFAA","Homerton University Hospital"]
[null,null,null,null,null,null,null,null,null,null,null,null,null,null,null,null,null,null,null,null,"QJG","RGR","WEST SUFFOLK NHS FOUNDATION TRUST","RGR50","West Suffolk Hospital",null,"RJ6","MID YORKSHIRE HOSPITALS NHS TRUST",null,"RJ6","MID YORKSHIRE HOSPITALS NHS TRUST","RFRPA","Horton General Hospital"]
[null,null,null,null,null,null,null,null,null,null,null,null,null,null,null,null,null,null,null,null,"QJK","RH8","ROYAL DEVON UNIVERSITY HEALTHCARE NHS FOUNDATION TRUST","RH880","North Devon District Hospital",null,"RJ7","MILTON KEYNES UNIVERSITY HOSPITAL NHS FOUNDATION TRUST",null,"RJ7","MILTON KEYNES UNIVERSITY HOSPITAL NHS FOUNDATION TRUST","RFSDA","Ipswich Hospital"]
[null,null,null,null,null,null,null,null,null,null,null,null,null,null,null,null,null,null,null,null,"QJK","RH8","ROYAL DEVON UNIVERSITY HEALTHCARE NHS FOUNDATION TRUST","RH801","Royal Devon and Exeter Hospital (Wonford)",null,"RJC","NORFOLK AND NORWICH UNIVERSITY HOSPITALS NHS FOUNDATION TRUST",null,"RJC","NORFOLK AND NORWICH UNIVERSITY HOSPITALS NHS FOUNDATION TRUST","RGN80","James Paget University Hospital"]
[null,null,null,null,null,null,null,null,null,null,null,null,null,null,null,null,null,null,null,null,"QJK","RA9","TORBAY AND SOUTH DEVON NHS FOUNDATION TRUST","RA901","Torbay Hospital",null,"RJE","NORTH BRISTOL NHS TRUST",null,"RJE","NORTH BRISTOL NHS TRUST","RGN90","John Radcliffe Hospital"]
[null,null,null,null,null,null,null,null,null,null,null,null,null,null,null,null,null,null,null,null,"QJK","RK9","UNIVERSITY HOSPITALS PLYMOUTH NHS TRUST","RK950","Derriford Hospital",null,"RJL","NORTH CUMBRIA INTEGRATED CARE NHS FOUNDATION TRUST",null,"RJL","NORTH CUMBRIA INTEGRATED CARE NHS FOUNDATION TRUST","RGP75","Kettering General Hospital"]
[null,null,null,null,null,null,null,null,null,null,null,null,null,null,null,null,null,null,null,null,"QJM","RWD","UNITED LINCOLNSHIRE HOSPITALS NHS TRUST","RWDLP","Grantham and District Hospital",null,"RK5","NORTH MIDDLESEX UNIVERSITY HOSPITAL NHS TRUST",null,"RK5","NORTH MIDDLESEX UNIVERSITY HOSPITAL NHS TRUST","RGR50","King's Mill Hospital"]
[null,null,null,null,null,null,null,null,null,null,null,null,null,null,null,null,null,null,null,null,"QJM","RWD","UNITED LINCOLNSHIRE HOSPITALS NHS TRUST","RWDDA","Lincoln County Hospital",null,"RK9","NORTH TEES AND HARTLEPOOL NHS FOUNDATION TRUST",null,"RK9","NORTH TEES AND HARTLEPOOL NHS FOUNDATION TRUST","RGT32","Leeds General Infirmary"]
[null,null,null,null,null,null,null,null,null,null,null,null,null,null,null,null,null,null,null,null,"QJM","RWD","UNITED LINCOLNSHIRE HOSPITALS NHS TRUST","RWDLA","Pilgrim Hospital",null,"RKB","NORTH WEST ANGLIA NHS FOUNDATION TRUST",null,"RKB","NORTH WEST ANGLIA NHS FOUNDATION TRUST","RH5A8","Leicester General Hospital"]
[null,null,null,null,null,null,null,null,null,null,null,null,null,null,null,null,null,null,null,null,"QK1","RWE","UNIVERSITY HOSPITALS OF LEICESTER NHS TRUST","RWEAK","Leicester General Hospital",null,"RL4","NORTHAMPTON GENERAL HOSPITAL NHS TRUST",null,"RL4","NORTHAMPTON GENERAL HOSPITAL NHS TRUST","RH5K6","Leicester Royal Infirmary"]
[null,null,null,null,null,null,null,null,null,null,null,null,null,null,null,null,null,null,null,null,"QK1","RWE","UNIVERSITY HOSPITALS OF LEICESTER NHS TRUST","RWEAA","Leicester Royal Infirmary",null,"RLQ","NORTHERN CARE ALLIANCE NHS FOUNDATION TRUST",null,"RLQ","NORTHERN CARE ALLIANCE NHS FOUNDATION TRUST","RH5XXXX","Leighton Hospital"]
[null,null,null,null,null,null,null,null,null,null,null,null,null,null,null,null,null,null,null,null,"QK1","RWE","UNIVERSITY HOSPITALS OF LEICESTER NHS TRUST","RWE10","St Mary's Hospital",null,"RM1","NORTHERN LINCOLNSHIRE AND GOOLE NHS FOUNDATION TRUST",null,"RM1","NORTHERN LINCOLNSHIRE AND GOOLE NHS FOUNDATION TRUST","RH801","Lincoln County Hospital"]
[null,null,null,null,null,null,null,null,null,null,null,null,null,null,null,null,null,null,null,null,"QKK","RJ1","GUY'S AND ST THOMAS' NHS FOUNDATION TRUST","RJ122","St Thomas' Hospital",null,"RM3","NORTHUMBRIA HEALTHCARE NHS FOUNDATION TRUST",null,"RM3","NORTHUMBRIA HEALTHCARE NHS FOUNDATION TRUST","RH880","Lister Hospital"]
[null,null,null,null,null,null,null,null,null,null,null,null,null,null,null,null,null,null,null,null,"QKK","RJ2","LEWISHAM AND GREENWICH NHS TRUST","RJ231","Queen Elizabeth Hospital",null,"RMC","NOTTINGHAM UNIVERSITY HOSPITALS NHS TRUST",null,"RMC","NOTTINGHAM UNIVERSITY HOSPITALS NHS TRUST","RHM01","Liverpool Womens Hospital"]
[null,null,null,null,null,null,null,null,null,null,null,null,null,null,null,null,null,null,null,null,"QKK","RJ2","LEWISHAM AND GREENWICH NHS TRUST","RJ224","University Hospital Lewisham",null,"RN3","OXFORD UNIVERSITY HOSPITALS NHS FOUNDATION TRUST",null,"RN3","OXFORD UNIVERSITY HOSPITALS NHS FOUNDATION TRUST","RHQHH","Ludlow Hospital (Maternity)"]
[null,null,null,null,null,null,null,null,null,null,null,null,null,null,null,null,null,null,null,null,"QKS","RN7","DARTFORD AND GRAVESHAM NHS TRUST","RN707","Darent Valley Hospital",null,"RN5","PORTSMOUTH HOSPITALS UNIVERSITY NATIONAL HEALTH SERVICE TRUST",null,"RN5","PORTSMOUTH HOSPITALS UNIVERSITY NATIONAL HEALTH SERVICE TRUST","RHU02","Luton and Dunstable Hospital"]
[null,null,null,null,null,null,null,null,null,null,null,null,null,null,null,null,null,null,null,null,"QKS","RWF","MAIDSTONE AND TUNBRIDGE WELLS NHS TRUST","RWFTW","The Tunbridge Wells Hospital",null,"RN7","ROYAL BERKSHIRE NHS FOUNDATION TRUST",null,"RN7","ROYAL BERKSHIRE NHS FOUNDATION TRUST","RHU03","Manor Hospital"]
[null,null,null,null,null,null,null,null,null,null,null,null,null,null,null,null,null,null,null,null,"QKS","RPA","MEDWAY NHS FOUNDATION TRUST","RPA02","Medway Maritime Hospital",null,"RNA","ROYAL CORNWALL HOSPITALS NHS TRUST",null,"RNA","ROYAL CORNWALL HOSPITALS NHS TRUST","RHU04","Medway Maritime Hospital"]
[null,null,null,null,null,null,null,null,null,null,null,null,null,null,null,null,null,null,null,null,"QM7","RWH","EAST AND NORTH HERTFORDSHIRE NHS TRUST","RWH01","Lister Hospital",null,"RNN","ROYAL DEVON UNIVERSITY HEALTHCARE NHS FOUNDATION TRUST",null,"RNN","ROYAL DEVON UNIVERSITY HEALTHCARE NHS FOUNDATION TRUST","RHU10","MID ESSEX HOSPITAL"]
[null,null,null,null,null,null,null,null,null,null,null,null,null,null,null,null,null,null,null,null,"QM7","RQW","THE PRINCESS ALEXANDRA HOSPITAL NHS TRUST","RQWG0","Princess Alexandra Hospital",null,"RNQ","ROYAL FREE LONDON NHS FOUNDATION TRUST",null,"RNQ","ROYAL FREE LONDON NHS FOUNDATION TRUST","RHW01","Milton Keynes Hospital"]
[null,null,null,null,null,null,null,null,null,null,null,null,null,null,null,null,null,null,null,null,"QM7","RWG","WEST HERTFORDSHIRE TEACHING HOSPITALS NHS TRUST","RWG02","Watford General Hospital",null,"RNS","ROYAL SURREY COUNTY HOSPITAL NHS FOUNDATION TRUST",null,"RNS","ROYAL SURREY COUNTY HOSPITAL NHS FOUNDATION TRUST","RJ122","MUSGROVE PARK HOSPITAL"]
[null,null,null,null,null,null,null,null,null,null,null,null,null,null,null,null,null,null,null,null,"QMF","RF4","BARKING, HAVERING AND REDBRIDGE UNIVERSITY HOSPITALS NHS TRUST","RF4QH","Queen's Hospital",null,"RNZ","ROYAL UNITED HOSPITALS BATH NHS FOUNDATION TRUST",null,"RNZ","ROYAL UNITED HOSPITALS BATH NHS FOUNDATION TRUST","RJ224","New Cross Hospital"]
[null,null,null,null,null,null,null,null,null,null,null,null,null,null,null,null,null,null,null,null,"QMF","R1H","BARTS HEALTH NHS TRUST","R1HNH","Newham General Hospital",null,"RP5","SALISBURY NHS FOUNDATION TRUST",null,"RP5","SALISBURY NHS FOUNDATION TRUST","RJ231","Newham General Hospital"]
[null,null,null,null,null,null,null,null,null,null,null,null,null,null,null,null,null,null,null,null,"QMF","R1H","BARTS HEALTH NHS TRUST","R1H12","The Royal London Hospital",null,"RPA","SANDWELL AND WEST BIRMINGHAM HOSPITALS NHS TRUST",null,"RPA","SANDWELL AND WEST BIRMINGHAM HOSPITALS NHS TRUST","RJ611","Non-hospital site"]
[null,null,null,null,null,null,null,null,null,null,null,null,null,null,null,null,null,null,null,null,"QMF","R1H","BARTS HEALTH NHS TRUST","R1HKH","Whipps Cross University Hospital",null,"RQ3","SHEFFIELD TEACHING HOSPITALS NHS FOUNDATION TRUST",null,"RQ3","SHEFFIELD TEACHING HOSPITALS NHS FOUNDATION TRUST","RJ701","Non-hospital site"]
[null,null,null,null,null,null,null,null,null,null,null,null,null,null,null,null,null,null,null,null,"QMF","RQX","HOMERTON HEALTHCARE NHS FOUNDATION TRUST","RQXM1","Homerton University Hospital",null,"RQM","SHERWOOD FOREST HOSPITALS NHS FOUNDATION TRUST",null,"RQM","SHERWOOD FOREST HOSPITALS NHS FOUNDATION TRUST","RJC02","Non-hospital site"]
[null,null,null,null,null,null,null,null,null,null,null,null,null,null,null,null,null,null,null,null,"QMJ","RAP","NORTH MIDDLESEX UNIVERSITY HOSPITAL NHS TRUST","RAPNM","North Middlesex Hospital",null,"RQW","SOMERSET NHS FOUNDATION TRUST",null,"RQW","SOMERSET NHS FOUNDATION TRUST","RJE01","Non-hospital site home/in-transit births"]
[null,null,null,null,null,null,null,null,null,null,null,null,null,null,null,null,null,null,null,null,"QMJ","RAL","ROYAL FREE LONDON NHS FOUNDATION TRUST","RAL26","Barnet Hospital",null,"RQX","SOUTH TEES HOSPITALS NHS FOUNDATION TRUST",null,"RQX","SOUTH TEES HOSPITALS NHS FOUNDATION TRUST","RJL32","Norfolk and Norwich University Hospital"]
[null,null,null,null,null,null,null,null,null,null,null,null,null,null,null,null,null,null,null,null,"QMJ","RAL","ROYAL FREE LONDON NHS FOUNDATION TRUST","RAL01","Royal Free Hospital",null,"RR7","SOUTH TYNESIDE AND SUNDERLAND NHS FOUNDATION TRUST",null,"RR7","SOUTH TYNESIDE AND SUNDERLAND NHS FOUNDATION TRUST","RK5BC","North Devon District Hospital"]
[null,null,null,null,null,null,null,null,null,null,null,null,null,null,null,null,null,null,null,null,"QMM","RGP","JAMES PAGET UNIVERSITY HOSPITALS NHS FOUNDATION TRUST","RGP75","James Paget University Hospital",null,"RR8","SOUTH WARWICKSHIRE UNIVERSITY NHS FOUNDATION TRUST",null,"RR8","SOUTH WARWICKSHIRE UNIVERSITY NHS FOUNDATION TRUST","RK950","North Middlesex Hospital"]
[null,null,null,null,null,null,null,null,null,null,null,null,null,null,null,null,null,null,null,null,"QMM","RM1","NORFOLK AND NORWICH UNIVERSITY HOSPITALS NHS FOUNDATION TRUST","RM102","Norfolk and Norwich University Hospital",null,"RRF","SOUTHPORT AND ORMSKIRK HOSPITAL NHS TRUST",null,"RRF","SOUTHPORT AND ORMSKIRK HOSPITAL NHS TRUST","RKB01","Northampton General Hospital (Acute)"]
[null,null,null,null,null,null,null,null,null,null,null,null,null,null,null,null,null,null,null,null,"QMM","RCX","THE QUEEN ELIZABETH HOSPITAL, KING'S LYNN, NHS FOUNDATION TRUST","RCX70","The Queen Elizabeth Hospital",null,"RRK","ST GEORGE'S UNIVERSITY HOSPITALS NHS FOUNDATION TRUST",null,"RRK","ST GEORGE'S UNIVERSITY HOSPITALS NHS FOUNDATION TRUST","RL403","Northwick Park Hospital"]
[null,null,null,null,null,null,null,null,null,null,null,null,null,null,null,null,null,null,null,null,"QNC","RJE","UNIVERSITY HOSPITALS OF NORTH MIDLANDS NHS TRUST","RJE01","Royal Stoke University Hospital",null,"RTD","ST HELENS AND KNOWSLEY TEACHING HOSPITALS NHS TRUST",null,"RTD","ST HELENS AND KNOWSLEY TEACHING HOSPITALS NHS TRUST","RLQ01","Nottingham University Hospitals NHS Trust - City Campus"]
[null,null,null,null,null,null,null,null,null,null,null,null,null,null,null,null,null,null,null,null,"QNQ","RDU","FRIMLEY HEALTH NHS FOUNDATION TRUST","RDU01","Frimley Park Hospital",null,"RTE","STOCKPORT NHS FOUNDATION TRUST",null,"RTE","STOCKPORT NHS FOUNDATION TRUST","RM102","Nottingham University Hospitals NHS Trust - Queen's Medical Centre Campus"]
[null,null,null,null,null,null,null,null,null,null,null,null,null,null,null,null,null,null,null,null,"QNQ","RDU","FRIMLEY HEALTH NHS FOUNDATION TRUST","RDU50","Wexham Park Hospital",null,"RTF","SURREY AND SUSSEX HEALTHCARE NHS TRUST",null,"RTF","SURREY AND SUSSEX HEALTHCARE NHS TRUST","RMC01","Ormskirk and District General Hospital"]
[null,null,null,null,null,null,null,null,null,null,null,null,null,null,null,null,null,null,null,null,"QNX","RXC","EAST SUSSEX HEALTHCARE NHS TRUST","RXC01","Conquest Hospital",null,"RTG","THE DUDLEY GROUP NHS FOUNDATION TRUST",null,"RTG","THE DUDLEY GROUP NHS FOUNDATION TRUST","RN325","Peterborough City Hospital"]
[null,null,null,null,null,null,null,null,null,null,null,null,null,null,null,null,null,null,null,null,"QNX","RXC","EAST SUSSEX HEALTHCARE NHS TRUST","RXC02","Eastbourne District General Hospital",null,"RTH","THE HILLINGDON HOSPITALS NHS FOUNDATION TRUST",null,"RTH","THE HILLINGDON HOSPITALS NHS FOUNDATION TRUST","RN506","Petersfield Community Hospital"]
[null,null,null,null,null,null,null,null,null,null,null,null,null,null,null,null,null,null,null,null,"QNX","RYR","UNIVERSITY HOSPITALS SUSSEX NHS FOUNDATION TRUST","N6J7V","Princess Royal Hospital",null,"RTK","THE NEWCASTLE UPON TYNE HOSPITALS NHS FOUNDATION TRUST",null,"RTK","THE NEWCASTLE UPON TYNE HOSPITALS NHS FOUNDATION TRUST","RN541","Pilgrim Hospital"]
[null,null,null,null,null,null,null,null,null,null,null,null,null,null,null,null,null,null,null,null,"QNX","RYR","UNIVERSITY HOSPITALS SUSSEX NHS FOUNDATION TRUST","E0A3H","Royal Sussex County Hospital",null,"RTP","THE PRINCESS ALEXANDRA HOSPITAL NHS TRUST",null,"RTP","THE PRINCESS ALEXANDRA HOSPITAL NHS TRUST","RN707","Pinderfields General Hospital"]
[null,null,null,null,null,null,null,null,null,null,null,null,null,null,null,null,null,null,null,null,"QOC","RXW","THE SHREWSBURY AND TELFORD HOSPITAL NHS TRUST","RXWMB","Bridgnorth Hospital (Maternity)",null,"RTR","THE QUEEN ELIZABETH HOSPITAL, KING'S LYNN, NHS FOUNDATION TRUST",null,"RTR","THE QUEEN ELIZABETH HOSPITAL, KING'S LYNN, NHS FOUNDATION TRUST","RNA01","Poole Hospital"]
[null,null,null,null,null,null,null,null,null,null,null,null,null,null,null,null,null,null,null,null,"QOC","RXW","THE SHREWSBURY AND TELFORD HOSPITAL NHS TRUST","RXWML","Ludlow Hospital (Maternity)",null,"RTX","THE ROTHERHAM NHS FOUNDATION TRUST",null,"RTX","THE ROTHERHAM NHS FOUNDATION TRUST","RNN62","Princess Alexandra Hospital"]
[null,null,null,null,null,null,null,null,null,null,null,null,null,null,null,null,null,null,null,null,"QOC","RXW","THE SHREWSBURY AND TELFORD HOSPITAL NHS TRUST","RXWMJ","Robert Jones & Agnes Hunt Orthopaedic & District Hospital",null,"RVJ","THE ROYAL WOLVERHAMPTON NHS TRUST",null,"RVJ","THE ROYAL WOLVERHAMPTON NHS TRUST","RNNBX","Princess Anne Wing RUH"]
[null,null,null,null,null,null,null,null,null,null,null,null,null,null,null,null,null,null,null,null,"QOC","RXW","THE SHREWSBURY AND TELFORD HOSPITAL NHS TRUST","RXWAS","Royal Shrewsbury Hospital",null,"RVR","THE SHREWSBURY AND TELFORD HOSPITAL NHS TRUST",null,"RVR","THE SHREWSBURY AND TELFORD HOSPITAL NHS TRUST","RNQ51","Princess Royal Hospital"]
[null,null,null,null,null,null,null,null,null,null,null,null,null,null,null,null,null,null,null,null,"QOC","RXW","THE SHREWSBURY AND TELFORD HOSPITAL NHS TRUST","RXWAT","The Princess Royal Hospital",null,"RVW","TORBAY AND SOUTH DEVON NHS FOUNDATION TRUST",null,"RVW","TORBAY AND SOUTH DEVON NHS FOUNDATION TRUST","RNS01","Queen Alexandra Hospital"]
[null,null,null,null,null,null,null,null,null,null,null,null,null,null,null,null,null,null,null,null,"QOP","RMC","BOLTON NHS FOUNDATION TRUST","RMC01","Royal Bolton Hospital",null,"RVY","UNITED LINCOLNSHIRE HOSPITALS NHS TRUST",null,"RVY","UNITED LINCOLNSHIRE HOSPITALS NHS TRUST","RNZ02","Queen Charlotte's Hospital"]
[null,null,null,null,null,null,null,null,null,null,null,null,null,null,null,null,null,null,null,null,"QOP","R0A","MANCHESTER UNIVERSITY NHS FOUNDATION TRUST","R0A05","St Mary's Hospital",null,"RWD","UNIVERSITY HOSPITAL SOUTHAMPTON NHS FOUNDATION TRUST",null,"RWD","UNIVERSITY HOSPITAL SOUTHAMPTON NHS FOUNDATION TRUST","RP5BA","Queen Elizabeth Hospital"]
[null,null,null,null,null,null,null,null,null,null,null,null,null,null,null,null,null,null,null,null,"QOP","RM3","NORTHERN CARE ALLIANCE NHS FOUNDATION TRUST","RW603","Royal Oldham Hospital",null,"RWE","UNIVERSITY HOSPITALS BIRMINGHAM NHS FOUNDATION TRUST",null,"RWE","UNIVERSITY HOSPITALS BIRMINGHAM NHS FOUNDATION TRUST","RP5DR","Queen Elizabeth Hospital"]
[null,null,null,null,null,null,null,null,null,null,null,null,null,null,null,null,null,null,null,null,"QOP","RWJ","STOCKPORT NHS FOUNDATION TRUST","RWJ09","Stepping Hill Hospital",null,"RWF","UNIVERSITY HOSPITALS BRISTOL AND WESTON NHS FOUNDATION TRUST",null,"RWF","UNIVERSITY HOSPITALS BRISTOL AND WESTON NHS FOUNDATION TRUST","RPA02","Queen's Hospital"]
[null,null,null,null,null,null,null,null,null,null,null,null,null,null,null,null,null,null,null,null,"QOP","RRF","WRIGHTINGTON, WIGAN AND LEIGH NHS FOUNDATION TRUST","RRF02","Royal Albert Edward Infirmary",null,"RWG","UNIVERSITY HOSPITALS COVENTRY AND WARWICKSHIRE NHS TRUST",null,"RWG","UNIVERSITY HOSPITALS COVENTRY AND WARWICKSHIRE NHS TRUST","RQ370","Queens Hospital, Burton Upon Trent"]
[null,null,null,null,null,null,null,null,null,null,null,null,null,null,null,null,null,null,null,null,"QOQ","RCD","HARROGATE AND DISTRICT NHS FOUNDATION TRUST","RCD01","Harrogate District Hospital",null,"RWH","UNIVERSITY HOSPITALS DORSET NHS FOUNDATION TRUST",null,"RWH","UNIVERSITY HOSPITALS DORSET NHS FOUNDATION TRUST","RQM01","Robert Jones & Agnes Hunt Orthopaedic & District Hospital"]
[null,null,null,null,null,null,null,null,null,null,null,null,null,null,null,null,null,null,null,null,"QOQ","RJL","NORTHERN LINCOLNSHIRE AND GOOLE NHS FOUNDATION TRUST","RJL32","Scunthorpe General Hospital",null,"RWJ","UNIVERSITY HOSPITALS OF DERBY AND BURTON NHS FOUNDATION TRUST",null,"RWJ","UNIVERSITY HOSPITALS OF DERBY AND BURTON NHS FOUNDATION TRUST","RQM91","Rosie Hospital"]
[null,null,null,null,null,null,null,null,null,null,null,null,null,null,null,null,null,null,null,null,"QOQ","RCB","YORK AND SCARBOROUGH TEACHING HOSPITALS NHS FOUNDATION TRUST","RCBCA","Scarborough General Hospital",null,"RWP","UNIVERSITY HOSPITALS OF LEICESTER NHS TRUST",null,"RWP","UNIVERSITY HOSPITALS OF LEICESTER NHS TRUST","RQWG0","Rotherham District General Hospital"]
[null,null,null,null,null,null,null,null,null,null,null,null,null,null,null,null,null,null,null,null,"QOQ","RCB","YORK AND SCARBOROUGH TEACHING HOSPITALS NHS FOUNDATION TRUST","RCB55","York Hospital",null,"RWY","UNIVERSITY HOSPITALS OF MORECAMBE BAY NHS FOUNDATION TRUST",null,"RWY","UNIVERSITY HOSPITALS OF MORECAMBE BAY NHS FOUNDATION TRUST","RQXM1","Royal Albert Edward Infirmary"]
[null,null,null,null,null,null,null,null,null,null,null,null,null,null,null,null,null,null,null,null,"QOX","RN3","GREAT WESTERN HOSPITALS NHS FOUNDATION TRUST","RN325","The Great Western Hospital",null,"RX1","UNIVERSITY HOSPITALS OF NORTH MIDLANDS NHS TRUST",null,"RX1","UNIVERSITY HOSPITALS OF NORTH MIDLANDS NHS TRUST","RR7EN","Royal Berkshire Hospital"]
[null,null,null,null,null,null,null,null,null,null,null,null,null,null,null,null,null,null,null,null,"QOX","RD1","ROYAL UNITED HOSPITALS BATH NHS FOUNDATION TRUST","RD130","Princess Anne Wing RUH",null,"RXC","UNIVERSITY HOSPITALS PLYMOUTH NHS TRUST",null,"RXC","UNIVERSITY HOSPITALS PLYMOUTH NHS TRUST","RR801","Royal Blackburn Hospital"]
[null,null,null,null,null,null,null,null,null,null,null,null,null,null,null,null,null,null,null,null,"QOX","RNZ","SALISBURY NHS FOUNDATION TRUST","RNZ02","Salisbury District Hospital",null,"RXF","UNIVERSITY HOSPITALS SUSSEX NHS FOUNDATION TRUST",null,"RXF","UNIVERSITY HOSPITALS SUSSEX NHS FOUNDATION TRUST","RR813","Royal Bolton Hospital"]
[null,null,null,null,null,null,null,null,null,null,null,null,null,null,null,null,null,null,null,null,"QPM","RNQ","KETTERING GENERAL HOSPITAL NHS FOUNDATION TRUST","RNQ51","Kettering General Hospital",null,"RXK","WALSALL HEALTHCARE NHS TRUST",null,"RXK","WALSALL HEALTHCARE NHS TRUST","RRF02","Royal Bournemouth Hospital"]
[null,null,null,null,null,null,null,null,null,null,null,null,null,null,null,null,null,null,null,null,"QPM","RNS","NORTHAMPTON GENERAL HOSPITAL NHS TRUST","RNS01","Northampton General Hospital (Acute)",null,"RXL","WEST HERTFORDSHIRE TEACHING HOSPITALS NHS TRUST",null,"RXL","WEST HERTFORDSHIRE TEACHING HOSPITALS NHS TRUST","RRK97","Royal Cornwall Hospital (Treliske)"]
[null,null,null,null,null,null,null,null,null,null,null,null,null,null,null,null,null,null,null,null,"QR1","RTE","GLOUCESTERSHIRE HOSPITALS NHS FOUNDATION TRUST","RTE03","Gloucestershire Royal Hospital",null,"RXN","WEST SUFFOLK NHS FOUNDATION TRUST",null,"RXN","WEST SUFFOLK NHS FOUNDATION TRUST","RRK98","Royal Derby Hospital"]
[null,null,null,null,null,null,null,null,null,null,null,null,null,null,null,null,null,null,null,null,"QRL","RN5","HAMPSHIRE HOSPITALS NHS FOUNDATION TRUST","RN506","Basingstoke and North Hampshire Hospital",null,"RXP","WIRRAL UNIVERSITY TEACHING HOSPITAL NHS FOUNDATION TRUST",null,"RXP","WIRRAL UNIVERSITY TEACHING HOSPITAL NHS FOUNDATION TRUST","RRK99","Royal Devon and Exeter Hospital (Wonford)"]
[null,null,null,null,null,null,null,null,null,null,null,null,null,null,null,null,null,null,null,null,"QRL","RN5","HAMPSHIRE HOSPITALS NHS FOUNDATION TRUST","RN541","Royal Hampshire County Hospital",null,"RXQ","WORCESTERSHIRE ACUTE HOSPITALS NHS TRUST",null,"RXQ","WORCESTERSHIRE ACUTE HOSPITALS NHS TRUST","RTD02","Royal Free Hospital"]
[null,null,null,null,null,null,null,null,null,null,null,null,null,null,null,null,null,null,null,null,"QRL","R1F","ISLE OF WIGHT NHS TRUST","R1F01","St Mary's Hospital",null,"RXR","WRIGHTINGTON, WIGAN AND LEIGH NHS FOUNDATION TRUST",null,"RXR","WRIGHTINGTON, WIGAN AND LEIGH NHS FOUNDATION TRUST","RTE03","Royal Hallamshire Hospital"]
[null,null,null,null,null,null,null,null,null,null,null,null,null,null,null,null,null,null,null,null,"QRL","RHU","PORTSMOUTH HOSPITALS UNIVERSITY NATIONAL HEALTH SERVICE TRUST","RHU10","Gosport War Memorial Hospital",null,"RXW","WYE VALLEY NHS TRUST",null,"RXW","WYE VALLEY NHS TRUST","RTF86","Royal Hampshire County Hospital"]
[null,null,null,null,null,null,null,null,null,null,null,null,null,null,null,null,null,null,null,null,"QRL","RHU","PORTSMOUTH HOSPITALS UNIVERSITY NATIONAL HEALTH SERVICE TRUST","RHU04","Petersfield Community Hospital",null,"RYJ","YEOVIL DISTRICT HOSPITAL NHS FOUNDATION TRUST",null,"RYJ","YEOVIL DISTRICT HOSPITAL NHS FOUNDATION TRUST","RTFDH","Royal Lancaster Infirmary"]
[null,null,null,null,null,null,null,null,null,null,null,null,null,null,null,null,null,null,null,null,"QRL","RHU","PORTSMOUTH HOSPITALS UNIVERSITY NATIONAL HEALTH SERVICE TRUST","RHU03","Queen Alexandra Hospital",null,"RYR","YORK AND SCARBOROUGH TEACHING HOSPITALS NHS FOUNDATION TRUST",null,"RYR","YORK AND SCARBOROUGH TEACHING HOSPITALS NHS FOUNDATION TRUST","RTFDJ","Royal Oldham Hospital"]
[null,null,null,null,null,null,null,null,null,null,null,null,null,null,null,null,null,null,null,null,"QRL","RHU","PORTSMOUTH HOSPITALS UNIVERSITY NATIONAL HEALTH SERVICE TRUST","RHU02","St Mary's Hospital",null,null,null,null,null,null,"RTFDR","Royal Preston Hospital"]
[null,null,null,null,null,null,null,null,null,null,null,null,null,null,null,null,null,null,null,null,"QRL","RHM","UNIVERSITY HOSPITAL SOUTHAMPTON NHS FOUNDATION TRUST","RHM01","Southampton General Hospital",null,null,null,null,null,null,"RTG02","Royal Shrewsbury Hospital"]
[null,null,null,null,null,null,null,null,null,null,null,null,null,null,null,null,null,null,null,null,"QRV","RQM","CHELSEA AND WESTMINSTER HOSPITAL NHS FOUNDATION TRUST","RQM01","Chelsea and Westminster Hospital",null,null,null,null,null,null,"RTGFG","Royal Stoke University Hospital"]
[null,null,null,null,null,null,null,null,null,null,null,null,null,null,null,null,null,null,null,null,"QRV","RQM","CHELSEA AND WESTMINSTER HOSPITAL NHS FOUNDATION TRUST","RQM91","West Middlesex University Hospital",null,null,null,null,null,null,"RTH05","Royal Surrey County Hospital"]
[null,null,null,null,null,null,null,null,null,null,null,null,null,null,null,null,null,null,null,null,"QRV","RYJ","IMPERIAL COLLEGE HEALTHCARE NHS TRUST","RYJ04","Queen Charlotte's Hospital",null,null,null,null,null,null,"RTH08","Royal Sussex County Hospital"]
[null,null,null,null,null,null,null,null,null,null,null,null,null,null,null,null,null,null,null,null,"QRV","RYJ","IMPERIAL COLLEGE HEALTHCARE NHS TRUST","RYJ01","St Mary's Hospital (HQ)",null,null,null,null,null,null,"RTH16","Russells Hall Hospital"]
[null,null,null,null,null,null,null,null,null,null,null,null,null,null,null,null,null,null,null,null,"QRV","R1K","LONDON NORTH WEST UNIVERSITY HEALTHCARE NHS TRUST","R1K01","Northwick Park Hospital",null,null,null,null,null,null,"RTK02","Salisbury District Hospital"]
[null,null,null,null,null,null,null,null,null,null,null,null,null,null,null,null,null,null,null,null,"QRV","RAS","THE HILLINGDON HOSPITALS NHS FOUNDATION TRUST","RAS01","Hillingdon Hospital",null,null,null,null,null,null,"RTP04","Scarborough General Hospital"]
[null,null,null,null,null,null,null,null,null,null,null,null,null,null,null,null,null,null,null,null,"QSL","RH5","SOMERSET NHS FOUNDATION TRUST","RH5K6","Bridgwater Hospital",null,null,null,null,null,null,"RTR45","Scunthorpe General Hospital"]
[null,null,null,null,null,null,null,null,null,null,null,null,null,null,null,null,null,null,null,null,"QSL","RH5","SOMERSET NHS FOUNDATION TRUST","RH5A8","MUSGROVE PARK HOSPITAL",null,null,null,null,null,null,"RTRAT","Solihull Hospital"]
[null,null,null,null,null,null,null,null,null,null,null,null,null,null,null,null,null,null,null,null,"QSL","RH5","SOMERSET NHS FOUNDATION TRUST","RH5XXXX","Non-hospital site home/in-transit births",null,null,null,null,null,null,"RTX02","South Tyneside District Hospital"]
[null,null,null,null,null,null,null,null,null,null,null,null,null,null,null,null,null,null,null,null,"QSL","RA4","YEOVIL DISTRICT HOSPITAL NHS FOUNDATION TRUST","RA430","Yeovil District Hospital",null,null,null,null,null,null,"RTXBU","Southampton General Hospital"]
[null,null,null,null,null,null,null,null,null,null,null,null,null,null,null,null,null,null,null,null,"QT1","RX1","NOTTINGHAM UNIVERSITY HOSPITALS NHS TRUST","RX1CC","Nottingham University Hospitals NHS Trust - City Campus",null,null,null,null,null,null,"RVJ01","Southend Hospital"]
[null,null,null,null,null,null,null,null,null,null,null,null,null,null,null,null,null,null,null,null,"QT1","RX1","NOTTINGHAM UNIVERSITY HOSPITALS NHS TRUST","RX1RA","Nottingham University Hospitals NHS Trust - Queen's Medical Centre Campus",null,null,null,null,null,null,"RVR05","Southmead Hospital"]
[null,null,null,null,null,null,null,null,null,null,null,null,null,null,null,null,null,null,null,null,"QT1","RK5","SHERWOOD FOREST HOSPITALS NHS FOUNDATION TRUST","RK5BC","King's Mill Hospital",null,null,null,null,null,null,"RVR50","St George's Hospital (Tooting)"]
[null,null,null,null,null,null,null,null,null,null,null,null,null,null,null,null,null,null,null,null,"QT6","REF","ROYAL CORNWALL HOSPITALS NHS TRUST","REF12","Royal Cornwall Hospital (Treliske)",null,null,null,null,null,null,"RVWAE","St Helier Hospital"]
[null,null,null,null,null,null,null,null,null,null,null,null,null,null,null,null,null,null,null,null,"QU9","RXQ","BUCKINGHAMSHIRE HEALTHCARE NHS TRUST","RXQ02","Stoke Mandeville Hospital",null,null,null,null,null,null,"RVWXXX","St James's University Hospital"]
[null,null,null,null,null,null,null,null,null,null,null,null,null,null,null,null,null,null,null,null,"QU9","RTH","OXFORD UNIVERSITY HOSPITALS NHS FOUNDATION TRUST","RTH05","Horton General Hospital",null,null,null,null,null,null,"RVY02","St Mary's Hospital"]
[null,null,null,null,null,null,null,null,null,null,null,null,null,null,null,null,null,null,null,null,"QU9","RTH","OXFORD UNIVERSITY HOSPITALS NHS FOUNDATION TRUST","RTH08","John Radcliffe Hospital",null,null,null,null,null,null,"RW603","St Mary's Hospital"]
[null,null,null,null,null,null,null,null,null,null,null,null,null,null,null,null,null,null,null,null,"QU9","RTH","OXFORD UNIVERSITY HOSPITALS NHS FOUNDATION TRUST","RTH16","Wallingford Community Hospital",null,null,null,null,null,null,"RWDDA","St Mary's Hospital"]
[null,null,null,null,null,null,null,null,null,null,null,null,null,null,null,null,null,null,null,null,"QU9","RHW","ROYAL BERKSHIRE NHS FOUNDATION TRUST","RHW01","Royal Berkshire Hospital",null,null,null,null,null,null,"RWDLA","St Mary's Hospital"]
[null,null,null,null,null,null,null,null,null,null,null,null,null,null,null,null,null,null,null,null,"QUA","RNA","THE DUDLEY GROUP NHS FOUNDATION TRUST","RNA01","Russells Hall Hospital",null,null,null,null,null,null,"RWDLP","St Mary's Hospital (HQ)"]
[null,null,null,null,null,null,null,null,null,null,null,null,null,null,null,null,null,null,null,null,"QUA","RL4","THE ROYAL WOLVERHAMPTON NHS TRUST","RL403","New Cross Hospital",null,null,null,null,null,null,"RWE10","St Michael's Hospital"]
[null,null,null,null,null,null,null,null,null,null,null,null,null,null,null,null,null,null,null,null,"QUA","RBK","WALSALL HEALTHCARE NHS TRUST","RBK02","Manor Hospital",null,null,null,null,null,null,"RWEAA","St Thomas' Hospital"]
[null,null,null,null,null,null,null,null,null,null,null,null,null,null,null,null,null,null,null,null,"QUE","RGT","CAMBRIDGE UNIVERSITY HOSPITALS NHS FOUNDATION TRUST","RGT32","Rosie Hospital",null,null,null,null,null,null,"RWEAK","Stepping Hill Hospital"]
[null,null,null,null,null,null,null,null,null,null,null,null,null,null,null,null,null,null,null,null,"QUE","RGN","NORTH WEST ANGLIA NHS FOUNDATION TRUST","RGN90","Hinchingbrooke Hospital",null,null,null,null,null,null,"RWFTW","Stoke Mandeville Hospital"]
[null,null,null,null,null,null,null,null,null,null,null,null,null,null,null,null,null,null,null,null,"QUE","RGN","NORTH WEST ANGLIA NHS FOUNDATION TRUST","RGN80","Peterborough City Hospital",null,null,null,null,null,null,"RWG02","Sunderland Royal Hospital"]
[null,null,null,null,null,null,null,null,null,null,null,null,null,null,null,null,null,null,null,null,"QUY","RVJ","NORTH BRISTOL NHS TRUST","RVJ01","Southmead Hospital",null,null,null,null,null,null,"RWH01","The Great Western Hospital"]
[null,null,null,null,null,null,null,null,null,null,null,null,null,null,null,null,null,null,null,null,"QUY","RA7","UNIVERSITY HOSPITALS BRISTOL AND WESTON NHS FOUNDATION TRUST","RA707","St Michael's Hospital",null,null,null,null,null,null,"RWJ09","The James Cook University Hospital"]
[null,null,null,null,null,null,null,null,null,null,null,null,null,null,null,null,null,null,null,null,"QVV","RBD","DORSET COUNTY HOSPITAL NHS FOUNDATION TRUST","RBD01","Dorset County Hospital",null,null,null,null,null,null,"RWP50","The Northumbria"]
[null,null,null,null,null,null,null,null,null,null,null,null,null,null,null,null,null,null,null,null,"QVV","R0D","UNIVERSITY HOSPITALS DORSET NHS FOUNDATION TRUST","R0D01","Poole Hospital",null,null,null,null,null,null,"RWY02","The Princess Royal Hospital"]
[null,null,null,null,null,null,null,null,null,null,null,null,null,null,null,null,null,null,null,null,"QVV","R0D","UNIVERSITY HOSPITALS DORSET NHS FOUNDATION TRUST","R0D02","Royal Bournemouth Hospital",null,null,null,null,null,null,"RX1CC","The Queen Elizabeth Hospital"]
[null,null,null,null,null,null,null,null,null,null,null,null,null,null,null,null,null,null,null,null,"QWE","RJ6","CROYDON HEALTH SERVICES NHS TRUST","RJ611","Croydon University Hospital",null,null,null,null,null,null,"RX1RA","The Royal London Hospital"]
[null,null,null,null,null,null,null,null,null,null,null,null,null,null,null,null,null,null,null,null,"QWE","RVR","EPSOM AND ST HELIER UNIVERSITY HOSPITALS NHS TRUST","RVR50","Epsom Hospital",null,null,null,null,null,null,"RXC01","The Royal Victoria Infirmary"]
[null,null,null,null,null,null,null,null,null,null,null,null,null,null,null,null,null,null,null,null,"QWE","RVR","EPSOM AND ST HELIER UNIVERSITY HOSPITALS NHS TRUST","RVR05","St Helier Hospital",null,null,null,null,null,null,"RXC02","The Tunbridge Wells Hospital"]
[null,null,null,null,null,null,null,null,null,null,null,null,null,null,null,null,null,null,null,null,"QWE","RAX","KINGSTON HOSPITAL NHS FOUNDATION TRUST","RAXXXX","Non-hospital site",null,null,null,null,null,null,"RXF05","Torbay Hospital"]
[null,null,null,null,null,null,null,null,null,null,null,null,null,null,null,null,null,null,null,null,"QWE","RJ7","ST GEORGE'S UNIVERSITY HOSPITALS NHS FOUNDATION TRUST","RJ701","St George's Hospital (Tooting)",null,null,null,null,null,null,"RXK02","University Hospital (Coventry)"]
[null,null,null,null,null,null,null,null,null,null,null,null,null,null,null,null,null,null,null,null,"QWO","RAE","BRADFORD TEACHING HOSPITALS NHS FOUNDATION TRUST","RAE01","Bradford Royal Infirmary",null,null,null,null,null,null,"RXKTC","University Hospital Lewisham"]
[null,null,null,null,null,null,null,null,null,null,null,null,null,null,null,null,null,null,null,null,"QWO","RWY","CALDERDALE AND HUDDERSFIELD NHS FOUNDATION TRUST","RWY02","Calderdale Royal Hospital",null,null,null,null,null,null,"RXL01","University Hospital Of North Durham"]
[null,null,null,null,null,null,null,null,null,null,null,null,null,null,null,null,null,null,null,null,"QWO","RR8","LEEDS TEACHING HOSPITALS NHS TRUST","RR801","Leeds General Infirmary",null,null,null,null,null,null,"RXN01","University Hospital Of North Tees"]
[null,null,null,null,null,null,null,null,null,null,null,null,null,null,null,null,null,null,null,null,"QWO","RR8","LEEDS TEACHING HOSPITALS NHS TRUST","RR813","St James's University Hospital",null,null,null,null,null,null,"RXN02","Wallingford Community Hospital"]
[null,null,null,null,null,null,null,null,null,null,null,null,null,null,null,null,null,null,null,null,"QWO","RXF","MID YORKSHIRE HOSPITALS NHS TRUST","RXF05","Pinderfields General Hospital",null,null,null,null,null,null,"RXPCP","Warwick Hospital"]
[null,null,null,null,null,null,null,null,null,null,null,null,null,null,null,null,null,null,null,null,"QWU","RJC","SOUTH WARWICKSHIRE UNIVERSITY NHS FOUNDATION TRUST","RJC02","Warwick Hospital",null,null,null,null,null,null,"RXPDA","Watford General Hospital"]
[null,null,null,null,null,null,null,null,null,null,null,null,null,null,null,null,null,null,null,null,"QWU","RKB","UNIVERSITY HOSPITALS COVENTRY AND WARWICKSHIRE NHS TRUST","RKB01","University Hospital (Coventry)",null,null,null,null,null,null,"RXQ02","West Cumberland Hospital"]
[null,null,null,null,null,null,null,null,null,null,null,null,null,null,null,null,null,null,null,null,"QXU","RTK","ASHFORD AND ST PETER'S HOSPITALS NHS FOUNDATION TRUST","RTK02","Ashford Hospital",null,null,null,null,null,null,"RXR20","West Middlesex University Hospital"]
[null,null,null,null,null,null,null,null,null,null,null,null,null,null,null,null,null,null,null,null,"QXU","RA2","ROYAL SURREY COUNTY HOSPITAL NHS FOUNDATION TRUST","RA201","Royal Surrey County Hospital",null,null,null,null,null,null,"RXWAS","West Suffolk Hospital"]
[null,null,null,null,null,null,null,null,null,null,null,null,null,null,null,null,null,null,null,null,"QXU","RTP","SURREY AND SUSSEX HEALTHCARE NHS TRUST","RTP04","East Surrey Hospital",null,null,null,null,null,null,"RXWAT","Wexham Park Hospital"]
[null,null,null,null,null,null,null,null,null,null,null,null,null,null,null,null,null,null,null,null,"QYG","REP","LIVERPOOL WOMEN'S NHS FOUNDATION TRUST","REP01","Liverpool Womens Hospital",null,null,null,null,null,null,"RXWMB","Whipps Cross University Hospital"]
[null,null,null,null,null,null,null,null,null,null,null,null,null,null,null,null,null,null,null,null,"QYG","RBT","MID CHESHIRE HOSPITALS NHS FOUNDATION TRUST","RBT20","Leighton Hospital",null,null,null,null,null,null,"RXWMJ","Whiston Hospital"]
[null,null,null,null,null,null,null,null,null,null,null,null,null,null,null,null,null,null,null,null,"QYG","RVY","SOUTHPORT AND ORMSKIRK HOSPITAL NHS TRUST","RVY02","Ormskirk and District General Hospital",null,null,null,null,null,null,"RXWML","Worcestershire Royal Hospital"]
[null,null,null,null,null,null,null,null,null,null,null,null,null,null,null,null,null,null,null,null,"QYG","RBN","ST HELENS AND KNOWSLEY TEACHING HOSPITALS NHS TRUST","RBN01","Whiston Hospital",null,null,null,null,null,null,"RYJ01","Yeovil District Hospital"]
[null,null,null,null,null,null,null,null,null,null,null,null,null,null,null,null,null,null,null,null,"QYG","RBL","WIRRAL UNIVERSITY TEACHING HOSPITAL NHS FOUNDATION TRUST","RBL14","Arrowe Park Hospital",null,null,null,null,null,null,"RYJ04","York Hospital"]

{"sheet":"BSQ4","index":16,"n_rows":120,"n_cols":28,"rows_kept":120,"cut":false,"hidden":true,"merged":[]}
[null,"Sort","ICB","ICB","Trusts","Trusts",null,null,null,"Sort ranges:","Sort range…","Sort range…",null,"Reference Region List:","Code…","Name…","Linked Region List:","Code…","Name…","Reference Lists:","Code…","Code…","Name…",null,null,"Trusts Linked Lists:","Code…","Name…"]
["ICB",1,1,1,"-","-",null,null,null,null,"ICB Code","ICB Code",null,null,"QE1","LANCASHIRE AND SOUTH CUMBRIA ICB",null,"QE1","LANCASHIRE AND SOUTH CUMBRIA ICB",null,"QE1","RTX","UNIVERSITY HOSPITALS OF MORECAMBE BAY NHS FOUNDATION TRUST",null,null,null,"R0A","AIREDALE NHS FOUNDATION TRUST"]
["Trusts",1,1,1,1,1,null,null,null,null,"ICB Name","Trust Code",null,null,"QF7","SOUTH YORKSHIRE ICB",null,"QF7","SOUTH YORKSHIRE ICB",null,"QE1","RXL","BLACKPOOL TEACHING HOSPITALS NHS FOUNDATION TRUST",null,null,null,"R0B","ASHFORD AND ST PETER'S HOSPITALS NHS FOUNDATION TRUST"]
[null,null,null,null,null,null,null,null,null,null,"Total Responses","Trust Name",null,null,"QGH","HEREFORDSHIRE AND WORCESTERSHIRE ICB",null,"QGH","HEREFORDSHIRE AND WORCESTERSHIRE ICB",null,"QE1","RXN","LANCASHIRE TEACHING HOSPITALS NHS FOUNDATION TRUST",null,null,null,"R0D","BARKING, HAVERING AND REDBRIDGE UNIVERSITY HOSPITALS NHS TRUST"]
[null,null,null,null,null,null,null,null,null,null,"Percentage Positive","Total Responses",null,null,"QH8","MID AND SOUTH ESSEX ICB",null,"QH8","MID AND SOUTH ESSEX ICB",null,"QE1","RXR","EAST LANCASHIRE HOSPITALS NHS TRUST",null,null,null,"R1F","BARNSLEY HOSPITAL NHS FOUNDATION TRUST"]
[null,null,null,null,null,null,null,null,null,null,"Percentage Negative","Percentage Positive",null,null,"QHG","BEDFORDSHIRE, LUTON AND MILTON KEYNES ICB",null,"QHG","BEDFORDSHIRE, LUTON AND MILTON KEYNES ICB",null,"QF7","RFF","BARNSLEY HOSPITAL NHS FOUNDATION TRUST",null,null,null,"R1H","BARTS HEALTH NHS TRUST"]
[null,null,null,null,null,null,null,null,null,null,"Very Good","Percentage Negative",null,null,"QHL","BIRMINGHAM AND SOLIHULL ICB",null,"QHL","BIRMINGHAM AND SOLIHULL ICB",null,"QF7","RP5","DONCASTER AND BASSETLAW TEACHING HOSPITALS NHS FOUNDATION TRUST",null,null,null,"R1K","BEDFORDSHIRE HOSPITALS NHS FOUNDATION TRUST"]
[null,null,null,null,null,null,null,null,null,null,"Good","Very Good",null,null,"QHM","NORTH EAST AND NORTH CUMBRIA ICB",null,"QHM","NORTH EAST AND NORTH CUMBRIA ICB",null,"QF7","RFR","THE ROTHERHAM NHS FOUNDATION TRUST",null,null,null,"RA2","BIRMINGHAM WOMEN'S AND CHILDREN'S NHS FOUNDATION TRUST"]
[null,null,null,null,null,null,null,null,null,null,"Neither Good nor Poor","Good",null,null,"QJ2","DERBY AND DERBYSHIRE ICB",null,"QJ2","DERBY AND DERBYSHIRE ICB",null,"QF7","RHQ","SHEFFIELD TEACHING HOSPITALS NHS FOUNDATION TRUST",null,null,null,"RA4","BLACKPOOL TEACHING HOSPITALS NHS FOUNDATION TRUST"]
[null,null,null,null,null,null,null,null,null,null,"Poor","Neither Good nor Poor",null,null,"QJG","SUFFOLK AND NORTH EAST ESSEX ICB",null,"QJG","SUFFOLK AND NORTH EAST ESSEX ICB",null,"QGH","RLQ","WYE VALLEY NHS TRUST",null,null,null,"RA7","BOLTON NHS FOUNDATION TRUST"]
[null,null,null,null,null,null,null,null,null,null,"Very Poor","Poor",null,null,"QJK","DEVON ICB",null,"QJK","DEVON ICB",null,"QGH","RWP","WORCESTERSHIRE ACUTE HOSPITALS NHS TRUST",null,null,null,"RA9","BRADFORD TEACHING HOSPITALS NHS FOUNDATION TRUST"]
[null,null,null,null,null,null,null,null,null,null,"Don't Know","Very Poor",null,null,"QJM","LINCOLNSHIRE ICB",null,"QJM","LINCOLNSHIRE ICB",null,"QH8","RAJ","MID AND SOUTH ESSEX NHS FOUNDATION TRUST",null,null,null,"RAE","BUCKINGHAMSHIRE HEALTHCARE NHS TRUST"]
[null,null,null,null,null,null,null,null,null,null,null,"Don't Know",null,null,"QK1","LEICESTER, LEICESTERSHIRE AND RUTLAND ICB",null,"QK1","LEICESTER, LEICESTERSHIRE AND RUTLAND ICB",null,"QHG","RC9","BEDFORDSHIRE HOSPITALS NHS FOUNDATION TRUST",null,null,null,"RAJ","CALDERDALE AND HUDDERSFIELD NHS FOUNDATION TRUST"]
[null,null,null,null,null,null,null,null,null,null,null,"Mode SMS",null,null,"QKK","SOUTH EAST LONDON ICB",null,"QKK","SOUTH EAST LONDON ICB",null,"QHG","RD8","MILTON KEYNES UNIVERSITY HOSPITAL NHS FOUNDATION TRUST",null,null,null,"RAL","CAMBRIDGE UNIVERSITY HOSPITALS NHS FOUNDATION TRUST"]
[null,null,null,null,null,null,null,null,null,null,null,"Mode Electronic Discharge",null,null,"QKS","KENT AND MEDWAY ICB",null,"QKS","KENT AND MEDWAY ICB",null,"QHL","RXK","SANDWELL AND WEST BIRMINGHAM HOSPITALS NHS TRUST",null,null,null,"RAP","CHELSEA AND WESTMINSTER HOSPITAL NHS FOUNDATION TRUST"]
[null,null,null,null,null,null,null,null,null,null,null,"Mode Electronic Home",null,null,"QM7","HERTFORDSHIRE AND WEST ESSEX ICB",null,"QM7","HERTFORDSHIRE AND WEST ESSEX ICB",null,"QHL","RQ3","BIRMINGHAM WOMEN'S AND CHILDREN'S NHS FOUNDATION TRUST",null,null,null,"RAS","CHESTERFIELD ROYAL HOSPITAL NHS FOUNDATION TRUST"]
[null,null,null,null,null,null,null,null,null,null,null,"Mode Paper Discharge",null,null,"QMF","NORTH EAST LONDON ICB",null,"QMF","NORTH EAST LONDON ICB",null,"QHL","RRK","UNIVERSITY HOSPITALS BIRMINGHAM NHS FOUNDATION TRUST",null,null,null,"RAX","COUNTY DURHAM AND DARLINGTON NHS FOUNDATION TRUST"]
[null,null,null,null,null,null,null,null,null,null,null,"Mode Paper Home",null,null,"QMJ","NORTH CENTRAL LONDON ICB",null,"QMJ","NORTH CENTRAL LONDON ICB",null,"QHM","R0B","SOUTH TYNESIDE AND SUNDERLAND NHS FOUNDATION TRUST",null,null,null,"RBD","CROYDON HEALTH SERVICES NHS TRUST"]
[null,null,null,null,null,null,null,null,null,null,null,"Mode Telephone",null,null,"QMM","NORFOLK AND WAVENEY ICB",null,"QMM","NORFOLK AND WAVENEY ICB",null,"QHM","RNN","NORTH CUMBRIA INTEGRATED CARE NHS FOUNDATION TRUST",null,null,null,"RBK","DARTFORD AND GRAVESHAM NHS TRUST"]
[null,null,null,null,null,null,null,null,null,null,null,"Mode Online",null,null,"QNC","STAFFORDSHIRE AND STOKE-ON-TRENT ICB",null,"QNC","STAFFORDSHIRE AND STOKE-ON-TRENT ICB",null,"QHM","RR7","GATESHEAD HEALTH NHS FOUNDATION TRUST",null,null,null,"RBL","DONCASTER AND BASSETLAW TEACHING HOSPITALS NHS FOUNDATION TRUST"]
[null,null,null,null,null,null,null,null,null,null,null,"Mode Other",null,null,"QNQ","FRIMLEY ICB",null,"QNQ","FRIMLEY ICB",null,"QHM","RTD","THE NEWCASTLE UPON TYNE HOSPITALS NHS FOUNDATION TRUST",null,null,null,"RBN","DORSET COUNTY HOSPITAL NHS FOUNDATION TRUST"]
[null,null,null,null,null,null,null,null,null,null,null,null,null,null,"QNX","SUSSEX ICB",null,"QNX","SUSSEX ICB",null,"QHM","RVW","NORTH TEES AND HARTLEPOOL NHS FOUNDATION TRUST",null,null,null,"RBT","EAST AND NORTH HERTFORDSHIRE NHS TRUST"]
[null,null,null,null,null,null,null,null,null,null,null,null,null,null,"QOC","SHROPSHIRE, TELFORD AND WREKIN ICB",null,"QOC","SHROPSHIRE, TELFORD AND WREKIN ICB",null,"QHM","RXP","COUNTY DURHAM AND DARLINGTON NHS FOUNDATION TRUST",null,null,null,"RC9","EAST CHESHIRE NHS TRUST"]
[null,null,null,null,null,null,null,null,null,null,null,null,null,null,"QOP","GREATER MANCHESTER ICB",null,"QOP","GREATER MANCHESTER ICB",null,"QHM","RTR","SOUTH TEES HOSPITALS NHS FOUNDATION TRUST",null,null,null,"RCB","EAST KENT HOSPITALS UNIVERSITY NHS FOUNDATION TRUST"]
[null,null,null,null,null,null,null,null,null,null,null,null,null,null,"QOQ","HUMBER AND NORTH YORKSHIRE ICB",null,"QOQ","HUMBER AND NORTH YORKSHIRE ICB",null,"QHM","RTF","NORTHUMBRIA HEALTHCARE NHS FOUNDATION TRUST",null,null,null,"RCD","EAST LANCASHIRE HOSPITALS NHS TRUST"]
[null,null,null,null,null,null,null,null,null,null,null,null,null,null,"QOX","BATH AND NORTH EAST SOMERSET, SWINDON AND WILTSHIRE ICB",null,"QOX","BATH AND NORTH EAST SOMERSET, SWINDON AND WILTSHIRE ICB",null,"QJ2","RTG","UNIVERSITY HOSPITALS OF DERBY AND BURTON NHS FOUNDATION TRUST",null,null,null,"RCF","EAST SUFFOLK AND NORTH ESSEX NHS FOUNDATION TRUST"]
[null,null,null,null,null,null,null,null,null,null,null,null,null,null,"QPM","NORTHAMPTONSHIRE ICB",null,"QPM","NORTHAMPTONSHIRE ICB",null,"QJ2","RFS","CHESTERFIELD ROYAL HOSPITAL NHS FOUNDATION TRUST",null,null,null,"RCX","EAST SUSSEX HEALTHCARE NHS TRUST"]
[null,null,null,null,null,null,null,null,null,null,null,null,null,null,"QR1","GLOUCESTERSHIRE ICB",null,"QR1","GLOUCESTERSHIRE ICB",null,"QJG","RDE","EAST SUFFOLK AND NORTH ESSEX NHS FOUNDATION TRUST",null,null,null,"RD1","EPSOM AND ST HELIER UNIVERSITY HOSPITALS NHS TRUST"]
[null,null,null,null,null,null,null,null,null,null,null,null,null,null,"QRL","HAMPSHIRE AND ISLE OF WIGHT ICB",null,"QRL","HAMPSHIRE AND ISLE OF WIGHT ICB",null,"QJG","RGR","WEST SUFFOLK NHS FOUNDATION TRUST",null,null,null,"RD8","FRIMLEY HEALTH NHS FOUNDATION TRUST"]
[null,null,null,null,null,null,null,null,null,null,null,null,null,null,"QRV","NORTH WEST LONDON ICB",null,"QRV","NORTH WEST LONDON ICB",null,"QJK","RA9","TORBAY AND SOUTH DEVON NHS FOUNDATION TRUST",null,null,null,"RDE","GATESHEAD HEALTH NHS FOUNDATION TRUST"]
[null,null,null,null,null,null,null,null,null,null,null,null,null,null,"QSL","SOMERSET ICB",null,"QSL","SOMERSET ICB",null,"QJK","RH8","ROYAL DEVON UNIVERSITY HEALTHCARE NHS FOUNDATION TRUST",null,null,null,"RDU","GEORGE ELIOT HOSPITAL NHS TRUST"]
[null,null,null,null,null,null,null,null,null,null,null,null,null,null,"QT1","NOTTINGHAM AND NOTTINGHAMSHIRE ICB",null,"QT1","NOTTINGHAM AND NOTTINGHAMSHIRE ICB",null,"QJK","RK9","UNIVERSITY HOSPITALS PLYMOUTH NHS TRUST",null,null,null,"REF","GLOUCESTERSHIRE HOSPITALS NHS FOUNDATION TRUST"]
[null,null,null,null,null,null,null,null,null,null,null,null,null,null,"QT6","CORNWALL AND THE ISLES OF SCILLY ICB",null,"QT6","CORNWALL AND THE ISLES OF SCILLY ICB",null,"QJM","RWD","UNITED LINCOLNSHIRE HOSPITALS NHS TRUST",null,null,null,"REP","GREAT WESTERN HOSPITALS NHS FOUNDATION TRUST"]
[null,null,null,null,null,null,null,null,null,null,null,null,null,null,"QU9","BUCKINGHAMSHIRE, OXFORDSHIRE AND BERKSHIRE WEST ICB",null,"QU9","BUCKINGHAMSHIRE, OXFORDSHIRE AND BERKSHIRE WEST ICB",null,"QK1","RWE","UNIVERSITY HOSPITALS OF LEICESTER NHS TRUST",null,null,null,"RF4","GUY'S AND ST THOMAS' NHS FOUNDATION TRUST"]
[null,null,null,null,null,null,null,null,null,null,null,null,null,null,"QUA","BLACK COUNTRY ICB",null,"QUA","BLACK COUNTRY ICB",null,"QKK","RJ2","LEWISHAM AND GREENWICH NHS TRUST",null,null,null,"RFF","HAMPSHIRE HOSPITALS NHS FOUNDATION TRUST"]
[null,null,null,null,null,null,null,null,null,null,null,null,null,null,"QUE","CAMBRIDGESHIRE AND PETERBOROUGH ICB",null,"QUE","CAMBRIDGESHIRE AND PETERBOROUGH ICB",null,"QKK","RJ1","GUY'S AND ST THOMAS' NHS FOUNDATION TRUST",null,null,null,"RFR","HARROGATE AND DISTRICT NHS FOUNDATION TRUST"]
[null,null,null,null,null,null,null,null,null,null,null,null,null,null,"QUY","BRISTOL, NORTH SOMERSET AND SOUTH GLOUCESTERSHIRE ICB",null,"QUY","BRISTOL, NORTH SOMERSET AND SOUTH GLOUCESTERSHIRE ICB",null,"QKK","RJZ","KING'S COLLEGE HOSPITAL NHS FOUNDATION TRUST",null,null,null,"RFS","HOMERTON HEALTHCARE NHS FOUNDATION TRUST"]
[null,null,null,null,null,null,null,null,null,null,null,null,null,null,"QVV","DORSET ICB",null,"QVV","DORSET ICB",null,"QKS","RPA","MEDWAY NHS FOUNDATION TRUST",null,null,null,"RGN","HULL UNIVERSITY TEACHING HOSPITALS NHS TRUST"]
[null,null,null,null,null,null,null,null,null,null,null,null,null,null,"QWE","SOUTH WEST LONDON ICB",null,"QWE","SOUTH WEST LONDON ICB",null,"QKS","RVV","EAST KENT HOSPITALS UNIVERSITY NHS FOUNDATION TRUST",null,null,null,"RGP","IMPERIAL COLLEGE HEALTHCARE NHS TRUST"]
[null,null,null,null,null,null,null,null,null,null,null,null,null,null,"QWO","WEST YORKSHIRE ICB",null,"QWO","WEST YORKSHIRE ICB",null,"QKS","RWF","MAIDSTONE AND TUNBRIDGE WELLS NHS TRUST",null,null,null,"RGR","ISLE OF WIGHT NHS TRUST"]
[null,null,null,null,null,null,null,null,null,null,null,null,null,null,"QWU","COVENTRY AND WARWICKSHIRE ICB",null,"QWU","COVENTRY AND WARWICKSHIRE ICB",null,"QKS","RN7","DARTFORD AND GRAVESHAM NHS TRUST",null,null,null,"RGT","JAMES PAGET UNIVERSITY HOSPITALS NHS FOUNDATION TRUST"]
[null,null,null,null,null,null,null,null,null,null,null,null,null,null,"QXU","SURREY HEARTLANDS ICB",null,"QXU","SURREY HEARTLANDS ICB",null,"QM7","RQW","THE PRINCESS ALEXANDRA HOSPITAL NHS TRUST",null,null,null,"RH5","KETTERING GENERAL HOSPITAL NHS FOUNDATION TRUST"]
[null,null,null,null,null,null,null,null,null,null,null,null,null,null,"QYG","CHESHIRE AND MERSEYSIDE ICB",null,"QYG","CHESHIRE AND MERSEYSIDE ICB",null,"QM7","RWH","EAST AND NORTH HERTFORDSHIRE NHS TRUST",null,null,null,"RH8","KING'S COLLEGE HOSPITAL NHS FOUNDATION TRUST"]
[null,null,null,null,null,null,null,null,null,null,null,null,null,null,null,null,null,null,null,null,"QM7","RWG","WEST HERTFORDSHIRE TEACHING HOSPITALS NHS TRUST",null,null,null,"RHM","KINGSTON HOSPITAL NHS FOUNDATION TRUST"]
[null,null,null,null,null,null,null,null,null,null,null,null,null,null,null,null,null,null,null,null,"QMF","RF4","BARKING, HAVERING AND REDBRIDGE UNIVERSITY HOSPITALS NHS TRUST",null,null,null,"RHQ","LANCASHIRE TEACHING HOSPITALS NHS FOUNDATION TRUST"]
[null,null,null,null,null,null,null,null,null,null,null,null,null,null,null,null,null,null,null,null,"QMF","RQX","HOMERTON HEALTHCARE NHS FOUNDATION TRUST",null,null,null,"RHU","LEEDS TEACHING HOSPITALS NHS TRUST"]
[null,null,null,null,null,null,null,null,null,null,null,null,null,null,null,null,null,null,null,null,"QMF","R1H","BARTS HEALTH NHS TRUST",null,null,null,"RHW","LEWISHAM AND GREENWICH NHS TRUST"]
[null,null,null,null,null,null,null,null,null,null,null,null,null,null,null,null,null,null,null,null,"QMJ","RAP","NORTH MIDDLESEX UNIVERSITY HOSPITAL NHS TRUST",null,null,null,"RJ1","LIVERPOOL WOMEN'S NHS FOUNDATION TRUST"]
[null,null,null,null,null,null,null,null,null,null,null,null,null,null,null,null,null,null,null,null,"QMJ","RRV","UNIVERSITY COLLEGE LONDON HOSPITALS NHS FOUNDATION TRUST",null,null,null,"RJ2","LONDON NORTH WEST UNIVERSITY HEALTHCARE NHS TRUST"]
[null,null,null,null,null,null,null,null,null,null,null,null,null,null,null,null,null,null,null,null,"QMJ","RAL","ROYAL FREE LONDON NHS FOUNDATION TRUST",null,null,null,"RJ6","MAIDSTONE AND TUNBRIDGE WELLS NHS TRUST"]
[null,null,null,null,null,null,null,null,null,null,null,null,null,null,null,null,null,null,null,null,"QMM","RGP","JAMES PAGET UNIVERSITY HOSPITALS NHS FOUNDATION TRUST",null,null,null,"RJ7","MANCHESTER UNIVERSITY NHS FOUNDATION TRUST"]
[null,null,null,null,null,null,null,null,null,null,null,null,null,null,null,null,null,null,null,null,"QMM","RM1","NORFOLK AND NORWICH UNIVERSITY HOSPITALS NHS FOUNDATION TRUST",null,null,null,"RJC","MEDWAY NHS FOUNDATION TRUST"]
[null,null,null,null,null,null,null,null,null,null,null,null,null,null,null,null,null,null,null,null,"QMM","RCX","THE QUEEN ELIZABETH HOSPITAL, KING'S LYNN, NHS FOUNDATION TRUST",null,null,null,"RJE","MID AND SOUTH ESSEX NHS FOUNDATION TRUST"]
[null,null,null,null,null,null,null,null,null,null,null,null,null,null,null,null,null,null,null,null,"QNC","RJE","UNIVERSITY HOSPITALS OF NORTH MIDLANDS NHS TRUST",null,null,null,"RJL","MID CHESHIRE HOSPITALS NHS FOUNDATION TRUST"]
[null,null,null,null,null,null,null,null,null,null,null,null,null,null,null,null,null,null,null,null,"QNQ","RDU","FRIMLEY HEALTH NHS FOUNDATION TRUST",null,null,null,"RJN","MID YORKSHIRE HOSPITALS NHS TRUST"]
[null,null,null,null,null,null,null,null,null,null,null,null,null,null,null,null,null,null,null,null,"QNX","RXC","EAST SUSSEX HEALTHCARE NHS TRUST",null,null,null,"RJZ","MILTON KEYNES UNIVERSITY HOSPITAL NHS FOUNDATION TRUST"]
[null,null,null,null,null,null,null,null,null,null,null,null,null,null,null,null,null,null,null,null,"QNX","RYR","UNIVERSITY HOSPITALS SUSSEX NHS FOUNDATION TRUST",null,null,null,"RK5","NORFOLK AND NORWICH UNIVERSITY HOSPITALS NHS FOUNDATION TRUST"]
[null,null,null,null,null,null,null,null,null,null,null,null,null,null,null,null,null,null,null,null,"QOC","RXW","THE SHREWSBURY AND TELFORD HOSPITAL NHS TRUST",null,null,null,"RK9","NORTH BRISTOL NHS TRUST"]
[null,null,null,null,null,null,null,null,null,null,null,null,null,null,null,null,null,null,null,null,"QOP","R0A","MANCHESTER UNIVERSITY NHS FOUNDATION TRUST",null,null,null,"RKB","NORTH CUMBRIA INTEGRATED CARE NHS FOUNDATION TRUST"]
[null,null,null,null,null,null,null,null,null,null,null,null,null,null,null,null,null,null,null,null,"QOP","RM3","NORTHERN CARE ALLIANCE NHS FOUNDATION TRUST",null,null,null,"RL4","NORTH MIDDLESEX UNIVERSITY HOSPITAL NHS TRUST"]
[null,null,null,null,null,null,null,null,null,null,null,null,null,null,null,null,null,null,null,null,"QOP","RRF","WRIGHTINGTON, WIGAN AND LEIGH NHS FOUNDATION TRUST",null,null,null,"RLQ","NORTH TEES AND HARTLEPOOL NHS FOUNDATION TRUST"]
[null,null,null,null,null,null,null,null,null,null,null,null,null,null,null,null,null,null,null,null,"QOP","RWJ","STOCKPORT NHS FOUNDATION TRUST",null,null,null,"RLT","NORTH WEST ANGLIA NHS FOUNDATION TRUST"]
[null,null,null,null,null,null,null,null,null,null,null,null,null,null,null,null,null,null,null,null,"QOP","RMC","BOLTON NHS FOUNDATION TRUST",null,null,null,"RM1","NORTHAMPTON GENERAL HOSPITAL NHS TRUST"]
[null,null,null,null,null,null,null,null,null,null,null,null,null,null,null,null,null,null,null,null,"QOQ","RCB","YORK AND SCARBOROUGH TEACHING HOSPITALS NHS FOUNDATION TRUST",null,null,null,"RM3","NORTHERN CARE ALLIANCE NHS FOUNDATION TRUST"]
[null,null,null,null,null,null,null,null,null,null,null,null,null,null,null,null,null,null,null,null,"QOQ","RCD","HARROGATE AND DISTRICT NHS FOUNDATION TRUST",null,null,null,"RMC","NORTHERN LINCOLNSHIRE AND GOOLE NHS FOUNDATION TRUST"]
[null,null,null,null,null,null,null,null,null,null,null,null,null,null,null,null,null,null,null,null,"QOQ","RWA","HULL UNIVERSITY TEACHING HOSPITALS NHS TRUST",null,null,null,"RN3","NORTHUMBRIA HEALTHCARE NHS FOUNDATION TRUST"]
[null,null,null,null,null,null,null,null,null,null,null,null,null,null,null,null,null,null,null,null,"QOQ","RJL","NORTHERN LINCOLNSHIRE AND GOOLE NHS FOUNDATION TRUST",null,null,null,"RN5","NOTTINGHAM UNIVERSITY HOSPITALS NHS TRUST"]
[null,null,null,null,null,null,null,null,null,null,null,null,null,null,null,null,null,null,null,null,"QOX","RNZ","SALISBURY NHS FOUNDATION TRUST",null,null,null,"RN7","OXFORD UNIVERSITY HOSPITALS NHS FOUNDATION TRUST"]
[null,null,null,null,null,null,null,null,null,null,null,null,null,null,null,null,null,null,null,null,"QOX","RD1","ROYAL UNITED HOSPITALS BATH NHS FOUNDATION TRUST",null,null,null,"RNA","PORTSMOUTH HOSPITALS UNIVERSITY NATIONAL HEALTH SERVICE TRUST"]
[null,null,null,null,null,null,null,null,null,null,null,null,null,null,null,null,null,null,null,null,"QOX","RN3","GREAT WESTERN HOSPITALS NHS FOUNDATION TRUST",null,null,null,"RNN","ROYAL BERKSHIRE NHS FOUNDATION TRUST"]
[null,null,null,null,null,null,null,null,null,null,null,null,null,null,null,null,null,null,null,null,"QPM","RNS","NORTHAMPTON GENERAL HOSPITAL NHS TRUST",null,null,null,"RNQ","ROYAL CORNWALL HOSPITALS NHS TRUST"]
[null,null,null,null,null,null,null,null,null,null,null,null,null,null,null,null,null,null,null,null,"QPM","RNQ","KETTERING GENERAL HOSPITAL NHS FOUNDATION TRUST",null,null,null,"RNS","ROYAL DEVON UNIVERSITY HEALTHCARE NHS FOUNDATION TRUST"]
[null,null,null,null,null,null,null,null,null,null,null,null,null,null,null,null,null,null,null,null,"QR1","RTE","GLOUCESTERSHIRE HOSPITALS NHS FOUNDATION TRUST",null,null,null,"RNZ","ROYAL FREE LONDON NHS FOUNDATION TRUST"]
[null,null,null,null,null,null,null,null,null,null,null,null,null,null,null,null,null,null,null,null,"QRL","R1F","ISLE OF WIGHT NHS TRUST",null,null,null,"RP5","ROYAL SURREY COUNTY HOSPITAL NHS FOUNDATION TRUST"]
[null,null,null,null,null,null,null,null,null,null,null,null,null,null,null,null,null,null,null,null,"QRL","RN5","HAMPSHIRE HOSPITALS NHS FOUNDATION TRUST",null,null,null,"RPA","ROYAL UNITED HOSPITALS BATH NHS FOUNDATION TRUST"]
[null,null,null,null,null,null,null,null,null,null,null,null,null,null,null,null,null,null,null,null,"QRL","RHU","PORTSMOUTH HOSPITALS UNIVERSITY NATIONAL HEALTH SERVICE TRUST",null,null,null,"RQ3","SALISBURY NHS FOUNDATION TRUST"]
[null,null,null,null,null,null,null,null,null,null,null,null,null,null,null,null,null,null,null,null,"QRL","RHM","UNIVERSITY HOSPITAL SOUTHAMPTON NHS FOUNDATION TRUST",null,null,null,"RQM","SANDWELL AND WEST BIRMINGHAM HOSPITALS NHS TRUST"]
[null,null,null,null,null,null,null,null,null,null,null,null,null,null,null,null,null,null,null,null,"QRV","R1K","LONDON NORTH WEST UNIVERSITY HEALTHCARE NHS TRUST",null,null,null,"RQW","SHEFFIELD TEACHING HOSPITALS NHS FOUNDATION TRUST"]
[null,null,null,null,null,null,null,null,null,null,null,null,null,null,null,null,null,null,null,null,"QRV","RQM","CHELSEA AND WESTMINSTER HOSPITAL NHS FOUNDATION TRUST",null,null,null,"RQX","SHERWOOD FOREST HOSPITALS NHS FOUNDATION TRUST"]
[null,null,null,null,null,null,null,null,null,null,null,null,null,null,null,null,null,null,null,null,"QRV","RAS","THE HILLINGDON HOSPITALS NHS FOUNDATION TRUST",null,null,null,"RR7","SOMERSET NHS FOUNDATION TRUST"]
[null,null,null,null,null,null,null,null,null,null,null,null,null,null,null,null,null,null,null,null,"QRV","RYJ","IMPERIAL COLLEGE HEALTHCARE NHS TRUST",null,null,null,"RR8","SOUTH TEES HOSPITALS NHS FOUNDATION TRUST"]
[null,null,null,null,null,null,null,null,null,null,null,null,null,null,null,null,null,null,null,null,"QSL","RH5","SOMERSET NHS FOUNDATION TRUST",null,null,null,"RRF","SOUTH TYNESIDE AND SUNDERLAND NHS FOUNDATION TRUST"]
[null,null,null,null,null,null,null,null,null,null,null,null,null,null,null,null,null,null,null,null,"QSL","RA4","YEOVIL DISTRICT HOSPITAL NHS FOUNDATION TRUST",null,null,null,"RRK","SOUTH WARWICKSHIRE UNIVERSITY NHS FOUNDATION TRUST"]
[null,null,null,null,null,null,null,null,null,null,null,null,null,null,null,null,null,null,null,null,"QT1","RK5","SHERWOOD FOREST HOSPITALS NHS FOUNDATION TRUST",null,null,null,"RRV","SOUTHPORT AND ORMSKIRK HOSPITAL NHS TRUST"]
[null,null,null,null,null,null,null,null,null,null,null,null,null,null,null,null,null,null,null,null,"QT1","RX1","NOTTINGHAM UNIVERSITY HOSPITALS NHS TRUST",null,null,null,"RTD","ST GEORGE'S UNIVERSITY HOSPITALS NHS FOUNDATION TRUST"]
[null,null,null,null,null,null,null,null,null,null,null,null,null,null,null,null,null,null,null,null,"QT6","REF","ROYAL CORNWALL HOSPITALS NHS TRUST",null,null,null,"RTE","ST HELENS AND KNOWSLEY TEACHING HOSPITALS NHS TRUST"]
[null,null,null,null,null,null,null,null,null,null,null,null,null,null,null,null,null,null,null,null,"QU9","RHW","ROYAL BERKSHIRE NHS FOUNDATION TRUST",null,null,null,"RTF","STOCKPORT NHS FOUNDATION TRUST"]
[null,null,null,null,null,null,null,null,null,null,null,null,null,null,null,null,null,null,null,null,"QU9","RTH","OXFORD UNIVERSITY HOSPITALS NHS FOUNDATION TRUST",null,null,null,"RTG","SURREY AND SUSSEX HEALTHCARE NHS TRUST"]
[null,null,null,null,null,null,null,null,null,null,null,null,null,null,null,null,null,null,null,null,"QU9","RXQ","BUCKINGHAMSHIRE HEALTHCARE NHS TRUST",null,null,null,"RTH","THE DUDLEY GROUP NHS FOUNDATION TRUST"]
[null,null,null,null,null,null,null,null,null,null,null,null,null,null,null,null,null,null,null,null,"QUA","RNA","THE DUDLEY GROUP NHS FOUNDATION TRUST",null,null,null,"RTK","THE HILLINGDON HOSPITALS NHS FOUNDATION TRUST"]
[null,null,null,null,null,null,null,null,null,null,null,null,null,null,null,null,null,null,null,null,"QUA","RBK","WALSALL HEALTHCARE NHS TRUST",null,null,null,"RTP","THE NEWCASTLE UPON TYNE HOSPITALS NHS FOUNDATION TRUST"]
[null,null,null,null,null,null,null,null,null,null,null,null,null,null,null,null,null,null,null,null,"QUA","RL4","THE ROYAL WOLVERHAMPTON NHS TRUST",null,null,null,"RTR","THE PRINCESS ALEXANDRA HOSPITAL NHS TRUST"]
[null,null,null,null,null,null,null,null,null,null,null,null,null,null,null,null,null,null,null,null,"QUE","RGT","CAMBRIDGE UNIVERSITY HOSPITALS NHS FOUNDATION TRUST",null,null,null,"RTX","THE QUEEN ELIZABETH HOSPITAL, KING'S LYNN, NHS FOUNDATION TRUST"]
[null,null,null,null,null,null,null,null,null,null,null,null,null,null,null,null,null,null,null,null,"QUE","RGN","NORTH WEST ANGLIA NHS FOUNDATION TRUST",null,null,null,"RVJ","THE ROTHERHAM NHS FOUNDATION TRUST"]
[null,null,null,null,null,null,null,null,null,null,null,null,null,null,null,null,null,null,null,null,"QUY","RA7","UNIVERSITY HOSPITALS BRISTOL AND WESTON NHS FOUNDATION TRUST",null,null,null,"RVR","THE ROYAL WOLVERHAMPTON NHS TRUST"]
[null,null,null,null,null,null,null,null,null,null,null,null,null,null,null,null,null,null,null,null,"QUY","RVJ","NORTH BRISTOL NHS TRUST",null,null,null,"RVV","THE SHREWSBURY AND TELFORD HOSPITAL NHS TRUST"]
[null,null,null,null,null,null,null,null,null,null,null,null,null,null,null,null,null,null,null,null,"QVV","RBD","DORSET COUNTY HOSPITAL NHS FOUNDATION TRUST",null,null,null,"RVW","TORBAY AND SOUTH DEVON NHS FOUNDATION TRUST"]
[null,null,null,null,null,null,null,null,null,null,null,null,null,null,null,null,null,null,null,null,"QVV","R0D","UNIVERSITY HOSPITALS DORSET NHS FOUNDATION TRUST",null,null,null,"RVY","UNITED LINCOLNSHIRE HOSPITALS NHS TRUST"]
[null,null,null,null,null,null,null,null,null,null,null,null,null,null,null,null,null,null,null,null,"QWE","RJ6","CROYDON HEALTH SERVICES NHS TRUST",null,null,null,"RWA","UNIVERSITY COLLEGE LONDON HOSPITALS NHS FOUNDATION TRUST"]
[null,null,null,null,null,null,null,null,null,null,null,null,null,null,null,null,null,null,null,null,"QWE","RJ7","ST GEORGE'S UNIVERSITY HOSPITALS NHS FOUNDATION TRUST",null,null,null,"RWD","UNIVERSITY HOSPITAL SOUTHAMPTON NHS FOUNDATION TRUST"]
[null,null,null,null,null,null,null,null,null,null,null,null,null,null,null,null,null,null,null,null,"QWE","RVR","EPSOM AND ST HELIER UNIVERSITY HOSPITALS NHS TRUST",null,null,null,"RWE","UNIVERSITY HOSPITALS BIRMINGHAM NHS FOUNDATION TRUST"]
[null,null,null,null,null,null,null,null,null,null,null,null,null,null,null,null,null,null,null,null,"QWE","RAX","KINGSTON HOSPITAL NHS FOUNDATION TRUST",null,null,null,"RWF","UNIVERSITY HOSPITALS BRISTOL AND WESTON NHS FOUNDATION TRUST"]
[null,null,null,null,null,null,null,null,null,null,null,null,null,null,null,null,null,null,null,null,"QWO","RAE","BRADFORD TEACHING HOSPITALS NHS FOUNDATION TRUST",null,null,null,"RWG","UNIVERSITY HOSPITALS COVENTRY AND WARWICKSHIRE NHS TRUST"]
[null,null,null,null,null,null,null,null,null,null,null,null,null,null,null,null,null,null,null,null,"QWO","RCF","AIREDALE NHS FOUNDATION TRUST",null,null,null,"RWH","UNIVERSITY HOSPITALS DORSET NHS FOUNDATION TRUST"]
[null,null,null,null,null,null,null,null,null,null,null,null,null,null,null,null,null,null,null,null,"QWO","RR8","LEEDS TEACHING HOSPITALS NHS TRUST",null,null,null,"RWJ","UNIVERSITY HOSPITALS OF DERBY AND BURTON NHS FOUNDATION TRUST"]
[null,null,null,null,null,null,null,null,null,null,null,null,null,null,null,null,null,null,null,null,"QWO","RWY","CALDERDALE AND HUDDERSFIELD NHS FOUNDATION TRUST",null,null,null,"RWP","UNIVERSITY HOSPITALS OF LEICESTER NHS TRUST"]
[null,null,null,null,null,null,null,null,null,null,null,null,null,null,null,null,null,null,null,null,"QWO","RXF","MID YORKSHIRE HOSPITALS NHS TRUST",null,null,null,"RWW","UNIVERSITY HOSPITALS OF MORECAMBE BAY NHS FOUNDATION TRUST"]
[null,null,null,null,null,null,null,null,null,null,null,null,null,null,null,null,null,null,null,null,"QWU","RJC","SOUTH WARWICKSHIRE UNIVERSITY NHS FOUNDATION TRUST",null,null,null,"RWY","UNIVERSITY HOSPITALS OF NORTH MIDLANDS NHS TRUST"]
[null,null,null,null,null,null,null,null,null,null,null,null,null,null,null,null,null,null,null,null,"QWU","RLT","GEORGE ELIOT HOSPITAL NHS TRUST",null,null,null,"RX1","UNIVERSITY HOSPITALS PLYMOUTH NHS TRUST"]
[null,null,null,null,null,null,null,null,null,null,null,null,null,null,null,null,null,null,null,null,"QWU","RKB","UNIVERSITY HOSPITALS COVENTRY AND WARWICKSHIRE NHS TRUST",null,null,null,"RXC","UNIVERSITY HOSPITALS SUSSEX NHS FOUNDATION TRUST"]
[null,null,null,null,null,null,null,null,null,null,null,null,null,null,null,null,null,null,null,null,"QXU","RA2","ROYAL SURREY COUNTY HOSPITAL NHS FOUNDATION TRUST",null,null,null,"RXF","WALSALL HEALTHCARE NHS TRUST"]
[null,null,null,null,null,null,null,null,null,null,null,null,null,null,null,null,null,null,null,null,"QXU","RTK","ASHFORD AND ST PETER'S HOSPITALS NHS FOUNDATION TRUST",null,null,null,"RXK","WARRINGTON AND HALTON TEACHING HOSPITALS NHS FOUNDATION TRUST"]
[null,null,null,null,null,null,null,null,null,null,null,null,null,null,null,null,null,null,null,null,"QXU","RTP","SURREY AND SUSSEX HEALTHCARE NHS TRUST",null,null,null,"RXL","WEST HERTFORDSHIRE TEACHING HOSPITALS NHS TRUST"]
[null,null,null,null,null,null,null,null,null,null,null,null,null,null,null,null,null,null,null,null,"QYG","RBL","WIRRAL UNIVERSITY TEACHING HOSPITAL NHS FOUNDATION TRUST",null,null,null,"RXN","WEST SUFFOLK NHS FOUNDATION TRUST"]
[null,null,null,null,null,null,null,null,null,null,null,null,null,null,null,null,null,null,null,null,"QYG","RBT","MID CHESHIRE HOSPITALS NHS FOUNDATION TRUST",null,null,null,"RXP","WIRRAL UNIVERSITY TEACHING HOSPITAL NHS FOUNDATION TRUST"]
[null,null,null,null,null,null,null,null,null,null,null,null,null,null,null,null,null,null,null,null,"QYG","RJN","EAST CHESHIRE NHS TRUST",null,null,null,"RXQ","WORCESTERSHIRE ACUTE HOSPITALS NHS TRUST"]
[null,null,null,null,null,null,null,null,null,null,null,null,null,null,null,null,null,null,null,null,"QYG","RWW","WARRINGTON AND HALTON TEACHING HOSPITALS NHS FOUNDATION TRUST",null,null,null,"RXR","WRIGHTINGTON, WIGAN AND LEIGH NHS FOUNDATION TRUST"]
[null,null,null,null,null,null,null,null,null,null,null,null,null,null,null,null,null,null,null,null,"QYG","RVY","SOUTHPORT AND ORMSKIRK HOSPITAL NHS TRUST",null,null,null,"RXW","WYE VALLEY NHS TRUST"]
[null,null,null,null,null,null,null,null,null,null,null,null,null,null,null,null,null,null,null,null,"QYG","RBN","ST HELENS AND KNOWSLEY TEACHING HOSPITALS NHS TRUST",null,null,null,"RYJ","YEOVIL DISTRICT HOSPITAL NHS FOUNDATION TRUST"]
[null,null,null,null,null,null,null,null,null,null,null,null,null,null,null,null,null,null,null,null,"QYG","REP","LIVERPOOL WOMEN'S NHS FOUNDATION TRUST",null,null,null,"RYR","YORK AND SCARBOROUGH TEACHING HOSPITALS NHS FOUNDATION TRUST"]